Workbook

Sheet 資料輸入
B2: 安達人壽美利紅美元分紅終身壽險_建議書 資料輸入頁
B4: 客戶資料 | L4: PSSD202504-002-BRSS
C8: 被保險人 | E8: 被保人 | F8: 先生 | G8: 要保人 | H8: 要保人 | I8: 先生/小姐 | J8: 繳費人 | K8: 繳費人 | L8: 先生/小姐
C10: 被保險人出生年月日 | E10: 740101 | F10: 格式(yyymmdd) | G10: 要保人出生年月日 | H10: 740101 | I10: 格式(yyymmdd) | J10: 繳費人出生年月日 | K10: 740101 | L10: 格式(yyymmdd)
C12: 性 別 | E12: 男性 | F12: 下拉選單 | G12: 性 別 | H12: 男性 | I12: 下拉選單 | J12: 性 別 | K12: 男性 | L12: 下拉選單
C14: 保險年齡 | E14: =age -> 40 | G14: 保險年齡 | H14: =holderAge -> 40 | J14: 保險年齡 | K14: =payerAge -> 40
B15: 投保內容
C17: 商品名稱 | E17: 安達人壽美利紅美元分紅終身壽險
C19: 商品幣別 | E19: 美元
C21: 繳別 | E21: 年繳 | F21: 下拉選單
C23: 保險年期 | E23: 保險年齡達110歲
C25: 繳費期間 | E25: 3年期
C27: 繳費方式(首期) | E27: 金融機構自動轉帳 | F27: 下拉選單
C29: 繳費方式(續期) | E29: 金融機構自動轉帳 | F29: 下拉選單
C31: 保險金額(元） | E31: 100000 | F31: 15足歲以下:1萬美元~35萬美元；15足歲(含以上): 1萬美元~1000萬美元
B34: 分期保險金給付設定
C36: 分期定期保險金給付期間 | E36: 5 | F36: 請輸入5~20年
C38: 一次給付比例 | E38: 40 | F38: %
C40: 每期給付比例 | E40: 60 | F40: %
B42: 保險費合計
C45: 首期保費 | E45: =TEXT(GP_bf_disc,"###,###,###.00") -> 20,470.00 | F45: 元
C47: 首期折扣後保費 | E47: =TEXT(GP_af_disc,"###,###,###.00") -> 20,265.30 | F47: ="元 ( " & TEXT(參數!$B$26*100, "0.00") & "% 折扣）" -> 元 ( 1.00% 折扣）
C49: 續期保費 | E49: =TEXT(RP_bf_disc,"###,###,###.00") -> 20,470.00 | F49: 元
C51: 續期折扣後保費 | E51: =TEXT(RP_af_disc,"###,###,###.00") -> 20,265.30 | F51: ="元 ( " & TEXT(參數!$B$27*100, "0.00") & "% 折扣）" -> 元 ( 1.00% 折扣）
B63: 錄音提示稿相關資料
B64: 保經代公司名稱： | E64: 安達保經 | I64: 請輸入保經代公司名稱，例如: 安達保經
B65: 業務員姓名： | E65: 業務員(一) | G65: 業務員(二)
B66: 業務員登錄證字號： | E66: 0123456789 | G66: 9876543210 | I66: 請輸入登錄證字號，共10碼
B68: 投保目的(可複選) | F68: 保障 | H68: 【適用投保目的】請輸入V，【取消】請空白
F69: 子女教育經費 | H69: 【適用投保目的】請輸入V，【取消】請空白
F70: 退休規劃 | H70: 【適用投保目的】請輸入V，【取消】請空白
F71: 房屋貸款 | H71: 【適用投保目的】請輸入V，【取消】請空白
F72: 其他 (請於右方填入內容) | H72: 【適用投保目的】請輸入V，【取消】請空白
B75: ※ 提醒您，本試算表所提出之部份提領申請為繳費期滿後【減少保險金額】，保險金額減少均會減少保單保障、保單價值準備金及解約金等，客戶必須依照自身的財務及保障需求妥適規劃。
B76: ※ 要保人在本契約有效期間內，得申請減少保險金額，但是減額後的基本保險金額，不得低於本保險最低承保金額，其減少部分依契約終止之約定處理。
B77: ※ 下列【減少保險金額】之數值為預估值，如投保後需減少保險金額請自行提出契變辦理，詳細規則可參閱保全規則。
B78: ※ 本公司辦理「減少保險金額」，係先減少基本保險金額。減額後的基本保險金額，不得低於本保險最低承保金額 10000 美元。
B79: 部分提領
C81: ※減額後的「基本保險金額」不得低於本保險最低承保金額!
C82: 定額提領(減少保險金額)
E83: 建議提領試算年齡須至少大於投保年齡加6歲!
C84: 年齡一 | E84: 50 | F84: 歲起 | G84: 每年提領金額 | H84: 350000 | J84: 美元
E85: =IF(E86="","",IF(定額提領年齡二<=定額提領年齡一,"定額提領試算年齡二需大於定額提領試算年齡一","")) ->  | K85: =IF(COUNTIF(減少保險金影響表!J9:J126, 0) > 0, "提醒，依此方式提領，基本保險金額將於保險契約有效期間內歸零", "") -> 提醒，依此方式提領，基本保險金額將於保險契約有效期間內歸零
C86: 年齡二 | F86: 歲起 | G86: 每年提領金額 | J86: 美元
E87: =IF(E88="","",IF(定額提領年齡三<=定額提領年齡二,"定額提領試算年齡三需大於定額提領試算年齡一及年齡二","")) -> 
C88: 年齡三 | F88: 歲起 | G88: 每年提領金額 | J88: 美元
C91: 額外一次提領(減少保險金額)
E92: 建議提領試算年齡須至少大於投保年齡加6歲!
C93: 年齡一 | F93: 歲 | G93: 當次提領金額 | J93: 美元
E94: =IF($E95="","",IF($E95<=E93,"定額提領試算年齡二需大於定額提領試算年齡一","")) ->  | K94: =IF(COUNTIF(減少保險金影響表!J9:J126, 0) > 0, "提醒，依此方式提領，基本保險金額將於保險契約有效期間內歸零", "") -> 提醒，依此方式提領，基本保險金額將於保險契約有效期間內歸零
C95: 年齡二 | F95: 歲 | G95: 當次提領金額 | J95: 美元
E96: =IF(E97="","",IF(E97<=E95,"定額提領試算年齡三需大於定額提領試算年齡一及年齡二","")) -> 
C97: 年齡三 | F97: 歲 | G97: 當次提領金額 | J97: 美元
B104: 建議書列印頁 | D104: 商品利益說明表 (不含紅利部份) | G104: 商品利益分析表 | I104: 減少保險金額 | L104: 分期定期保險金給付
E105: 建議書列印頁

Sheet 減少保險金影響表 (hidden)
B1: =ProductName &" - 減少保險金影響表" -> 安達人壽美利紅美元分紅終身壽險 - 減少保險金影響表
B3: 要保險人： | C3: =參數!H8 -> 要保人 | D3: ="保險年齡： "&age & " 歲" -> 保險年齡： 40 歲 | E3: ="繳 別： "&ChargeMode -> 繳 別： 年繳 | F3: ="首期繳費方式 :"&PayMode1 -> 首期繳費方式 :金融機構自動轉帳 | G3: ="首期保費："&TEXT(GP_bf_disc,"###,###,###.00") & " 美元" -> 首期保費：20,470.00 美元 | I3: ="首期折扣後保費："&TEXT(GP_af_disc,"###,###,###.00") & " 美元" -> 首期折扣後保費：20,265.30 美元 | K3: ="基本保險金額："&TEXT(SA,"###,###,###.00")&" 美元" -> 基本保險金額：100,000.00 美元 | M3: ="高保費折扣:"&TEXT(Prem_disc,"0.00%") -> 高保費折扣:0.00% | Q3: 列印
B4: 被保險人： | C4: =InsName -> 被保人 | D4: ="性 別： "&EntryGender -> 性 別： 男性 | E4: ="繳費年期： "&plan & " 年期" -> 繳費年期： 3 年期 | F4: ="續期繳費方式 :"&PayMode2 -> 續期繳費方式 :金融機構自動轉帳 | G4: ="續期保費："&TEXT(RP_bf_disc,"###,###,###.00") & " 美元" -> 續期保費：20,470.00 美元 | I4: ="續期折扣後保費："&TEXT(RP_af_disc,"###,###,###.00") & " 美元" -> 續期折扣後保費：20,265.30 美元 | K4: ="繳費方式折扣 : "&IF(PayModeDisc1=1%,TEXT(PayModeDisc1,"0.00%"),IF(PayModeDisc2=1%,TEXT(PayModeDisc2,"0.00%"),TEXT(0,"0.00%"))) -> 繳費方式折扣 : 1.00%
M5: (幣別/單位：美元/元)
B6: 年度 | C6: 年齡 | D6: 折扣後 當年度 所繳保險費 | E6: 折扣後 累計 所繳保險費 | F6: 【非保證給付項目】假設分紅-最可能紅利金額(保額)(中分紅) | Q6: 回到資料輸入
F7: 原保險金額試算 | H7: 減少保險金額試算
F8: 當年度末 壽險保障及 假設紅利_分紅保額 (預估值) (中) | G8: 當年度末 可能領取 解約金總額 (預估值) (中) | H8: 該次減少 基本保險金額 可領取之解約金 (預估值) (年初) | I8: 歷年減少 基本保險金額 領取之解約金總額 (預估值) A | J8: 減少基本保險金額後 當年度末壽險保障及 假設紅利_分紅保額 (預估值) | K8: 減少基本保險金額後 當年度末解約 可能領取之解約金 (預估值) B | L8: 累計至當年度末解約可能總領金額 (預估值) A+B=C
B9: 1 | C9: =IF(B9="","",age+B9-1) -> 40 | D9: =IF(C9="","***以下空白***",IF($B9="","",IF($B9>plan,"",VLOOKUP($B9,formula!$A$15:$BQ$124,formula!$AM$9,FALSE)))) -> 20265.3 | E9: =IF($B9="","",VLOOKUP($B9,formula!$A$15:$BQ$124,formula!$AN$9,FALSE)) -> 20265.3 | F9: =IF($B9="","",VLOOKUP($B9,formula!$A$15:$BQ$124,formula!$AD$9+1,FALSE)) -> 25201.26 | G9: =IF($B9="","",VLOOKUP($B9,formula!$A$15:$BQ$124,formula!$AG$9+1,FALSE)) -> 10500.6 | H9: =IF($B9="","",VLOOKUP($B9,formula!$A$15:$FD$124,formula!$EU$9,FALSE)) -> 0 | I9: =IF($B9="","",VLOOKUP($B9,formula!$A$15:$FD$124,formula!$EV$9,FALSE)) -> 0 | J9: =IF($B9="","",VLOOKUP($B9,formula!$A$15:$BQ$124,formula!$AZ$9,FALSE)) -> 25201.26 | K9: =IF($B9="","",VLOOKUP($B9,formula!$A$15:$BQ$124,formula!$AY$9,FALSE)) -> 10500.6 | L9: =IF($B9="","",VLOOKUP($B9,formula!$A$15:$BQ$124,formula!$BB$9,FALSE)) -> 10500.6
B10: =IF(B9>=109-age+1,"",B9+1) -> 2 | C10: 41 | D10: =IF(C9=MaxCoverageYear-1,"***以下空白***",IF($B10="","",IF($B10>plan,"",VLOOKUP($B10,formula!$A$15:$BQ$124,formula!$AM$9,FALSE)))) -> 20265.3 | E10: =IF($B10="","",VLOOKUP($B10,formula!$A$15:$BQ$124,formula!$AN$9,FALSE)) -> 40530.6 | F10: =IF($B10="","",VLOOKUP($B10,formula!$A$15:$BQ$124,formula!$AD$9+1,FALSE)) -> 52385.76 | G10: =IF($B10="","",VLOOKUP($B10,formula!$A$15:$BQ$124,formula!$AG$9+1,FALSE)) -> 24555.9 | H10: =IF($B10="","",VLOOKUP($B10,formula!$A$15:$FD$124,formula!$EU$9,FALSE)) -> 0 | I10: =IF($B10="","",VLOOKUP($B10,formula!$A$15:$FD$124,formula!$EV$9,FALSE)) -> 0 | J10: =IF($B10="","",VLOOKUP($B10,formula!$A$15:$BQ$124,formula!$AZ$9,FALSE)) -> 52385.76 | K10: =IF($B10="","",VLOOKUP($B10,formula!$A$15:$BQ$124,formula!$AY$9,FALSE)) -> 24555.9 | L10: =IF($B10="","",VLOOKUP($B10,formula!$A$15:$BQ$124,formula!$BB$9,FALSE)) -> 24555.9
B11: 3 | C11: 42 | D11: =IF(C10=MaxCoverageYear-1,"***以下空白***",IF($B11="","",IF($B11>plan,"",VLOOKUP($B11,formula!$A$15:$BQ$124,formula!$AM$9,FALSE)))) -> 20265.3 | E11: =IF($B11="","",VLOOKUP($B11,formula!$A$15:$BQ$124,formula!$AN$9,FALSE)) -> 60795.9 | F11: =IF($B11="","",VLOOKUP($B11,formula!$A$15:$BQ$124,formula!$AD$9+1,FALSE)) -> 82994.54 | G11: =IF($B11="","",VLOOKUP($B11,formula!$A$15:$BQ$124,formula!$AG$9+1,FALSE)) -> 41512.89 | H11: =IF($B11="","",VLOOKUP($B11,formula!$A$15:$FD$124,formula!$EU$9,FALSE)) -> 0 | I11: =IF($B11="","",VLOOKUP($B11,formula!$A$15:$FD$124,formula!$EV$9,FALSE)) -> 0 | J11: =IF($B11="","",VLOOKUP($B11,formula!$A$15:$BQ$124,formula!$AZ$9,FALSE)) -> 82994.54 | K11: =IF($B11="","",VLOOKUP($B11,formula!$A$15:$BQ$124,formula!$AY$9,FALSE)) -> 41512.89 | L11: =IF($B11="","",VLOOKUP($B11,formula!$A$15:$BQ$124,formula!$BB$9,FALSE)) -> 41512.89
B12: 4 | C12: 43 | D12: =IF(C11=MaxCoverageYear-1,"***以下空白***",IF($B12="","",IF($B12>plan,"",VLOOKUP($B12,formula!$A$15:$BQ$124,formula!$AM$9,FALSE)))) ->  | E12: =IF($B12="","",VLOOKUP($B12,formula!$A$15:$BQ$124,formula!$AN$9,FALSE)) -> 60795.9 | F12: =IF($B12="","",VLOOKUP($B12,formula!$A$15:$BQ$124,formula!$AD$9+1,FALSE)) -> 84635.01 | G12: =IF($B12="","",VLOOKUP($B12,formula!$A$15:$BQ$124,formula!$AG$9+1,FALSE)) -> 47633.18 | H12: =IF($B12="","",VLOOKUP($B12,formula!$A$15:$FD$124,formula!$EU$9,FALSE)) -> 0 | I12: =IF($B12="","",VLOOKUP($B12,formula!$A$15:$FD$124,formula!$EV$9,FALSE)) -> 0 | J12: =IF($B12="","",VLOOKUP($B12,formula!$A$15:$BQ$124,formula!$AZ$9,FALSE)) -> 84635.01 | K12: =IF($B12="","",VLOOKUP($B12,formula!$A$15:$BQ$124,formula!$AY$9,FALSE)) -> 47633.18 | L12: =IF($B12="","",VLOOKUP($B12,formula!$A$15:$BQ$124,formula!$BB$9,FALSE)) -> 47633.18
B13: 5 | C13: 44 | D13: =IF(C12=MaxCoverageYear-1,"***以下空白***",IF($B13="","",IF($B13>plan,"",VLOOKUP($B13,formula!$A$15:$BQ$124,formula!$AM$9,FALSE)))) ->  | E13: =IF($B13="","",VLOOKUP($B13,formula!$A$15:$BQ$124,formula!$AN$9,FALSE)) -> 60795.9 | F13: =IF($B13="","",VLOOKUP($B13,formula!$A$15:$BQ$124,formula!$AD$9+1,FALSE)) -> 86457.44 | G13: =IF($B13="","",VLOOKUP($B13,formula!$A$15:$BQ$124,formula!$AG$9+1,FALSE)) -> 51361.4 | H13: =IF($B13="","",VLOOKUP($B13,formula!$A$15:$FD$124,formula!$EU$9,FALSE)) -> 0 | I13: =IF($B13="","",VLOOKUP($B13,formula!$A$15:$FD$124,formula!$EV$9,FALSE)) -> 0 | J13: =IF($B13="","",VLOOKUP($B13,formula!$A$15:$BQ$124,formula!$AZ$9,FALSE)) -> 86457.44 | K13: =IF($B13="","",VLOOKUP($B13,formula!$A$15:$BQ$124,formula!$AY$9,FALSE)) -> 51361.4 | L13: =IF($B13="","",VLOOKUP($B13,formula!$A$15:$BQ$124,formula!$BB$9,FALSE)) -> 51361.4
B14: 6 | C14: 45 | D14: =IF(C13=MaxCoverageYear-1,"***以下空白***",IF($B14="","",IF($B14>plan,"",VLOOKUP($B14,formula!$A$15:$BQ$124,formula!$AM$9,FALSE)))) ->  | E14: =IF($B14="","",VLOOKUP($B14,formula!$A$15:$BQ$124,formula!$AN$9,FALSE)) -> 60795.9 | F14: =IF($B14="","",VLOOKUP($B14,formula!$A$15:$BQ$124,formula!$AD$9+1,FALSE)) -> 299334 | G14: =IF($B14="","",VLOOKUP($B14,formula!$A$15:$BQ$124,formula!$AG$9+1,FALSE)) -> 63389.12 | H14: =IF($B14="","",VLOOKUP($B14,formula!$A$15:$FD$124,formula!$EU$9,FALSE)) -> 0 | I14: =IF($B14="","",VLOOKUP($B14,formula!$A$15:$FD$124,formula!$EV$9,FALSE)) -> 0 | J14: =IF($B14="","",VLOOKUP($B14,formula!$A$15:$BQ$124,formula!$AZ$9,FALSE)) -> 299334 | K14: =IF($B14="","",VLOOKUP($B14,formula!$A$15:$BQ$124,formula!$AY$9,FALSE)) -> 63389.12 | L14: =IF($B14="","",VLOOKUP($B14,formula!$A$15:$BQ$124,formula!$BB$9,FALSE)) -> 63389.12
B15: 7 | C15: 46 | D15: =IF(C14=MaxCoverageYear-1,"***以下空白***",IF($B15="","",IF($B15>plan,"",VLOOKUP($B15,formula!$A$15:$BQ$124,formula!$AM$9,FALSE)))) ->  | E15: =IF($B15="","",VLOOKUP($B15,formula!$A$15:$BQ$124,formula!$AN$9,FALSE)) -> 60795.9 | F15: =IF($B15="","",VLOOKUP($B15,formula!$A$15:$BQ$124,formula!$AD$9+1,FALSE)) -> 304474 | G15: =IF($B15="","",VLOOKUP($B15,formula!$A$15:$BQ$124,formula!$AG$9+1,FALSE)) -> 64832.46 | H15: =IF($B15="","",VLOOKUP($B15,formula!$A$15:$FD$124,formula!$EU$9,FALSE)) -> 0 | I15: =IF($B15="","",VLOOKUP($B15,formula!$A$15:$FD$124,formula!$EV$9,FALSE)) -> 0 | J15: =IF($B15="","",VLOOKUP($B15,formula!$A$15:$BQ$124,formula!$AZ$9,FALSE)) -> 304474 | K15: =IF($B15="","",VLOOKUP($B15,formula!$A$15:$BQ$124,formula!$AY$9,FALSE)) -> 64832.46 | L15: =IF($B15="","",VLOOKUP($B15,formula!$A$15:$BQ$124,formula!$BB$9,FALSE)) -> 64832.46
B16: 8 | C16: 47 | D16: =IF(C15=MaxCoverageYear-1,"***以下空白***",IF($B16="","",IF($B16>plan,"",VLOOKUP($B16,formula!$A$15:$BQ$124,formula!$AM$9,FALSE)))) ->  | E16: =IF($B16="","",VLOOKUP($B16,formula!$A$15:$BQ$124,formula!$AN$9,FALSE)) -> 60795.9 | F16: =IF($B16="","",VLOOKUP($B16,formula!$A$15:$BQ$124,formula!$AD$9+1,FALSE)) -> 309653 | G16: =IF($B16="","",VLOOKUP($B16,formula!$A$15:$BQ$124,formula!$AG$9+1,FALSE)) -> 66294.17 | H16: =IF($B16="","",VLOOKUP($B16,formula!$A$15:$FD$124,formula!$EU$9,FALSE)) -> 0 | I16: =IF($B16="","",VLOOKUP($B16,formula!$A$15:$FD$124,formula!$EV$9,FALSE)) -> 0 | J16: =IF($B16="","",VLOOKUP($B16,formula!$A$15:$BQ$124,formula!$AZ$9,FALSE)) -> 309653 | K16: =IF($B16="","",VLOOKUP($B16,formula!$A$15:$BQ$124,formula!$AY$9,FALSE)) -> 66294.17 | L16: =IF($B16="","",VLOOKUP($B16,formula!$A$15:$BQ$124,formula!$BB$9,FALSE)) -> 66294.17
B17: 9 | C17: 48 | D17: =IF(C16=MaxCoverageYear-1,"***以下空白***",IF($B17="","",IF($B17>plan,"",VLOOKUP($B17,formula!$A$15:$BQ$124,formula!$AM$9,FALSE)))) ->  | E17: =IF($B17="","",VLOOKUP($B17,formula!$A$15:$BQ$124,formula!$AN$9,FALSE)) -> 60795.9 | F17: =IF($B17="","",VLOOKUP($B17,formula!$A$15:$BQ$124,formula!$AD$9+1,FALSE)) -> 314881 | G17: =IF($B17="","",VLOOKUP($B17,formula!$A$15:$BQ$124,formula!$AG$9+1,FALSE)) -> 67773.65 | H17: =IF($B17="","",VLOOKUP($B17,formula!$A$15:$FD$124,formula!$EU$9,FALSE)) -> 0 | I17: =IF($B17="","",VLOOKUP($B17,formula!$A$15:$FD$124,formula!$EV$9,FALSE)) -> 0 | J17: =IF($B17="","",VLOOKUP($B17,formula!$A$15:$BQ$124,formula!$AZ$9,FALSE)) -> 314881 | K17: =IF($B17="","",VLOOKUP($B17,formula!$A$15:$BQ$124,formula!$AY$9,FALSE)) -> 67773.65 | L17: =IF($B17="","",VLOOKUP($B17,formula!$A$15:$BQ$124,formula!$BB$9,FALSE)) -> 67773.65
B18: 10 | C18: 49 | D18: =IF(C17=MaxCoverageYear-1,"***以下空白***",IF($B18="","",IF($B18>plan,"",VLOOKUP($B18,formula!$A$15:$BQ$124,formula!$AM$9,FALSE)))) ->  | E18: =IF($B18="","",VLOOKUP($B18,formula!$A$15:$BQ$124,formula!$AN$9,FALSE)) -> 60795.9 | F18: =IF($B18="","",VLOOKUP($B18,formula!$A$15:$BQ$124,formula!$AD$9+1,FALSE)) -> 320138 | G18: =IF($B18="","",VLOOKUP($B18,formula!$A$15:$BQ$124,formula!$AG$9+1,FALSE)) -> 69271.87 | H18: =IF($B18="","",VLOOKUP($B18,formula!$A$15:$FD$124,formula!$EU$9,FALSE)) -> 0 | I18: =IF($B18="","",VLOOKUP($B18,formula!$A$15:$FD$124,formula!$EV$9,FALSE)) -> 0 | J18: =IF($B18="","",VLOOKUP($B18,formula!$A$15:$BQ$124,formula!$AZ$9,FALSE)) -> 320138 | K18: =IF($B18="","",VLOOKUP($B18,formula!$A$15:$BQ$124,formula!$AY$9,FALSE)) -> 69271.87 | L18: =IF($B18="","",VLOOKUP($B18,formula!$A$15:$BQ$124,formula!$BB$9,FALSE)) -> 69271.87
B19: 11 | C19: 50 | D19: =IF(C18=MaxCoverageYear-1,"***以下空白***",IF($B19="","",IF($B19>plan,"",VLOOKUP($B19,formula!$A$15:$BQ$124,formula!$AM$9,FALSE)))) ->  | E19: =IF($B19="","",VLOOKUP($B19,formula!$A$15:$BQ$124,formula!$AN$9,FALSE)) -> 60795.9 | F19: =IF($B19="","",VLOOKUP($B19,formula!$A$15:$BQ$124,formula!$AD$9+1,FALSE)) -> 322127 | G19: =IF($B19="","",VLOOKUP($B19,formula!$A$15:$BQ$124,formula!$AG$9+1,FALSE)) -> 70740.59 | H19: =IF($B19="","",VLOOKUP($B19,formula!$A$15:$FD$124,formula!$EU$9,FALSE)) -> 69271.87 | I19: =IF($B19="","",VLOOKUP($B19,formula!$A$15:$FD$124,formula!$EV$9,FALSE)) -> 69271.87 | J19: =IF($B19="","",VLOOKUP($B19,formula!$A$15:$BQ$124,formula!$AZ$9,FALSE)) -> 0 | K19: =IF($B19="","",VLOOKUP($B19,formula!$A$15:$BQ$124,formula!$AY$9,FALSE)) -> 0 | L19: =IF($B19="","",VLOOKUP($B19,formula!$A$15:$BQ$124,formula!$BB$9,FALSE)) -> 69271.87
B20: 12 | C20: 51 | D20: =IF(C19=MaxCoverageYear-1,"***以下空白***",IF($B20="","",IF($B20>plan,"",VLOOKUP($B20,formula!$A$15:$BQ$124,formula!$AM$9,FALSE)))) ->  | E20: =IF($B20="","",VLOOKUP($B20,formula!$A$15:$BQ$124,formula!$AN$9,FALSE)) -> 60795.9 | F20: =IF($B20="","",VLOOKUP($B20,formula!$A$15:$BQ$124,formula!$AD$9+1,FALSE)) -> 324138 | G20: =IF($B20="","",VLOOKUP($B20,formula!$A$15:$BQ$124,formula!$AG$9+1,FALSE)) -> 72235.23 | H20: =IF($B20="","",VLOOKUP($B20,formula!$A$15:$FD$124,formula!$EU$9,FALSE)) -> 0 | I20: =IF($B20="","",VLOOKUP($B20,formula!$A$15:$FD$124,formula!$EV$9,FALSE)) -> 69271.87 | J20: =IF($B20="","",VLOOKUP($B20,formula!$A$15:$BQ$124,formula!$AZ$9,FALSE)) -> 0 | K20: =IF($B20="","",VLOOKUP($B20,formula!$A$15:$BQ$124,formula!$AY$9,FALSE)) -> 0 | L20: =IF($B20="","",VLOOKUP($B20,formula!$A$15:$BQ$124,formula!$BB$9,FALSE)) -> 69271.87
B21: 13 | C21: 52 | D21: =IF(C20=MaxCoverageYear-1,"***以下空白***",IF($B21="","",IF($B21>plan,"",VLOOKUP($B21,formula!$A$15:$BQ$124,formula!$AM$9,FALSE)))) ->  | E21: =IF($B21="","",VLOOKUP($B21,formula!$A$15:$BQ$124,formula!$AN$9,FALSE)) -> 60795.9 | F21: =IF($B21="","",VLOOKUP($B21,formula!$A$15:$BQ$124,formula!$AD$9+1,FALSE)) -> 326150 | G21: =IF($B21="","",VLOOKUP($B21,formula!$A$15:$BQ$124,formula!$AG$9+1,FALSE)) -> 73755.11 | H21: =IF($B21="","",VLOOKUP($B21,formula!$A$15:$FD$124,formula!$EU$9,FALSE)) -> 0 | I21: =IF($B21="","",VLOOKUP($B21,formula!$A$15:$FD$124,formula!$EV$9,FALSE)) -> 69271.87 | J21: =IF($B21="","",VLOOKUP($B21,formula!$A$15:$BQ$124,formula!$AZ$9,FALSE)) -> 0 | K21: =IF($B21="","",VLOOKUP($B21,formula!$A$15:$BQ$124,formula!$AY$9,FALSE)) -> 0 | L21: =IF($B21="","",VLOOKUP($B21,formula!$A$15:$BQ$124,formula!$BB$9,FALSE)) -> 69271.87
B22: 14 | C22: 53 | D22: =IF(C21=MaxCoverageYear-1,"***以下空白***",IF($B22="","",IF($B22>plan,"",VLOOKUP($B22,formula!$A$15:$BQ$124,formula!$AM$9,FALSE)))) ->  | E22: =IF($B22="","",VLOOKUP($B22,formula!$A$15:$BQ$124,formula!$AN$9,FALSE)) -> 60795.9 | F22: =IF($B22="","",VLOOKUP($B22,formula!$A$15:$BQ$124,formula!$AD$9+1,FALSE)) -> 328183 | G22: =IF($B22="","",VLOOKUP($B22,formula!$A$15:$BQ$124,formula!$AG$9+1,FALSE)) -> 75302.59 | H22: =IF($B22="","",VLOOKUP($B22,formula!$A$15:$FD$124,formula!$EU$9,FALSE)) -> 0 | I22: =IF($B22="","",VLOOKUP($B22,formula!$A$15:$FD$124,formula!$EV$9,FALSE)) -> 69271.87 | J22: =IF($B22="","",VLOOKUP($B22,formula!$A$15:$BQ$124,formula!$AZ$9,FALSE)) -> 0 | K22: =IF($B22="","",VLOOKUP($B22,formula!$A$15:$BQ$124,formula!$AY$9,FALSE)) -> 0 | L22: =IF($B22="","",VLOOKUP($B22,formula!$A$15:$BQ$124,formula!$BB$9,FALSE)) -> 69271.87
B23: 15 | C23: 54 | D23: =IF(C22=MaxCoverageYear-1,"***以下空白***",IF($B23="","",IF($B23>plan,"",VLOOKUP($B23,formula!$A$15:$BQ$124,formula!$AM$9,FALSE)))) ->  | E23: =IF($B23="","",VLOOKUP($B23,formula!$A$15:$BQ$124,formula!$AN$9,FALSE)) -> 60795.9 | F23: =IF($B23="","",VLOOKUP($B23,formula!$A$15:$BQ$124,formula!$AD$9+1,FALSE)) -> 330218 | G23: =IF($B23="","",VLOOKUP($B23,formula!$A$15:$BQ$124,formula!$AG$9+1,FALSE)) -> 76877 | H23: =IF($B23="","",VLOOKUP($B23,formula!$A$15:$FD$124,formula!$EU$9,FALSE)) -> 0 | I23: =IF($B23="","",VLOOKUP($B23,formula!$A$15:$FD$124,formula!$EV$9,FALSE)) -> 69271.87 | J23: =IF($B23="","",VLOOKUP($B23,formula!$A$15:$BQ$124,formula!$AZ$9,FALSE)) -> 0 | K23: =IF($B23="","",VLOOKUP($B23,formula!$A$15:$BQ$124,formula!$AY$9,FALSE)) -> 0 | L23: =IF($B23="","",VLOOKUP($B23,formula!$A$15:$BQ$124,formula!$BB$9,FALSE)) -> 69271.87
B24: 16 | C24: 55 | D24: =IF(C23=MaxCoverageYear-1,"***以下空白***",IF($B24="","",IF($B24>plan,"",VLOOKUP($B24,formula!$A$15:$BQ$124,formula!$AM$9,FALSE)))) ->  | E24: =IF($B24="","",VLOOKUP($B24,formula!$A$15:$BQ$124,formula!$AN$9,FALSE)) -> 60795.9 | F24: =IF($B24="","",VLOOKUP($B24,formula!$A$15:$BQ$124,formula!$AD$9+1,FALSE)) -> 332275 | G24: =IF($B24="","",VLOOKUP($B24,formula!$A$15:$BQ$124,formula!$AG$9+1,FALSE)) -> 78472.93 | H24: =IF($B24="","",VLOOKUP($B24,formula!$A$15:$FD$124,formula!$EU$9,FALSE)) -> 0 | I24: =IF($B24="","",VLOOKUP($B24,formula!$A$15:$FD$124,formula!$EV$9,FALSE)) -> 69271.87 | J24: =IF($B24="","",VLOOKUP($B24,formula!$A$15:$BQ$124,formula!$AZ$9,FALSE)) -> 0 | K24: =IF($B24="","",VLOOKUP($B24,formula!$A$15:$BQ$124,formula!$AY$9,FALSE)) -> 0 | L24: =IF($B24="","",VLOOKUP($B24,formula!$A$15:$BQ$124,formula!$BB$9,FALSE)) -> 69271.87
B25: 17 | C25: 56 | D25: =IF(C24=MaxCoverageYear-1,"***以下空白***",IF($B25="","",IF($B25>plan,"",VLOOKUP($B25,formula!$A$15:$BQ$124,formula!$AM$9,FALSE)))) ->  | E25: =IF($B25="","",VLOOKUP($B25,formula!$A$15:$BQ$124,formula!$AN$9,FALSE)) -> 60795.9 | F25: =IF($B25="","",VLOOKUP($B25,formula!$A$15:$BQ$124,formula!$AD$9+1,FALSE)) -> 334332 | G25: =IF($B25="","",VLOOKUP($B25,formula!$A$15:$BQ$124,formula!$AG$9+1,FALSE)) -> 80096.94 | H25: =IF($B25="","",VLOOKUP($B25,formula!$A$15:$FD$124,formula!$EU$9,FALSE)) -> 0 | I25: =IF($B25="","",VLOOKUP($B25,formula!$A$15:$FD$124,formula!$EV$9,FALSE)) -> 69271.87 | J25: =IF($B25="","",VLOOKUP($B25,formula!$A$15:$BQ$124,formula!$AZ$9,FALSE)) -> 0 | K25: =IF($B25="","",VLOOKUP($B25,formula!$A$15:$BQ$124,formula!$AY$9,FALSE)) -> 0 | L25: =IF($B25="","",VLOOKUP($B25,formula!$A$15:$BQ$124,formula!$BB$9,FALSE)) -> 69271.87
B26: 18 | C26: 57 | D26: =IF(C25=MaxCoverageYear-1,"***以下空白***",IF($B26="","",IF($B26>plan,"",VLOOKUP($B26,formula!$A$15:$BQ$124,formula!$AM$9,FALSE)))) ->  | E26: =IF($B26="","",VLOOKUP($B26,formula!$A$15:$BQ$124,formula!$AN$9,FALSE)) -> 60795.9 | F26: =IF($B26="","",VLOOKUP($B26,formula!$A$15:$BQ$124,formula!$AD$9+1,FALSE)) -> 336412 | G26: =IF($B26="","",VLOOKUP($B26,formula!$A$15:$BQ$124,formula!$AG$9+1,FALSE)) -> 81748.18 | H26: =IF($B26="","",VLOOKUP($B26,formula!$A$15:$FD$124,formula!$EU$9,FALSE)) -> 0 | I26: =IF($B26="","",VLOOKUP($B26,formula!$A$15:$FD$124,formula!$EV$9,FALSE)) -> 69271.87 | J26: =IF($B26="","",VLOOKUP($B26,formula!$A$15:$BQ$124,formula!$AZ$9,FALSE)) -> 0 | K26: =IF($B26="","",VLOOKUP($B26,formula!$A$15:$BQ$124,formula!$AY$9,FALSE)) -> 0 | L26: =IF($B26="","",VLOOKUP($B26,formula!$A$15:$BQ$124,formula!$BB$9,FALSE)) -> 69271.87
B27: 19 | C27: 58 | D27: =IF(C26=MaxCoverageYear-1,"***以下空白***",IF($B27="","",IF($B27>plan,"",VLOOKUP($B27,formula!$A$15:$BQ$124,formula!$AM$9,FALSE)))) ->  | E27: =IF($B27="","",VLOOKUP($B27,formula!$A$15:$BQ$124,formula!$AN$9,FALSE)) -> 60795.9 | F27: =IF($B27="","",VLOOKUP($B27,formula!$A$15:$BQ$124,formula!$AD$9+1,FALSE)) -> 338492 | G27: =IF($B27="","",VLOOKUP($B27,formula!$A$15:$BQ$124,formula!$AG$9+1,FALSE)) -> 83427.52 | H27: =IF($B27="","",VLOOKUP($B27,formula!$A$15:$FD$124,formula!$EU$9,FALSE)) -> 0 | I27: =IF($B27="","",VLOOKUP($B27,formula!$A$15:$FD$124,formula!$EV$9,FALSE)) -> 69271.87 | J27: =IF($B27="","",VLOOKUP($B27,formula!$A$15:$BQ$124,formula!$AZ$9,FALSE)) -> 0 | K27: =IF($B27="","",VLOOKUP($B27,formula!$A$15:$BQ$124,formula!$AY$9,FALSE)) -> 0 | L27: =IF($B27="","",VLOOKUP($B27,formula!$A$15:$BQ$124,formula!$BB$9,FALSE)) -> 69271.87
B28: 20 | C28: 59 | D28: =IF(C27=MaxCoverageYear-1,"***以下空白***",IF($B28="","",IF($B28>plan,"",VLOOKUP($B28,formula!$A$15:$BQ$124,formula!$AM$9,FALSE)))) ->  | E28: =IF($B28="","",VLOOKUP($B28,formula!$A$15:$BQ$124,formula!$AN$9,FALSE)) -> 60795.9 | F28: =IF($B28="","",VLOOKUP($B28,formula!$A$15:$BQ$124,formula!$AD$9+1,FALSE)) -> 340595 | G28: =IF($B28="","",VLOOKUP($B28,formula!$A$15:$BQ$124,formula!$AG$9+1,FALSE)) -> 85134.26 | H28: =IF($B28="","",VLOOKUP($B28,formula!$A$15:$FD$124,formula!$EU$9,FALSE)) -> 0 | I28: =IF($B28="","",VLOOKUP($B28,formula!$A$15:$FD$124,formula!$EV$9,FALSE)) -> 69271.87 | J28: =IF($B28="","",VLOOKUP($B28,formula!$A$15:$BQ$124,formula!$AZ$9,FALSE)) -> 0 | K28: =IF($B28="","",VLOOKUP($B28,formula!$A$15:$BQ$124,formula!$AY$9,FALSE)) -> 0 | L28: =IF($B28="","",VLOOKUP($B28,formula!$A$15:$BQ$124,formula!$BB$9,FALSE)) -> 69271.87
B29: 21 | C29: 60 | D29: =IF(C28=MaxCoverageYear-1,"***以下空白***",IF($B29="","",IF($B29>plan,"",VLOOKUP($B29,formula!$A$15:$BQ$124,formula!$AM$9,FALSE)))) ->  | E29: =IF($B29="","",VLOOKUP($B29,formula!$A$15:$BQ$124,formula!$AN$9,FALSE)) -> 60795.9 | F29: =IF($B29="","",VLOOKUP($B29,formula!$A$15:$BQ$124,formula!$AD$9+1,FALSE)) -> 342699 | G29: =IF($B29="","",VLOOKUP($B29,formula!$A$15:$BQ$124,formula!$AG$9+1,FALSE)) -> 86614.47 | H29: =IF($B29="","",VLOOKUP($B29,formula!$A$15:$FD$124,formula!$EU$9,FALSE)) -> 0 | I29: =IF($B29="","",VLOOKUP($B29,formula!$A$15:$FD$124,formula!$EV$9,FALSE)) -> 69271.87 | J29: =IF($B29="","",VLOOKUP($B29,formula!$A$15:$BQ$124,formula!$AZ$9,FALSE)) -> 0 | K29: =IF($B29="","",VLOOKUP($B29,formula!$A$15:$BQ$124,formula!$AY$9,FALSE)) -> 0 | L29: =IF($B29="","",VLOOKUP($B29,formula!$A$15:$BQ$124,formula!$BB$9,FALSE)) -> 69271.87
B30: 22 | C30: 61 | D30: =IF(C29=MaxCoverageYear-1,"***以下空白***",IF($B30="","",IF($B30>plan,"",VLOOKUP($B30,formula!$A$15:$BQ$124,formula!$AM$9,FALSE)))) ->  | E30: =IF($B30="","",VLOOKUP($B30,formula!$A$15:$BQ$124,formula!$AN$9,FALSE)) -> 60795.9 | F30: =IF($B30="","",VLOOKUP($B30,formula!$A$15:$BQ$124,formula!$AD$9+1,FALSE)) -> 344826 | G30: =IF($B30="","",VLOOKUP($B30,formula!$A$15:$BQ$124,formula!$AG$9+1,FALSE)) -> 88114.67 | H30: =IF($B30="","",VLOOKUP($B30,formula!$A$15:$FD$124,formula!$EU$9,FALSE)) -> 0 | I30: =IF($B30="","",VLOOKUP($B30,formula!$A$15:$FD$124,formula!$EV$9,FALSE)) -> 69271.87 | J30: =IF($B30="","",VLOOKUP($B30,formula!$A$15:$BQ$124,formula!$AZ$9,FALSE)) -> 0 | K30: =IF($B30="","",VLOOKUP($B30,formula!$A$15:$BQ$124,formula!$AY$9,FALSE)) -> 0 | L30: =IF($B30="","",VLOOKUP($B30,formula!$A$15:$BQ$124,formula!$BB$9,FALSE)) -> 69271.87
B31: 23 | C31: 62 | D31: =IF(C30=MaxCoverageYear-1,"***以下空白***",IF($B31="","",IF($B31>plan,"",VLOOKUP($B31,formula!$A$15:$BQ$124,formula!$AM$9,FALSE)))) ->  | E31: =IF($B31="","",VLOOKUP($B31,formula!$A$15:$BQ$124,formula!$AN$9,FALSE)) -> 60795.9 | F31: =IF($B31="","",VLOOKUP($B31,formula!$A$15:$BQ$124,formula!$AD$9+1,FALSE)) -> 346954 | G31: =IF($B31="","",VLOOKUP($B31,formula!$A$15:$BQ$124,formula!$AG$9+1,FALSE)) -> 89634.27 | H31: =IF($B31="","",VLOOKUP($B31,formula!$A$15:$FD$124,formula!$EU$9,FALSE)) -> 0 | I31: =IF($B31="","",VLOOKUP($B31,formula!$A$15:$FD$124,formula!$EV$9,FALSE)) -> 69271.87 | J31: =IF($B31="","",VLOOKUP($B31,formula!$A$15:$BQ$124,formula!$AZ$9,FALSE)) -> 0 | K31: =IF($B31="","",VLOOKUP($B31,formula!$A$15:$BQ$124,formula!$AY$9,FALSE)) -> 0 | L31: =IF($B31="","",VLOOKUP($B31,formula!$A$15:$BQ$124,formula!$BB$9,FALSE)) -> 69271.87
B32: 24 | C32: 63 | D32: =IF(C31=MaxCoverageYear-1,"***以下空白***",IF($B32="","",IF($B32>plan,"",VLOOKUP($B32,formula!$A$15:$BQ$124,formula!$AM$9,FALSE)))) ->  | E32: =IF($B32="","",VLOOKUP($B32,formula!$A$15:$BQ$124,formula!$AN$9,FALSE)) -> 60795.9 | F32: =IF($B32="","",VLOOKUP($B32,formula!$A$15:$BQ$124,formula!$AD$9+1,FALSE)) -> 349105 | G32: =IF($B32="","",VLOOKUP($B32,formula!$A$15:$BQ$124,formula!$AG$9+1,FALSE)) -> 91171.55 | H32: =IF($B32="","",VLOOKUP($B32,formula!$A$15:$FD$124,formula!$EU$9,FALSE)) -> 0 | I32: =IF($B32="","",VLOOKUP($B32,formula!$A$15:$FD$124,formula!$EV$9,FALSE)) -> 69271.87 | J32: =IF($B32="","",VLOOKUP($B32,formula!$A$15:$BQ$124,formula!$AZ$9,FALSE)) -> 0 | K32: =IF($B32="","",VLOOKUP($B32,formula!$A$15:$BQ$124,formula!$AY$9,FALSE)) -> 0 | L32: =IF($B32="","",VLOOKUP($B32,formula!$A$15:$BQ$124,formula!$BB$9,FALSE)) -> 69271.87
B33: 25 | C33: 64 | D33: =IF(C32=MaxCoverageYear-1,"***以下空白***",IF($B33="","",IF($B33>plan,"",VLOOKUP($B33,formula!$A$15:$BQ$124,formula!$AM$9,FALSE)))) ->  | E33: =IF($B33="","",VLOOKUP($B33,formula!$A$15:$BQ$124,formula!$AN$9,FALSE)) -> 60795.9 | F33: =IF($B33="","",VLOOKUP($B33,formula!$A$15:$BQ$124,formula!$AD$9+1,FALSE)) -> 351257 | G33: =IF($B33="","",VLOOKUP($B33,formula!$A$15:$BQ$124,formula!$AG$9+1,FALSE)) -> 92724.64 | H33: =IF($B33="","",VLOOKUP($B33,formula!$A$15:$FD$124,formula!$EU$9,FALSE)) -> 0 | I33: =IF($B33="","",VLOOKUP($B33,formula!$A$15:$FD$124,formula!$EV$9,FALSE)) -> 69271.87 | J33: =IF($B33="","",VLOOKUP($B33,formula!$A$15:$BQ$124,formula!$AZ$9,FALSE)) -> 0 | K33: =IF($B33="","",VLOOKUP($B33,formula!$A$15:$BQ$124,formula!$AY$9,FALSE)) -> 0 | L33: =IF($B33="","",VLOOKUP($B33,formula!$A$15:$BQ$124,formula!$BB$9,FALSE)) -> 69271.87
B34: 26 | C34: 65 | D34: =IF(C33=MaxCoverageYear-1,"***以下空白***",IF($B34="","",IF($B34>plan,"",VLOOKUP($B34,formula!$A$15:$BQ$124,formula!$AM$9,FALSE)))) ->  | E34: =IF($B34="","",VLOOKUP($B34,formula!$A$15:$BQ$124,formula!$AN$9,FALSE)) -> 60795.9 | F34: =IF($B34="","",VLOOKUP($B34,formula!$A$15:$BQ$124,formula!$AD$9+1,FALSE)) -> 353432 | G34: =IF($B34="","",VLOOKUP($B34,formula!$A$15:$BQ$124,formula!$AG$9+1,FALSE)) -> 94280.31 | H34: =IF($B34="","",VLOOKUP($B34,formula!$A$15:$FD$124,formula!$EU$9,FALSE)) -> 0 | I34: =IF($B34="","",VLOOKUP($B34,formula!$A$15:$FD$124,formula!$EV$9,FALSE)) -> 69271.87 | J34: =IF($B34="","",VLOOKUP($B34,formula!$A$15:$BQ$124,formula!$AZ$9,FALSE)) -> 0 | K34: =IF($B34="","",VLOOKUP($B34,formula!$A$15:$BQ$124,formula!$AY$9,FALSE)) -> 0 | L34: =IF($B34="","",VLOOKUP($B34,formula!$A$15:$BQ$124,formula!$BB$9,FALSE)) -> 69271.87
B35: 27 | C35: 66 | D35: =IF(C34=MaxCoverageYear-1,"***以下空白***",IF($B35="","",IF($B35>plan,"",VLOOKUP($B35,formula!$A$15:$BQ$124,formula!$AM$9,FALSE)))) ->  | E35: =IF($B35="","",VLOOKUP($B35,formula!$A$15:$BQ$124,formula!$AN$9,FALSE)) -> 60795.9 | F35: =IF($B35="","",VLOOKUP($B35,formula!$A$15:$BQ$124,formula!$AD$9+1,FALSE)) -> 355608 | G35: =IF($B35="","",VLOOKUP($B35,formula!$A$15:$BQ$124,formula!$AG$9+1,FALSE)) -> 95850.94 | H35: =IF($B35="","",VLOOKUP($B35,formula!$A$15:$FD$124,formula!$EU$9,FALSE)) -> 0 | I35: =IF($B35="","",VLOOKUP($B35,formula!$A$15:$FD$124,formula!$EV$9,FALSE)) -> 69271.87 | J35: =IF($B35="","",VLOOKUP($B35,formula!$A$15:$BQ$124,formula!$AZ$9,FALSE)) -> 0 | K35: =IF($B35="","",VLOOKUP($B35,formula!$A$15:$BQ$124,formula!$AY$9,FALSE)) -> 0 | L35: =IF($B35="","",VLOOKUP($B35,formula!$A$15:$BQ$124,formula!$BB$9,FALSE)) -> 69271.87
B36: 28 | C36: 67 | D36: =IF(C35=MaxCoverageYear-1,"***以下空白***",IF($B36="","",IF($B36>plan,"",VLOOKUP($B36,formula!$A$15:$BQ$124,formula!$AM$9,FALSE)))) ->  | E36: =IF($B36="","",VLOOKUP($B36,formula!$A$15:$BQ$124,formula!$AN$9,FALSE)) -> 60795.9 | F36: =IF($B36="","",VLOOKUP($B36,formula!$A$15:$BQ$124,formula!$AD$9+1,FALSE)) -> 357807 | G36: =IF($B36="","",VLOOKUP($B36,formula!$A$15:$BQ$124,formula!$AG$9+1,FALSE)) -> 97432.81 | H36: =IF($B36="","",VLOOKUP($B36,formula!$A$15:$FD$124,formula!$EU$9,FALSE)) -> 0 | I36: =IF($B36="","",VLOOKUP($B36,formula!$A$15:$FD$124,formula!$EV$9,FALSE)) -> 69271.87 | J36: =IF($B36="","",VLOOKUP($B36,formula!$A$15:$BQ$124,formula!$AZ$9,FALSE)) -> 0 | K36: =IF($B36="","",VLOOKUP($B36,formula!$A$15:$BQ$124,formula!$AY$9,FALSE)) -> 0 | L36: =IF($B36="","",VLOOKUP($B36,formula!$A$15:$BQ$124,formula!$BB$9,FALSE)) -> 69271.87
B37: 29 | C37: 68 | D37: =IF(C36=MaxCoverageYear-1,"***以下空白***",IF($B37="","",IF($B37>plan,"",VLOOKUP($B37,formula!$A$15:$BQ$124,formula!$AM$9,FALSE)))) ->  | E37: =IF($B37="","",VLOOKUP($B37,formula!$A$15:$BQ$124,formula!$AN$9,FALSE)) -> 60795.9 | F37: =IF($B37="","",VLOOKUP($B37,formula!$A$15:$BQ$124,formula!$AD$9+1,FALSE)) -> 360007 | G37: =IF($B37="","",VLOOKUP($B37,formula!$A$15:$BQ$124,formula!$AG$9+1,FALSE)) -> 99022.66 | H37: =IF($B37="","",VLOOKUP($B37,formula!$A$15:$FD$124,formula!$EU$9,FALSE)) -> 0 | I37: =IF($B37="","",VLOOKUP($B37,formula!$A$15:$FD$124,formula!$EV$9,FALSE)) -> 69271.87 | J37: =IF($B37="","",VLOOKUP($B37,formula!$A$15:$BQ$124,formula!$AZ$9,FALSE)) -> 0 | K37: =IF($B37="","",VLOOKUP($B37,formula!$A$15:$BQ$124,formula!$AY$9,FALSE)) -> 0 | L37: =IF($B37="","",VLOOKUP($B37,formula!$A$15:$BQ$124,formula!$BB$9,FALSE)) -> 69271.87
B38: 30 | C38: 69 | D38: =IF(C37=MaxCoverageYear-1,"***以下空白***",IF($B38="","",IF($B38>plan,"",VLOOKUP($B38,formula!$A$15:$BQ$124,formula!$AM$9,FALSE)))) ->  | E38: =IF($B38="","",VLOOKUP($B38,formula!$A$15:$BQ$124,formula!$AN$9,FALSE)) -> 60795.9 | F38: =IF($B38="","",VLOOKUP($B38,formula!$A$15:$BQ$124,formula!$AD$9+1,FALSE)) -> 362231 | G38: =IF($B38="","",VLOOKUP($B38,formula!$A$15:$BQ$124,formula!$AG$9+1,FALSE)) -> 100621.18 | H38: =IF($B38="","",VLOOKUP($B38,formula!$A$15:$FD$124,formula!$EU$9,FALSE)) -> 0 | I38: =IF($B38="","",VLOOKUP($B38,formula!$A$15:$FD$124,formula!$EV$9,FALSE)) -> 69271.87 | J38: =IF($B38="","",VLOOKUP($B38,formula!$A$15:$BQ$124,formula!$AZ$9,FALSE)) -> 0 | K38: =IF($B38="","",VLOOKUP($B38,formula!$A$15:$BQ$124,formula!$AY$9,FALSE)) -> 0 | L38: =IF($B38="","",VLOOKUP($B38,formula!$A$15:$BQ$124,formula!$BB$9,FALSE)) -> 69271.87
B39: 31 | C39: 70 | D39: =IF(C38=MaxCoverageYear-1,"***以下空白***",IF($B39="","",IF($B39>plan,"",VLOOKUP($B39,formula!$A$15:$BQ$124,formula!$AM$9,FALSE)))) ->  | E39: =IF($B39="","",VLOOKUP($B39,formula!$A$15:$BQ$124,formula!$AN$9,FALSE)) -> 60795.9 | F39: =IF($B39="","",VLOOKUP($B39,formula!$A$15:$BQ$124,formula!$AD$9+1,FALSE)) -> 364456 | G39: =IF($B39="","",VLOOKUP($B39,formula!$A$15:$BQ$124,formula!$AG$9+1,FALSE)) -> 102498.66 | H39: =IF($B39="","",VLOOKUP($B39,formula!$A$15:$FD$124,formula!$EU$9,FALSE)) -> 0 | I39: =IF($B39="","",VLOOKUP($B39,formula!$A$15:$FD$124,formula!$EV$9,FALSE)) -> 69271.87 | J39: =IF($B39="","",VLOOKUP($B39,formula!$A$15:$BQ$124,formula!$AZ$9,FALSE)) -> 0 | K39: =IF($B39="","",VLOOKUP($B39,formula!$A$15:$BQ$124,formula!$AY$9,FALSE)) -> 0 | L39: =IF($B39="","",VLOOKUP($B39,formula!$A$15:$BQ$124,formula!$BB$9,FALSE)) -> 69271.87
B40: 32 | C40: 71 | D40: =IF(C39=MaxCoverageYear-1,"***以下空白***",IF($B40="","",IF($B40>plan,"",VLOOKUP($B40,formula!$A$15:$BQ$124,formula!$AM$9,FALSE)))) ->  | E40: =IF($B40="","",VLOOKUP($B40,formula!$A$15:$BQ$124,formula!$AN$9,FALSE)) -> 60795.9 | F40: =IF($B40="","",VLOOKUP($B40,formula!$A$15:$BQ$124,formula!$AD$9+1,FALSE)) -> 366706 | G40: =IF($B40="","",VLOOKUP($B40,formula!$A$15:$BQ$124,formula!$AG$9+1,FALSE)) -> 104394.7 | H40: =IF($B40="","",VLOOKUP($B40,formula!$A$15:$FD$124,formula!$EU$9,FALSE)) -> 0 | I40: =IF($B40="","",VLOOKUP($B40,formula!$A$15:$FD$124,formula!$EV$9,FALSE)) -> 69271.87 | J40: =IF($B40="","",VLOOKUP($B40,formula!$A$15:$BQ$124,formula!$AZ$9,FALSE)) -> 0 | K40: =IF($B40="","",VLOOKUP($B40,formula!$A$15:$BQ$124,formula!$AY$9,FALSE)) -> 0 | L40: =IF($B40="","",VLOOKUP($B40,formula!$A$15:$BQ$124,formula!$BB$9,FALSE)) -> 69271.87
B41: 33 | C41: 72 | D41: =IF(C40=MaxCoverageYear-1,"***以下空白***",IF($B41="","",IF($B41>plan,"",VLOOKUP($B41,formula!$A$15:$BQ$124,formula!$AM$9,FALSE)))) ->  | E41: =IF($B41="","",VLOOKUP($B41,formula!$A$15:$BQ$124,formula!$AN$9,FALSE)) -> 60795.9 | F41: =IF($B41="","",VLOOKUP($B41,formula!$A$15:$BQ$124,formula!$AD$9+1,FALSE)) -> 368956 | G41: =IF($B41="","",VLOOKUP($B41,formula!$A$15:$BQ$124,formula!$AG$9+1,FALSE)) -> 106306.42 | H41: =IF($B41="","",VLOOKUP($B41,formula!$A$15:$FD$124,formula!$EU$9,FALSE)) -> 0 | I41: =IF($B41="","",VLOOKUP($B41,formula!$A$15:$FD$124,formula!$EV$9,FALSE)) -> 69271.87 | J41: =IF($B41="","",VLOOKUP($B41,formula!$A$15:$BQ$124,formula!$AZ$9,FALSE)) -> 0 | K41: =IF($B41="","",VLOOKUP($B41,formula!$A$15:$BQ$124,formula!$AY$9,FALSE)) -> 0 | L41: =IF($B41="","",VLOOKUP($B41,formula!$A$15:$BQ$124,formula!$BB$9,FALSE)) -> 69271.87
B42: 34 | C42: 73 | D42: =IF(C41=MaxCoverageYear-1,"***以下空白***",IF($B42="","",IF($B42>plan,"",VLOOKUP($B42,formula!$A$15:$BQ$124,formula!$AM$9,FALSE)))) ->  | E42: =IF($B42="","",VLOOKUP($B42,formula!$A$15:$BQ$124,formula!$AN$9,FALSE)) -> 60795.9 | F42: =IF($B42="","",VLOOKUP($B42,formula!$A$15:$BQ$124,formula!$AD$9+1,FALSE)) -> 371230 | G42: =IF($B42="","",VLOOKUP($B42,formula!$A$15:$BQ$124,formula!$AG$9+1,FALSE)) -> 108231.89 | H42: =IF($B42="","",VLOOKUP($B42,formula!$A$15:$FD$124,formula!$EU$9,FALSE)) -> 0 | I42: =IF($B42="","",VLOOKUP($B42,formula!$A$15:$FD$124,formula!$EV$9,FALSE)) -> 69271.87 | J42: =IF($B42="","",VLOOKUP($B42,formula!$A$15:$BQ$124,formula!$AZ$9,FALSE)) -> 0 | K42: =IF($B42="","",VLOOKUP($B42,formula!$A$15:$BQ$124,formula!$AY$9,FALSE)) -> 0 | L42: =IF($B42="","",VLOOKUP($B42,formula!$A$15:$BQ$124,formula!$BB$9,FALSE)) -> 69271.87
B43: 35 | C43: 74 | D43: =IF(C42=MaxCoverageYear-1,"***以下空白***",IF($B43="","",IF($B43>plan,"",VLOOKUP($B43,formula!$A$15:$BQ$124,formula!$AM$9,FALSE)))) ->  | E43: =IF($B43="","",VLOOKUP($B43,formula!$A$15:$BQ$124,formula!$AN$9,FALSE)) -> 60795.9 | F43: =IF($B43="","",VLOOKUP($B43,formula!$A$15:$BQ$124,formula!$AD$9+1,FALSE)) -> 373505 | G43: =IF($B43="","",VLOOKUP($B43,formula!$A$15:$BQ$124,formula!$AG$9+1,FALSE)) -> 110171.38 | H43: =IF($B43="","",VLOOKUP($B43,formula!$A$15:$FD$124,formula!$EU$9,FALSE)) -> 0 | I43: =IF($B43="","",VLOOKUP($B43,formula!$A$15:$FD$124,formula!$EV$9,FALSE)) -> 69271.87 | J43: =IF($B43="","",VLOOKUP($B43,formula!$A$15:$BQ$124,formula!$AZ$9,FALSE)) -> 0 | K43: =IF($B43="","",VLOOKUP($B43,formula!$A$15:$BQ$124,formula!$AY$9,FALSE)) -> 0 | L43: =IF($B43="","",VLOOKUP($B43,formula!$A$15:$BQ$124,formula!$BB$9,FALSE)) -> 69271.87
M44: (幣別/單位：美元/元)
B45: 年度 | C45: 年齡 | D45: 折扣後 當年度 所繳保險費 | E45: 折扣後 累計 所繳保險費 | F45: 【非保證給付項目】假設分紅-最可能紅利金額(保額)(中分紅)
F46: 原保險金額試算 | H46: 減少保險金額試算
F47: 當年度末 壽險保障及 假設紅利_分紅保額 (預估值) (中) | G47: 當年度末 可能領取 解約金總額 (預估值) (中) | H47: 該次減少 基本保險金額 可領取之解約金 (預估值) (年初) | I47: 歷年減少 基本保險金額 領取之解約金總額 (預估值) A | J47: 減少基本保險金額後 當年度末壽險保障及 假設紅利_分紅保額 (預估值) | K47: 減少基本保險金額後 當年度末解約 可能領取之解約金 (預估值) B | L47: 累計至當年度末解約可能總領金額 (預估值) A+B=C
B48: =IF(B43>=109-age+1,"",B43+1) -> 36 | C48: 75 | D48: =IF(C43=MaxCoverageYear-1,"***以下空白***",IF($B48="","",IF($B48>plan,"",VLOOKUP($B48,formula!$A$15:$BQ$124,formula!$AM$9,FALSE)))) ->  | E48: =IF($B48="","",VLOOKUP($B48,formula!$A$15:$BQ$124,formula!$AN$9,FALSE)) -> 60795.9 | F48: =IF($B48="","",VLOOKUP($B48,formula!$A$15:$BQ$124,formula!$AD$9+1,FALSE)) -> 375805 | G48: =IF($B48="","",VLOOKUP($B48,formula!$A$15:$BQ$124,formula!$AG$9+1,FALSE)) -> 112128.49 | H48: =IF($B48="","",VLOOKUP($B48,formula!$A$15:$FD$124,formula!$EU$9,FALSE)) -> 0 | I48: =IF($B48="","",VLOOKUP($B48,formula!$A$15:$FD$124,formula!$EV$9,FALSE)) -> 69271.87 | J48: =IF($B48="","",VLOOKUP($B48,formula!$A$15:$BQ$124,formula!$AZ$9,FALSE)) -> 0 | K48: =IF($B48="","",VLOOKUP($B48,formula!$A$15:$BQ$124,formula!$AY$9,FALSE)) -> 0 | L48: =IF($B48="","",VLOOKUP($B48,formula!$A$15:$BQ$124,formula!$BB$9,FALSE)) -> 69271.87
B49: 37 | C49: 76 | D49: =IF(C48=MaxCoverageYear-1,"***以下空白***",IF($B49="","",IF($B49>plan,"",VLOOKUP($B49,formula!$A$15:$BQ$124,formula!$AM$9,FALSE)))) ->  | E49: =IF($B49="","",VLOOKUP($B49,formula!$A$15:$BQ$124,formula!$AN$9,FALSE)) -> 60795.9 | F49: =IF($B49="","",VLOOKUP($B49,formula!$A$15:$BQ$124,formula!$AD$9+1,FALSE)) -> 378106 | G49: =IF($B49="","",VLOOKUP($B49,formula!$A$15:$BQ$124,formula!$AG$9+1,FALSE)) -> 114096.01 | H49: =IF($B49="","",VLOOKUP($B49,formula!$A$15:$FD$124,formula!$EU$9,FALSE)) -> 0 | I49: =IF($B49="","",VLOOKUP($B49,formula!$A$15:$FD$124,formula!$EV$9,FALSE)) -> 69271.87 | J49: =IF($B49="","",VLOOKUP($B49,formula!$A$15:$BQ$124,formula!$AZ$9,FALSE)) -> 0 | K49: =IF($B49="","",VLOOKUP($B49,formula!$A$15:$BQ$124,formula!$AY$9,FALSE)) -> 0 | L49: =IF($B49="","",VLOOKUP($B49,formula!$A$15:$BQ$124,formula!$BB$9,FALSE)) -> 69271.87
B50: 38 | C50: 77 | D50: =IF(C49=MaxCoverageYear-1,"***以下空白***",IF($B50="","",IF($B50>plan,"",VLOOKUP($B50,formula!$A$15:$BQ$124,formula!$AM$9,FALSE)))) ->  | E50: =IF($B50="","",VLOOKUP($B50,formula!$A$15:$BQ$124,formula!$AN$9,FALSE)) -> 60795.9 | F50: =IF($B50="","",VLOOKUP($B50,formula!$A$15:$BQ$124,formula!$AD$9+1,FALSE)) -> 380432 | G50: =IF($B50="","",VLOOKUP($B50,formula!$A$15:$BQ$124,formula!$AG$9+1,FALSE)) -> 116073.83 | H50: =IF($B50="","",VLOOKUP($B50,formula!$A$15:$FD$124,formula!$EU$9,FALSE)) -> 0 | I50: =IF($B50="","",VLOOKUP($B50,formula!$A$15:$FD$124,formula!$EV$9,FALSE)) -> 69271.87 | J50: =IF($B50="","",VLOOKUP($B50,formula!$A$15:$BQ$124,formula!$AZ$9,FALSE)) -> 0 | K50: =IF($B50="","",VLOOKUP($B50,formula!$A$15:$BQ$124,formula!$AY$9,FALSE)) -> 0 | L50: =IF($B50="","",VLOOKUP($B50,formula!$A$15:$BQ$124,formula!$BB$9,FALSE)) -> 69271.87
B51: 39 | C51: 78 | D51: =IF(C50=MaxCoverageYear-1,"***以下空白***",IF($B51="","",IF($B51>plan,"",VLOOKUP($B51,formula!$A$15:$BQ$124,formula!$AM$9,FALSE)))) ->  | E51: =IF($B51="","",VLOOKUP($B51,formula!$A$15:$BQ$124,formula!$AN$9,FALSE)) -> 60795.9 | F51: =IF($B51="","",VLOOKUP($B51,formula!$A$15:$BQ$124,formula!$AD$9+1,FALSE)) -> 382759 | G51: =IF($B51="","",VLOOKUP($B51,formula!$A$15:$BQ$124,formula!$AG$9+1,FALSE)) -> 118061.98 | H51: =IF($B51="","",VLOOKUP($B51,formula!$A$15:$FD$124,formula!$EU$9,FALSE)) -> 0 | I51: =IF($B51="","",VLOOKUP($B51,formula!$A$15:$FD$124,formula!$EV$9,FALSE)) -> 69271.87 | J51: =IF($B51="","",VLOOKUP($B51,formula!$A$15:$BQ$124,formula!$AZ$9,FALSE)) -> 0 | K51: =IF($B51="","",VLOOKUP($B51,formula!$A$15:$BQ$124,formula!$AY$9,FALSE)) -> 0 | L51: =IF($B51="","",VLOOKUP($B51,formula!$A$15:$BQ$124,formula!$BB$9,FALSE)) -> 69271.87
B52: 40 | C52: 79 | D52: =IF(C51=MaxCoverageYear-1,"***以下空白***",IF($B52="","",IF($B52>plan,"",VLOOKUP($B52,formula!$A$15:$BQ$124,formula!$AM$9,FALSE)))) ->  | E52: =IF($B52="","",VLOOKUP($B52,formula!$A$15:$BQ$124,formula!$AN$9,FALSE)) -> 60795.9 | F52: =IF($B52="","",VLOOKUP($B52,formula!$A$15:$BQ$124,formula!$AD$9+1,FALSE)) -> 385111 | G52: =IF($B52="","",VLOOKUP($B52,formula!$A$15:$BQ$124,formula!$AG$9+1,FALSE)) -> 120058.3 | H52: =IF($B52="","",VLOOKUP($B52,formula!$A$15:$FD$124,formula!$EU$9,FALSE)) -> 0 | I52: =IF($B52="","",VLOOKUP($B52,formula!$A$15:$FD$124,formula!$EV$9,FALSE)) -> 69271.87 | J52: =IF($B52="","",VLOOKUP($B52,formula!$A$15:$BQ$124,formula!$AZ$9,FALSE)) -> 0 | K52: =IF($B52="","",VLOOKUP($B52,formula!$A$15:$BQ$124,formula!$AY$9,FALSE)) -> 0 | L52: =IF($B52="","",VLOOKUP($B52,formula!$A$15:$BQ$124,formula!$BB$9,FALSE)) -> 69271.87
B53: 41 | C53: 80 | D53: =IF(C52=MaxCoverageYear-1,"***以下空白***",IF($B53="","",IF($B53>plan,"",VLOOKUP($B53,formula!$A$15:$BQ$124,formula!$AM$9,FALSE)))) ->  | E53: =IF($B53="","",VLOOKUP($B53,formula!$A$15:$BQ$124,formula!$AN$9,FALSE)) -> 60795.9 | F53: =IF($B53="","",VLOOKUP($B53,formula!$A$15:$BQ$124,formula!$AD$9+1,FALSE)) -> 387464 | G53: =IF($B53="","",VLOOKUP($B53,formula!$A$15:$BQ$124,formula!$AG$9+1,FALSE)) -> 122063.18 | H53: =IF($B53="","",VLOOKUP($B53,formula!$A$15:$FD$124,formula!$EU$9,FALSE)) -> 0 | I53: =IF($B53="","",VLOOKUP($B53,formula!$A$15:$FD$124,formula!$EV$9,FALSE)) -> 69271.87 | J53: =IF($B53="","",VLOOKUP($B53,formula!$A$15:$BQ$124,formula!$AZ$9,FALSE)) -> 0 | K53: =IF($B53="","",VLOOKUP($B53,formula!$A$15:$BQ$124,formula!$AY$9,FALSE)) -> 0 | L53: =IF($B53="","",VLOOKUP($B53,formula!$A$15:$BQ$124,formula!$BB$9,FALSE)) -> 69271.87
B54: 42 | C54: 81 | D54: =IF(C53=MaxCoverageYear-1,"***以下空白***",IF($B54="","",IF($B54>plan,"",VLOOKUP($B54,formula!$A$15:$BQ$124,formula!$AM$9,FALSE)))) ->  | E54: =IF($B54="","",VLOOKUP($B54,formula!$A$15:$BQ$124,formula!$AN$9,FALSE)) -> 60795.9 | F54: =IF($B54="","",VLOOKUP($B54,formula!$A$15:$BQ$124,formula!$AD$9+1,FALSE)) -> 389842 | G54: =IF($B54="","",VLOOKUP($B54,formula!$A$15:$BQ$124,formula!$AG$9+1,FALSE)) -> 124076.4 | H54: =IF($B54="","",VLOOKUP($B54,formula!$A$15:$FD$124,formula!$EU$9,FALSE)) -> 0 | I54: =IF($B54="","",VLOOKUP($B54,formula!$A$15:$FD$124,formula!$EV$9,FALSE)) -> 69271.87 | J54: =IF($B54="","",VLOOKUP($B54,formula!$A$15:$BQ$124,formula!$AZ$9,FALSE)) -> 0 | K54: =IF($B54="","",VLOOKUP($B54,formula!$A$15:$BQ$124,formula!$AY$9,FALSE)) -> 0 | L54: =IF($B54="","",VLOOKUP($B54,formula!$A$15:$BQ$124,formula!$BB$9,FALSE)) -> 69271.87
B55: 43 | C55: 82 | D55: =IF(C54=MaxCoverageYear-1,"***以下空白***",IF($B55="","",IF($B55>plan,"",VLOOKUP($B55,formula!$A$15:$BQ$124,formula!$AM$9,FALSE)))) ->  | E55: =IF($B55="","",VLOOKUP($B55,formula!$A$15:$BQ$124,formula!$AN$9,FALSE)) -> 60795.9 | F55: =IF($B55="","",VLOOKUP($B55,formula!$A$15:$BQ$124,formula!$AD$9+1,FALSE)) -> 392222 | G55: =IF($B55="","",VLOOKUP($B55,formula!$A$15:$BQ$124,formula!$AG$9+1,FALSE)) -> 126098.6 | H55: =IF($B55="","",VLOOKUP($B55,formula!$A$15:$FD$124,formula!$EU$9,FALSE)) -> 0 | I55: =IF($B55="","",VLOOKUP($B55,formula!$A$15:$FD$124,formula!$EV$9,FALSE)) -> 69271.87 | J55: =IF($B55="","",VLOOKUP($B55,formula!$A$15:$BQ$124,formula!$AZ$9,FALSE)) -> 0 | K55: =IF($B55="","",VLOOKUP($B55,formula!$A$15:$BQ$124,formula!$AY$9,FALSE)) -> 0 | L55: =IF($B55="","",VLOOKUP($B55,formula!$A$15:$BQ$124,formula!$BB$9,FALSE)) -> 69271.87
B56: 44 | C56: 83 | D56: =IF(C55=MaxCoverageYear-1,"***以下空白***",IF($B56="","",IF($B56>plan,"",VLOOKUP($B56,formula!$A$15:$BQ$124,formula!$AM$9,FALSE)))) ->  | E56: =IF($B56="","",VLOOKUP($B56,formula!$A$15:$BQ$124,formula!$AN$9,FALSE)) -> 60795.9 | F56: =IF($B56="","",VLOOKUP($B56,formula!$A$15:$BQ$124,formula!$AD$9+1,FALSE)) -> 394626 | G56: =IF($B56="","",VLOOKUP($B56,formula!$A$15:$BQ$124,formula!$AG$9+1,FALSE)) -> 128129.55 | H56: =IF($B56="","",VLOOKUP($B56,formula!$A$15:$FD$124,formula!$EU$9,FALSE)) -> 0 | I56: =IF($B56="","",VLOOKUP($B56,formula!$A$15:$FD$124,formula!$EV$9,FALSE)) -> 69271.87 | J56: =IF($B56="","",VLOOKUP($B56,formula!$A$15:$BQ$124,formula!$AZ$9,FALSE)) -> 0 | K56: =IF($B56="","",VLOOKUP($B56,formula!$A$15:$BQ$124,formula!$AY$9,FALSE)) -> 0 | L56: =IF($B56="","",VLOOKUP($B56,formula!$A$15:$BQ$124,formula!$BB$9,FALSE)) -> 69271.87
B57: 45 | C57: 84 | D57: =IF(C56=MaxCoverageYear-1,"***以下空白***",IF($B57="","",IF($B57>plan,"",VLOOKUP($B57,formula!$A$15:$BQ$124,formula!$AM$9,FALSE)))) ->  | E57: =IF($B57="","",VLOOKUP($B57,formula!$A$15:$BQ$124,formula!$AN$9,FALSE)) -> 60795.9 | F57: =IF($B57="","",VLOOKUP($B57,formula!$A$15:$BQ$124,formula!$AD$9+1,FALSE)) -> 397032 | G57: =IF($B57="","",VLOOKUP($B57,formula!$A$15:$BQ$124,formula!$AG$9+1,FALSE)) -> 130167.84 | H57: =IF($B57="","",VLOOKUP($B57,formula!$A$15:$FD$124,formula!$EU$9,FALSE)) -> 0 | I57: =IF($B57="","",VLOOKUP($B57,formula!$A$15:$FD$124,formula!$EV$9,FALSE)) -> 69271.87 | J57: =IF($B57="","",VLOOKUP($B57,formula!$A$15:$BQ$124,formula!$AZ$9,FALSE)) -> 0 | K57: =IF($B57="","",VLOOKUP($B57,formula!$A$15:$BQ$124,formula!$AY$9,FALSE)) -> 0 | L57: =IF($B57="","",VLOOKUP($B57,formula!$A$15:$BQ$124,formula!$BB$9,FALSE)) -> 69271.87
B58: 46 | C58: 85 | D58: =IF(C57=MaxCoverageYear-1,"***以下空白***",IF($B58="","",IF($B58>plan,"",VLOOKUP($B58,formula!$A$15:$BQ$124,formula!$AM$9,FALSE)))) ->  | E58: =IF($B58="","",VLOOKUP($B58,formula!$A$15:$BQ$124,formula!$AN$9,FALSE)) -> 60795.9 | F58: =IF($B58="","",VLOOKUP($B58,formula!$A$15:$BQ$124,formula!$AD$9+1,FALSE)) -> 399463 | G58: =IF($B58="","",VLOOKUP($B58,formula!$A$15:$BQ$124,formula!$AG$9+1,FALSE)) -> 132214.09 | H58: =IF($B58="","",VLOOKUP($B58,formula!$A$15:$FD$124,formula!$EU$9,FALSE)) -> 0 | I58: =IF($B58="","",VLOOKUP($B58,formula!$A$15:$FD$124,formula!$EV$9,FALSE)) -> 69271.87 | J58: =IF($B58="","",VLOOKUP($B58,formula!$A$15:$BQ$124,formula!$AZ$9,FALSE)) -> 0 | K58: =IF($B58="","",VLOOKUP($B58,formula!$A$15:$BQ$124,formula!$AY$9,FALSE)) -> 0 | L58: =IF($B58="","",VLOOKUP($B58,formula!$A$15:$BQ$124,formula!$BB$9,FALSE)) -> 69271.87
B59: 47 | C59: 86 | D59: =IF(C58=MaxCoverageYear-1,"***以下空白***",IF($B59="","",IF($B59>plan,"",VLOOKUP($B59,formula!$A$15:$BQ$124,formula!$AM$9,FALSE)))) ->  | E59: =IF($B59="","",VLOOKUP($B59,formula!$A$15:$BQ$124,formula!$AN$9,FALSE)) -> 60795.9 | F59: =IF($B59="","",VLOOKUP($B59,formula!$A$15:$BQ$124,formula!$AD$9+1,FALSE)) -> 401896 | G59: =IF($B59="","",VLOOKUP($B59,formula!$A$15:$BQ$124,formula!$AG$9+1,FALSE)) -> 134266.22 | H59: =IF($B59="","",VLOOKUP($B59,formula!$A$15:$FD$124,formula!$EU$9,FALSE)) -> 0 | I59: =IF($B59="","",VLOOKUP($B59,formula!$A$15:$FD$124,formula!$EV$9,FALSE)) -> 69271.87 | J59: =IF($B59="","",VLOOKUP($B59,formula!$A$15:$BQ$124,formula!$AZ$9,FALSE)) -> 0 | K59: =IF($B59="","",VLOOKUP($B59,formula!$A$15:$BQ$124,formula!$AY$9,FALSE)) -> 0 | L59: =IF($B59="","",VLOOKUP($B59,formula!$A$15:$BQ$124,formula!$BB$9,FALSE)) -> 69271.87
B60: 48 | C60: 87 | D60: =IF(C59=MaxCoverageYear-1,"***以下空白***",IF($B60="","",IF($B60>plan,"",VLOOKUP($B60,formula!$A$15:$BQ$124,formula!$AM$9,FALSE)))) ->  | E60: =IF($B60="","",VLOOKUP($B60,formula!$A$15:$BQ$124,formula!$AN$9,FALSE)) -> 60795.9 | F60: =IF($B60="","",VLOOKUP($B60,formula!$A$15:$BQ$124,formula!$AD$9+1,FALSE)) -> 404354 | G60: =IF($B60="","",VLOOKUP($B60,formula!$A$15:$BQ$124,formula!$AG$9+1,FALSE)) -> 136323.29 | H60: =IF($B60="","",VLOOKUP($B60,formula!$A$15:$FD$124,formula!$EU$9,FALSE)) -> 0 | I60: =IF($B60="","",VLOOKUP($B60,formula!$A$15:$FD$124,formula!$EV$9,FALSE)) -> 69271.87 | J60: =IF($B60="","",VLOOKUP($B60,formula!$A$15:$BQ$124,formula!$AZ$9,FALSE)) -> 0 | K60: =IF($B60="","",VLOOKUP($B60,formula!$A$15:$BQ$124,formula!$AY$9,FALSE)) -> 0 | L60: =IF($B60="","",VLOOKUP($B60,formula!$A$15:$BQ$124,formula!$BB$9,FALSE)) -> 69271.87
B61: 49 | C61: 88 | D61: =IF(C60=MaxCoverageYear-1,"***以下空白***",IF($B61="","",IF($B61>plan,"",VLOOKUP($B61,formula!$A$15:$BQ$124,formula!$AM$9,FALSE)))) ->  | E61: =IF($B61="","",VLOOKUP($B61,formula!$A$15:$BQ$124,formula!$AN$9,FALSE)) -> 60795.9 | F61: =IF($B61="","",VLOOKUP($B61,formula!$A$15:$BQ$124,formula!$AD$9+1,FALSE)) -> 406814 | G61: =IF($B61="","",VLOOKUP($B61,formula!$A$15:$BQ$124,formula!$AG$9+1,FALSE)) -> 138387.34 | H61: =IF($B61="","",VLOOKUP($B61,formula!$A$15:$FD$124,formula!$EU$9,FALSE)) -> 0 | I61: =IF($B61="","",VLOOKUP($B61,formula!$A$15:$FD$124,formula!$EV$9,FALSE)) -> 69271.87 | J61: =IF($B61="","",VLOOKUP($B61,formula!$A$15:$BQ$124,formula!$AZ$9,FALSE)) -> 0 | K61: =IF($B61="","",VLOOKUP($B61,formula!$A$15:$BQ$124,formula!$AY$9,FALSE)) -> 0 | L61: =IF($B61="","",VLOOKUP($B61,formula!$A$15:$BQ$124,formula!$BB$9,FALSE)) -> 69271.87
B62: 50 | C62: 89 | D62: =IF(C61=MaxCoverageYear-1,"***以下空白***",IF($B62="","",IF($B62>plan,"",VLOOKUP($B62,formula!$A$15:$BQ$124,formula!$AM$9,FALSE)))) ->  | E62: =IF($B62="","",VLOOKUP($B62,formula!$A$15:$BQ$124,formula!$AN$9,FALSE)) -> 60795.9 | F62: =IF($B62="","",VLOOKUP($B62,formula!$A$15:$BQ$124,formula!$AD$9+1,FALSE)) -> 409300 | G62: =IF($B62="","",VLOOKUP($B62,formula!$A$15:$BQ$124,formula!$AG$9+1,FALSE)) -> 140463.5 | H62: =IF($B62="","",VLOOKUP($B62,formula!$A$15:$FD$124,formula!$EU$9,FALSE)) -> 0 | I62: =IF($B62="","",VLOOKUP($B62,formula!$A$15:$FD$124,formula!$EV$9,FALSE)) -> 69271.87 | J62: =IF($B62="","",VLOOKUP($B62,formula!$A$15:$BQ$124,formula!$AZ$9,FALSE)) -> 0 | K62: =IF($B62="","",VLOOKUP($B62,formula!$A$15:$BQ$124,formula!$AY$9,FALSE)) -> 0 | L62: =IF($B62="","",VLOOKUP($B62,formula!$A$15:$BQ$124,formula!$BB$9,FALSE)) -> 69271.87
B63: 51 | C63: 90 | D63: =IF(C62=MaxCoverageYear-1,"***以下空白***",IF($B63="","",IF($B63>plan,"",VLOOKUP($B63,formula!$A$15:$BQ$124,formula!$AM$9,FALSE)))) ->  | E63: =IF($B63="","",VLOOKUP($B63,formula!$A$15:$BQ$124,formula!$AN$9,FALSE)) -> 60795.9 | F63: =IF($B63="","",VLOOKUP($B63,formula!$A$15:$BQ$124,formula!$AD$9+1,FALSE)) -> 411787 | G63: =IF($B63="","",VLOOKUP($B63,formula!$A$15:$BQ$124,formula!$AG$9+1,FALSE)) -> 142543.3 | H63: =IF($B63="","",VLOOKUP($B63,formula!$A$15:$FD$124,formula!$EU$9,FALSE)) -> 0 | I63: =IF($B63="","",VLOOKUP($B63,formula!$A$15:$FD$124,formula!$EV$9,FALSE)) -> 69271.87 | J63: =IF($B63="","",VLOOKUP($B63,formula!$A$15:$BQ$124,formula!$AZ$9,FALSE)) -> 0 | K63: =IF($B63="","",VLOOKUP($B63,formula!$A$15:$BQ$124,formula!$AY$9,FALSE)) -> 0 | L63: =IF($B63="","",VLOOKUP($B63,formula!$A$15:$BQ$124,formula!$BB$9,FALSE)) -> 69271.87
B64: 52 | C64: 91 | D64: =IF(C63=MaxCoverageYear-1,"***以下空白***",IF($B64="","",IF($B64>plan,"",VLOOKUP($B64,formula!$A$15:$BQ$124,formula!$AM$9,FALSE)))) ->  | E64: =IF($B64="","",VLOOKUP($B64,formula!$A$15:$BQ$124,formula!$AN$9,FALSE)) -> 60795.9 | F64: =IF($B64="","",VLOOKUP($B64,formula!$A$15:$BQ$124,formula!$AD$9+1,FALSE)) -> 414301 | G64: =IF($B64="","",VLOOKUP($B64,formula!$A$15:$BQ$124,formula!$AG$9+1,FALSE)) -> 144619.9 | H64: =IF($B64="","",VLOOKUP($B64,formula!$A$15:$FD$124,formula!$EU$9,FALSE)) -> 0 | I64: =IF($B64="","",VLOOKUP($B64,formula!$A$15:$FD$124,formula!$EV$9,FALSE)) -> 69271.87 | J64: =IF($B64="","",VLOOKUP($B64,formula!$A$15:$BQ$124,formula!$AZ$9,FALSE)) -> 0 | K64: =IF($B64="","",VLOOKUP($B64,formula!$A$15:$BQ$124,formula!$AY$9,FALSE)) -> 0 | L64: =IF($B64="","",VLOOKUP($B64,formula!$A$15:$BQ$124,formula!$BB$9,FALSE)) -> 69271.87
B65: 53 | C65: 92 | D65: =IF(C64=MaxCoverageYear-1,"***以下空白***",IF($B65="","",IF($B65>plan,"",VLOOKUP($B65,formula!$A$15:$BQ$124,formula!$AM$9,FALSE)))) ->  | E65: =IF($B65="","",VLOOKUP($B65,formula!$A$15:$BQ$124,formula!$AN$9,FALSE)) -> 60795.9 | F65: =IF($B65="","",VLOOKUP($B65,formula!$A$15:$BQ$124,formula!$AD$9+1,FALSE)) -> 416817 | G65: =IF($B65="","",VLOOKUP($B65,formula!$A$15:$BQ$124,formula!$AG$9+1,FALSE)) -> 146704.38 | H65: =IF($B65="","",VLOOKUP($B65,formula!$A$15:$FD$124,formula!$EU$9,FALSE)) -> 0 | I65: =IF($B65="","",VLOOKUP($B65,formula!$A$15:$FD$124,formula!$EV$9,FALSE)) -> 69271.87 | J65: =IF($B65="","",VLOOKUP($B65,formula!$A$15:$BQ$124,formula!$AZ$9,FALSE)) -> 0 | K65: =IF($B65="","",VLOOKUP($B65,formula!$A$15:$BQ$124,formula!$AY$9,FALSE)) -> 0 | L65: =IF($B65="","",VLOOKUP($B65,formula!$A$15:$BQ$124,formula!$BB$9,FALSE)) -> 69271.87
B66: 54 | C66: 93 | D66: =IF(C65=MaxCoverageYear-1,"***以下空白***",IF($B66="","",IF($B66>plan,"",VLOOKUP($B66,formula!$A$15:$BQ$124,formula!$AM$9,FALSE)))) ->  | E66: =IF($B66="","",VLOOKUP($B66,formula!$A$15:$BQ$124,formula!$AN$9,FALSE)) -> 60795.9 | F66: =IF($B66="","",VLOOKUP($B66,formula!$A$15:$BQ$124,formula!$AD$9+1,FALSE)) -> 419358 | G66: =IF($B66="","",VLOOKUP($B66,formula!$A$15:$BQ$124,formula!$AG$9+1,FALSE)) -> 148796.33 | H66: =IF($B66="","",VLOOKUP($B66,formula!$A$15:$FD$124,formula!$EU$9,FALSE)) -> 0 | I66: =IF($B66="","",VLOOKUP($B66,formula!$A$15:$FD$124,formula!$EV$9,FALSE)) -> 69271.87 | J66: =IF($B66="","",VLOOKUP($B66,formula!$A$15:$BQ$124,formula!$AZ$9,FALSE)) -> 0 | K66: =IF($B66="","",VLOOKUP($B66,formula!$A$15:$BQ$124,formula!$AY$9,FALSE)) -> 0 | L66: =IF($B66="","",VLOOKUP($B66,formula!$A$15:$BQ$124,formula!$BB$9,FALSE)) -> 69271.87
B67: 55 | C67: 94 | D67: =IF(C66=MaxCoverageYear-1,"***以下空白***",IF($B67="","",IF($B67>plan,"",VLOOKUP($B67,formula!$A$15:$BQ$124,formula!$AM$9,FALSE)))) ->  | E67: =IF($B67="","",VLOOKUP($B67,formula!$A$15:$BQ$124,formula!$AN$9,FALSE)) -> 60795.9 | F67: =IF($B67="","",VLOOKUP($B67,formula!$A$15:$BQ$124,formula!$AD$9+1,FALSE)) -> 421901 | G67: =IF($B67="","",VLOOKUP($B67,formula!$A$15:$BQ$124,formula!$AG$9+1,FALSE)) -> 150897.37 | H67: =IF($B67="","",VLOOKUP($B67,formula!$A$15:$FD$124,formula!$EU$9,FALSE)) -> 0 | I67: =IF($B67="","",VLOOKUP($B67,formula!$A$15:$FD$124,formula!$EV$9,FALSE)) -> 69271.87 | J67: =IF($B67="","",VLOOKUP($B67,formula!$A$15:$BQ$124,formula!$AZ$9,FALSE)) -> 0 | K67: =IF($B67="","",VLOOKUP($B67,formula!$A$15:$BQ$124,formula!$AY$9,FALSE)) -> 0 | L67: =IF($B67="","",VLOOKUP($B67,formula!$A$15:$BQ$124,formula!$BB$9,FALSE)) -> 69271.87
B68: 56 | C68: 95 | D68: =IF(C67=MaxCoverageYear-1,"***以下空白***",IF($B68="","",IF($B68>plan,"",VLOOKUP($B68,formula!$A$15:$BQ$124,formula!$AM$9,FALSE)))) ->  | E68: =IF($B68="","",VLOOKUP($B68,formula!$A$15:$BQ$124,formula!$AN$9,FALSE)) -> 60795.9 | F68: =IF($B68="","",VLOOKUP($B68,formula!$A$15:$BQ$124,formula!$AD$9+1,FALSE)) -> 424472 | G68: =IF($B68="","",VLOOKUP($B68,formula!$A$15:$BQ$124,formula!$AG$9+1,FALSE)) -> 153006.81 | H68: =IF($B68="","",VLOOKUP($B68,formula!$A$15:$FD$124,formula!$EU$9,FALSE)) -> 0 | I68: =IF($B68="","",VLOOKUP($B68,formula!$A$15:$FD$124,formula!$EV$9,FALSE)) -> 69271.87 | J68: =IF($B68="","",VLOOKUP($B68,formula!$A$15:$BQ$124,formula!$AZ$9,FALSE)) -> 0 | K68: =IF($B68="","",VLOOKUP($B68,formula!$A$15:$BQ$124,formula!$AY$9,FALSE)) -> 0 | L68: =IF($B68="","",VLOOKUP($B68,formula!$A$15:$BQ$124,formula!$BB$9,FALSE)) -> 69271.87
B69: 57 | C69: 96 | D69: =IF(C68=MaxCoverageYear-1,"***以下空白***",IF($B69="","",IF($B69>plan,"",VLOOKUP($B69,formula!$A$15:$BQ$124,formula!$AM$9,FALSE)))) ->  | E69: =IF($B69="","",VLOOKUP($B69,formula!$A$15:$BQ$124,formula!$AN$9,FALSE)) -> 60795.9 | F69: =IF($B69="","",VLOOKUP($B69,formula!$A$15:$BQ$124,formula!$AD$9+1,FALSE)) -> 427043 | G69: =IF($B69="","",VLOOKUP($B69,formula!$A$15:$BQ$124,formula!$AG$9+1,FALSE)) -> 155125.72 | H69: =IF($B69="","",VLOOKUP($B69,formula!$A$15:$FD$124,formula!$EU$9,FALSE)) -> 0 | I69: =IF($B69="","",VLOOKUP($B69,formula!$A$15:$FD$124,formula!$EV$9,FALSE)) -> 69271.87 | J69: =IF($B69="","",VLOOKUP($B69,formula!$A$15:$BQ$124,formula!$AZ$9,FALSE)) -> 0 | K69: =IF($B69="","",VLOOKUP($B69,formula!$A$15:$BQ$124,formula!$AY$9,FALSE)) -> 0 | L69: =IF($B69="","",VLOOKUP($B69,formula!$A$15:$BQ$124,formula!$BB$9,FALSE)) -> 69271.87
B70: 58 | C70: 97 | D70: =IF(C69=MaxCoverageYear-1,"***以下空白***",IF($B70="","",IF($B70>plan,"",VLOOKUP($B70,formula!$A$15:$BQ$124,formula!$AM$9,FALSE)))) ->  | E70: =IF($B70="","",VLOOKUP($B70,formula!$A$15:$BQ$124,formula!$AN$9,FALSE)) -> 60795.9 | F70: =IF($B70="","",VLOOKUP($B70,formula!$A$15:$BQ$124,formula!$AD$9+1,FALSE)) -> 429642 | G70: =IF($B70="","",VLOOKUP($B70,formula!$A$15:$BQ$124,formula!$AG$9+1,FALSE)) -> 157253.32 | H70: =IF($B70="","",VLOOKUP($B70,formula!$A$15:$FD$124,formula!$EU$9,FALSE)) -> 0 | I70: =IF($B70="","",VLOOKUP($B70,formula!$A$15:$FD$124,formula!$EV$9,FALSE)) -> 69271.87 | J70: =IF($B70="","",VLOOKUP($B70,formula!$A$15:$BQ$124,formula!$AZ$9,FALSE)) -> 0 | K70: =IF($B70="","",VLOOKUP($B70,formula!$A$15:$BQ$124,formula!$AY$9,FALSE)) -> 0 | L70: =IF($B70="","",VLOOKUP($B70,formula!$A$15:$BQ$124,formula!$BB$9,FALSE)) -> 69271.87
B71: 59 | C71: 98 | D71: =IF(C70=MaxCoverageYear-1,"***以下空白***",IF($B71="","",IF($B71>plan,"",VLOOKUP($B71,formula!$A$15:$BQ$124,formula!$AM$9,FALSE)))) ->  | E71: =IF($B71="","",VLOOKUP($B71,formula!$A$15:$BQ$124,formula!$AN$9,FALSE)) -> 60795.9 | F71: =IF($B71="","",VLOOKUP($B71,formula!$A$15:$BQ$124,formula!$AD$9+1,FALSE)) -> 432243 | G71: =IF($B71="","",VLOOKUP($B71,formula!$A$15:$BQ$124,formula!$AG$9+1,FALSE)) -> 159392.02 | H71: =IF($B71="","",VLOOKUP($B71,formula!$A$15:$FD$124,formula!$EU$9,FALSE)) -> 0 | I71: =IF($B71="","",VLOOKUP($B71,formula!$A$15:$FD$124,formula!$EV$9,FALSE)) -> 69271.87 | J71: =IF($B71="","",VLOOKUP($B71,formula!$A$15:$BQ$124,formula!$AZ$9,FALSE)) -> 0 | K71: =IF($B71="","",VLOOKUP($B71,formula!$A$15:$BQ$124,formula!$AY$9,FALSE)) -> 0 | L71: =IF($B71="","",VLOOKUP($B71,formula!$A$15:$BQ$124,formula!$BB$9,FALSE)) -> 69271.87
B72: 60 | C72: 99 | D72: =IF(C71=MaxCoverageYear-1,"***以下空白***",IF($B72="","",IF($B72>plan,"",VLOOKUP($B72,formula!$A$15:$BQ$124,formula!$AM$9,FALSE)))) ->  | E72: =IF($B72="","",VLOOKUP($B72,formula!$A$15:$BQ$124,formula!$AN$9,FALSE)) -> 60795.9 | F72: =IF($B72="","",VLOOKUP($B72,formula!$A$15:$BQ$124,formula!$AD$9+1,FALSE)) -> 434870 | G72: =IF($B72="","",VLOOKUP($B72,formula!$A$15:$BQ$124,formula!$AG$9+1,FALSE)) -> 161539.21 | H72: =IF($B72="","",VLOOKUP($B72,formula!$A$15:$FD$124,formula!$EU$9,FALSE)) -> 0 | I72: =IF($B72="","",VLOOKUP($B72,formula!$A$15:$FD$124,formula!$EV$9,FALSE)) -> 69271.87 | J72: =IF($B72="","",VLOOKUP($B72,formula!$A$15:$BQ$124,formula!$AZ$9,FALSE)) -> 0 | K72: =IF($B72="","",VLOOKUP($B72,formula!$A$15:$BQ$124,formula!$AY$9,FALSE)) -> 0 | L72: =IF($B72="","",VLOOKUP($B72,formula!$A$15:$BQ$124,formula!$BB$9,FALSE)) -> 69271.87
B73: 61 | C73: 100 | D73: =IF(C72=MaxCoverageYear-1,"***以下空白***",IF($B73="","",IF($B73>plan,"",VLOOKUP($B73,formula!$A$15:$BQ$124,formula!$AM$9,FALSE)))) ->  | E73: =IF($B73="","",VLOOKUP($B73,formula!$A$15:$BQ$124,formula!$AN$9,FALSE)) -> 60795.9 | F73: =IF($B73="","",VLOOKUP($B73,formula!$A$15:$BQ$124,formula!$AD$9+1,FALSE)) -> 436740 | G73: =IF($B73="","",VLOOKUP($B73,formula!$A$15:$BQ$124,formula!$AG$9+1,FALSE)) -> 163695.12 | H73: =IF($B73="","",VLOOKUP($B73,formula!$A$15:$FD$124,formula!$EU$9,FALSE)) -> 0 | I73: =IF($B73="","",VLOOKUP($B73,formula!$A$15:$FD$124,formula!$EV$9,FALSE)) -> 69271.87 | J73: =IF($B73="","",VLOOKUP($B73,formula!$A$15:$BQ$124,formula!$AZ$9,FALSE)) -> 0 | K73: =IF($B73="","",VLOOKUP($B73,formula!$A$15:$BQ$124,formula!$AY$9,FALSE)) -> 0 | L73: =IF($B73="","",VLOOKUP($B73,formula!$A$15:$BQ$124,formula!$BB$9,FALSE)) -> 69271.87
B74: 62 | C74: 101 | D74: =IF(C73=MaxCoverageYear-1,"***以下空白***",IF($B74="","",IF($B74>plan,"",VLOOKUP($B74,formula!$A$15:$BQ$124,formula!$AM$9,FALSE)))) ->  | E74: =IF($B74="","",VLOOKUP($B74,formula!$A$15:$BQ$124,formula!$AN$9,FALSE)) -> 60795.9 | F74: =IF($B74="","",VLOOKUP($B74,formula!$A$15:$BQ$124,formula!$AD$9+1,FALSE)) -> 438619 | G74: =IF($B74="","",VLOOKUP($B74,formula!$A$15:$BQ$124,formula!$AG$9+1,FALSE)) -> 165865.63 | H74: =IF($B74="","",VLOOKUP($B74,formula!$A$15:$FD$124,formula!$EU$9,FALSE)) -> 0 | I74: =IF($B74="","",VLOOKUP($B74,formula!$A$15:$FD$124,formula!$EV$9,FALSE)) -> 69271.87 | J74: =IF($B74="","",VLOOKUP($B74,formula!$A$15:$BQ$124,formula!$AZ$9,FALSE)) -> 0 | K74: =IF($B74="","",VLOOKUP($B74,formula!$A$15:$BQ$124,formula!$AY$9,FALSE)) -> 0 | L74: =IF($B74="","",VLOOKUP($B74,formula!$A$15:$BQ$124,formula!$BB$9,FALSE)) -> 69271.87
B75: 63 | C75: 102 | D75: =IF(C74=MaxCoverageYear-1,"***以下空白***",IF($B75="","",IF($B75>plan,"",VLOOKUP($B75,formula!$A$15:$BQ$124,formula!$AM$9,FALSE)))) ->  | E75: =IF($B75="","",VLOOKUP($B75,formula!$A$15:$BQ$124,formula!$AN$9,FALSE)) -> 60795.9 | F75: =IF($B75="","",VLOOKUP($B75,formula!$A$15:$BQ$124,formula!$AD$9+1,FALSE)) -> 440505 | G75: =IF($B75="","",VLOOKUP($B75,formula!$A$15:$BQ$124,formula!$AG$9+1,FALSE)) -> 168058.89 | H75: =IF($B75="","",VLOOKUP($B75,formula!$A$15:$FD$124,formula!$EU$9,FALSE)) -> 0 | I75: =IF($B75="","",VLOOKUP($B75,formula!$A$15:$FD$124,formula!$EV$9,FALSE)) -> 69271.87 | J75: =IF($B75="","",VLOOKUP($B75,formula!$A$15:$BQ$124,formula!$AZ$9,FALSE)) -> 0 | K75: =IF($B75="","",VLOOKUP($B75,formula!$A$15:$BQ$124,formula!$AY$9,FALSE)) -> 0 | L75: =IF($B75="","",VLOOKUP($B75,formula!$A$15:$BQ$124,formula!$BB$9,FALSE)) -> 69271.87
B76: 64 | C76: 103 | D76: =IF(C75=MaxCoverageYear-1,"***以下空白***",IF($B76="","",IF($B76>plan,"",VLOOKUP($B76,formula!$A$15:$BQ$124,formula!$AM$9,FALSE)))) ->  | E76: =IF($B76="","",VLOOKUP($B76,formula!$A$15:$BQ$124,formula!$AN$9,FALSE)) -> 60795.9 | F76: =IF($B76="","",VLOOKUP($B76,formula!$A$15:$BQ$124,formula!$AD$9+1,FALSE)) -> 442400 | G76: =IF($B76="","",VLOOKUP($B76,formula!$A$15:$BQ$124,formula!$AG$9+1,FALSE)) -> 170285.22 | H76: =IF($B76="","",VLOOKUP($B76,formula!$A$15:$FD$124,formula!$EU$9,FALSE)) -> 0 | I76: =IF($B76="","",VLOOKUP($B76,formula!$A$15:$FD$124,formula!$EV$9,FALSE)) -> 69271.87 | J76: =IF($B76="","",VLOOKUP($B76,formula!$A$15:$BQ$124,formula!$AZ$9,FALSE)) -> 0 | K76: =IF($B76="","",VLOOKUP($B76,formula!$A$15:$BQ$124,formula!$AY$9,FALSE)) -> 0 | L76: =IF($B76="","",VLOOKUP($B76,formula!$A$15:$BQ$124,formula!$BB$9,FALSE)) -> 69271.87
B77: 65 | C77: =IF(B77="","",age+B77-1) -> 104 | D77: =IF(C76=MaxCoverageYear-1,"***以下空白***",IF($B77="","",IF($B77>plan,"",VLOOKUP($B77,formula!$A$15:$BQ$124,formula!$AM$9,FALSE)))) ->  | E77: =IF($B77="","",VLOOKUP($B77,formula!$A$15:$BQ$124,formula!$AN$9,FALSE)) -> 60795.9 | F77: =IF($B77="","",VLOOKUP($B77,formula!$A$15:$BQ$124,formula!$AD$9+1,FALSE)) -> 444303 | G77: =IF($B77="","",VLOOKUP($B77,formula!$A$15:$BQ$124,formula!$AG$9+1,FALSE)) -> 172563.09 | H77: =IF($B77="","",VLOOKUP($B77,formula!$A$15:$FD$124,formula!$EU$9,FALSE)) -> 0 | I77: =IF($B77="","",VLOOKUP($B77,formula!$A$15:$FD$124,formula!$EV$9,FALSE)) -> 69271.87 | J77: =IF($B77="","",VLOOKUP($B77,formula!$A$15:$BQ$124,formula!$AZ$9,FALSE)) -> 0 | K77: =IF($B77="","",VLOOKUP($B77,formula!$A$15:$BQ$124,formula!$AY$9,FALSE)) -> 0 | L77: =IF($B77="","",VLOOKUP($B77,formula!$A$15:$BQ$124,formula!$BB$9,FALSE)) -> 69271.87
B78: =IF(B77>=109-age+1,"",B77+1) -> 66 | C78: 105 | D78: =IF(C77=MaxCoverageYear-1,"***以下空白***",IF($B78="","",IF($B78>plan,"",VLOOKUP($B78,formula!$A$15:$BQ$124,formula!$AM$9,FALSE)))) ->  | E78: =IF($B78="","",VLOOKUP($B78,formula!$A$15:$BQ$124,formula!$AN$9,FALSE)) -> 60795.9 | F78: =IF($B78="","",VLOOKUP($B78,formula!$A$15:$BQ$124,formula!$AD$9+1,FALSE)) -> 446215 | G78: =IF($B78="","",VLOOKUP($B78,formula!$A$15:$BQ$124,formula!$AG$9+1,FALSE)) -> 174926.22 | H78: =IF($B78="","",VLOOKUP($B78,formula!$A$15:$FD$124,formula!$EU$9,FALSE)) -> 0 | I78: =IF($B78="","",VLOOKUP($B78,formula!$A$15:$FD$124,formula!$EV$9,FALSE)) -> 69271.87 | J78: =IF($B78="","",VLOOKUP($B78,formula!$A$15:$BQ$124,formula!$AZ$9,FALSE)) -> 0 | K78: =IF($B78="","",VLOOKUP($B78,formula!$A$15:$BQ$124,formula!$AY$9,FALSE)) -> 0 | L78: =IF($B78="","",VLOOKUP($B78,formula!$A$15:$BQ$124,formula!$BB$9,FALSE)) -> 69271.87
B79: 67 | C79: 106 | D79: =IF(C78=MaxCoverageYear-1,"***以下空白***",IF($B79="","",IF($B79>plan,"",VLOOKUP($B79,formula!$A$15:$BQ$124,formula!$AM$9,FALSE)))) ->  | E79: =IF($B79="","",VLOOKUP($B79,formula!$A$15:$BQ$124,formula!$AN$9,FALSE)) -> 60795.9 | F79: =IF($B79="","",VLOOKUP($B79,formula!$A$15:$BQ$124,formula!$AD$9+1,FALSE)) -> 448134 | G79: =IF($B79="","",VLOOKUP($B79,formula!$A$15:$BQ$124,formula!$AG$9+1,FALSE)) -> 177346.65 | H79: =IF($B79="","",VLOOKUP($B79,formula!$A$15:$FD$124,formula!$EU$9,FALSE)) -> 0 | I79: =IF($B79="","",VLOOKUP($B79,formula!$A$15:$FD$124,formula!$EV$9,FALSE)) -> 69271.87 | J79: =IF($B79="","",VLOOKUP($B79,formula!$A$15:$BQ$124,formula!$AZ$9,FALSE)) -> 0 | K79: =IF($B79="","",VLOOKUP($B79,formula!$A$15:$BQ$124,formula!$AY$9,FALSE)) -> 0 | L79: =IF($B79="","",VLOOKUP($B79,formula!$A$15:$BQ$124,formula!$BB$9,FALSE)) -> 69271.87
B80: 68 | C80: 107 | D80: =IF(C79=MaxCoverageYear-1,"***以下空白***",IF($B80="","",IF($B80>plan,"",VLOOKUP($B80,formula!$A$15:$BQ$124,formula!$AM$9,FALSE)))) ->  | E80: =IF($B80="","",VLOOKUP($B80,formula!$A$15:$BQ$124,formula!$AN$9,FALSE)) -> 60795.9 | F80: =IF($B80="","",VLOOKUP($B80,formula!$A$15:$BQ$124,formula!$AD$9+1,FALSE)) -> 450062 | G80: =IF($B80="","",VLOOKUP($B80,formula!$A$15:$BQ$124,formula!$AG$9+1,FALSE)) -> 179899.7 | H80: =IF($B80="","",VLOOKUP($B80,formula!$A$15:$FD$124,formula!$EU$9,FALSE)) -> 0 | I80: =IF($B80="","",VLOOKUP($B80,formula!$A$15:$FD$124,formula!$EV$9,FALSE)) -> 69271.87 | J80: =IF($B80="","",VLOOKUP($B80,formula!$A$15:$BQ$124,formula!$AZ$9,FALSE)) -> 0 | K80: =IF($B80="","",VLOOKUP($B80,formula!$A$15:$BQ$124,formula!$AY$9,FALSE)) -> 0 | L80: =IF($B80="","",VLOOKUP($B80,formula!$A$15:$BQ$124,formula!$BB$9,FALSE)) -> 69271.87
B81: 69 | C81: 108 | D81: =IF(C80=MaxCoverageYear-1,"***以下空白***",IF($B81="","",IF($B81>plan,"",VLOOKUP($B81,formula!$A$15:$BQ$124,formula!$AM$9,FALSE)))) ->  | E81: =IF($B81="","",VLOOKUP($B81,formula!$A$15:$BQ$124,formula!$AN$9,FALSE)) -> 60795.9 | F81: =IF($B81="","",VLOOKUP($B81,formula!$A$15:$BQ$124,formula!$AD$9+1,FALSE)) -> 451998 | G81: =IF($B81="","",VLOOKUP($B81,formula!$A$15:$BQ$124,formula!$AG$9+1,FALSE)) -> 182797.66 | H81: =IF($B81="","",VLOOKUP($B81,formula!$A$15:$FD$124,formula!$EU$9,FALSE)) -> 0 | I81: =IF($B81="","",VLOOKUP($B81,formula!$A$15:$FD$124,formula!$EV$9,FALSE)) -> 69271.87 | J81: =IF($B81="","",VLOOKUP($B81,formula!$A$15:$BQ$124,formula!$AZ$9,FALSE)) -> 0 | K81: =IF($B81="","",VLOOKUP($B81,formula!$A$15:$BQ$124,formula!$AY$9,FALSE)) -> 0 | L81: =IF($B81="","",VLOOKUP($B81,formula!$A$15:$BQ$124,formula!$BB$9,FALSE)) -> 69271.87
B82: 70 | C82: 109 | D82: =IF(C81=MaxCoverageYear-1,"***以下空白***",IF($B82="","",IF($B82>plan,"",VLOOKUP($B82,formula!$A$15:$BQ$124,formula!$AM$9,FALSE)))) ->  | E82: =IF($B82="","",VLOOKUP($B82,formula!$A$15:$BQ$124,formula!$AN$9,FALSE)) -> 60795.9 | F82: =IF($B82="","",VLOOKUP($B82,formula!$A$15:$BQ$124,formula!$AD$9+1,FALSE)) -> 453942 | G82: =IF($B82="","",VLOOKUP($B82,formula!$A$15:$BQ$124,formula!$AG$9+1,FALSE)) -> 186605 | H82: =IF($B82="","",VLOOKUP($B82,formula!$A$15:$FD$124,formula!$EU$9,FALSE)) -> 0 | I82: =IF($B82="","",VLOOKUP($B82,formula!$A$15:$FD$124,formula!$EV$9,FALSE)) -> 69271.87 | J82: =IF($B82="","",VLOOKUP($B82,formula!$A$15:$BQ$124,formula!$AZ$9,FALSE)) -> 0 | K82: =IF($B82="","",VLOOKUP($B82,formula!$A$15:$BQ$124,formula!$AY$9,FALSE)) -> 0 | L82: =IF($B82="","",VLOOKUP($B82,formula!$A$15:$BQ$124,formula!$BB$9,FALSE)) -> 69271.87
D83: =IF(C82=MaxCoverageYear-1,"***以下空白***",IF($B83="","",IF($B83>plan,"",VLOOKUP($B83,formula!$A$15:$BQ$124,formula!$AM$9,FALSE)))) -> ***以下空白*** | E83: =IF($B83="","",VLOOKUP($B83,formula!$A$15:$BQ$124,formula!$AN$9,FALSE)) ->  | F83: =IF($B83="","",VLOOKUP($B83,formula!$A$15:$BQ$124,formula!$AD$9+1,FALSE)) ->  | G83: =IF($B83="","",VLOOKUP($B83,formula!$A$15:$BQ$124,formula!$AG$9+1,FALSE)) ->  | H83: =IF($B83="","",VLOOKUP($B83,formula!$A$15:$FD$124,formula!$EU$9,FALSE)) ->  | I83: =IF($B83="","",VLOOKUP($B83,formula!$A$15:$FD$124,formula!$EV$9,FALSE)) ->  | J83: =IF($B83="","",VLOOKUP($B83,formula!$A$15:$BQ$124,formula!$AZ$9,FALSE)) ->  | K83: =IF($B83="","",VLOOKUP($B83,formula!$A$15:$BQ$124,formula!$AY$9,FALSE)) ->  | L83: =IF($B83="","",VLOOKUP($B83,formula!$A$15:$BQ$124,formula!$BB$9,FALSE)) -> 
D84: =IF(C83=MaxCoverageYear-1,"***以下空白***",IF($B84="","",IF($B84>plan,"",VLOOKUP($B84,formula!$A$15:$BQ$124,formula!$AM$9,FALSE)))) ->  | E84: =IF($B84="","",VLOOKUP($B84,formula!$A$15:$BQ$124,formula!$AN$9,FALSE)) ->  | F84: =IF($B84="","",VLOOKUP($B84,formula!$A$15:$BQ$124,formula!$AD$9+1,FALSE)) ->  | G84: =IF($B84="","",VLOOKUP($B84,formula!$A$15:$BQ$124,formula!$AG$9+1,FALSE)) ->  | H84: =IF($B84="","",VLOOKUP($B84,formula!$A$15:$FD$124,formula!$EU$9,FALSE)) ->  | I84: =IF($B84="","",VLOOKUP($B84,formula!$A$15:$FD$124,formula!$EV$9,FALSE)) ->  | J84: =IF($B84="","",VLOOKUP($B84,formula!$A$15:$BQ$124,formula!$AZ$9,FALSE)) ->  | K84: =IF($B84="","",VLOOKUP($B84,formula!$A$15:$BQ$124,formula!$AY$9,FALSE)) ->  | L84: =IF($B84="","",VLOOKUP($B84,formula!$A$15:$BQ$124,formula!$BB$9,FALSE)) -> 
D85: =IF(C84=MaxCoverageYear-1,"***以下空白***",IF($B85="","",IF($B85>plan,"",VLOOKUP($B85,formula!$A$15:$BQ$124,formula!$AM$9,FALSE)))) ->  | E85: =IF($B85="","",VLOOKUP($B85,formula!$A$15:$BQ$124,formula!$AN$9,FALSE)) ->  | F85: =IF($B85="","",VLOOKUP($B85,formula!$A$15:$BQ$124,formula!$AD$9+1,FALSE)) ->  | G85: =IF($B85="","",VLOOKUP($B85,formula!$A$15:$BQ$124,formula!$AG$9+1,FALSE)) ->  | H85: =IF($B85="","",VLOOKUP($B85,formula!$A$15:$FD$124,formula!$EU$9,FALSE)) ->  | I85: =IF($B85="","",VLOOKUP($B85,formula!$A$15:$FD$124,formula!$EV$9,FALSE)) ->  | J85: =IF($B85="","",VLOOKUP($B85,formula!$A$15:$BQ$124,formula!$AZ$9,FALSE)) ->  | K85: =IF($B85="","",VLOOKUP($B85,formula!$A$15:$BQ$124,formula!$AY$9,FALSE)) ->  | L85: =IF($B85="","",VLOOKUP($B85,formula!$A$15:$BQ$124,formula!$BB$9,FALSE)) -> 
D86: =IF(C85=MaxCoverageYear-1,"***以下空白***",IF($B86="","",IF($B86>plan,"",VLOOKUP($B86,formula!$A$15:$BQ$124,formula!$AM$9,FALSE)))) ->  | E86: =IF($B86="","",VLOOKUP($B86,formula!$A$15:$BQ$124,formula!$AN$9,FALSE)) ->  | F86: =IF($B86="","",VLOOKUP($B86,formula!$A$15:$BQ$124,formula!$AD$9+1,FALSE)) ->  | G86: =IF($B86="","",VLOOKUP($B86,formula!$A$15:$BQ$124,formula!$AG$9+1,FALSE)) ->  | H86: =IF($B86="","",VLOOKUP($B86,formula!$A$15:$FD$124,formula!$EU$9,FALSE)) ->  | I86: =IF($B86="","",VLOOKUP($B86,formula!$A$15:$FD$124,formula!$EV$9,FALSE)) ->  | J86: =IF($B86="","",VLOOKUP($B86,formula!$A$15:$BQ$124,formula!$AZ$9,FALSE)) ->  | K86: =IF($B86="","",VLOOKUP($B86,formula!$A$15:$BQ$124,formula!$AY$9,FALSE)) ->  | L86: =IF($B86="","",VLOOKUP($B86,formula!$A$15:$BQ$124,formula!$BB$9,FALSE)) -> 
D87: =IF(C86=MaxCoverageYear-1,"***以下空白***",IF($B87="","",IF($B87>plan,"",VLOOKUP($B87,formula!$A$15:$BQ$124,formula!$AM$9,FALSE)))) ->  | E87: =IF($B87="","",VLOOKUP($B87,formula!$A$15:$BQ$124,formula!$AN$9,FALSE)) ->  | F87: =IF($B87="","",VLOOKUP($B87,formula!$A$15:$BQ$124,formula!$AD$9+1,FALSE)) ->  | G87: =IF($B87="","",VLOOKUP($B87,formula!$A$15:$BQ$124,formula!$AG$9+1,FALSE)) ->  | H87: =IF($B87="","",VLOOKUP($B87,formula!$A$15:$FD$124,formula!$EU$9,FALSE)) ->  | I87: =IF($B87="","",VLOOKUP($B87,formula!$A$15:$FD$124,formula!$EV$9,FALSE)) ->  | J87: =IF($B87="","",VLOOKUP($B87,formula!$A$15:$BQ$124,formula!$AZ$9,FALSE)) ->  | K87: =IF($B87="","",VLOOKUP($B87,formula!$A$15:$BQ$124,formula!$AY$9,FALSE)) ->  | L87: =IF($B87="","",VLOOKUP($B87,formula!$A$15:$BQ$124,formula!$BB$9,FALSE)) -> 
D88: =IF(C87=MaxCoverageYear-1,"***以下空白***",IF($B88="","",IF($B88>plan,"",VLOOKUP($B88,formula!$A$15:$BQ$124,formula!$AM$9,FALSE)))) ->  | E88: =IF($B88="","",VLOOKUP($B88,formula!$A$15:$BQ$124,formula!$AN$9,FALSE)) ->  | F88: =IF($B88="","",VLOOKUP($B88,formula!$A$15:$BQ$124,formula!$AD$9+1,FALSE)) ->  | G88: =IF($B88="","",VLOOKUP($B88,formula!$A$15:$BQ$124,formula!$AG$9+1,FALSE)) ->  | H88: =IF($B88="","",VLOOKUP($B88,formula!$A$15:$FD$124,formula!$EU$9,FALSE)) ->  | I88: =IF($B88="","",VLOOKUP($B88,formula!$A$15:$FD$124,formula!$EV$9,FALSE)) ->  | J88: =IF($B88="","",VLOOKUP($B88,formula!$A$15:$BQ$124,formula!$AZ$9,FALSE)) ->  | K88: =IF($B88="","",VLOOKUP($B88,formula!$A$15:$BQ$124,formula!$AY$9,FALSE)) ->  | L88: =IF($B88="","",VLOOKUP($B88,formula!$A$15:$BQ$124,formula!$BB$9,FALSE)) -> 
D89: =IF(C88=MaxCoverageYear-1,"***以下空白***",IF($B89="","",IF($B89>plan,"",VLOOKUP($B89,formula!$A$15:$BQ$124,formula!$AM$9,FALSE)))) ->  | E89: =IF($B89="","",VLOOKUP($B89,formula!$A$15:$BQ$124,formula!$AN$9,FALSE)) ->  | F89: =IF($B89="","",VLOOKUP($B89,formula!$A$15:$BQ$124,formula!$AD$9+1,FALSE)) ->  | G89: =IF($B89="","",VLOOKUP($B89,formula!$A$15:$BQ$124,formula!$AG$9+1,FALSE)) ->  | H89: =IF($B89="","",VLOOKUP($B89,formula!$A$15:$FD$124,formula!$EU$9,FALSE)) ->  | I89: =IF($B89="","",VLOOKUP($B89,formula!$A$15:$FD$124,formula!$EV$9,FALSE)) ->  | J89: =IF($B89="","",VLOOKUP($B89,formula!$A$15:$BQ$124,formula!$AZ$9,FALSE)) ->  | K89: =IF($B89="","",VLOOKUP($B89,formula!$A$15:$BQ$124,formula!$AY$9,FALSE)) ->  | L89: =IF($B89="","",VLOOKUP($B89,formula!$A$15:$BQ$124,formula!$BB$9,FALSE)) -> 
D90: =IF(C89=MaxCoverageYear-1,"***以下空白***",IF($B90="","",IF($B90>plan,"",VLOOKUP($B90,formula!$A$15:$BQ$124,formula!$AM$9,FALSE)))) ->  | E90: =IF($B90="","",VLOOKUP($B90,formula!$A$15:$BQ$124,formula!$AN$9,FALSE)) ->  | F90: =IF($B90="","",VLOOKUP($B90,formula!$A$15:$BQ$124,formula!$AD$9+1,FALSE)) ->  | G90: =IF($B90="","",VLOOKUP($B90,formula!$A$15:$BQ$124,formula!$AG$9+1,FALSE)) ->  | H90: =IF($B90="","",VLOOKUP($B90,formula!$A$15:$FD$124,formula!$EU$9,FALSE)) ->  | I90: =IF($B90="","",VLOOKUP($B90,formula!$A$15:$FD$124,formula!$EV$9,FALSE)) ->  | J90: =IF($B90="","",VLOOKUP($B90,formula!$A$15:$BQ$124,formula!$AZ$9,FALSE)) ->  | K90: =IF($B90="","",VLOOKUP($B90,formula!$A$15:$BQ$124,formula!$AY$9,FALSE)) ->  | L90: =IF($B90="","",VLOOKUP($B90,formula!$A$15:$BQ$124,formula!$BB$9,FALSE)) -> 
D91: =IF(C90=MaxCoverageYear-1,"***以下空白***",IF($B91="","",IF($B91>plan,"",VLOOKUP($B91,formula!$A$15:$BQ$124,formula!$AM$9,FALSE)))) ->  | E91: =IF($B91="","",VLOOKUP($B91,formula!$A$15:$BQ$124,formula!$AN$9,FALSE)) ->  | F91: =IF($B91="","",VLOOKUP($B91,formula!$A$15:$BQ$124,formula!$AD$9+1,FALSE)) ->  | G91: =IF($B91="","",VLOOKUP($B91,formula!$A$15:$BQ$124,formula!$AG$9+1,FALSE)) ->  | H91: =IF($B91="","",VLOOKUP($B91,formula!$A$15:$FD$124,formula!$EU$9,FALSE)) ->  | I91: =IF($B91="","",VLOOKUP($B91,formula!$A$15:$FD$124,formula!$EV$9,FALSE)) ->  | J91: =IF($B91="","",VLOOKUP($B91,formula!$A$15:$BQ$124,formula!$AZ$9,FALSE)) ->  | K91: =IF($B91="","",VLOOKUP($B91,formula!$A$15:$BQ$124,formula!$AY$9,FALSE)) ->  | L91: =IF($B91="","",VLOOKUP($B91,formula!$A$15:$BQ$124,formula!$BB$9,FALSE)) -> 
D92: =IF(C91=MaxCoverageYear-1,"***以下空白***",IF($B92="","",IF($B92>plan,"",VLOOKUP($B92,formula!$A$15:$BQ$124,formula!$AM$9,FALSE)))) ->  | E92: =IF($B92="","",VLOOKUP($B92,formula!$A$15:$BQ$124,formula!$AN$9,FALSE)) ->  | F92: =IF($B92="","",VLOOKUP($B92,formula!$A$15:$BQ$124,formula!$AD$9+1,FALSE)) ->  | G92: =IF($B92="","",VLOOKUP($B92,formula!$A$15:$BQ$124,formula!$AG$9+1,FALSE)) ->  | H92: =IF($B92="","",VLOOKUP($B92,formula!$A$15:$FD$124,formula!$EU$9,FALSE)) ->  | I92: =IF($B92="","",VLOOKUP($B92,formula!$A$15:$FD$124,formula!$EV$9,FALSE)) ->  | J92: =IF($B92="","",VLOOKUP($B92,formula!$A$15:$BQ$124,formula!$AZ$9,FALSE)) ->  | K92: =IF($B92="","",VLOOKUP($B92,formula!$A$15:$BQ$124,formula!$AY$9,FALSE)) ->  | L92: =IF($B92="","",VLOOKUP($B92,formula!$A$15:$BQ$124,formula!$BB$9,FALSE)) -> 
M93: (幣別/單位：美元/元)
B94: 年度 | C94: 年齡 | D94: 折扣後 當年度 所繳保險費 | E94: 折扣後 累計 所繳保險費 | F94: 【非保證給付項目】假設分紅-最可能紅利金額(保額)(中分紅)
F95: 原保險金額試算 | H95: 減少保險金額試算
F96: 當年度末 壽險保障及 假設紅利_分紅保額 (預估值) (中) | G96: 當年度末 可能領取 解約金總額 (預估值) (中) | H96: 該次減少 基本保險金額 可領取之解約金 (預估值) (年初) | I96: 歷年減少 基本保險金額 領取之解約金總額 (預估值) A | J96: 減少基本保險金額後 當年度末壽險保障及 假設紅利_分紅保額 (預估值) | K96: 減少基本保險金額後 當年度末解約 可能領取之解約金 (預估值) B | L96: 累計至當年度末解約可能總領金額 (預估值) A+B=C
B97: =IF(B92>=109-age+1,"",B92+1) ->  | D97: =IF(C92=MaxCoverageYear-1,"***以下空白***",IF($B97="","",IF($B97>plan,"",VLOOKUP($B97,formula!$A$15:$BQ$124,formula!$AM$9,FALSE)))) ->  | E97: =IF($B97="","",VLOOKUP($B97,formula!$A$15:$BQ$124,formula!$AN$9,FALSE)) ->  | F97: =IF($B97="","",VLOOKUP($B97,formula!$A$15:$BQ$124,formula!$AD$9+1,FALSE)) ->  | G97: =IF($B97="","",VLOOKUP($B97,formula!$A$15:$BQ$124,formula!$AG$9+1,FALSE)) ->  | H97: =IF($B97="","",VLOOKUP($B97,formula!$A$15:$FD$124,formula!$EU$9,FALSE)) ->  | I97: =IF($B97="","",VLOOKUP($B97,formula!$A$15:$FD$124,formula!$EV$9,FALSE)) ->  | J97: =IF($B97="","",VLOOKUP($B97,formula!$A$15:$BQ$124,formula!$AZ$9,FALSE)) ->  | K97: =IF($B97="","",VLOOKUP($B97,formula!$A$15:$BQ$124,formula!$AY$9,FALSE)) ->  | L97: =IF($B97="","",VLOOKUP($B97,formula!$A$15:$BQ$124,formula!$BB$9,FALSE)) -> 
D98: =IF(C97=MaxCoverageYear-1,"***以下空白***",IF($B98="","",IF($B98>plan,"",VLOOKUP($B98,formula!$A$15:$BQ$124,formula!$AM$9,FALSE)))) ->  | E98: =IF($B98="","",VLOOKUP($B98,formula!$A$15:$BQ$124,formula!$AN$9,FALSE)) ->  | F98: =IF($B98="","",VLOOKUP($B98,formula!$A$15:$BQ$124,formula!$AD$9+1,FALSE)) ->  | G98: =IF($B98="","",VLOOKUP($B98,formula!$A$15:$BQ$124,formula!$AG$9+1,FALSE)) ->  | H98: =IF($B98="","",VLOOKUP($B98,formula!$A$15:$FD$124,formula!$EU$9,FALSE)) ->  | I98: =IF($B98="","",VLOOKUP($B98,formula!$A$15:$FD$124,formula!$EV$9,FALSE)) ->  | J98: =IF($B98="","",VLOOKUP($B98,formula!$A$15:$BQ$124,formula!$AZ$9,FALSE)) ->  | K98: =IF($B98="","",VLOOKUP($B98,formula!$A$15:$BQ$124,formula!$AY$9,FALSE)) ->  | L98: =IF($B98="","",VLOOKUP($B98,formula!$A$15:$BQ$124,formula!$BB$9,FALSE)) -> 
D99: =IF(C98=MaxCoverageYear-1,"***以下空白***",IF($B99="","",IF($B99>plan,"",VLOOKUP($B99,formula!$A$15:$BQ$124,formula!$AM$9,FALSE)))) ->  | E99: =IF($B99="","",VLOOKUP($B99,formula!$A$15:$BQ$124,formula!$AN$9,FALSE)) ->  | F99: =IF($B99="","",VLOOKUP($B99,formula!$A$15:$BQ$124,formula!$AD$9+1,FALSE)) ->  | G99: =IF($B99="","",VLOOKUP($B99,formula!$A$15:$BQ$124,formula!$AG$9+1,FALSE)) ->  | H99: =IF($B99="","",VLOOKUP($B99,formula!$A$15:$FD$124,formula!$EU$9,FALSE)) ->  | I99: =IF($B99="","",VLOOKUP($B99,formula!$A$15:$FD$124,formula!$EV$9,FALSE)) ->  | J99: =IF($B99="","",VLOOKUP($B99,formula!$A$15:$BQ$124,formula!$AZ$9,FALSE)) ->  | K99: =IF($B99="","",VLOOKUP($B99,formula!$A$15:$BQ$124,formula!$AY$9,FALSE)) ->  | L99: =IF($B99="","",VLOOKUP($B99,formula!$A$15:$BQ$124,formula!$BB$9,FALSE)) -> 
D100: =IF(C99=MaxCoverageYear-1,"***以下空白***",IF($B100="","",IF($B100>plan,"",VLOOKUP($B100,formula!$A$15:$BQ$124,formula!$AM$9,FALSE)))) ->  | E100: =IF($B100="","",VLOOKUP($B100,formula!$A$15:$BQ$124,formula!$AN$9,FALSE)) ->  | F100: =IF($B100="","",VLOOKUP($B100,formula!$A$15:$BQ$124,formula!$AD$9+1,FALSE)) ->  | G100: =IF($B100="","",VLOOKUP($B100,formula!$A$15:$BQ$124,formula!$AG$9+1,FALSE)) ->  | H100: =IF($B100="","",VLOOKUP($B100,formula!$A$15:$FD$124,formula!$EU$9,FALSE)) ->  | I100: =IF($B100="","",VLOOKUP($B100,formula!$A$15:$FD$124,formula!$EV$9,FALSE)) ->  | J100: =IF($B100="","",VLOOKUP($B100,formula!$A$15:$BQ$124,formula!$AZ$9,FALSE)) ->  | K100: =IF($B100="","",VLOOKUP($B100,formula!$A$15:$BQ$124,formula!$AY$9,FALSE)) ->  | L100: =IF($B100="","",VLOOKUP($B100,formula!$A$15:$BQ$124,formula!$BB$9,FALSE)) -> 
D101: =IF(C100=MaxCoverageYear-1,"***以下空白***",IF($B101="","",IF($B101>plan,"",VLOOKUP($B101,formula!$A$15:$BQ$124,formula!$AM$9,FALSE)))) ->  | E101: =IF($B101="","",VLOOKUP($B101,formula!$A$15:$BQ$124,formula!$AN$9,FALSE)) ->  | F101: =IF($B101="","",VLOOKUP($B101,formula!$A$15:$BQ$124,formula!$AD$9+1,FALSE)) ->  | G101: =IF($B101="","",VLOOKUP($B101,formula!$A$15:$BQ$124,formula!$AG$9+1,FALSE)) ->  | H101: =IF($B101="","",VLOOKUP($B101,formula!$A$15:$FD$124,formula!$EU$9,FALSE)) ->  | I101: =IF($B101="","",VLOOKUP($B101,formula!$A$15:$FD$124,formula!$EV$9,FALSE)) ->  | J101: =IF($B101="","",VLOOKUP($B101,formula!$A$15:$BQ$124,formula!$AZ$9,FALSE)) ->  | K101: =IF($B101="","",VLOOKUP($B101,formula!$A$15:$BQ$124,formula!$AY$9,FALSE)) ->  | L101: =IF($B101="","",VLOOKUP($B101,formula!$A$15:$BQ$124,formula!$BB$9,FALSE)) -> 
D102: =IF(C101=MaxCoverageYear-1,"***以下空白***",IF($B102="","",IF($B102>plan,"",VLOOKUP($B102,formula!$A$15:$BQ$124,formula!$AM$9,FALSE)))) ->  | E102: =IF($B102="","",VLOOKUP($B102,formula!$A$15:$BQ$124,formula!$AN$9,FALSE)) ->  | F102: =IF($B102="","",VLOOKUP($B102,formula!$A$15:$BQ$124,formula!$AD$9+1,FALSE)) ->  | G102: =IF($B102="","",VLOOKUP($B102,formula!$A$15:$BQ$124,formula!$AG$9+1,FALSE)) ->  | H102: =IF($B102="","",VLOOKUP($B102,formula!$A$15:$FD$124,formula!$EU$9,FALSE)) ->  | I102: =IF($B102="","",VLOOKUP($B102,formula!$A$15:$FD$124,formula!$EV$9,FALSE)) ->  | J102: =IF($B102="","",VLOOKUP($B102,formula!$A$15:$BQ$124,formula!$AZ$9,FALSE)) ->  | K102: =IF($B102="","",VLOOKUP($B102,formula!$A$15:$BQ$124,formula!$AY$9,FALSE)) ->  | L102: =IF($B102="","",VLOOKUP($B102,formula!$A$15:$BQ$124,formula!$BB$9,FALSE)) -> 
D103: =IF(C102=MaxCoverageYear-1,"***以下空白***",IF($B103="","",IF($B103>plan,"",VLOOKUP($B103,formula!$A$15:$BQ$124,formula!$AM$9,FALSE)))) ->  | E103: =IF($B103="","",VLOOKUP($B103,formula!$A$15:$BQ$124,formula!$AN$9,FALSE)) ->  | F103: =IF($B103="","",VLOOKUP($B103,formula!$A$15:$BQ$124,formula!$AD$9+1,FALSE)) ->  | G103: =IF($B103="","",VLOOKUP($B103,formula!$A$15:$BQ$124,formula!$AG$9+1,FALSE)) ->  | H103: =IF($B103="","",VLOOKUP($B103,formula!$A$15:$FD$124,formula!$EU$9,FALSE)) ->  | I103: =IF($B103="","",VLOOKUP($B103,formula!$A$15:$FD$124,formula!$EV$9,FALSE)) ->  | J103: =IF($B103="","",VLOOKUP($B103,formula!$A$15:$BQ$124,formula!$AZ$9,FALSE)) ->  | K103: =IF($B103="","",VLOOKUP($B103,formula!$A$15:$BQ$124,formula!$AY$9,FALSE)) ->  | L103: =IF($B103="","",VLOOKUP($B103,formula!$A$15:$BQ$124,formula!$BB$9,FALSE)) -> 
D104: =IF(C103=MaxCoverageYear-1,"***以下空白***",IF($B104="","",IF($B104>plan,"",VLOOKUP($B104,formula!$A$15:$BQ$124,formula!$AM$9,FALSE)))) ->  | E104: =IF($B104="","",VLOOKUP($B104,formula!$A$15:$BQ$124,formula!$AN$9,FALSE)) ->  | F104: =IF($B104="","",VLOOKUP($B104,formula!$A$15:$BQ$124,formula!$AD$9+1,FALSE)) ->  | G104: =IF($B104="","",VLOOKUP($B104,formula!$A$15:$BQ$124,formula!$AG$9+1,FALSE)) ->  | H104: =IF($B104="","",VLOOKUP($B104,formula!$A$15:$FD$124,formula!$EU$9,FALSE)) ->  | I104: =IF($B104="","",VLOOKUP($B104,formula!$A$15:$FD$124,formula!$EV$9,FALSE)) ->  | J104: =IF($B104="","",VLOOKUP($B104,formula!$A$15:$BQ$124,formula!$AZ$9,FALSE)) ->  | K104: =IF($B104="","",VLOOKUP($B104,formula!$A$15:$BQ$124,formula!$AY$9,FALSE)) ->  | L104: =IF($B104="","",VLOOKUP($B104,formula!$A$15:$BQ$124,formula!$BB$9,FALSE)) -> 
D105: =IF(C104=MaxCoverageYear-1,"***以下空白***",IF($B105="","",IF($B105>plan,"",VLOOKUP($B105,formula!$A$15:$BQ$124,formula!$AM$9,FALSE)))) ->  | E105: =IF($B105="","",VLOOKUP($B105,formula!$A$15:$BQ$124,formula!$AN$9,FALSE)) ->  | F105: =IF($B105="","",VLOOKUP($B105,formula!$A$15:$BQ$124,formula!$AD$9+1,FALSE)) ->  | G105: =IF($B105="","",VLOOKUP($B105,formula!$A$15:$BQ$124,formula!$AG$9+1,FALSE)) ->  | H105: =IF($B105="","",VLOOKUP($B105,formula!$A$15:$FD$124,formula!$EU$9,FALSE)) ->  | I105: =IF($B105="","",VLOOKUP($B105,formula!$A$15:$FD$124,formula!$EV$9,FALSE)) ->  | J105: =IF($B105="","",VLOOKUP($B105,formula!$A$15:$BQ$124,formula!$AZ$9,FALSE)) ->  | K105: =IF($B105="","",VLOOKUP($B105,formula!$A$15:$BQ$124,formula!$AY$9,FALSE)) ->  | L105: =IF($B105="","",VLOOKUP($B105,formula!$A$15:$BQ$124,formula!$BB$9,FALSE)) -> 
D106: =IF(C105=MaxCoverageYear-1,"***以下空白***",IF($B106="","",IF($B106>plan,"",VLOOKUP($B106,formula!$A$15:$BQ$124,formula!$AM$9,FALSE)))) ->  | E106: =IF($B106="","",VLOOKUP($B106,formula!$A$15:$BQ$124,formula!$AN$9,FALSE)) ->  | F106: =IF($B106="","",VLOOKUP($B106,formula!$A$15:$BQ$124,formula!$AD$9+1,FALSE)) ->  | G106: =IF($B106="","",VLOOKUP($B106,formula!$A$15:$BQ$124,formula!$AG$9+1,FALSE)) ->  | H106: =IF($B106="","",VLOOKUP($B106,formula!$A$15:$FD$124,formula!$EU$9,FALSE)) ->  | I106: =IF($B106="","",VLOOKUP($B106,formula!$A$15:$FD$124,formula!$EV$9,FALSE)) ->  | J106: =IF($B106="","",VLOOKUP($B106,formula!$A$15:$BQ$124,formula!$AZ$9,FALSE)) ->  | K106: =IF($B106="","",VLOOKUP($B106,formula!$A$15:$BQ$124,formula!$AY$9,FALSE)) ->  | L106: =IF($B106="","",VLOOKUP($B106,formula!$A$15:$BQ$124,formula!$BB$9,FALSE)) -> 
D107: =IF(C106=MaxCoverageYear-1,"***以下空白***",IF($B107="","",IF($B107>plan,"",VLOOKUP($B107,formula!$A$15:$BQ$124,formula!$AM$9,FALSE)))) ->  | E107: =IF($B107="","",VLOOKUP($B107,formula!$A$15:$BQ$124,formula!$AN$9,FALSE)) ->  | F107: =IF($B107="","",VLOOKUP($B107,formula!$A$15:$BQ$124,formula!$AD$9+1,FALSE)) ->  | G107: =IF($B107="","",VLOOKUP($B107,formula!$A$15:$BQ$124,formula!$AG$9+1,FALSE)) ->  | H107: =IF($B107="","",VLOOKUP($B107,formula!$A$15:$FD$124,formula!$EU$9,FALSE)) ->  | I107: =IF($B107="","",VLOOKUP($B107,formula!$A$15:$FD$124,formula!$EV$9,FALSE)) ->  | J107: =IF($B107="","",VLOOKUP($B107,formula!$A$15:$BQ$124,formula!$AZ$9,FALSE)) ->  | K107: =IF($B107="","",VLOOKUP($B107,formula!$A$15:$BQ$124,formula!$AY$9,FALSE)) ->  | L107: =IF($B107="","",VLOOKUP($B107,formula!$A$15:$BQ$124,formula!$BB$9,FALSE)) -> 
D108: =IF(C107=MaxCoverageYear-1,"***以下空白***",IF($B108="","",IF($B108>plan,"",VLOOKUP($B108,formula!$A$15:$BQ$124,formula!$AM$9,FALSE)))) ->  | E108: =IF($B108="","",VLOOKUP($B108,formula!$A$15:$BQ$124,formula!$AN$9,FALSE)) ->  | F108: =IF($B108="","",VLOOKUP($B108,formula!$A$15:$BQ$124,formula!$AD$9+1,FALSE)) ->  | G108: =IF($B108="","",VLOOKUP($B108,formula!$A$15:$BQ$124,formula!$AG$9+1,FALSE)) ->  | H108: =IF($B108="","",VLOOKUP($B108,formula!$A$15:$FD$124,formula!$EU$9,FALSE)) ->  | I108: =IF($B108="","",VLOOKUP($B108,formula!$A$15:$FD$124,formula!$EV$9,FALSE)) ->  | J108: =IF($B108="","",VLOOKUP($B108,formula!$A$15:$BQ$124,formula!$AZ$9,FALSE)) ->  | K108: =IF($B108="","",VLOOKUP($B108,formula!$A$15:$BQ$124,formula!$AY$9,FALSE)) ->  | L108: =IF($B108="","",VLOOKUP($B108,formula!$A$15:$BQ$124,formula!$BB$9,FALSE)) -> 
D109: =IF(C108=MaxCoverageYear-1,"***以下空白***",IF($B109="","",IF($B109>plan,"",VLOOKUP($B109,formula!$A$15:$BQ$124,formula!$AM$9,FALSE)))) ->  | E109: =IF($B109="","",VLOOKUP($B109,formula!$A$15:$BQ$124,formula!$AN$9,FALSE)) ->  | F109: =IF($B109="","",VLOOKUP($B109,formula!$A$15:$BQ$124,formula!$AD$9+1,FALSE)) ->  | G109: =IF($B109="","",VLOOKUP($B109,formula!$A$15:$BQ$124,formula!$AG$9+1,FALSE)) ->  | H109: =IF($B109="","",VLOOKUP($B109,formula!$A$15:$FD$124,formula!$EU$9,FALSE)) ->  | I109: =IF($B109="","",VLOOKUP($B109,formula!$A$15:$FD$124,formula!$EV$9,FALSE)) ->  | J109: =IF($B109="","",VLOOKUP($B109,formula!$A$15:$BQ$124,formula!$AZ$9,FALSE)) ->  | K109: =IF($B109="","",VLOOKUP($B109,formula!$A$15:$BQ$124,formula!$AY$9,FALSE)) ->  | L109: =IF($B109="","",VLOOKUP($B109,formula!$A$15:$BQ$124,formula!$BB$9,FALSE)) -> 
D110: =IF(C109=MaxCoverageYear-1,"***以下空白***",IF($B110="","",IF($B110>plan,"",VLOOKUP($B110,formula!$A$15:$BQ$124,formula!$AM$9,FALSE)))) ->  | E110: =IF($B110="","",VLOOKUP($B110,formula!$A$15:$BQ$124,formula!$AN$9,FALSE)) ->  | F110: =IF($B110="","",VLOOKUP($B110,formula!$A$15:$BQ$124,formula!$AD$9+1,FALSE)) ->  | G110: =IF($B110="","",VLOOKUP($B110,formula!$A$15:$BQ$124,formula!$AG$9+1,FALSE)) ->  | H110: =IF($B110="","",VLOOKUP($B110,formula!$A$15:$FD$124,formula!$EU$9,FALSE)) ->  | I110: =IF($B110="","",VLOOKUP($B110,formula!$A$15:$FD$124,formula!$EV$9,FALSE)) ->  | J110: =IF($B110="","",VLOOKUP($B110,formula!$A$15:$BQ$124,formula!$AZ$9,FALSE)) ->  | K110: =IF($B110="","",VLOOKUP($B110,formula!$A$15:$BQ$124,formula!$AY$9,FALSE)) ->  | L110: =IF($B110="","",VLOOKUP($B110,formula!$A$15:$BQ$124,formula!$BB$9,FALSE)) -> 
D111: =IF(C110=MaxCoverageYear-1,"***以下空白***",IF($B111="","",IF($B111>plan,"",VLOOKUP($B111,formula!$A$15:$BQ$124,formula!$AM$9,FALSE)))) ->  | E111: =IF($B111="","",VLOOKUP($B111,formula!$A$15:$BQ$124,formula!$AN$9,FALSE)) ->  | F111: =IF($B111="","",VLOOKUP($B111,formula!$A$15:$BQ$124,formula!$AD$9+1,FALSE)) ->  | G111: =IF($B111="","",VLOOKUP($B111,formula!$A$15:$BQ$124,formula!$AG$9+1,FALSE)) ->  | H111: =IF($B111="","",VLOOKUP($B111,formula!$A$15:$FD$124,formula!$EU$9,FALSE)) ->  | I111: =IF($B111="","",VLOOKUP($B111,formula!$A$15:$FD$124,formula!$EV$9,FALSE)) ->  | J111: =IF($B111="","",VLOOKUP($B111,formula!$A$15:$BQ$124,formula!$AZ$9,FALSE)) ->  | K111: =IF($B111="","",VLOOKUP($B111,formula!$A$15:$BQ$124,formula!$AY$9,FALSE)) ->  | L111: =IF($B111="","",VLOOKUP($B111,formula!$A$15:$BQ$124,formula!$BB$9,FALSE)) -> 
D112: =IF(C111=MaxCoverageYear-1,"***以下空白***",IF($B112="","",IF($B112>plan,"",VLOOKUP($B112,formula!$A$15:$BQ$124,formula!$AM$9,FALSE)))) ->  | E112: =IF($B112="","",VLOOKUP($B112,formula!$A$15:$BQ$124,formula!$AN$9,FALSE)) ->  | F112: =IF($B112="","",VLOOKUP($B112,formula!$A$15:$BQ$124,formula!$AD$9+1,FALSE)) ->  | G112: =IF($B112="","",VLOOKUP($B112,formula!$A$15:$BQ$124,formula!$AG$9+1,FALSE)) ->  | H112: =IF($B112="","",VLOOKUP($B112,formula!$A$15:$FD$124,formula!$EU$9,FALSE)) ->  | I112: =IF($B112="","",VLOOKUP($B112,formula!$A$15:$FD$124,formula!$EV$9,FALSE)) ->  | J112: =IF($B112="","",VLOOKUP($B112,formula!$A$15:$BQ$124,formula!$AZ$9,FALSE)) ->  | K112: =IF($B112="","",VLOOKUP($B112,formula!$A$15:$BQ$124,formula!$AY$9,FALSE)) ->  | L112: =IF($B112="","",VLOOKUP($B112,formula!$A$15:$BQ$124,formula!$BB$9,FALSE)) -> 
D113: =IF(C112=MaxCoverageYear-1,"***以下空白***",IF($B113="","",IF($B113>plan,"",VLOOKUP($B113,formula!$A$15:$BQ$124,formula!$AM$9,FALSE)))) ->  | E113: =IF($B113="","",VLOOKUP($B113,formula!$A$15:$BQ$124,formula!$AN$9,FALSE)) ->  | F113: =IF($B113="","",VLOOKUP($B113,formula!$A$15:$BQ$124,formula!$AD$9+1,FALSE)) ->  | G113: =IF($B113="","",VLOOKUP($B113,formula!$A$15:$BQ$124,formula!$AG$9+1,FALSE)) ->  | H113: =IF($B113="","",VLOOKUP($B113,formula!$A$15:$FD$124,formula!$EU$9,FALSE)) ->  | I113: =IF($B113="","",VLOOKUP($B113,formula!$A$15:$FD$124,formula!$EV$9,FALSE)) ->  | J113: =IF($B113="","",VLOOKUP($B113,formula!$A$15:$BQ$124,formula!$AZ$9,FALSE)) ->  | K113: =IF($B113="","",VLOOKUP($B113,formula!$A$15:$BQ$124,formula!$AY$9,FALSE)) ->  | L113: =IF($B113="","",VLOOKUP($B113,formula!$A$15:$BQ$124,formula!$BB$9,FALSE)) -> 
D114: =IF(C113=MaxCoverageYear-1,"***以下空白***",IF($B114="","",IF($B114>plan,"",VLOOKUP($B114,formula!$A$15:$BQ$124,formula!$AM$9,FALSE)))) ->  | E114: =IF($B114="","",VLOOKUP($B114,formula!$A$15:$BQ$124,formula!$AN$9,FALSE)) ->  | F114: =IF($B114="","",VLOOKUP($B114,formula!$A$15:$BQ$124,formula!$AD$9+1,FALSE)) ->  | G114: =IF($B114="","",VLOOKUP($B114,formula!$A$15:$BQ$124,formula!$AG$9+1,FALSE)) ->  | H114: =IF($B114="","",VLOOKUP($B114,formula!$A$15:$FD$124,formula!$EU$9,FALSE)) ->  | I114: =IF($B114="","",VLOOKUP($B114,formula!$A$15:$FD$124,formula!$EV$9,FALSE)) ->  | J114: =IF($B114="","",VLOOKUP($B114,formula!$A$15:$BQ$124,formula!$AZ$9,FALSE)) ->  | K114: =IF($B114="","",VLOOKUP($B114,formula!$A$15:$BQ$124,formula!$AY$9,FALSE)) ->  | L114: =IF($B114="","",VLOOKUP($B114,formula!$A$15:$BQ$124,formula!$BB$9,FALSE)) -> 
D115: =IF(C114=MaxCoverageYear-1,"***以下空白***",IF($B115="","",IF($B115>plan,"",VLOOKUP($B115,formula!$A$15:$BQ$124,formula!$AM$9,FALSE)))) ->  | E115: =IF($B115="","",VLOOKUP($B115,formula!$A$15:$BQ$124,formula!$AN$9,FALSE)) ->  | F115: =IF($B115="","",VLOOKUP($B115,formula!$A$15:$BQ$124,formula!$AD$9+1,FALSE)) ->  | G115: =IF($B115="","",VLOOKUP($B115,formula!$A$15:$BQ$124,formula!$AG$9+1,FALSE)) ->  | H115: =IF($B115="","",VLOOKUP($B115,formula!$A$15:$FD$124,formula!$EU$9,FALSE)) ->  | I115: =IF($B115="","",VLOOKUP($B115,formula!$A$15:$FD$124,formula!$EV$9,FALSE)) ->  | J115: =IF($B115="","",VLOOKUP($B115,formula!$A$15:$BQ$124,formula!$AZ$9,FALSE)) ->  | K115: =IF($B115="","",VLOOKUP($B115,formula!$A$15:$BQ$124,formula!$AY$9,FALSE)) ->  | L115: =IF($B115="","",VLOOKUP($B115,formula!$A$15:$BQ$124,formula!$BB$9,FALSE)) -> 
D116: =IF(C115=MaxCoverageYear-1,"***以下空白***",IF($B116="","",IF($B116>plan,"",VLOOKUP($B116,formula!$A$15:$BQ$124,formula!$AM$9,FALSE)))) ->  | E116: =IF($B116="","",VLOOKUP($B116,formula!$A$15:$BQ$124,formula!$AN$9,FALSE)) ->  | F116: =IF($B116="","",VLOOKUP($B116,formula!$A$15:$BQ$124,formula!$AD$9+1,FALSE)) ->  | G116: =IF($B116="","",VLOOKUP($B116,formula!$A$15:$BQ$124,formula!$AG$9+1,FALSE)) ->  | H116: =IF($B116="","",VLOOKUP($B116,formula!$A$15:$FD$124,formula!$EU$9,FALSE)) ->  | I116: =IF($B116="","",VLOOKUP($B116,formula!$A$15:$FD$124,formula!$EV$9,FALSE)) ->  | J116: =IF($B116="","",VLOOKUP($B116,formula!$A$15:$BQ$124,formula!$AZ$9,FALSE)) ->  | K116: =IF($B116="","",VLOOKUP($B116,formula!$A$15:$BQ$124,formula!$AY$9,FALSE)) ->  | L116: =IF($B116="","",VLOOKUP($B116,formula!$A$15:$BQ$124,formula!$BB$9,FALSE)) -> 
D117: =IF(C116=MaxCoverageYear-1,"***以下空白***",IF($B117="","",IF($B117>plan,"",VLOOKUP($B117,formula!$A$15:$BQ$124,formula!$AM$9,FALSE)))) ->  | E117: =IF($B117="","",VLOOKUP($B117,formula!$A$15:$BQ$124,formula!$AN$9,FALSE)) ->  | F117: =IF($B117="","",VLOOKUP($B117,formula!$A$15:$BQ$124,formula!$AD$9+1,FALSE)) ->  | G117: =IF($B117="","",VLOOKUP($B117,formula!$A$15:$BQ$124,formula!$AG$9+1,FALSE)) ->  | H117: =IF($B117="","",VLOOKUP($B117,formula!$A$15:$FD$124,formula!$EU$9,FALSE)) ->  | I117: =IF($B117="","",VLOOKUP($B117,formula!$A$15:$FD$124,formula!$EV$9,FALSE)) ->  | J117: =IF($B117="","",VLOOKUP($B117,formula!$A$15:$BQ$124,formula!$AZ$9,FALSE)) ->  | K117: =IF($B117="","",VLOOKUP($B117,formula!$A$15:$BQ$124,formula!$AY$9,FALSE)) ->  | L117: =IF($B117="","",VLOOKUP($B117,formula!$A$15:$BQ$124,formula!$BB$9,FALSE)) -> 
D118: =IF(C117=MaxCoverageYear-1,"***以下空白***",IF($B118="","",IF($B118>plan,"",VLOOKUP($B118,formula!$A$15:$BQ$124,formula!$AM$9,FALSE)))) ->  | E118: =IF($B118="","",VLOOKUP($B118,formula!$A$15:$BQ$124,formula!$AN$9,FALSE)) ->  | F118: =IF($B118="","",VLOOKUP($B118,formula!$A$15:$BQ$124,formula!$AD$9+1,FALSE)) ->  | G118: =IF($B118="","",VLOOKUP($B118,formula!$A$15:$BQ$124,formula!$AG$9+1,FALSE)) ->  | H118: =IF($B118="","",VLOOKUP($B118,formula!$A$15:$FD$124,formula!$EU$9,FALSE)) ->  | I118: =IF($B118="","",VLOOKUP($B118,formula!$A$15:$FD$124,formula!$EV$9,FALSE)) ->  | J118: =IF($B118="","",VLOOKUP($B118,formula!$A$15:$BQ$124,formula!$AZ$9,FALSE)) ->  | K118: =IF($B118="","",VLOOKUP($B118,formula!$A$15:$BQ$124,formula!$AY$9,FALSE)) ->  | L118: =IF($B118="","",VLOOKUP($B118,formula!$A$15:$BQ$124,formula!$BB$9,FALSE)) -> 
D119: =IF(C118=MaxCoverageYear-1,"***以下空白***",IF($B119="","",IF($B119>plan,"",VLOOKUP($B119,formula!$A$15:$BQ$124,formula!$AM$9,FALSE)))) ->  | E119: =IF($B119="","",VLOOKUP($B119,formula!$A$15:$BQ$124,formula!$AN$9,FALSE)) ->  | F119: =IF($B119="","",VLOOKUP($B119,formula!$A$15:$BQ$124,formula!$AD$9+1,FALSE)) ->  | G119: =IF($B119="","",VLOOKUP($B119,formula!$A$15:$BQ$124,formula!$AG$9+1,FALSE)) ->  | H119: =IF($B119="","",VLOOKUP($B119,formula!$A$15:$FD$124,formula!$EU$9,FALSE)) ->  | I119: =IF($B119="","",VLOOKUP($B119,formula!$A$15:$FD$124,formula!$EV$9,FALSE)) ->  | J119: =IF($B119="","",VLOOKUP($B119,formula!$A$15:$BQ$124,formula!$AZ$9,FALSE)) ->  | K119: =IF($B119="","",VLOOKUP($B119,formula!$A$15:$BQ$124,formula!$AY$9,FALSE)) ->  | L119: =IF($B119="","",VLOOKUP($B119,formula!$A$15:$BQ$124,formula!$BB$9,FALSE)) -> 
D120: =IF(C119=MaxCoverageYear-1,"***以下空白***",IF($B120="","",IF($B120>plan,"",VLOOKUP($B120,formula!$A$15:$BQ$124,formula!$AM$9,FALSE)))) ->  | E120: =IF($B120="","",VLOOKUP($B120,formula!$A$15:$BQ$124,formula!$AN$9,FALSE)) ->  | F120: =IF($B120="","",VLOOKUP($B120,formula!$A$15:$BQ$124,formula!$AD$9+1,FALSE)) ->  | G120: =IF($B120="","",VLOOKUP($B120,formula!$A$15:$BQ$124,formula!$AG$9+1,FALSE)) ->  | H120: =IF($B120="","",VLOOKUP($B120,formula!$A$15:$FD$124,formula!$EU$9,FALSE)) ->  | I120: =IF($B120="","",VLOOKUP($B120,formula!$A$15:$FD$124,formula!$EV$9,FALSE)) ->  | J120: =IF($B120="","",VLOOKUP($B120,formula!$A$15:$BQ$124,formula!$AZ$9,FALSE)) ->  | K120: =IF($B120="","",VLOOKUP($B120,formula!$A$15:$BQ$124,formula!$AY$9,FALSE)) ->  | L120: =IF($B120="","",VLOOKUP($B120,formula!$A$15:$BQ$124,formula!$BB$9,FALSE)) -> 
D121: =IF(C120=MaxCoverageYear-1,"***以下空白***",IF($B121="","",IF($B121>plan,"",VLOOKUP($B121,formula!$A$15:$BQ$124,formula!$AM$9,FALSE)))) ->  | E121: =IF($B121="","",VLOOKUP($B121,formula!$A$15:$BQ$124,formula!$AN$9,FALSE)) ->  | F121: =IF($B121="","",VLOOKUP($B121,formula!$A$15:$BQ$124,formula!$AD$9+1,FALSE)) ->  | G121: =IF($B121="","",VLOOKUP($B121,formula!$A$15:$BQ$124,formula!$AG$9+1,FALSE)) ->  | H121: =IF($B121="","",VLOOKUP($B121,formula!$A$15:$FD$124,formula!$EU$9,FALSE)) ->  | I121: =IF($B121="","",VLOOKUP($B121,formula!$A$15:$FD$124,formula!$EV$9,FALSE)) ->  | J121: =IF($B121="","",VLOOKUP($B121,formula!$A$15:$BQ$124,formula!$AZ$9,FALSE)) ->  | K121: =IF($B121="","",VLOOKUP($B121,formula!$A$15:$BQ$124,formula!$AY$9,FALSE)) ->  | L121: =IF($B121="","",VLOOKUP($B121,formula!$A$15:$BQ$124,formula!$BB$9,FALSE)) -> 
D122: =IF(C121=MaxCoverageYear-1,"***以下空白***",IF($B122="","",IF($B122>plan,"",VLOOKUP($B122,formula!$A$15:$BQ$124,formula!$AM$9,FALSE)))) ->  | E122: =IF($B122="","",VLOOKUP($B122,formula!$A$15:$BQ$124,formula!$AN$9,FALSE)) ->  | F122: =IF($B122="","",VLOOKUP($B122,formula!$A$15:$BQ$124,formula!$AD$9+1,FALSE)) ->  | G122: =IF($B122="","",VLOOKUP($B122,formula!$A$15:$BQ$124,formula!$AG$9+1,FALSE)) ->  | H122: =IF($B122="","",VLOOKUP($B122,formula!$A$15:$FD$124,formula!$EU$9,FALSE)) ->  | I122: =IF($B122="","",VLOOKUP($B122,formula!$A$15:$FD$124,formula!$EV$9,FALSE)) ->  | J122: =IF($B122="","",VLOOKUP($B122,formula!$A$15:$BQ$124,formula!$AZ$9,FALSE)) ->  | K122: =IF($B122="","",VLOOKUP($B122,formula!$A$15:$BQ$124,formula!$AY$9,FALSE)) ->  | L122: =IF($B122="","",VLOOKUP($B122,formula!$A$15:$BQ$124,formula!$BB$9,FALSE)) -> 
D123: =IF(C122=MaxCoverageYear-1,"***以下空白***",IF($B123="","",IF($B123>plan,"",VLOOKUP($B123,formula!$A$15:$BQ$124,formula!$AM$9,FALSE)))) ->  | E123: =IF($B123="","",VLOOKUP($B123,formula!$A$15:$BQ$124,formula!$AN$9,FALSE)) ->  | F123: =IF($B123="","",VLOOKUP($B123,formula!$A$15:$BQ$124,formula!$AD$9+1,FALSE)) ->  | G123: =IF($B123="","",VLOOKUP($B123,formula!$A$15:$BQ$124,formula!$AG$9+1,FALSE)) ->  | H123: =IF($B123="","",VLOOKUP($B123,formula!$A$15:$FD$124,formula!$EU$9,FALSE)) ->  | I123: =IF($B123="","",VLOOKUP($B123,formula!$A$15:$FD$124,formula!$EV$9,FALSE)) ->  | J123: =IF($B123="","",VLOOKUP($B123,formula!$A$15:$BQ$124,formula!$AZ$9,FALSE)) ->  | K123: =IF($B123="","",VLOOKUP($B123,formula!$A$15:$BQ$124,formula!$AY$9,FALSE)) ->  | L123: =IF($B123="","",VLOOKUP($B123,formula!$A$15:$BQ$124,formula!$BB$9,FALSE)) -> 
D124: =IF(C123=MaxCoverageYear-1,"***以下空白***",IF($B124="","",IF($B124>plan,"",VLOOKUP($B124,formula!$A$15:$BQ$124,formula!$AM$9,FALSE)))) ->  | E124: =IF($B124="","",VLOOKUP($B124,formula!$A$15:$BQ$124,formula!$AN$9,FALSE)) ->  | F124: =IF($B124="","",VLOOKUP($B124,formula!$A$15:$BQ$124,formula!$AD$9+1,FALSE)) ->  | G124: =IF($B124="","",VLOOKUP($B124,formula!$A$15:$BQ$124,formula!$AG$9+1,FALSE)) ->  | H124: =IF($B124="","",VLOOKUP($B124,formula!$A$15:$FD$124,formula!$EU$9,FALSE)) ->  | I124: =IF($B124="","",VLOOKUP($B124,formula!$A$15:$FD$124,formula!$EV$9,FALSE)) ->  | J124: =IF($B124="","",VLOOKUP($B124,formula!$A$15:$BQ$124,formula!$AZ$9,FALSE)) ->  | K124: =IF($B124="","",VLOOKUP($B124,formula!$A$15:$BQ$124,formula!$AY$9,FALSE)) ->  | L124: =IF($B124="","",VLOOKUP($B124,formula!$A$15:$BQ$124,formula!$BB$9,FALSE)) -> 
D125: =IF(C124=MaxCoverageYear-1,"***以下空白***",IF($B125="","",IF($B125>plan,"",VLOOKUP($B125,formula!$A$15:$BQ$124,formula!$AM$9,FALSE)))) ->  | E125: =IF($B125="","",VLOOKUP($B125,formula!$A$15:$BQ$124,formula!$AN$9,FALSE)) ->  | F125: =IF($B125="","",VLOOKUP($B125,formula!$A$15:$BQ$124,formula!$AD$9+1,FALSE)) ->  | G125: =IF($B125="","",VLOOKUP($B125,formula!$A$15:$BQ$124,formula!$AG$9+1,FALSE)) ->  | H125: =IF($B125="","",VLOOKUP($B125,formula!$A$15:$FD$124,formula!$EU$9,FALSE)) ->  | I125: =IF($B125="","",VLOOKUP($B125,formula!$A$15:$FD$124,formula!$EV$9,FALSE)) ->  | J125: =IF($B125="","",VLOOKUP($B125,formula!$A$15:$BQ$124,formula!$AZ$9,FALSE)) ->  | K125: =IF($B125="","",VLOOKUP($B125,formula!$A$15:$BQ$124,formula!$AY$9,FALSE)) ->  | L125: =IF($B125="","",VLOOKUP($B125,formula!$A$15:$BQ$124,formula!$BB$9,FALSE)) -> 
D126: =IF(C125=MaxCoverageYear-1,"***以下空白***",IF($B126="","",IF($B126>plan,"",VLOOKUP($B126,formula!$A$15:$BQ$124,formula!$AM$9,FALSE)))) ->  | E126: =IF($B126="","",VLOOKUP($B126,formula!$A$15:$BQ$124,formula!$AN$9,FALSE)) ->  | F126: =IF($B126="","",VLOOKUP($B126,formula!$A$15:$BQ$124,formula!$AD$9+1,FALSE)) ->  | G126: =IF($B126="","",VLOOKUP($B126,formula!$A$15:$BQ$124,formula!$AG$9+1,FALSE)) ->  | H126: =IF($B126="","",VLOOKUP($B126,formula!$A$15:$FD$124,formula!$EU$9,FALSE)) ->  | I126: =IF($B126="","",VLOOKUP($B126,formula!$A$15:$FD$124,formula!$EV$9,FALSE)) ->  | J126: =IF($B126="","",VLOOKUP($B126,formula!$A$15:$BQ$124,formula!$AZ$9,FALSE)) ->  | K126: =IF($B126="","",VLOOKUP($B126,formula!$A$15:$BQ$124,formula!$AY$9,FALSE)) ->  | L126: =IF($B126="","",VLOOKUP($B126,formula!$A$15:$BQ$124,formula!$BB$9,FALSE)) -> 
M128: (幣別/單位：美元/元)
B129: 年度 | C129: 年齡 | D129: 折扣後 當年度 所繳保險費 | E129: 折扣後 累計 所繳保險費 | F129: 【非保證給付項目】假設分紅-較低紅利金額(保額)(低分紅)
F130: 原保險金額試算 | H130: 減少保險金額試算
F132: 當年度末 壽險保障及 假設紅利_分紅保額 (預估值) (低) | G132: 當年度末 可能領取 解約金總額 (預估值) (低) | H132: 該次減少 基本保險金額 可領取之解約金 (預估值) (年初) | I132: 歷年減少 基本保險金額 領取之解約金總額 (預估值) A | J132: 減少基本保險金額後 當年度末壽險保障及 假設紅利_分紅保額 (預估值) | K132: 減少基本保險金額後 當年度末解約 可能領取之解約金 (預估值) B | L132: 累計至當年度末解約可能總領金額 (預估值) A+B=C
B133: 1 | C133: =IF(B133="","",age+B133-1) -> 40 | D133: =IF(C133="","***以下空白***",IF($B133="","",IF($B133>plan,"",VLOOKUP($B133,formula!$A$15:$BQ$124,formula!$AM$9,FALSE)))) -> 20265.3 | E133: =IF($B133="","",VLOOKUP($B133,formula!$A$15:$BQ$124,formula!$AN$9,FALSE)) -> 20265.3 | F133: =IF($B133="","",VLOOKUP($B133,formula!$A$15:$BQ$124,formula!$AD$9+2,FALSE)) -> 25201.26 | G133: =IF($B133="","",VLOOKUP($B133,formula!$A$15:$BQ$124,formula!$AG$9+2,FALSE)) -> 10500.6 | H133: =IF($B133="","",VLOOKUP($B133,formula!$A$15:$FD$124,formula!$EW$9,FALSE)) -> 0 | I133: =IF($B133="","",VLOOKUP($B133,formula!$A$15:$FD$124,formula!$EX$9,FALSE)) -> 0 | J133: =IF($B133="","",VLOOKUP($B133,formula!$A$15:$BQ$124,formula!$BM$9,FALSE)) -> 25201.26 | K133: =IF($B133="","",VLOOKUP($B133,formula!$A$15:$BQ$124,formula!$BL$9,FALSE)) -> 10500.6 | L133: =IF($B133="","",VLOOKUP($B133,formula!$A$15:$BQ$124,formula!$BO$9,FALSE)) -> 10500.6
B134: =IF(B133>=109-age+1,"",B133+1) -> 2 | C134: 41 | D134: =IF(C133=MaxCoverageYear-1,"***以下空白***",IF($B134="","",IF($B134>plan,"",VLOOKUP($B134,formula!$A$15:$BQ$124,formula!$AM$9,FALSE)))) -> 20265.3 | E134: =IF($B134="","",VLOOKUP($B134,formula!$A$15:$BQ$124,formula!$AN$9,FALSE)) -> 40530.6 | F134: =IF($B134="","",VLOOKUP($B134,formula!$A$15:$BQ$124,formula!$AD$9+2,FALSE)) -> 52385.76 | G134: =IF($B134="","",VLOOKUP($B134,formula!$A$15:$BQ$124,formula!$AG$9+2,FALSE)) -> 24555.9 | H134: =IF($B134="","",VLOOKUP($B134,formula!$A$15:$FD$124,formula!$EW$9,FALSE)) -> 0 | I134: =IF($B134="","",VLOOKUP($B134,formula!$A$15:$FD$124,formula!$EX$9,FALSE)) -> 0 | J134: =IF($B134="","",VLOOKUP($B134,formula!$A$15:$BQ$124,formula!$BM$9,FALSE)) -> 52385.76 | K134: =IF($B134="","",VLOOKUP($B134,formula!$A$15:$BQ$124,formula!$BL$9,FALSE)) -> 24555.9 | L134: =IF($B134="","",VLOOKUP($B134,formula!$A$15:$BQ$124,formula!$BO$9,FALSE)) -> 24555.9
B135: 3 | C135: 42 | D135: =IF(C134=MaxCoverageYear-1,"***以下空白***",IF($B135="","",IF($B135>plan,"",VLOOKUP($B135,formula!$A$15:$BQ$124,formula!$AM$9,FALSE)))) -> 20265.3 | E135: =IF($B135="","",VLOOKUP($B135,formula!$A$15:$BQ$124,formula!$AN$9,FALSE)) -> 60795.9 | F135: =IF($B135="","",VLOOKUP($B135,formula!$A$15:$BQ$124,formula!$AD$9+2,FALSE)) -> 82907.54 | G135: =IF($B135="","",VLOOKUP($B135,formula!$A$15:$BQ$124,formula!$AG$9+2,FALSE)) -> 41458.51 | H135: =IF($B135="","",VLOOKUP($B135,formula!$A$15:$FD$124,formula!$EW$9,FALSE)) -> 0 | I135: =IF($B135="","",VLOOKUP($B135,formula!$A$15:$FD$124,formula!$EX$9,FALSE)) -> 0 | J135: =IF($B135="","",VLOOKUP($B135,formula!$A$15:$BQ$124,formula!$BM$9,FALSE)) -> 82907.54 | K135: =IF($B135="","",VLOOKUP($B135,formula!$A$15:$BQ$124,formula!$BL$9,FALSE)) -> 41458.51 | L135: =IF($B135="","",VLOOKUP($B135,formula!$A$15:$BQ$124,formula!$BO$9,FALSE)) -> 41458.51
B136: 4 | C136: 43 | D136: =IF(C135=MaxCoverageYear-1,"***以下空白***",IF($B136="","",IF($B136>plan,"",VLOOKUP($B136,formula!$A$15:$BQ$124,formula!$AM$9,FALSE)))) ->  | E136: =IF($B136="","",VLOOKUP($B136,formula!$A$15:$BQ$124,formula!$AN$9,FALSE)) -> 60795.9 | F136: =IF($B136="","",VLOOKUP($B136,formula!$A$15:$BQ$124,formula!$AD$9+2,FALSE)) -> 84341.07 | G136: =IF($B136="","",VLOOKUP($B136,formula!$A$15:$BQ$124,formula!$AG$9+2,FALSE)) -> 47449.47 | H136: =IF($B136="","",VLOOKUP($B136,formula!$A$15:$FD$124,formula!$EW$9,FALSE)) -> 0 | I136: =IF($B136="","",VLOOKUP($B136,formula!$A$15:$FD$124,formula!$EX$9,FALSE)) -> 0 | J136: =IF($B136="","",VLOOKUP($B136,formula!$A$15:$BQ$124,formula!$BM$9,FALSE)) -> 84341.07 | K136: =IF($B136="","",VLOOKUP($B136,formula!$A$15:$BQ$124,formula!$BL$9,FALSE)) -> 47449.47 | L136: =IF($B136="","",VLOOKUP($B136,formula!$A$15:$BQ$124,formula!$BO$9,FALSE)) -> 47449.47
B137: 5 | C137: 44 | D137: =IF(C136=MaxCoverageYear-1,"***以下空白***",IF($B137="","",IF($B137>plan,"",VLOOKUP($B137,formula!$A$15:$BQ$124,formula!$AM$9,FALSE)))) ->  | E137: =IF($B137="","",VLOOKUP($B137,formula!$A$15:$BQ$124,formula!$AN$9,FALSE)) -> 60795.9 | F137: =IF($B137="","",VLOOKUP($B137,formula!$A$15:$BQ$124,formula!$AD$9+2,FALSE)) -> 85832.67 | G137: =IF($B137="","",VLOOKUP($B137,formula!$A$15:$BQ$124,formula!$AG$9+2,FALSE)) -> 50970.92 | H137: =IF($B137="","",VLOOKUP($B137,formula!$A$15:$FD$124,formula!$EW$9,FALSE)) -> 0 | I137: =IF($B137="","",VLOOKUP($B137,formula!$A$15:$FD$124,formula!$EX$9,FALSE)) -> 0 | J137: =IF($B137="","",VLOOKUP($B137,formula!$A$15:$BQ$124,formula!$BM$9,FALSE)) -> 85832.67 | K137: =IF($B137="","",VLOOKUP($B137,formula!$A$15:$BQ$124,formula!$BL$9,FALSE)) -> 50970.92 | L137: =IF($B137="","",VLOOKUP($B137,formula!$A$15:$BQ$124,formula!$BO$9,FALSE)) -> 50970.92
B138: 6 | C138: 45 | D138: =IF(C137=MaxCoverageYear-1,"***以下空白***",IF($B138="","",IF($B138>plan,"",VLOOKUP($B138,formula!$A$15:$BQ$124,formula!$AM$9,FALSE)))) ->  | E138: =IF($B138="","",VLOOKUP($B138,formula!$A$15:$BQ$124,formula!$AN$9,FALSE)) -> 60795.9 | F138: =IF($B138="","",VLOOKUP($B138,formula!$A$15:$BQ$124,formula!$AD$9+2,FALSE)) -> 148698 | G138: =IF($B138="","",VLOOKUP($B138,formula!$A$15:$BQ$124,formula!$AG$9+2,FALSE)) -> 56308.07 | H138: =IF($B138="","",VLOOKUP($B138,formula!$A$15:$FD$124,formula!$EW$9,FALSE)) -> 0 | I138: =IF($B138="","",VLOOKUP($B138,formula!$A$15:$FD$124,formula!$EX$9,FALSE)) -> 0 | J138: =IF($B138="","",VLOOKUP($B138,formula!$A$15:$BQ$124,formula!$BM$9,FALSE)) -> 148698 | K138: =IF($B138="","",VLOOKUP($B138,formula!$A$15:$BQ$124,formula!$BL$9,FALSE)) -> 56308.07 | L138: =IF($B138="","",VLOOKUP($B138,formula!$A$15:$BQ$124,formula!$BO$9,FALSE)) -> 56308.07
B139: 7 | C139: 46 | D139: =IF(C138=MaxCoverageYear-1,"***以下空白***",IF($B139="","",IF($B139>plan,"",VLOOKUP($B139,formula!$A$15:$BQ$124,formula!$AM$9,FALSE)))) ->  | E139: =IF($B139="","",VLOOKUP($B139,formula!$A$15:$BQ$124,formula!$AN$9,FALSE)) -> 60795.9 | F139: =IF($B139="","",VLOOKUP($B139,formula!$A$15:$BQ$124,formula!$AD$9+2,FALSE)) -> 148965 | G139: =IF($B139="","",VLOOKUP($B139,formula!$A$15:$BQ$124,formula!$AG$9+2,FALSE)) -> 57366.74 | H139: =IF($B139="","",VLOOKUP($B139,formula!$A$15:$FD$124,formula!$EW$9,FALSE)) -> 0 | I139: =IF($B139="","",VLOOKUP($B139,formula!$A$15:$FD$124,formula!$EX$9,FALSE)) -> 0 | J139: =IF($B139="","",VLOOKUP($B139,formula!$A$15:$BQ$124,formula!$BM$9,FALSE)) -> 148965 | K139: =IF($B139="","",VLOOKUP($B139,formula!$A$15:$BQ$124,formula!$BL$9,FALSE)) -> 57366.74 | L139: =IF($B139="","",VLOOKUP($B139,formula!$A$15:$BQ$124,formula!$BO$9,FALSE)) -> 57366.74
B140: 8 | C140: 47 | D140: =IF(C139=MaxCoverageYear-1,"***以下空白***",IF($B140="","",IF($B140>plan,"",VLOOKUP($B140,formula!$A$15:$BQ$124,formula!$AM$9,FALSE)))) ->  | E140: =IF($B140="","",VLOOKUP($B140,formula!$A$15:$BQ$124,formula!$AN$9,FALSE)) -> 60795.9 | F140: =IF($B140="","",VLOOKUP($B140,formula!$A$15:$BQ$124,formula!$AD$9+2,FALSE)) -> 149233 | G140: =IF($B140="","",VLOOKUP($B140,formula!$A$15:$BQ$124,formula!$AG$9+2,FALSE)) -> 58436.51 | H140: =IF($B140="","",VLOOKUP($B140,formula!$A$15:$FD$124,formula!$EW$9,FALSE)) -> 0 | I140: =IF($B140="","",VLOOKUP($B140,formula!$A$15:$FD$124,formula!$EX$9,FALSE)) -> 0 | J140: =IF($B140="","",VLOOKUP($B140,formula!$A$15:$BQ$124,formula!$BM$9,FALSE)) -> 149233 | K140: =IF($B140="","",VLOOKUP($B140,formula!$A$15:$BQ$124,formula!$BL$9,FALSE)) -> 58436.51 | L140: =IF($B140="","",VLOOKUP($B140,formula!$A$15:$BQ$124,formula!$BO$9,FALSE)) -> 58436.51
B141: 9 | C141: 48 | D141: =IF(C140=MaxCoverageYear-1,"***以下空白***",IF($B141="","",IF($B141>plan,"",VLOOKUP($B141,formula!$A$15:$BQ$124,formula!$AM$9,FALSE)))) ->  | E141: =IF($B141="","",VLOOKUP($B141,formula!$A$15:$BQ$124,formula!$AN$9,FALSE)) -> 60795.9 | F141: =IF($B141="","",VLOOKUP($B141,formula!$A$15:$BQ$124,formula!$AD$9+2,FALSE)) -> 149488 | G141: =IF($B141="","",VLOOKUP($B141,formula!$A$15:$BQ$124,formula!$AG$9+2,FALSE)) -> 59515.77 | H141: =IF($B141="","",VLOOKUP($B141,formula!$A$15:$FD$124,formula!$EW$9,FALSE)) -> 0 | I141: =IF($B141="","",VLOOKUP($B141,formula!$A$15:$FD$124,formula!$EX$9,FALSE)) -> 0 | J141: =IF($B141="","",VLOOKUP($B141,formula!$A$15:$BQ$124,formula!$BM$9,FALSE)) -> 149488 | K141: =IF($B141="","",VLOOKUP($B141,formula!$A$15:$BQ$124,formula!$BL$9,FALSE)) -> 59515.77 | L141: =IF($B141="","",VLOOKUP($B141,formula!$A$15:$BQ$124,formula!$BO$9,FALSE)) -> 59515.77
B142: 10 | C142: 49 | D142: =IF(C141=MaxCoverageYear-1,"***以下空白***",IF($B142="","",IF($B142>plan,"",VLOOKUP($B142,formula!$A$15:$BQ$124,formula!$AM$9,FALSE)))) ->  | E142: =IF($B142="","",VLOOKUP($B142,formula!$A$15:$BQ$124,formula!$AN$9,FALSE)) -> 60795.9 | F142: =IF($B142="","",VLOOKUP($B142,formula!$A$15:$BQ$124,formula!$AD$9+2,FALSE)) -> 149757 | G142: =IF($B142="","",VLOOKUP($B142,formula!$A$15:$BQ$124,formula!$AG$9+2,FALSE)) -> 60606.22 | H142: =IF($B142="","",VLOOKUP($B142,formula!$A$15:$FD$124,formula!$EW$9,FALSE)) -> 0 | I142: =IF($B142="","",VLOOKUP($B142,formula!$A$15:$FD$124,formula!$EX$9,FALSE)) -> 0 | J142: =IF($B142="","",VLOOKUP($B142,formula!$A$15:$BQ$124,formula!$BM$9,FALSE)) -> 149757 | K142: =IF($B142="","",VLOOKUP($B142,formula!$A$15:$BQ$124,formula!$BL$9,FALSE)) -> 60606.22 | L142: =IF($B142="","",VLOOKUP($B142,formula!$A$15:$BQ$124,formula!$BO$9,FALSE)) -> 60606.22
B143: 11 | C143: 50 | D143: =IF(C142=MaxCoverageYear-1,"***以下空白***",IF($B143="","",IF($B143>plan,"",VLOOKUP($B143,formula!$A$15:$BQ$124,formula!$AM$9,FALSE)))) ->  | E143: =IF($B143="","",VLOOKUP($B143,formula!$A$15:$BQ$124,formula!$AN$9,FALSE)) -> 60795.9 | F143: =IF($B143="","",VLOOKUP($B143,formula!$A$15:$BQ$124,formula!$AD$9+2,FALSE)) -> 149925 | G143: =IF($B143="","",VLOOKUP($B143,formula!$A$15:$BQ$124,formula!$AG$9+2,FALSE)) -> 61704.42 | H143: =IF($B143="","",VLOOKUP($B143,formula!$A$15:$FD$124,formula!$EW$9,FALSE)) -> 60606.22 | I143: =IF($B143="","",VLOOKUP($B143,formula!$A$15:$FD$124,formula!$EX$9,FALSE)) -> 60606.22 | J143: =IF($B143="","",VLOOKUP($B143,formula!$A$15:$BQ$124,formula!$BM$9,FALSE)) -> 0 | K143: =IF($B143="","",VLOOKUP($B143,formula!$A$15:$BQ$124,formula!$BL$9,FALSE)) -> 0 | L143: =IF($B143="","",VLOOKUP($B143,formula!$A$15:$BQ$124,formula!$BO$9,FALSE)) -> 60606.22
B144: 12 | C144: 51 | D144: =IF(C143=MaxCoverageYear-1,"***以下空白***",IF($B144="","",IF($B144>plan,"",VLOOKUP($B144,formula!$A$15:$BQ$124,formula!$AM$9,FALSE)))) ->  | E144: =IF($B144="","",VLOOKUP($B144,formula!$A$15:$BQ$124,formula!$AN$9,FALSE)) -> 60795.9 | F144: =IF($B144="","",VLOOKUP($B144,formula!$A$15:$BQ$124,formula!$AD$9+2,FALSE)) -> 150093 | G144: =IF($B144="","",VLOOKUP($B144,formula!$A$15:$BQ$124,formula!$AG$9+2,FALSE)) -> 62820.64 | H144: =IF($B144="","",VLOOKUP($B144,formula!$A$15:$FD$124,formula!$EW$9,FALSE)) -> 0 | I144: =IF($B144="","",VLOOKUP($B144,formula!$A$15:$FD$124,formula!$EX$9,FALSE)) -> 60606.22 | J144: =IF($B144="","",VLOOKUP($B144,formula!$A$15:$BQ$124,formula!$BM$9,FALSE)) -> 0 | K144: =IF($B144="","",VLOOKUP($B144,formula!$A$15:$BQ$124,formula!$BL$9,FALSE)) -> 0 | L144: =IF($B144="","",VLOOKUP($B144,formula!$A$15:$BQ$124,formula!$BO$9,FALSE)) -> 60606.22
B145: 13 | C145: 52 | D145: =IF(C144=MaxCoverageYear-1,"***以下空白***",IF($B145="","",IF($B145>plan,"",VLOOKUP($B145,formula!$A$15:$BQ$124,formula!$AM$9,FALSE)))) ->  | E145: =IF($B145="","",VLOOKUP($B145,formula!$A$15:$BQ$124,formula!$AN$9,FALSE)) -> 60795.9 | F145: =IF($B145="","",VLOOKUP($B145,formula!$A$15:$BQ$124,formula!$AD$9+2,FALSE)) -> 150275 | G145: =IF($B145="","",VLOOKUP($B145,formula!$A$15:$BQ$124,formula!$AG$9+2,FALSE)) -> 63956.02 | H145: =IF($B145="","",VLOOKUP($B145,formula!$A$15:$FD$124,formula!$EW$9,FALSE)) -> 0 | I145: =IF($B145="","",VLOOKUP($B145,formula!$A$15:$FD$124,formula!$EX$9,FALSE)) -> 60606.22 | J145: =IF($B145="","",VLOOKUP($B145,formula!$A$15:$BQ$124,formula!$BM$9,FALSE)) -> 0 | K145: =IF($B145="","",VLOOKUP($B145,formula!$A$15:$BQ$124,formula!$BL$9,FALSE)) -> 0 | L145: =IF($B145="","",VLOOKUP($B145,formula!$A$15:$BQ$124,formula!$BO$9,FALSE)) -> 60606.22
B146: 14 | C146: 53 | D146: =IF(C145=MaxCoverageYear-1,"***以下空白***",IF($B146="","",IF($B146>plan,"",VLOOKUP($B146,formula!$A$15:$BQ$124,formula!$AM$9,FALSE)))) ->  | E146: =IF($B146="","",VLOOKUP($B146,formula!$A$15:$BQ$124,formula!$AN$9,FALSE)) -> 60795.9 | F146: =IF($B146="","",VLOOKUP($B146,formula!$A$15:$BQ$124,formula!$AD$9+2,FALSE)) -> 150444 | G146: =IF($B146="","",VLOOKUP($B146,formula!$A$15:$BQ$124,formula!$AG$9+2,FALSE)) -> 65113.01 | H146: =IF($B146="","",VLOOKUP($B146,formula!$A$15:$FD$124,formula!$EW$9,FALSE)) -> 0 | I146: =IF($B146="","",VLOOKUP($B146,formula!$A$15:$FD$124,formula!$EX$9,FALSE)) -> 60606.22 | J146: =IF($B146="","",VLOOKUP($B146,formula!$A$15:$BQ$124,formula!$BM$9,FALSE)) -> 0 | K146: =IF($B146="","",VLOOKUP($B146,formula!$A$15:$BQ$124,formula!$BL$9,FALSE)) -> 0 | L146: =IF($B146="","",VLOOKUP($B146,formula!$A$15:$BQ$124,formula!$BO$9,FALSE)) -> 60606.22
B147: 15 | C147: 54 | D147: =IF(C146=MaxCoverageYear-1,"***以下空白***",IF($B147="","",IF($B147>plan,"",VLOOKUP($B147,formula!$A$15:$BQ$124,formula!$AM$9,FALSE)))) ->  | E147: =IF($B147="","",VLOOKUP($B147,formula!$A$15:$BQ$124,formula!$AN$9,FALSE)) -> 60795.9 | F147: =IF($B147="","",VLOOKUP($B147,formula!$A$15:$BQ$124,formula!$AD$9+2,FALSE)) -> 150613 | G147: =IF($B147="","",VLOOKUP($B147,formula!$A$15:$BQ$124,formula!$AG$9+2,FALSE)) -> 66289.94 | H147: =IF($B147="","",VLOOKUP($B147,formula!$A$15:$FD$124,formula!$EW$9,FALSE)) -> 0 | I147: =IF($B147="","",VLOOKUP($B147,formula!$A$15:$FD$124,formula!$EX$9,FALSE)) -> 60606.22 | J147: =IF($B147="","",VLOOKUP($B147,formula!$A$15:$BQ$124,formula!$BM$9,FALSE)) -> 0 | K147: =IF($B147="","",VLOOKUP($B147,formula!$A$15:$BQ$124,formula!$BL$9,FALSE)) -> 0 | L147: =IF($B147="","",VLOOKUP($B147,formula!$A$15:$BQ$124,formula!$BO$9,FALSE)) -> 60606.22
B148: 16 | C148: 55 | D148: =IF(C147=MaxCoverageYear-1,"***以下空白***",IF($B148="","",IF($B148>plan,"",VLOOKUP($B148,formula!$A$15:$BQ$124,formula!$AM$9,FALSE)))) ->  | E148: =IF($B148="","",VLOOKUP($B148,formula!$A$15:$BQ$124,formula!$AN$9,FALSE)) -> 60795.9 | F148: =IF($B148="","",VLOOKUP($B148,formula!$A$15:$BQ$124,formula!$AD$9+2,FALSE)) -> 150783 | G148: =IF($B148="","",VLOOKUP($B148,formula!$A$15:$BQ$124,formula!$AG$9+2,FALSE)) -> 67482.76 | H148: =IF($B148="","",VLOOKUP($B148,formula!$A$15:$FD$124,formula!$EW$9,FALSE)) -> 0 | I148: =IF($B148="","",VLOOKUP($B148,formula!$A$15:$FD$124,formula!$EX$9,FALSE)) -> 60606.22 | J148: =IF($B148="","",VLOOKUP($B148,formula!$A$15:$BQ$124,formula!$BM$9,FALSE)) -> 0 | K148: =IF($B148="","",VLOOKUP($B148,formula!$A$15:$BQ$124,formula!$BL$9,FALSE)) -> 0 | L148: =IF($B148="","",VLOOKUP($B148,formula!$A$15:$BQ$124,formula!$BO$9,FALSE)) -> 60606.22
B149: 17 | C149: 56 | D149: =IF(C148=MaxCoverageYear-1,"***以下空白***",IF($B149="","",IF($B149>plan,"",VLOOKUP($B149,formula!$A$15:$BQ$124,formula!$AM$9,FALSE)))) ->  | E149: =IF($B149="","",VLOOKUP($B149,formula!$A$15:$BQ$124,formula!$AN$9,FALSE)) -> 60795.9 | F149: =IF($B149="","",VLOOKUP($B149,formula!$A$15:$BQ$124,formula!$AD$9+2,FALSE)) -> 150969 | G149: =IF($B149="","",VLOOKUP($B149,formula!$A$15:$BQ$124,formula!$AG$9+2,FALSE)) -> 68698.02 | H149: =IF($B149="","",VLOOKUP($B149,formula!$A$15:$FD$124,formula!$EW$9,FALSE)) -> 0 | I149: =IF($B149="","",VLOOKUP($B149,formula!$A$15:$FD$124,formula!$EX$9,FALSE)) -> 60606.22 | J149: =IF($B149="","",VLOOKUP($B149,formula!$A$15:$BQ$124,formula!$BM$9,FALSE)) -> 0 | K149: =IF($B149="","",VLOOKUP($B149,formula!$A$15:$BQ$124,formula!$BL$9,FALSE)) -> 0 | L149: =IF($B149="","",VLOOKUP($B149,formula!$A$15:$BQ$124,formula!$BO$9,FALSE)) -> 60606.22
B150: 18 | C150: 57 | D150: =IF(C149=MaxCoverageYear-1,"***以下空白***",IF($B150="","",IF($B150>plan,"",VLOOKUP($B150,formula!$A$15:$BQ$124,formula!$AM$9,FALSE)))) ->  | E150: =IF($B150="","",VLOOKUP($B150,formula!$A$15:$BQ$124,formula!$AN$9,FALSE)) -> 60795.9 | F150: =IF($B150="","",VLOOKUP($B150,formula!$A$15:$BQ$124,formula!$AD$9+2,FALSE)) -> 151141 | G150: =IF($B150="","",VLOOKUP($B150,formula!$A$15:$BQ$124,formula!$AG$9+2,FALSE)) -> 69935.37 | H150: =IF($B150="","",VLOOKUP($B150,formula!$A$15:$FD$124,formula!$EW$9,FALSE)) -> 0 | I150: =IF($B150="","",VLOOKUP($B150,formula!$A$15:$FD$124,formula!$EX$9,FALSE)) -> 60606.22 | J150: =IF($B150="","",VLOOKUP($B150,formula!$A$15:$BQ$124,formula!$BM$9,FALSE)) -> 0 | K150: =IF($B150="","",VLOOKUP($B150,formula!$A$15:$BQ$124,formula!$BL$9,FALSE)) -> 0 | L150: =IF($B150="","",VLOOKUP($B150,formula!$A$15:$BQ$124,formula!$BO$9,FALSE)) -> 60606.22
B151: 19 | C151: 58 | D151: =IF(C150=MaxCoverageYear-1,"***以下空白***",IF($B151="","",IF($B151>plan,"",VLOOKUP($B151,formula!$A$15:$BQ$124,formula!$AM$9,FALSE)))) ->  | E151: =IF($B151="","",VLOOKUP($B151,formula!$A$15:$BQ$124,formula!$AN$9,FALSE)) -> 60795.9 | F151: =IF($B151="","",VLOOKUP($B151,formula!$A$15:$BQ$124,formula!$AD$9+2,FALSE)) -> 151313 | G151: =IF($B151="","",VLOOKUP($B151,formula!$A$15:$BQ$124,formula!$AG$9+2,FALSE)) -> 71195.9 | H151: =IF($B151="","",VLOOKUP($B151,formula!$A$15:$FD$124,formula!$EW$9,FALSE)) -> 0 | I151: =IF($B151="","",VLOOKUP($B151,formula!$A$15:$FD$124,formula!$EX$9,FALSE)) -> 60606.22 | J151: =IF($B151="","",VLOOKUP($B151,formula!$A$15:$BQ$124,formula!$BM$9,FALSE)) -> 0 | K151: =IF($B151="","",VLOOKUP($B151,formula!$A$15:$BQ$124,formula!$BL$9,FALSE)) -> 0 | L151: =IF($B151="","",VLOOKUP($B151,formula!$A$15:$BQ$124,formula!$BO$9,FALSE)) -> 60606.22
B152: 20 | C152: 59 | D152: =IF(C151=MaxCoverageYear-1,"***以下空白***",IF($B152="","",IF($B152>plan,"",VLOOKUP($B152,formula!$A$15:$BQ$124,formula!$AM$9,FALSE)))) ->  | E152: =IF($B152="","",VLOOKUP($B152,formula!$A$15:$BQ$124,formula!$AN$9,FALSE)) -> 60795.9 | F152: =IF($B152="","",VLOOKUP($B152,formula!$A$15:$BQ$124,formula!$AD$9+2,FALSE)) -> 151484 | G152: =IF($B152="","",VLOOKUP($B152,formula!$A$15:$BQ$124,formula!$AG$9+2,FALSE)) -> 72479.77 | H152: =IF($B152="","",VLOOKUP($B152,formula!$A$15:$FD$124,formula!$EW$9,FALSE)) -> 0 | I152: =IF($B152="","",VLOOKUP($B152,formula!$A$15:$FD$124,formula!$EX$9,FALSE)) -> 60606.22 | J152: =IF($B152="","",VLOOKUP($B152,formula!$A$15:$BQ$124,formula!$BM$9,FALSE)) -> 0 | K152: =IF($B152="","",VLOOKUP($B152,formula!$A$15:$BQ$124,formula!$BL$9,FALSE)) -> 0 | L152: =IF($B152="","",VLOOKUP($B152,formula!$A$15:$BQ$124,formula!$BO$9,FALSE)) -> 60606.22
B153: 21 | C153: 60 | D153: =IF(C152=MaxCoverageYear-1,"***以下空白***",IF($B153="","",IF($B153>plan,"",VLOOKUP($B153,formula!$A$15:$BQ$124,formula!$AM$9,FALSE)))) ->  | E153: =IF($B153="","",VLOOKUP($B153,formula!$A$15:$BQ$124,formula!$AN$9,FALSE)) -> 60795.9 | F153: =IF($B153="","",VLOOKUP($B153,formula!$A$15:$BQ$124,formula!$AD$9+2,FALSE)) -> 151654 | G153: =IF($B153="","",VLOOKUP($B153,formula!$A$15:$BQ$124,formula!$AG$9+2,FALSE)) -> 73688.62 | H153: =IF($B153="","",VLOOKUP($B153,formula!$A$15:$FD$124,formula!$EW$9,FALSE)) -> 0 | I153: =IF($B153="","",VLOOKUP($B153,formula!$A$15:$FD$124,formula!$EX$9,FALSE)) -> 60606.22 | J153: =IF($B153="","",VLOOKUP($B153,formula!$A$15:$BQ$124,formula!$BM$9,FALSE)) -> 0 | K153: =IF($B153="","",VLOOKUP($B153,formula!$A$15:$BQ$124,formula!$BL$9,FALSE)) -> 0 | L153: =IF($B153="","",VLOOKUP($B153,formula!$A$15:$BQ$124,formula!$BO$9,FALSE)) -> 60606.22
B154: 22 | C154: 61 | D154: =IF(C153=MaxCoverageYear-1,"***以下空白***",IF($B154="","",IF($B154>plan,"",VLOOKUP($B154,formula!$A$15:$BQ$124,formula!$AM$9,FALSE)))) ->  | E154: =IF($B154="","",VLOOKUP($B154,formula!$A$15:$BQ$124,formula!$AN$9,FALSE)) -> 60795.9 | F154: =IF($B154="","",VLOOKUP($B154,formula!$A$15:$BQ$124,formula!$AD$9+2,FALSE)) -> 151840 | G154: =IF($B154="","",VLOOKUP($B154,formula!$A$15:$BQ$124,formula!$AG$9+2,FALSE)) -> 74913.9 | H154: =IF($B154="","",VLOOKUP($B154,formula!$A$15:$FD$124,formula!$EW$9,FALSE)) -> 0 | I154: =IF($B154="","",VLOOKUP($B154,formula!$A$15:$FD$124,formula!$EX$9,FALSE)) -> 60606.22 | J154: =IF($B154="","",VLOOKUP($B154,formula!$A$15:$BQ$124,formula!$BM$9,FALSE)) -> 0 | K154: =IF($B154="","",VLOOKUP($B154,formula!$A$15:$BQ$124,formula!$BL$9,FALSE)) -> 0 | L154: =IF($B154="","",VLOOKUP($B154,formula!$A$15:$BQ$124,formula!$BO$9,FALSE)) -> 60606.22
B155: 23 | C155: 62 | D155: =IF(C154=MaxCoverageYear-1,"***以下空白***",IF($B155="","",IF($B155>plan,"",VLOOKUP($B155,formula!$A$15:$BQ$124,formula!$AM$9,FALSE)))) ->  | E155: =IF($B155="","",VLOOKUP($B155,formula!$A$15:$BQ$124,formula!$AN$9,FALSE)) -> 60795.9 | F155: =IF($B155="","",VLOOKUP($B155,formula!$A$15:$BQ$124,formula!$AD$9+2,FALSE)) -> 152013 | G155: =IF($B155="","",VLOOKUP($B155,formula!$A$15:$BQ$124,formula!$AG$9+2,FALSE)) -> 76153.58 | H155: =IF($B155="","",VLOOKUP($B155,formula!$A$15:$FD$124,formula!$EW$9,FALSE)) -> 0 | I155: =IF($B155="","",VLOOKUP($B155,formula!$A$15:$FD$124,formula!$EX$9,FALSE)) -> 60606.22 | J155: =IF($B155="","",VLOOKUP($B155,formula!$A$15:$BQ$124,formula!$BM$9,FALSE)) -> 0 | K155: =IF($B155="","",VLOOKUP($B155,formula!$A$15:$BQ$124,formula!$BL$9,FALSE)) -> 0 | L155: =IF($B155="","",VLOOKUP($B155,formula!$A$15:$BQ$124,formula!$BO$9,FALSE)) -> 60606.22
B156: 24 | C156: 63 | D156: =IF(C155=MaxCoverageYear-1,"***以下空白***",IF($B156="","",IF($B156>plan,"",VLOOKUP($B156,formula!$A$15:$BQ$124,formula!$AM$9,FALSE)))) ->  | E156: =IF($B156="","",VLOOKUP($B156,formula!$A$15:$BQ$124,formula!$AN$9,FALSE)) -> 60795.9 | F156: =IF($B156="","",VLOOKUP($B156,formula!$A$15:$BQ$124,formula!$AD$9+2,FALSE)) -> 152185 | G156: =IF($B156="","",VLOOKUP($B156,formula!$A$15:$BQ$124,formula!$AG$9+2,FALSE)) -> 77407.56 | H156: =IF($B156="","",VLOOKUP($B156,formula!$A$15:$FD$124,formula!$EW$9,FALSE)) -> 0 | I156: =IF($B156="","",VLOOKUP($B156,formula!$A$15:$FD$124,formula!$EX$9,FALSE)) -> 60606.22 | J156: =IF($B156="","",VLOOKUP($B156,formula!$A$15:$BQ$124,formula!$BM$9,FALSE)) -> 0 | K156: =IF($B156="","",VLOOKUP($B156,formula!$A$15:$BQ$124,formula!$BL$9,FALSE)) -> 0 | L156: =IF($B156="","",VLOOKUP($B156,formula!$A$15:$BQ$124,formula!$BO$9,FALSE)) -> 60606.22
B157: 25 | C157: 64 | D157: =IF(C156=MaxCoverageYear-1,"***以下空白***",IF($B157="","",IF($B157>plan,"",VLOOKUP($B157,formula!$A$15:$BQ$124,formula!$AM$9,FALSE)))) ->  | E157: =IF($B157="","",VLOOKUP($B157,formula!$A$15:$BQ$124,formula!$AN$9,FALSE)) -> 60795.9 | F157: =IF($B157="","",VLOOKUP($B157,formula!$A$15:$BQ$124,formula!$AD$9+2,FALSE)) -> 152357 | G157: =IF($B157="","",VLOOKUP($B157,formula!$A$15:$BQ$124,formula!$AG$9+2,FALSE)) -> 78674.92 | H157: =IF($B157="","",VLOOKUP($B157,formula!$A$15:$FD$124,formula!$EW$9,FALSE)) -> 0 | I157: =IF($B157="","",VLOOKUP($B157,formula!$A$15:$FD$124,formula!$EX$9,FALSE)) -> 60606.22 | J157: =IF($B157="","",VLOOKUP($B157,formula!$A$15:$BQ$124,formula!$BM$9,FALSE)) -> 0 | K157: =IF($B157="","",VLOOKUP($B157,formula!$A$15:$BQ$124,formula!$BL$9,FALSE)) -> 0 | L157: =IF($B157="","",VLOOKUP($B157,formula!$A$15:$BQ$124,formula!$BO$9,FALSE)) -> 60606.22
B158: 26 | C158: 65 | D158: =IF(C157=MaxCoverageYear-1,"***以下空白***",IF($B158="","",IF($B158>plan,"",VLOOKUP($B158,formula!$A$15:$BQ$124,formula!$AM$9,FALSE)))) ->  | E158: =IF($B158="","",VLOOKUP($B158,formula!$A$15:$BQ$124,formula!$AN$9,FALSE)) -> 60795.9 | F158: =IF($B158="","",VLOOKUP($B158,formula!$A$15:$BQ$124,formula!$AD$9+2,FALSE)) -> 152529 | G158: =IF($B158="","",VLOOKUP($B158,formula!$A$15:$BQ$124,formula!$AG$9+2,FALSE)) -> 79943.17 | H158: =IF($B158="","",VLOOKUP($B158,formula!$A$15:$FD$124,formula!$EW$9,FALSE)) -> 0 | I158: =IF($B158="","",VLOOKUP($B158,formula!$A$15:$FD$124,formula!$EX$9,FALSE)) -> 60606.22 | J158: =IF($B158="","",VLOOKUP($B158,formula!$A$15:$BQ$124,formula!$BM$9,FALSE)) -> 0 | K158: =IF($B158="","",VLOOKUP($B158,formula!$A$15:$BQ$124,formula!$BL$9,FALSE)) -> 0 | L158: =IF($B158="","",VLOOKUP($B158,formula!$A$15:$BQ$124,formula!$BO$9,FALSE)) -> 60606.22
B159: 27 | C159: 66 | D159: =IF(C158=MaxCoverageYear-1,"***以下空白***",IF($B159="","",IF($B159>plan,"",VLOOKUP($B159,formula!$A$15:$BQ$124,formula!$AM$9,FALSE)))) ->  | E159: =IF($B159="","",VLOOKUP($B159,formula!$A$15:$BQ$124,formula!$AN$9,FALSE)) -> 60795.9 | F159: =IF($B159="","",VLOOKUP($B159,formula!$A$15:$BQ$124,formula!$AD$9+2,FALSE)) -> 152717 | G159: =IF($B159="","",VLOOKUP($B159,formula!$A$15:$BQ$124,formula!$AG$9+2,FALSE)) -> 81224.15 | H159: =IF($B159="","",VLOOKUP($B159,formula!$A$15:$FD$124,formula!$EW$9,FALSE)) -> 0 | I159: =IF($B159="","",VLOOKUP($B159,formula!$A$15:$FD$124,formula!$EX$9,FALSE)) -> 60606.22 | J159: =IF($B159="","",VLOOKUP($B159,formula!$A$15:$BQ$124,formula!$BM$9,FALSE)) -> 0 | K159: =IF($B159="","",VLOOKUP($B159,formula!$A$15:$BQ$124,formula!$BL$9,FALSE)) -> 0 | L159: =IF($B159="","",VLOOKUP($B159,formula!$A$15:$BQ$124,formula!$BO$9,FALSE)) -> 60606.22
B160: 28 | C160: 67 | D160: =IF(C159=MaxCoverageYear-1,"***以下空白***",IF($B160="","",IF($B160>plan,"",VLOOKUP($B160,formula!$A$15:$BQ$124,formula!$AM$9,FALSE)))) ->  | E160: =IF($B160="","",VLOOKUP($B160,formula!$A$15:$BQ$124,formula!$AN$9,FALSE)) -> 60795.9 | F160: =IF($B160="","",VLOOKUP($B160,formula!$A$15:$BQ$124,formula!$AD$9+2,FALSE)) -> 152891 | G160: =IF($B160="","",VLOOKUP($B160,formula!$A$15:$BQ$124,formula!$AG$9+2,FALSE)) -> 82514.25 | H160: =IF($B160="","",VLOOKUP($B160,formula!$A$15:$FD$124,formula!$EW$9,FALSE)) -> 0 | I160: =IF($B160="","",VLOOKUP($B160,formula!$A$15:$FD$124,formula!$EX$9,FALSE)) -> 60606.22 | J160: =IF($B160="","",VLOOKUP($B160,formula!$A$15:$BQ$124,formula!$BM$9,FALSE)) -> 0 | K160: =IF($B160="","",VLOOKUP($B160,formula!$A$15:$BQ$124,formula!$BL$9,FALSE)) -> 0 | L160: =IF($B160="","",VLOOKUP($B160,formula!$A$15:$BQ$124,formula!$BO$9,FALSE)) -> 60606.22
B161: 29 | C161: 68 | D161: =IF(C160=MaxCoverageYear-1,"***以下空白***",IF($B161="","",IF($B161>plan,"",VLOOKUP($B161,formula!$A$15:$BQ$124,formula!$AM$9,FALSE)))) ->  | E161: =IF($B161="","",VLOOKUP($B161,formula!$A$15:$BQ$124,formula!$AN$9,FALSE)) -> 60795.9 | F161: =IF($B161="","",VLOOKUP($B161,formula!$A$15:$BQ$124,formula!$AD$9+2,FALSE)) -> 153065 | G161: =IF($B161="","",VLOOKUP($B161,formula!$A$15:$BQ$124,formula!$AG$9+2,FALSE)) -> 83811.39 | H161: =IF($B161="","",VLOOKUP($B161,formula!$A$15:$FD$124,formula!$EW$9,FALSE)) -> 0 | I161: =IF($B161="","",VLOOKUP($B161,formula!$A$15:$FD$124,formula!$EX$9,FALSE)) -> 60606.22 | J161: =IF($B161="","",VLOOKUP($B161,formula!$A$15:$BQ$124,formula!$BM$9,FALSE)) -> 0 | K161: =IF($B161="","",VLOOKUP($B161,formula!$A$15:$BQ$124,formula!$BL$9,FALSE)) -> 0 | L161: =IF($B161="","",VLOOKUP($B161,formula!$A$15:$BQ$124,formula!$BO$9,FALSE)) -> 60606.22
B162: 30 | C162: 69 | D162: =IF(C161=MaxCoverageYear-1,"***以下空白***",IF($B162="","",IF($B162>plan,"",VLOOKUP($B162,formula!$A$15:$BQ$124,formula!$AM$9,FALSE)))) ->  | E162: =IF($B162="","",VLOOKUP($B162,formula!$A$15:$BQ$124,formula!$AN$9,FALSE)) -> 60795.9 | F162: =IF($B162="","",VLOOKUP($B162,formula!$A$15:$BQ$124,formula!$AD$9+2,FALSE)) -> 153241 | G162: =IF($B162="","",VLOOKUP($B162,formula!$A$15:$BQ$124,formula!$AG$9+2,FALSE)) -> 85115.44 | H162: =IF($B162="","",VLOOKUP($B162,formula!$A$15:$FD$124,formula!$EW$9,FALSE)) -> 0 | I162: =IF($B162="","",VLOOKUP($B162,formula!$A$15:$FD$124,formula!$EX$9,FALSE)) -> 60606.22 | J162: =IF($B162="","",VLOOKUP($B162,formula!$A$15:$BQ$124,formula!$BM$9,FALSE)) -> 0 | K162: =IF($B162="","",VLOOKUP($B162,formula!$A$15:$BQ$124,formula!$BL$9,FALSE)) -> 0 | L162: =IF($B162="","",VLOOKUP($B162,formula!$A$15:$BQ$124,formula!$BO$9,FALSE)) -> 60606.22
B163: 31 | C163: 70 | D163: =IF(C162=MaxCoverageYear-1,"***以下空白***",IF($B163="","",IF($B163>plan,"",VLOOKUP($B163,formula!$A$15:$BQ$124,formula!$AM$9,FALSE)))) ->  | E163: =IF($B163="","",VLOOKUP($B163,formula!$A$15:$BQ$124,formula!$AN$9,FALSE)) -> 60795.9 | F163: =IF($B163="","",VLOOKUP($B163,formula!$A$15:$BQ$124,formula!$AD$9+2,FALSE)) -> 153416 | G163: =IF($B163="","",VLOOKUP($B163,formula!$A$15:$BQ$124,formula!$AG$9+2,FALSE)) -> 86191.39 | H163: =IF($B163="","",VLOOKUP($B163,formula!$A$15:$FD$124,formula!$EW$9,FALSE)) -> 0 | I163: =IF($B163="","",VLOOKUP($B163,formula!$A$15:$FD$124,formula!$EX$9,FALSE)) -> 60606.22 | J163: =IF($B163="","",VLOOKUP($B163,formula!$A$15:$BQ$124,formula!$BM$9,FALSE)) -> 0 | K163: =IF($B163="","",VLOOKUP($B163,formula!$A$15:$BQ$124,formula!$BL$9,FALSE)) -> 0 | L163: =IF($B163="","",VLOOKUP($B163,formula!$A$15:$BQ$124,formula!$BO$9,FALSE)) -> 60606.22
B164: 32 | C164: 71 | D164: =IF(C163=MaxCoverageYear-1,"***以下空白***",IF($B164="","",IF($B164>plan,"",VLOOKUP($B164,formula!$A$15:$BQ$124,formula!$AM$9,FALSE)))) ->  | E164: =IF($B164="","",VLOOKUP($B164,formula!$A$15:$BQ$124,formula!$AN$9,FALSE)) -> 60795.9 | F164: =IF($B164="","",VLOOKUP($B164,formula!$A$15:$BQ$124,formula!$AD$9+2,FALSE)) -> 153610 | G164: =IF($B164="","",VLOOKUP($B164,formula!$A$15:$BQ$124,formula!$AG$9+2,FALSE)) -> 87264.86 | H164: =IF($B164="","",VLOOKUP($B164,formula!$A$15:$FD$124,formula!$EW$9,FALSE)) -> 0 | I164: =IF($B164="","",VLOOKUP($B164,formula!$A$15:$FD$124,formula!$EX$9,FALSE)) -> 60606.22 | J164: =IF($B164="","",VLOOKUP($B164,formula!$A$15:$BQ$124,formula!$BM$9,FALSE)) -> 0 | K164: =IF($B164="","",VLOOKUP($B164,formula!$A$15:$BQ$124,formula!$BL$9,FALSE)) -> 0 | L164: =IF($B164="","",VLOOKUP($B164,formula!$A$15:$BQ$124,formula!$BO$9,FALSE)) -> 60606.22
B165: 33 | C165: 72 | D165: =IF(C164=MaxCoverageYear-1,"***以下空白***",IF($B165="","",IF($B165>plan,"",VLOOKUP($B165,formula!$A$15:$BQ$124,formula!$AM$9,FALSE)))) ->  | E165: =IF($B165="","",VLOOKUP($B165,formula!$A$15:$BQ$124,formula!$AN$9,FALSE)) -> 60795.9 | F165: =IF($B165="","",VLOOKUP($B165,formula!$A$15:$BQ$124,formula!$AD$9+2,FALSE)) -> 153790 | G165: =IF($B165="","",VLOOKUP($B165,formula!$A$15:$BQ$124,formula!$AG$9+2,FALSE)) -> 88332.09 | H165: =IF($B165="","",VLOOKUP($B165,formula!$A$15:$FD$124,formula!$EW$9,FALSE)) -> 0 | I165: =IF($B165="","",VLOOKUP($B165,formula!$A$15:$FD$124,formula!$EX$9,FALSE)) -> 60606.22 | J165: =IF($B165="","",VLOOKUP($B165,formula!$A$15:$BQ$124,formula!$BM$9,FALSE)) -> 0 | K165: =IF($B165="","",VLOOKUP($B165,formula!$A$15:$BQ$124,formula!$BL$9,FALSE)) -> 0 | L165: =IF($B165="","",VLOOKUP($B165,formula!$A$15:$BQ$124,formula!$BO$9,FALSE)) -> 60606.22
B166: 34 | C166: 73 | D166: =IF(C165=MaxCoverageYear-1,"***以下空白***",IF($B166="","",IF($B166>plan,"",VLOOKUP($B166,formula!$A$15:$BQ$124,formula!$AM$9,FALSE)))) ->  | E166: =IF($B166="","",VLOOKUP($B166,formula!$A$15:$BQ$124,formula!$AN$9,FALSE)) -> 60795.9 | F166: =IF($B166="","",VLOOKUP($B166,formula!$A$15:$BQ$124,formula!$AD$9+2,FALSE)) -> 153971 | G166: =IF($B166="","",VLOOKUP($B166,formula!$A$15:$BQ$124,formula!$AG$9+2,FALSE)) -> 89391.88 | H166: =IF($B166="","",VLOOKUP($B166,formula!$A$15:$FD$124,formula!$EW$9,FALSE)) -> 0 | I166: =IF($B166="","",VLOOKUP($B166,formula!$A$15:$FD$124,formula!$EX$9,FALSE)) -> 60606.22 | J166: =IF($B166="","",VLOOKUP($B166,formula!$A$15:$BQ$124,formula!$BM$9,FALSE)) -> 0 | K166: =IF($B166="","",VLOOKUP($B166,formula!$A$15:$BQ$124,formula!$BL$9,FALSE)) -> 0 | L166: =IF($B166="","",VLOOKUP($B166,formula!$A$15:$BQ$124,formula!$BO$9,FALSE)) -> 60606.22
B167: 35 | C167: 74 | D167: =IF(C166=MaxCoverageYear-1,"***以下空白***",IF($B167="","",IF($B167>plan,"",VLOOKUP($B167,formula!$A$15:$BQ$124,formula!$AM$9,FALSE)))) ->  | E167: =IF($B167="","",VLOOKUP($B167,formula!$A$15:$BQ$124,formula!$AN$9,FALSE)) -> 60795.9 | F167: =IF($B167="","",VLOOKUP($B167,formula!$A$15:$BQ$124,formula!$AD$9+2,FALSE)) -> 154154 | G167: =IF($B167="","",VLOOKUP($B167,formula!$A$15:$BQ$124,formula!$AG$9+2,FALSE)) -> 90442.95 | H167: =IF($B167="","",VLOOKUP($B167,formula!$A$15:$FD$124,formula!$EW$9,FALSE)) -> 0 | I167: =IF($B167="","",VLOOKUP($B167,formula!$A$15:$FD$124,formula!$EX$9,FALSE)) -> 60606.22 | J167: =IF($B167="","",VLOOKUP($B167,formula!$A$15:$BQ$124,formula!$BM$9,FALSE)) -> 0 | K167: =IF($B167="","",VLOOKUP($B167,formula!$A$15:$BQ$124,formula!$BL$9,FALSE)) -> 0 | L167: =IF($B167="","",VLOOKUP($B167,formula!$A$15:$BQ$124,formula!$BO$9,FALSE)) -> 60606.22
B168: 36 | C168: 75 | D168: =IF(C167=MaxCoverageYear-1,"***以下空白***",IF($B168="","",IF($B168>plan,"",VLOOKUP($B168,formula!$A$15:$BQ$124,formula!$AM$9,FALSE)))) ->  | E168: =IF($B168="","",VLOOKUP($B168,formula!$A$15:$BQ$124,formula!$AN$9,FALSE)) -> 60795.9 | F168: =IF($B168="","",VLOOKUP($B168,formula!$A$15:$BQ$124,formula!$AD$9+2,FALSE)) -> 154351 | G168: =IF($B168="","",VLOOKUP($B168,formula!$A$15:$BQ$124,formula!$AG$9+2,FALSE)) -> 91489.74 | H168: =IF($B168="","",VLOOKUP($B168,formula!$A$15:$FD$124,formula!$EW$9,FALSE)) -> 0 | I168: =IF($B168="","",VLOOKUP($B168,formula!$A$15:$FD$124,formula!$EX$9,FALSE)) -> 60606.22 | J168: =IF($B168="","",VLOOKUP($B168,formula!$A$15:$BQ$124,formula!$BM$9,FALSE)) -> 0 | K168: =IF($B168="","",VLOOKUP($B168,formula!$A$15:$BQ$124,formula!$BL$9,FALSE)) -> 0 | L168: =IF($B168="","",VLOOKUP($B168,formula!$A$15:$BQ$124,formula!$BO$9,FALSE)) -> 60606.22
B169: 37 | C169: 76 | D169: =IF(C168=MaxCoverageYear-1,"***以下空白***",IF($B169="","",IF($B169>plan,"",VLOOKUP($B169,formula!$A$15:$BQ$124,formula!$AM$9,FALSE)))) ->  | E169: =IF($B169="","",VLOOKUP($B169,formula!$A$15:$BQ$124,formula!$AN$9,FALSE)) -> 60795.9 | F169: =IF($B169="","",VLOOKUP($B169,formula!$A$15:$BQ$124,formula!$AD$9+2,FALSE)) -> 154534 | G169: =IF($B169="","",VLOOKUP($B169,formula!$A$15:$BQ$124,formula!$AG$9+2,FALSE)) -> 92524.65 | H169: =IF($B169="","",VLOOKUP($B169,formula!$A$15:$FD$124,formula!$EW$9,FALSE)) -> 0 | I169: =IF($B169="","",VLOOKUP($B169,formula!$A$15:$FD$124,formula!$EX$9,FALSE)) -> 60606.22 | J169: =IF($B169="","",VLOOKUP($B169,formula!$A$15:$BQ$124,formula!$BM$9,FALSE)) -> 0 | K169: =IF($B169="","",VLOOKUP($B169,formula!$A$15:$BQ$124,formula!$BL$9,FALSE)) -> 0 | L169: =IF($B169="","",VLOOKUP($B169,formula!$A$15:$BQ$124,formula!$BO$9,FALSE)) -> 60606.22
B170: 38 | C170: 77 | D170: =IF(C169=MaxCoverageYear-1,"***以下空白***",IF($B170="","",IF($B170>plan,"",VLOOKUP($B170,formula!$A$15:$BQ$124,formula!$AM$9,FALSE)))) ->  | E170: =IF($B170="","",VLOOKUP($B170,formula!$A$15:$BQ$124,formula!$AN$9,FALSE)) -> 60795.9 | F170: =IF($B170="","",VLOOKUP($B170,formula!$A$15:$BQ$124,formula!$AD$9+2,FALSE)) -> 154718 | G170: =IF($B170="","",VLOOKUP($B170,formula!$A$15:$BQ$124,formula!$AG$9+2,FALSE)) -> 93547.05 | H170: =IF($B170="","",VLOOKUP($B170,formula!$A$15:$FD$124,formula!$EW$9,FALSE)) -> 0 | I170: =IF($B170="","",VLOOKUP($B170,formula!$A$15:$FD$124,formula!$EX$9,FALSE)) -> 60606.22 | J170: =IF($B170="","",VLOOKUP($B170,formula!$A$15:$BQ$124,formula!$BM$9,FALSE)) -> 0 | K170: =IF($B170="","",VLOOKUP($B170,formula!$A$15:$BQ$124,formula!$BL$9,FALSE)) -> 0 | L170: =IF($B170="","",VLOOKUP($B170,formula!$A$15:$BQ$124,formula!$BO$9,FALSE)) -> 60606.22
B171: 39 | C171: 78 | D171: =IF(C170=MaxCoverageYear-1,"***以下空白***",IF($B171="","",IF($B171>plan,"",VLOOKUP($B171,formula!$A$15:$BQ$124,formula!$AM$9,FALSE)))) ->  | E171: =IF($B171="","",VLOOKUP($B171,formula!$A$15:$BQ$124,formula!$AN$9,FALSE)) -> 60795.9 | F171: =IF($B171="","",VLOOKUP($B171,formula!$A$15:$BQ$124,formula!$AD$9+2,FALSE)) -> 154904 | G171: =IF($B171="","",VLOOKUP($B171,formula!$A$15:$BQ$124,formula!$AG$9+2,FALSE)) -> 94557.17 | H171: =IF($B171="","",VLOOKUP($B171,formula!$A$15:$FD$124,formula!$EW$9,FALSE)) -> 0 | I171: =IF($B171="","",VLOOKUP($B171,formula!$A$15:$FD$124,formula!$EX$9,FALSE)) -> 60606.22 | J171: =IF($B171="","",VLOOKUP($B171,formula!$A$15:$BQ$124,formula!$BM$9,FALSE)) -> 0 | K171: =IF($B171="","",VLOOKUP($B171,formula!$A$15:$BQ$124,formula!$BL$9,FALSE)) -> 0 | L171: =IF($B171="","",VLOOKUP($B171,formula!$A$15:$BQ$124,formula!$BO$9,FALSE)) -> 60606.22
B172: 40 | C172: 79 | D172: =IF(C171=MaxCoverageYear-1,"***以下空白***",IF($B172="","",IF($B172>plan,"",VLOOKUP($B172,formula!$A$15:$BQ$124,formula!$AM$9,FALSE)))) ->  | E172: =IF($B172="","",VLOOKUP($B172,formula!$A$15:$BQ$124,formula!$AN$9,FALSE)) -> 60795.9 | F172: =IF($B172="","",VLOOKUP($B172,formula!$A$15:$BQ$124,formula!$AD$9+2,FALSE)) -> 155092 | G172: =IF($B172="","",VLOOKUP($B172,formula!$A$15:$BQ$124,formula!$AG$9+2,FALSE)) -> 95552.29 | H172: =IF($B172="","",VLOOKUP($B172,formula!$A$15:$FD$124,formula!$EW$9,FALSE)) -> 0 | I172: =IF($B172="","",VLOOKUP($B172,formula!$A$15:$FD$124,formula!$EX$9,FALSE)) -> 60606.22 | J172: =IF($B172="","",VLOOKUP($B172,formula!$A$15:$BQ$124,formula!$BM$9,FALSE)) -> 0 | K172: =IF($B172="","",VLOOKUP($B172,formula!$A$15:$BQ$124,formula!$BL$9,FALSE)) -> 0 | L172: =IF($B172="","",VLOOKUP($B172,formula!$A$15:$BQ$124,formula!$BO$9,FALSE)) -> 60606.22
M174: (幣別/單位：美元/元)
B175: 年度 | C175: 年齡 | D175: 折扣後 當年度 所繳保險費 | E175: 折扣後 累計 所繳保險費 | F175: 【非保證給付項目】假設分紅-較低紅利金額(保額)(低分紅)
F176: 原保險金額試算 | H176: 減少保險金額試算
F178: 當年度末 壽險保障及 假設紅利_分紅保額 (預估值) (低) | G178: 當年度末 可能領取 解約金總額 (預估值) (低) | H178: 該次減少 基本保險金額 可領取之解約金 (預估值) (年初) | I178: 歷年減少 基本保險金額 領取之解約金總額 (預估值) A | J178: 減少基本保險金額後 當年度末壽險保障及 假設紅利_分紅保額 (預估值) | K178: 減少基本保險金額後 當年度末解約 可能領取之解約金 (預估值) B | L178: 累計至當年度末解約可能總領金額 (預估值) A+B=C
B179: =IF(B172>=109-age+1,"",B172+1) -> 41 | C179: 80 | D179: =IF(C172=MaxCoverageYear-1,"***以下空白***",IF($B179="","",IF($B179>plan,"",VLOOKUP($B179,formula!$A$15:$BQ$124,formula!$AM$9,FALSE)))) ->  | E179: =IF($B179="","",VLOOKUP($B179,formula!$A$15:$BQ$124,formula!$AN$9,FALSE)) -> 60795.9 | F179: =IF($B179="","",VLOOKUP($B179,formula!$A$15:$BQ$124,formula!$AD$9+2,FALSE)) -> 155295 | G179: =IF($B179="","",VLOOKUP($B179,formula!$A$15:$BQ$124,formula!$AG$9+2,FALSE)) -> 96533.87 | H179: =IF($B179="","",VLOOKUP($B179,formula!$A$15:$FD$124,formula!$EW$9,FALSE)) -> 0 | I179: =IF($B179="","",VLOOKUP($B179,formula!$A$15:$FD$124,formula!$EX$9,FALSE)) -> 60606.22 | J179: =IF($B179="","",VLOOKUP($B179,formula!$A$15:$BQ$124,formula!$BM$9,FALSE)) -> 0 | K179: =IF($B179="","",VLOOKUP($B179,formula!$A$15:$BQ$124,formula!$BL$9,FALSE)) -> 0 | L179: =IF($B179="","",VLOOKUP($B179,formula!$A$15:$BQ$124,formula!$BO$9,FALSE)) -> 60606.22
B180: 42 | C180: 81 | D180: =IF(C179=MaxCoverageYear-1,"***以下空白***",IF($B180="","",IF($B180>plan,"",VLOOKUP($B180,formula!$A$15:$BQ$124,formula!$AM$9,FALSE)))) ->  | E180: =IF($B180="","",VLOOKUP($B180,formula!$A$15:$BQ$124,formula!$AN$9,FALSE)) -> 60795.9 | F180: =IF($B180="","",VLOOKUP($B180,formula!$A$15:$BQ$124,formula!$AD$9+2,FALSE)) -> 155485 | G180: =IF($B180="","",VLOOKUP($B180,formula!$A$15:$BQ$124,formula!$AG$9+2,FALSE)) -> 97500.03 | H180: =IF($B180="","",VLOOKUP($B180,formula!$A$15:$FD$124,formula!$EW$9,FALSE)) -> 0 | I180: =IF($B180="","",VLOOKUP($B180,formula!$A$15:$FD$124,formula!$EX$9,FALSE)) -> 60606.22 | J180: =IF($B180="","",VLOOKUP($B180,formula!$A$15:$BQ$124,formula!$BM$9,FALSE)) -> 0 | K180: =IF($B180="","",VLOOKUP($B180,formula!$A$15:$BQ$124,formula!$BL$9,FALSE)) -> 0 | L180: =IF($B180="","",VLOOKUP($B180,formula!$A$15:$BQ$124,formula!$BO$9,FALSE)) -> 60606.22
B181: 43 | C181: 82 | D181: =IF(C180=MaxCoverageYear-1,"***以下空白***",IF($B181="","",IF($B181>plan,"",VLOOKUP($B181,formula!$A$15:$BQ$124,formula!$AM$9,FALSE)))) ->  | E181: =IF($B181="","",VLOOKUP($B181,formula!$A$15:$BQ$124,formula!$AN$9,FALSE)) -> 60795.9 | F181: =IF($B181="","",VLOOKUP($B181,formula!$A$15:$BQ$124,formula!$AD$9+2,FALSE)) -> 155677 | G181: =IF($B181="","",VLOOKUP($B181,formula!$A$15:$BQ$124,formula!$AG$9+2,FALSE)) -> 98451.45 | H181: =IF($B181="","",VLOOKUP($B181,formula!$A$15:$FD$124,formula!$EW$9,FALSE)) -> 0 | I181: =IF($B181="","",VLOOKUP($B181,formula!$A$15:$FD$124,formula!$EX$9,FALSE)) -> 60606.22 | J181: =IF($B181="","",VLOOKUP($B181,formula!$A$15:$BQ$124,formula!$BM$9,FALSE)) -> 0 | K181: =IF($B181="","",VLOOKUP($B181,formula!$A$15:$BQ$124,formula!$BL$9,FALSE)) -> 0 | L181: =IF($B181="","",VLOOKUP($B181,formula!$A$15:$BQ$124,formula!$BO$9,FALSE)) -> 60606.22
B182: 44 | C182: 83 | D182: =IF(C181=MaxCoverageYear-1,"***以下空白***",IF($B182="","",IF($B182>plan,"",VLOOKUP($B182,formula!$A$15:$BQ$124,formula!$AM$9,FALSE)))) ->  | E182: =IF($B182="","",VLOOKUP($B182,formula!$A$15:$BQ$124,formula!$AN$9,FALSE)) -> 60795.9 | F182: =IF($B182="","",VLOOKUP($B182,formula!$A$15:$BQ$124,formula!$AD$9+2,FALSE)) -> 155871 | G182: =IF($B182="","",VLOOKUP($B182,formula!$A$15:$BQ$124,formula!$AG$9+2,FALSE)) -> 99388.11 | H182: =IF($B182="","",VLOOKUP($B182,formula!$A$15:$FD$124,formula!$EW$9,FALSE)) -> 0 | I182: =IF($B182="","",VLOOKUP($B182,formula!$A$15:$FD$124,formula!$EX$9,FALSE)) -> 60606.22 | J182: =IF($B182="","",VLOOKUP($B182,formula!$A$15:$BQ$124,formula!$BM$9,FALSE)) -> 0 | K182: =IF($B182="","",VLOOKUP($B182,formula!$A$15:$BQ$124,formula!$BL$9,FALSE)) -> 0 | L182: =IF($B182="","",VLOOKUP($B182,formula!$A$15:$BQ$124,formula!$BO$9,FALSE)) -> 60606.22
B183: 45 | C183: 84 | D183: =IF(C182=MaxCoverageYear-1,"***以下空白***",IF($B183="","",IF($B183>plan,"",VLOOKUP($B183,formula!$A$15:$BQ$124,formula!$AM$9,FALSE)))) ->  | E183: =IF($B183="","",VLOOKUP($B183,formula!$A$15:$BQ$124,formula!$AN$9,FALSE)) -> 60795.9 | F183: =IF($B183="","",VLOOKUP($B183,formula!$A$15:$BQ$124,formula!$AD$9+2,FALSE)) -> 156065 | G183: =IF($B183="","",VLOOKUP($B183,formula!$A$15:$BQ$124,formula!$AG$9+2,FALSE)) -> 100308.09 | H183: =IF($B183="","",VLOOKUP($B183,formula!$A$15:$FD$124,formula!$EW$9,FALSE)) -> 0 | I183: =IF($B183="","",VLOOKUP($B183,formula!$A$15:$FD$124,formula!$EX$9,FALSE)) -> 60606.22 | J183: =IF($B183="","",VLOOKUP($B183,formula!$A$15:$BQ$124,formula!$BM$9,FALSE)) -> 0 | K183: =IF($B183="","",VLOOKUP($B183,formula!$A$15:$BQ$124,formula!$BL$9,FALSE)) -> 0 | L183: =IF($B183="","",VLOOKUP($B183,formula!$A$15:$BQ$124,formula!$BO$9,FALSE)) -> 60606.22
B184: 46 | C184: 85 | D184: =IF(C183=MaxCoverageYear-1,"***以下空白***",IF($B184="","",IF($B184>plan,"",VLOOKUP($B184,formula!$A$15:$BQ$124,formula!$AM$9,FALSE)))) ->  | E184: =IF($B184="","",VLOOKUP($B184,formula!$A$15:$BQ$124,formula!$AN$9,FALSE)) -> 60795.9 | F184: =IF($B184="","",VLOOKUP($B184,formula!$A$15:$BQ$124,formula!$AD$9+2,FALSE)) -> 156274 | G184: =IF($B184="","",VLOOKUP($B184,formula!$A$15:$BQ$124,formula!$AG$9+2,FALSE)) -> 101211.37 | H184: =IF($B184="","",VLOOKUP($B184,formula!$A$15:$FD$124,formula!$EW$9,FALSE)) -> 0 | I184: =IF($B184="","",VLOOKUP($B184,formula!$A$15:$FD$124,formula!$EX$9,FALSE)) -> 60606.22 | J184: =IF($B184="","",VLOOKUP($B184,formula!$A$15:$BQ$124,formula!$BM$9,FALSE)) -> 0 | K184: =IF($B184="","",VLOOKUP($B184,formula!$A$15:$BQ$124,formula!$BL$9,FALSE)) -> 0 | L184: =IF($B184="","",VLOOKUP($B184,formula!$A$15:$BQ$124,formula!$BO$9,FALSE)) -> 60606.22
B185: 47 | C185: 86 | D185: =IF(C184=MaxCoverageYear-1,"***以下空白***",IF($B185="","",IF($B185>plan,"",VLOOKUP($B185,formula!$A$15:$BQ$124,formula!$AM$9,FALSE)))) ->  | E185: =IF($B185="","",VLOOKUP($B185,formula!$A$15:$BQ$124,formula!$AN$9,FALSE)) -> 60795.9 | F185: =IF($B185="","",VLOOKUP($B185,formula!$A$15:$BQ$124,formula!$AD$9+2,FALSE)) -> 156471 | G185: =IF($B185="","",VLOOKUP($B185,formula!$A$15:$BQ$124,formula!$AG$9+2,FALSE)) -> 102096.26 | H185: =IF($B185="","",VLOOKUP($B185,formula!$A$15:$FD$124,formula!$EW$9,FALSE)) -> 0 | I185: =IF($B185="","",VLOOKUP($B185,formula!$A$15:$FD$124,formula!$EX$9,FALSE)) -> 60606.22 | J185: =IF($B185="","",VLOOKUP($B185,formula!$A$15:$BQ$124,formula!$BM$9,FALSE)) -> 0 | K185: =IF($B185="","",VLOOKUP($B185,formula!$A$15:$BQ$124,formula!$BL$9,FALSE)) -> 0 | L185: =IF($B185="","",VLOOKUP($B185,formula!$A$15:$BQ$124,formula!$BO$9,FALSE)) -> 60606.22
B186: 48 | C186: 87 | D186: =IF(C185=MaxCoverageYear-1,"***以下空白***",IF($B186="","",IF($B186>plan,"",VLOOKUP($B186,formula!$A$15:$BQ$124,formula!$AM$9,FALSE)))) ->  | E186: =IF($B186="","",VLOOKUP($B186,formula!$A$15:$BQ$124,formula!$AN$9,FALSE)) -> 60795.9 | F186: =IF($B186="","",VLOOKUP($B186,formula!$A$15:$BQ$124,formula!$AD$9+2,FALSE)) -> 156670 | G186: =IF($B186="","",VLOOKUP($B186,formula!$A$15:$BQ$124,formula!$AG$9+2,FALSE)) -> 102960.51 | H186: =IF($B186="","",VLOOKUP($B186,formula!$A$15:$FD$124,formula!$EW$9,FALSE)) -> 0 | I186: =IF($B186="","",VLOOKUP($B186,formula!$A$15:$FD$124,formula!$EX$9,FALSE)) -> 60606.22 | J186: =IF($B186="","",VLOOKUP($B186,formula!$A$15:$BQ$124,formula!$BM$9,FALSE)) -> 0 | K186: =IF($B186="","",VLOOKUP($B186,formula!$A$15:$BQ$124,formula!$BL$9,FALSE)) -> 0 | L186: =IF($B186="","",VLOOKUP($B186,formula!$A$15:$BQ$124,formula!$BO$9,FALSE)) -> 60606.22
B187: 49 | C187: 88 | D187: =IF(C186=MaxCoverageYear-1,"***以下空白***",IF($B187="","",IF($B187>plan,"",VLOOKUP($B187,formula!$A$15:$BQ$124,formula!$AM$9,FALSE)))) ->  | E187: =IF($B187="","",VLOOKUP($B187,formula!$A$15:$BQ$124,formula!$AN$9,FALSE)) -> 60795.9 | F187: =IF($B187="","",VLOOKUP($B187,formula!$A$15:$BQ$124,formula!$AD$9+2,FALSE)) -> 156870 | G187: =IF($B187="","",VLOOKUP($B187,formula!$A$15:$BQ$124,formula!$AG$9+2,FALSE)) -> 103807.86 | H187: =IF($B187="","",VLOOKUP($B187,formula!$A$15:$FD$124,formula!$EW$9,FALSE)) -> 0 | I187: =IF($B187="","",VLOOKUP($B187,formula!$A$15:$FD$124,formula!$EX$9,FALSE)) -> 60606.22 | J187: =IF($B187="","",VLOOKUP($B187,formula!$A$15:$BQ$124,formula!$BM$9,FALSE)) -> 0 | K187: =IF($B187="","",VLOOKUP($B187,formula!$A$15:$BQ$124,formula!$BL$9,FALSE)) -> 0 | L187: =IF($B187="","",VLOOKUP($B187,formula!$A$15:$BQ$124,formula!$BO$9,FALSE)) -> 60606.22
B188: 50 | C188: 89 | D188: =IF(C187=MaxCoverageYear-1,"***以下空白***",IF($B188="","",IF($B188>plan,"",VLOOKUP($B188,formula!$A$15:$BQ$124,formula!$AM$9,FALSE)))) ->  | E188: =IF($B188="","",VLOOKUP($B188,formula!$A$15:$BQ$124,formula!$AN$9,FALSE)) -> 60795.9 | F188: =IF($B188="","",VLOOKUP($B188,formula!$A$15:$BQ$124,formula!$AD$9+2,FALSE)) -> 157071 | G188: =IF($B188="","",VLOOKUP($B188,formula!$A$15:$BQ$124,formula!$AG$9+2,FALSE)) -> 104639.22 | H188: =IF($B188="","",VLOOKUP($B188,formula!$A$15:$FD$124,formula!$EW$9,FALSE)) -> 0 | I188: =IF($B188="","",VLOOKUP($B188,formula!$A$15:$FD$124,formula!$EX$9,FALSE)) -> 60606.22 | J188: =IF($B188="","",VLOOKUP($B188,formula!$A$15:$BQ$124,formula!$BM$9,FALSE)) -> 0 | K188: =IF($B188="","",VLOOKUP($B188,formula!$A$15:$BQ$124,formula!$BL$9,FALSE)) -> 0 | L188: =IF($B188="","",VLOOKUP($B188,formula!$A$15:$BQ$124,formula!$BO$9,FALSE)) -> 60606.22
B189: 51 | C189: 90 | D189: =IF(C188=MaxCoverageYear-1,"***以下空白***",IF($B189="","",IF($B189>plan,"",VLOOKUP($B189,formula!$A$15:$BQ$124,formula!$AM$9,FALSE)))) ->  | E189: =IF($B189="","",VLOOKUP($B189,formula!$A$15:$BQ$124,formula!$AN$9,FALSE)) -> 60795.9 | F189: =IF($B189="","",VLOOKUP($B189,formula!$A$15:$BQ$124,formula!$AD$9+2,FALSE)) -> 157288 | G189: =IF($B189="","",VLOOKUP($B189,formula!$A$15:$BQ$124,formula!$AG$9+2,FALSE)) -> 105450.36 | H189: =IF($B189="","",VLOOKUP($B189,formula!$A$15:$FD$124,formula!$EW$9,FALSE)) -> 0 | I189: =IF($B189="","",VLOOKUP($B189,formula!$A$15:$FD$124,formula!$EX$9,FALSE)) -> 60606.22 | J189: =IF($B189="","",VLOOKUP($B189,formula!$A$15:$BQ$124,formula!$BM$9,FALSE)) -> 0 | K189: =IF($B189="","",VLOOKUP($B189,formula!$A$15:$BQ$124,formula!$BL$9,FALSE)) -> 0 | L189: =IF($B189="","",VLOOKUP($B189,formula!$A$15:$BQ$124,formula!$BO$9,FALSE)) -> 60606.22
B190: 52 | C190: 91 | D190: =IF(C189=MaxCoverageYear-1,"***以下空白***",IF($B190="","",IF($B190>plan,"",VLOOKUP($B190,formula!$A$15:$BQ$124,formula!$AM$9,FALSE)))) ->  | E190: =IF($B190="","",VLOOKUP($B190,formula!$A$15:$BQ$124,formula!$AN$9,FALSE)) -> 60795.9 | F190: =IF($B190="","",VLOOKUP($B190,formula!$A$15:$BQ$124,formula!$AD$9+2,FALSE)) -> 157491 | G190: =IF($B190="","",VLOOKUP($B190,formula!$A$15:$BQ$124,formula!$AG$9+2,FALSE)) -> 106233.1 | H190: =IF($B190="","",VLOOKUP($B190,formula!$A$15:$FD$124,formula!$EW$9,FALSE)) -> 0 | I190: =IF($B190="","",VLOOKUP($B190,formula!$A$15:$FD$124,formula!$EX$9,FALSE)) -> 60606.22 | J190: =IF($B190="","",VLOOKUP($B190,formula!$A$15:$BQ$124,formula!$BM$9,FALSE)) -> 0 | K190: =IF($B190="","",VLOOKUP($B190,formula!$A$15:$BQ$124,formula!$BL$9,FALSE)) -> 0 | L190: =IF($B190="","",VLOOKUP($B190,formula!$A$15:$BQ$124,formula!$BO$9,FALSE)) -> 60606.22
B191: 53 | C191: 92 | D191: =IF(C190=MaxCoverageYear-1,"***以下空白***",IF($B191="","",IF($B191>plan,"",VLOOKUP($B191,formula!$A$15:$BQ$124,formula!$AM$9,FALSE)))) ->  | E191: =IF($B191="","",VLOOKUP($B191,formula!$A$15:$BQ$124,formula!$AN$9,FALSE)) -> 60795.9 | F191: =IF($B191="","",VLOOKUP($B191,formula!$A$15:$BQ$124,formula!$AD$9+2,FALSE)) -> 157695 | G191: =IF($B191="","",VLOOKUP($B191,formula!$A$15:$BQ$124,formula!$AG$9+2,FALSE)) -> 106996.98 | H191: =IF($B191="","",VLOOKUP($B191,formula!$A$15:$FD$124,formula!$EW$9,FALSE)) -> 0 | I191: =IF($B191="","",VLOOKUP($B191,formula!$A$15:$FD$124,formula!$EX$9,FALSE)) -> 60606.22 | J191: =IF($B191="","",VLOOKUP($B191,formula!$A$15:$BQ$124,formula!$BM$9,FALSE)) -> 0 | K191: =IF($B191="","",VLOOKUP($B191,formula!$A$15:$BQ$124,formula!$BL$9,FALSE)) -> 0 | L191: =IF($B191="","",VLOOKUP($B191,formula!$A$15:$BQ$124,formula!$BO$9,FALSE)) -> 60606.22
B192: 54 | C192: 93 | D192: =IF(C191=MaxCoverageYear-1,"***以下空白***",IF($B192="","",IF($B192>plan,"",VLOOKUP($B192,formula!$A$15:$BQ$124,formula!$AM$9,FALSE)))) ->  | E192: =IF($B192="","",VLOOKUP($B192,formula!$A$15:$BQ$124,formula!$AN$9,FALSE)) -> 60795.9 | F192: =IF($B192="","",VLOOKUP($B192,formula!$A$15:$BQ$124,formula!$AD$9+2,FALSE)) -> 157899 | G192: =IF($B192="","",VLOOKUP($B192,formula!$A$15:$BQ$124,formula!$AG$9+2,FALSE)) -> 107741.87 | H192: =IF($B192="","",VLOOKUP($B192,formula!$A$15:$FD$124,formula!$EW$9,FALSE)) -> 0 | I192: =IF($B192="","",VLOOKUP($B192,formula!$A$15:$FD$124,formula!$EX$9,FALSE)) -> 60606.22 | J192: =IF($B192="","",VLOOKUP($B192,formula!$A$15:$BQ$124,formula!$BM$9,FALSE)) -> 0 | K192: =IF($B192="","",VLOOKUP($B192,formula!$A$15:$BQ$124,formula!$BL$9,FALSE)) -> 0 | L192: =IF($B192="","",VLOOKUP($B192,formula!$A$15:$BQ$124,formula!$BO$9,FALSE)) -> 60606.22
B193: 55 | C193: 94 | D193: =IF(C192=MaxCoverageYear-1,"***以下空白***",IF($B193="","",IF($B193>plan,"",VLOOKUP($B193,formula!$A$15:$BQ$124,formula!$AM$9,FALSE)))) ->  | E193: =IF($B193="","",VLOOKUP($B193,formula!$A$15:$BQ$124,formula!$AN$9,FALSE)) -> 60795.9 | F193: =IF($B193="","",VLOOKUP($B193,formula!$A$15:$BQ$124,formula!$AD$9+2,FALSE)) -> 158105 | G193: =IF($B193="","",VLOOKUP($B193,formula!$A$15:$BQ$124,formula!$AG$9+2,FALSE)) -> 108467.6 | H193: =IF($B193="","",VLOOKUP($B193,formula!$A$15:$FD$124,formula!$EW$9,FALSE)) -> 0 | I193: =IF($B193="","",VLOOKUP($B193,formula!$A$15:$FD$124,formula!$EX$9,FALSE)) -> 60606.22 | J193: =IF($B193="","",VLOOKUP($B193,formula!$A$15:$BQ$124,formula!$BM$9,FALSE)) -> 0 | K193: =IF($B193="","",VLOOKUP($B193,formula!$A$15:$BQ$124,formula!$BL$9,FALSE)) -> 0 | L193: =IF($B193="","",VLOOKUP($B193,formula!$A$15:$BQ$124,formula!$BO$9,FALSE)) -> 60606.22
B194: 56 | C194: 95 | D194: =IF(C193=MaxCoverageYear-1,"***以下空白***",IF($B194="","",IF($B194>plan,"",VLOOKUP($B194,formula!$A$15:$BQ$124,formula!$AM$9,FALSE)))) ->  | E194: =IF($B194="","",VLOOKUP($B194,formula!$A$15:$BQ$124,formula!$AN$9,FALSE)) -> 60795.9 | F194: =IF($B194="","",VLOOKUP($B194,formula!$A$15:$BQ$124,formula!$AD$9+2,FALSE)) -> 158324 | G194: =IF($B194="","",VLOOKUP($B194,formula!$A$15:$BQ$124,formula!$AG$9+2,FALSE)) -> 109173.92 | H194: =IF($B194="","",VLOOKUP($B194,formula!$A$15:$FD$124,formula!$EW$9,FALSE)) -> 0 | I194: =IF($B194="","",VLOOKUP($B194,formula!$A$15:$FD$124,formula!$EX$9,FALSE)) -> 60606.22 | J194: =IF($B194="","",VLOOKUP($B194,formula!$A$15:$BQ$124,formula!$BM$9,FALSE)) -> 0 | K194: =IF($B194="","",VLOOKUP($B194,formula!$A$15:$BQ$124,formula!$BL$9,FALSE)) -> 0 | L194: =IF($B194="","",VLOOKUP($B194,formula!$A$15:$BQ$124,formula!$BO$9,FALSE)) -> 60606.22
B195: 57 | C195: 96 | D195: =IF(C194=MaxCoverageYear-1,"***以下空白***",IF($B195="","",IF($B195>plan,"",VLOOKUP($B195,formula!$A$15:$BQ$124,formula!$AM$9,FALSE)))) ->  | E195: =IF($B195="","",VLOOKUP($B195,formula!$A$15:$BQ$124,formula!$AN$9,FALSE)) -> 60795.9 | F195: =IF($B195="","",VLOOKUP($B195,formula!$A$15:$BQ$124,formula!$AD$9+2,FALSE)) -> 158530 | G195: =IF($B195="","",VLOOKUP($B195,formula!$A$15:$BQ$124,formula!$AG$9+2,FALSE)) -> 109860.99 | H195: =IF($B195="","",VLOOKUP($B195,formula!$A$15:$FD$124,formula!$EW$9,FALSE)) -> 0 | I195: =IF($B195="","",VLOOKUP($B195,formula!$A$15:$FD$124,formula!$EX$9,FALSE)) -> 60606.22 | J195: =IF($B195="","",VLOOKUP($B195,formula!$A$15:$BQ$124,formula!$BM$9,FALSE)) -> 0 | K195: =IF($B195="","",VLOOKUP($B195,formula!$A$15:$BQ$124,formula!$BL$9,FALSE)) -> 0 | L195: =IF($B195="","",VLOOKUP($B195,formula!$A$15:$BQ$124,formula!$BO$9,FALSE)) -> 60606.22
B196: 58 | C196: 97 | D196: =IF(C195=MaxCoverageYear-1,"***以下空白***",IF($B196="","",IF($B196>plan,"",VLOOKUP($B196,formula!$A$15:$BQ$124,formula!$AM$9,FALSE)))) ->  | E196: =IF($B196="","",VLOOKUP($B196,formula!$A$15:$BQ$124,formula!$AN$9,FALSE)) -> 60795.9 | F196: =IF($B196="","",VLOOKUP($B196,formula!$A$15:$BQ$124,formula!$AD$9+2,FALSE)) -> 158737 | G196: =IF($B196="","",VLOOKUP($B196,formula!$A$15:$BQ$124,formula!$AG$9+2,FALSE)) -> 110528.45 | H196: =IF($B196="","",VLOOKUP($B196,formula!$A$15:$FD$124,formula!$EW$9,FALSE)) -> 0 | I196: =IF($B196="","",VLOOKUP($B196,formula!$A$15:$FD$124,formula!$EX$9,FALSE)) -> 60606.22 | J196: =IF($B196="","",VLOOKUP($B196,formula!$A$15:$BQ$124,formula!$BM$9,FALSE)) -> 0 | K196: =IF($B196="","",VLOOKUP($B196,formula!$A$15:$BQ$124,formula!$BL$9,FALSE)) -> 0 | L196: =IF($B196="","",VLOOKUP($B196,formula!$A$15:$BQ$124,formula!$BO$9,FALSE)) -> 60606.22
B197: 59 | C197: 98 | D197: =IF(C196=MaxCoverageYear-1,"***以下空白***",IF($B197="","",IF($B197>plan,"",VLOOKUP($B197,formula!$A$15:$BQ$124,formula!$AM$9,FALSE)))) ->  | E197: =IF($B197="","",VLOOKUP($B197,formula!$A$15:$BQ$124,formula!$AN$9,FALSE)) -> 60795.9 | F197: =IF($B197="","",VLOOKUP($B197,formula!$A$15:$BQ$124,formula!$AD$9+2,FALSE)) -> 158944 | G197: =IF($B197="","",VLOOKUP($B197,formula!$A$15:$BQ$124,formula!$AG$9+2,FALSE)) -> 111176.01 | H197: =IF($B197="","",VLOOKUP($B197,formula!$A$15:$FD$124,formula!$EW$9,FALSE)) -> 0 | I197: =IF($B197="","",VLOOKUP($B197,formula!$A$15:$FD$124,formula!$EX$9,FALSE)) -> 60606.22 | J197: =IF($B197="","",VLOOKUP($B197,formula!$A$15:$BQ$124,formula!$BM$9,FALSE)) -> 0 | K197: =IF($B197="","",VLOOKUP($B197,formula!$A$15:$BQ$124,formula!$BL$9,FALSE)) -> 0 | L197: =IF($B197="","",VLOOKUP($B197,formula!$A$15:$BQ$124,formula!$BO$9,FALSE)) -> 60606.22
B198: 60 | C198: 99 | D198: =IF(C197=MaxCoverageYear-1,"***以下空白***",IF($B198="","",IF($B198>plan,"",VLOOKUP($B198,formula!$A$15:$BQ$124,formula!$AM$9,FALSE)))) ->  | E198: =IF($B198="","",VLOOKUP($B198,formula!$A$15:$BQ$124,formula!$AN$9,FALSE)) -> 60795.9 | F198: =IF($B198="","",VLOOKUP($B198,formula!$A$15:$BQ$124,formula!$AD$9+2,FALSE)) -> 159165 | G198: =IF($B198="","",VLOOKUP($B198,formula!$A$15:$BQ$124,formula!$AG$9+2,FALSE)) -> 111803.43 | H198: =IF($B198="","",VLOOKUP($B198,formula!$A$15:$FD$124,formula!$EW$9,FALSE)) -> 0 | I198: =IF($B198="","",VLOOKUP($B198,formula!$A$15:$FD$124,formula!$EX$9,FALSE)) -> 60606.22 | J198: =IF($B198="","",VLOOKUP($B198,formula!$A$15:$BQ$124,formula!$BM$9,FALSE)) -> 0 | K198: =IF($B198="","",VLOOKUP($B198,formula!$A$15:$BQ$124,formula!$BL$9,FALSE)) -> 0 | L198: =IF($B198="","",VLOOKUP($B198,formula!$A$15:$BQ$124,formula!$BO$9,FALSE)) -> 60606.22
B199: 61 | C199: 100 | D199: =IF(C198=MaxCoverageYear-1,"***以下空白***",IF($B199="","",IF($B199>plan,"",VLOOKUP($B199,formula!$A$15:$BQ$124,formula!$AM$9,FALSE)))) ->  | E199: =IF($B199="","",VLOOKUP($B199,formula!$A$15:$BQ$124,formula!$AN$9,FALSE)) -> 60795.9 | F199: =IF($B199="","",VLOOKUP($B199,formula!$A$15:$BQ$124,formula!$AD$9+2,FALSE)) -> 159359 | G199: =IF($B199="","",VLOOKUP($B199,formula!$A$15:$BQ$124,formula!$AG$9+2,FALSE)) -> 112409.44 | H199: =IF($B199="","",VLOOKUP($B199,formula!$A$15:$FD$124,formula!$EW$9,FALSE)) -> 0 | I199: =IF($B199="","",VLOOKUP($B199,formula!$A$15:$FD$124,formula!$EX$9,FALSE)) -> 60606.22 | J199: =IF($B199="","",VLOOKUP($B199,formula!$A$15:$BQ$124,formula!$BM$9,FALSE)) -> 0 | K199: =IF($B199="","",VLOOKUP($B199,formula!$A$15:$BQ$124,formula!$BL$9,FALSE)) -> 0 | L199: =IF($B199="","",VLOOKUP($B199,formula!$A$15:$BQ$124,formula!$BO$9,FALSE)) -> 60606.22
B200: 62 | C200: 101 | D200: =IF(C199=MaxCoverageYear-1,"***以下空白***",IF($B200="","",IF($B200>plan,"",VLOOKUP($B200,formula!$A$15:$BQ$124,formula!$AM$9,FALSE)))) ->  | E200: =IF($B200="","",VLOOKUP($B200,formula!$A$15:$BQ$124,formula!$AN$9,FALSE)) -> 60795.9 | F200: =IF($B200="","",VLOOKUP($B200,formula!$A$15:$BQ$124,formula!$AD$9+2,FALSE)) -> 159553 | G200: =IF($B200="","",VLOOKUP($B200,formula!$A$15:$BQ$124,formula!$AG$9+2,FALSE)) -> 112996.47 | H200: =IF($B200="","",VLOOKUP($B200,formula!$A$15:$FD$124,formula!$EW$9,FALSE)) -> 0 | I200: =IF($B200="","",VLOOKUP($B200,formula!$A$15:$FD$124,formula!$EX$9,FALSE)) -> 60606.22 | J200: =IF($B200="","",VLOOKUP($B200,formula!$A$15:$BQ$124,formula!$BM$9,FALSE)) -> 0 | K200: =IF($B200="","",VLOOKUP($B200,formula!$A$15:$BQ$124,formula!$BL$9,FALSE)) -> 0 | L200: =IF($B200="","",VLOOKUP($B200,formula!$A$15:$BQ$124,formula!$BO$9,FALSE)) -> 60606.22
B201: 63 | C201: 102 | D201: =IF(C200=MaxCoverageYear-1,"***以下空白***",IF($B201="","",IF($B201>plan,"",VLOOKUP($B201,formula!$A$15:$BQ$124,formula!$AM$9,FALSE)))) ->  | E201: =IF($B201="","",VLOOKUP($B201,formula!$A$15:$BQ$124,formula!$AN$9,FALSE)) -> 60795.9 | F201: =IF($B201="","",VLOOKUP($B201,formula!$A$15:$BQ$124,formula!$AD$9+2,FALSE)) -> 159747 | G201: =IF($B201="","",VLOOKUP($B201,formula!$A$15:$BQ$124,formula!$AG$9+2,FALSE)) -> 113573.75 | H201: =IF($B201="","",VLOOKUP($B201,formula!$A$15:$FD$124,formula!$EW$9,FALSE)) -> 0 | I201: =IF($B201="","",VLOOKUP($B201,formula!$A$15:$FD$124,formula!$EX$9,FALSE)) -> 60606.22 | J201: =IF($B201="","",VLOOKUP($B201,formula!$A$15:$BQ$124,formula!$BM$9,FALSE)) -> 0 | K201: =IF($B201="","",VLOOKUP($B201,formula!$A$15:$BQ$124,formula!$BL$9,FALSE)) -> 0 | L201: =IF($B201="","",VLOOKUP($B201,formula!$A$15:$BQ$124,formula!$BO$9,FALSE)) -> 60606.22
B202: 64 | C202: 103 | D202: =IF(C201=MaxCoverageYear-1,"***以下空白***",IF($B202="","",IF($B202>plan,"",VLOOKUP($B202,formula!$A$15:$BQ$124,formula!$AM$9,FALSE)))) ->  | E202: =IF($B202="","",VLOOKUP($B202,formula!$A$15:$BQ$124,formula!$AN$9,FALSE)) -> 60795.9 | F202: =IF($B202="","",VLOOKUP($B202,formula!$A$15:$BQ$124,formula!$AD$9+2,FALSE)) -> 159940 | G202: =IF($B202="","",VLOOKUP($B202,formula!$A$15:$BQ$124,formula!$AG$9+2,FALSE)) -> 114146.82 | H202: =IF($B202="","",VLOOKUP($B202,formula!$A$15:$FD$124,formula!$EW$9,FALSE)) -> 0 | I202: =IF($B202="","",VLOOKUP($B202,formula!$A$15:$FD$124,formula!$EX$9,FALSE)) -> 60606.22 | J202: =IF($B202="","",VLOOKUP($B202,formula!$A$15:$BQ$124,formula!$BM$9,FALSE)) -> 0 | K202: =IF($B202="","",VLOOKUP($B202,formula!$A$15:$BQ$124,formula!$BL$9,FALSE)) -> 0 | L202: =IF($B202="","",VLOOKUP($B202,formula!$A$15:$BQ$124,formula!$BO$9,FALSE)) -> 60606.22
B203: 65 | C203: =IF(B203="","",age+B203-1) -> 104 | D203: =IF(C202=MaxCoverageYear-1,"***以下空白***",IF($B203="","",IF($B203>plan,"",VLOOKUP($B203,formula!$A$15:$BQ$124,formula!$AM$9,FALSE)))) ->  | E203: =IF($B203="","",VLOOKUP($B203,formula!$A$15:$BQ$124,formula!$AN$9,FALSE)) -> 60795.9 | F203: =IF($B203="","",VLOOKUP($B203,formula!$A$15:$BQ$124,formula!$AD$9+2,FALSE)) -> 160132 | G203: =IF($B203="","",VLOOKUP($B203,formula!$A$15:$BQ$124,formula!$AG$9+2,FALSE)) -> 114730.46 | H203: =IF($B203="","",VLOOKUP($B203,formula!$A$15:$FD$124,formula!$EW$9,FALSE)) -> 0 | I203: =IF($B203="","",VLOOKUP($B203,formula!$A$15:$FD$124,formula!$EX$9,FALSE)) -> 60606.22 | J203: =IF($B203="","",VLOOKUP($B203,formula!$A$15:$BQ$124,formula!$BM$9,FALSE)) -> 0 | K203: =IF($B203="","",VLOOKUP($B203,formula!$A$15:$BQ$124,formula!$BL$9,FALSE)) -> 0 | L203: =IF($B203="","",VLOOKUP($B203,formula!$A$15:$BQ$124,formula!$BO$9,FALSE)) -> 60606.22
B204: =IF(B203>=109-age+1,"",B203+1) -> 66 | C204: 105 | D204: =IF(C203=MaxCoverageYear-1,"***以下空白***",IF($B204="","",IF($B204>plan,"",VLOOKUP($B204,formula!$A$15:$BQ$124,formula!$AM$9,FALSE)))) ->  | E204: =IF($B204="","",VLOOKUP($B204,formula!$A$15:$BQ$124,formula!$AN$9,FALSE)) -> 60795.9 | F204: =IF($B204="","",VLOOKUP($B204,formula!$A$15:$BQ$124,formula!$AD$9+2,FALSE)) -> 160322 | G204: =IF($B204="","",VLOOKUP($B204,formula!$A$15:$BQ$124,formula!$AG$9+2,FALSE)) -> 115349.15 | H204: =IF($B204="","",VLOOKUP($B204,formula!$A$15:$FD$124,formula!$EW$9,FALSE)) -> 0 | I204: =IF($B204="","",VLOOKUP($B204,formula!$A$15:$FD$124,formula!$EX$9,FALSE)) -> 60606.22 | J204: =IF($B204="","",VLOOKUP($B204,formula!$A$15:$BQ$124,formula!$BM$9,FALSE)) -> 0 | K204: =IF($B204="","",VLOOKUP($B204,formula!$A$15:$BQ$124,formula!$BL$9,FALSE)) -> 0 | L204: =IF($B204="","",VLOOKUP($B204,formula!$A$15:$BQ$124,formula!$BO$9,FALSE)) -> 60606.22
B205: 67 | C205: 106 | D205: =IF(C204=MaxCoverageYear-1,"***以下空白***",IF($B205="","",IF($B205>plan,"",VLOOKUP($B205,formula!$A$15:$BQ$124,formula!$AM$9,FALSE)))) ->  | E205: =IF($B205="","",VLOOKUP($B205,formula!$A$15:$BQ$124,formula!$AN$9,FALSE)) -> 60795.9 | F205: =IF($B205="","",VLOOKUP($B205,formula!$A$15:$BQ$124,formula!$AD$9+2,FALSE)) -> 160509 | G205: =IF($B205="","",VLOOKUP($B205,formula!$A$15:$BQ$124,formula!$AG$9+2,FALSE)) -> 115980.48 | H205: =IF($B205="","",VLOOKUP($B205,formula!$A$15:$FD$124,formula!$EW$9,FALSE)) -> 0 | I205: =IF($B205="","",VLOOKUP($B205,formula!$A$15:$FD$124,formula!$EX$9,FALSE)) -> 60606.22 | J205: =IF($B205="","",VLOOKUP($B205,formula!$A$15:$BQ$124,formula!$BM$9,FALSE)) -> 0 | K205: =IF($B205="","",VLOOKUP($B205,formula!$A$15:$BQ$124,formula!$BL$9,FALSE)) -> 0 | L205: =IF($B205="","",VLOOKUP($B205,formula!$A$15:$BQ$124,formula!$BO$9,FALSE)) -> 60606.22
... 169 more rows

Sheet 商品利益說明表(不含紅利部份) (hidden)
B1: =ProductName &" - 商品利益說明表(不含紅利部份)" -> 安達人壽美利紅美元分紅終身壽險 - 商品利益說明表(不含紅利部份)
B3: ="要保險人："&參數!H8 -> 要保險人：要保人 | D3: ="保險年齡："&age & " 歲" -> 保險年齡：40 歲 | E3: ="繳 別："&ChargeMode -> 繳 別：年繳 | H3: ="首期繳費方式 : "&PayMode1 -> 首期繳費方式 : 金融機構自動轉帳 | J3: 首期保費： | K3: =TEXT(GP_bf_disc,"###,###,###.00") & " 美元" -> 20,470.00 美元 | L3: 首期折扣後保費： | M3: =TEXT(GP_af_disc,"###,###,###.00") & " 美元" -> 20,265.30 美元 | N3: 基本保險金額： | O3: =TEXT(SA,"###,###,###.00")&" 美元" -> 100,000.00 美元 | P3: ="高保費折扣:"& TEXT(Prem_disc,"0.00%") -> 高保費折扣:0.00% | R3: 列印
B4: ="被保險人："&InsName -> 被保險人：被保人 | D4: ="性 別："&EntryGender -> 性 別：男性 | E4: ="繳費年期："&plan & " 年期" -> 繳費年期：3 年期 | H4: ="續期繳費方式 :"&PayMode2 -> 續期繳費方式 :金融機構自動轉帳 | J4: 續期保費： | K4: =TEXT(RP_bf_disc,"###,###,###.00") & " 美元" -> 20,470.00 美元 | L4: 續期折扣後保費： | M4: =TEXT(RP_af_disc,"###,###,###.00") & " 美元" -> 20,265.30 美元 | N4: 繳費方式折扣: | O4: =IF(PayModeDisc1=1%,PayModeDisc1,IF(PayModeDisc2=1%,PayModeDisc2,0)) -> 0.01
P5: (幣別/單位：美元/元)
B6: 保單年度末 | C6: 保險年齡 | D6: 每期折扣後 所繳保險費 | E6: 累計折扣後 所繳保險費 | H6: 當年度末壽險保障 | K6: 當年度末解約金 | M6: 當年度末 保單價值準備金 | O6: 當年度末 減額繳清保險金額
R7: 回到資料輸入
B10: 1 | C10: =IF(B10="","",age+B10-1) -> 40 | D10: =IF(C10="","***以下空白***",IF($B10="","",IF($B10>plan,"",VLOOKUP($B10,formula!$A$15:$BQ$124,formula!$AM$9,FALSE)))) -> 20265.3 | E10: =IF($B10="","",VLOOKUP($B10,formula!$A$15:$BQ$124,formula!$AN$9,FALSE)) -> 20265.3 | H10: =IF($B10="","",VLOOKUP($B10,formula!$A$15:$BQ$124,formula!$C$9,FALSE)) -> 25201.26 | K10: =IF($B10="","",VLOOKUP($B10,formula!$A$15:$BQ$124,formula!$E$9,FALSE)) -> 10500.6 | M10: =IF($B10="","",VLOOKUP($B10,formula!$A$15:$BQ$124,formula!$D$9,FALSE)) -> 14000.7 | O10: =IF(B10="", "", IFERROR(IF(SA * VLOOKUP(index, RPU_Tab, 4 + B10, FALSE) / 10000 = 0, "", SA * VLOOKUP(index, RPU_Tab, 4 + B10, FALSE) / 10000), "")) -> 25980.3
B11: =IF(B10>=109-age+1,"",B10+1) -> 2 | C11: 41 | D11: =IF(C10=MaxCoverageYear-1,"***以下空白***",IF($B11="","",IF($B11>plan,"",VLOOKUP($B11,formula!$A$15:$BQ$124,formula!$AM$9,FALSE)))) -> 20265.3 | E11: =IF($B11="","",VLOOKUP($B11,formula!$A$15:$BQ$124,formula!$AN$9,FALSE)) -> 40530.6 | H11: =IF($B11="","",VLOOKUP($B11,formula!$A$15:$BQ$124,formula!$C$9,FALSE)) -> 52385.76 | K11: =IF($B11="","",VLOOKUP($B11,formula!$A$15:$BQ$124,formula!$E$9,FALSE)) -> 24555.9 | M11: =IF($B11="","",VLOOKUP($B11,formula!$A$15:$BQ$124,formula!$D$9,FALSE)) -> 32741.1 | O11: 62320.1
B12: 3 | C12: 42 | D12: =IF(C11=MaxCoverageYear-1,"***以下空白***",IF($B12="","",IF($B12>plan,"",VLOOKUP($B12,formula!$A$15:$BQ$124,formula!$AM$9,FALSE)))) -> 20265.3 | E12: =IF($B12="","",VLOOKUP($B12,formula!$A$15:$BQ$124,formula!$AN$9,FALSE)) -> 60795.9 | H12: =IF($B12="","",VLOOKUP($B12,formula!$A$15:$BQ$124,formula!$C$9,FALSE)) -> 82870.24 | K12: =IF($B12="","",VLOOKUP($B12,formula!$A$15:$BQ$124,formula!$E$9,FALSE)) -> 41435.2 | M12: =IF($B12="","",VLOOKUP($B12,formula!$A$15:$BQ$124,formula!$D$9,FALSE)) -> 51793.9
B13: 4 | C13: 43 | D13: =IF(C12=MaxCoverageYear-1,"***以下空白***",IF($B13="","",IF($B13>plan,"",VLOOKUP($B13,formula!$A$15:$BQ$124,formula!$AM$9,FALSE)))) ->  | E13: =IF($B13="","",VLOOKUP($B13,formula!$A$15:$BQ$124,formula!$AN$9,FALSE)) -> 60795.9 | H13: =IF($B13="","",VLOOKUP($B13,formula!$A$15:$BQ$124,formula!$C$9,FALSE)) -> 84220.64 | K13: =IF($B13="","",VLOOKUP($B13,formula!$A$15:$BQ$124,formula!$E$9,FALSE)) -> 47374.2 | M13: =IF($B13="","",VLOOKUP($B13,formula!$A$15:$BQ$124,formula!$D$9,FALSE)) -> 52637.9
B14: 5 | C14: 44 | D14: =IF(C13=MaxCoverageYear-1,"***以下空白***",IF($B14="","",IF($B14>plan,"",VLOOKUP($B14,formula!$A$15:$BQ$124,formula!$AM$9,FALSE)))) ->  | E14: =IF($B14="","",VLOOKUP($B14,formula!$A$15:$BQ$124,formula!$AN$9,FALSE)) -> 60795.9 | H14: =IF($B14="","",VLOOKUP($B14,formula!$A$15:$BQ$124,formula!$C$9,FALSE)) -> 85584.48 | K14: =IF($B14="","",VLOOKUP($B14,formula!$A$15:$BQ$124,formula!$E$9,FALSE)) -> 50815.8 | M14: =IF($B14="","",VLOOKUP($B14,formula!$A$15:$BQ$124,formula!$D$9,FALSE)) -> 53490.3
B15: 6 | C15: 45 | D15: =IF(C14=MaxCoverageYear-1,"***以下空白***",IF($B15="","",IF($B15>plan,"",VLOOKUP($B15,formula!$A$15:$BQ$124,formula!$AM$9,FALSE)))) ->  | E15: =IF($B15="","",VLOOKUP($B15,formula!$A$15:$BQ$124,formula!$AN$9,FALSE)) -> 60795.9 | H15: =IF($B15="","",VLOOKUP($B15,formula!$A$15:$BQ$124,formula!$C$9,FALSE)) -> 100000 | K15: =IF($B15="","",VLOOKUP($B15,formula!$A$15:$BQ$124,formula!$E$9,FALSE)) -> 54313.8 | M15: =IF($B15="","",VLOOKUP($B15,formula!$A$15:$BQ$124,formula!$D$9,FALSE)) -> 54313.8
B16: 7 | C16: 46 | D16: =IF(C15=MaxCoverageYear-1,"***以下空白***",IF($B16="","",IF($B16>plan,"",VLOOKUP($B16,formula!$A$15:$BQ$124,formula!$AM$9,FALSE)))) ->  | E16: =IF($B16="","",VLOOKUP($B16,formula!$A$15:$BQ$124,formula!$AN$9,FALSE)) -> 60795.9 | H16: =IF($B16="","",VLOOKUP($B16,formula!$A$15:$BQ$124,formula!$C$9,FALSE)) -> 100000 | K16: =IF($B16="","",VLOOKUP($B16,formula!$A$15:$BQ$124,formula!$E$9,FALSE)) -> 55145.1 | M16: =IF($B16="","",VLOOKUP($B16,formula!$A$15:$BQ$124,formula!$D$9,FALSE)) -> 55145.1
B17: 8 | C17: 47 | D17: =IF(C16=MaxCoverageYear-1,"***以下空白***",IF($B17="","",IF($B17>plan,"",VLOOKUP($B17,formula!$A$15:$BQ$124,formula!$AM$9,FALSE)))) ->  | E17: =IF($B17="","",VLOOKUP($B17,formula!$A$15:$BQ$124,formula!$AN$9,FALSE)) -> 60795.9 | H17: =IF($B17="","",VLOOKUP($B17,formula!$A$15:$BQ$124,formula!$C$9,FALSE)) -> 100000 | K17: =IF($B17="","",VLOOKUP($B17,formula!$A$15:$BQ$124,formula!$E$9,FALSE)) -> 55984.1 | M17: =IF($B17="","",VLOOKUP($B17,formula!$A$15:$BQ$124,formula!$D$9,FALSE)) -> 55984.1
B18: 9 | C18: 48 | D18: =IF(C17=MaxCoverageYear-1,"***以下空白***",IF($B18="","",IF($B18>plan,"",VLOOKUP($B18,formula!$A$15:$BQ$124,formula!$AM$9,FALSE)))) ->  | E18: =IF($B18="","",VLOOKUP($B18,formula!$A$15:$BQ$124,formula!$AN$9,FALSE)) -> 60795.9 | H18: =IF($B18="","",VLOOKUP($B18,formula!$A$15:$BQ$124,formula!$C$9,FALSE)) -> 100000 | K18: =IF($B18="","",VLOOKUP($B18,formula!$A$15:$BQ$124,formula!$E$9,FALSE)) -> 56830.6 | M18: =IF($B18="","",VLOOKUP($B18,formula!$A$15:$BQ$124,formula!$D$9,FALSE)) -> 56830.6
B19: 10 | C19: 49 | D19: =IF(C18=MaxCoverageYear-1,"***以下空白***",IF($B19="","",IF($B19>plan,"",VLOOKUP($B19,formula!$A$15:$BQ$124,formula!$AM$9,FALSE)))) ->  | E19: =IF($B19="","",VLOOKUP($B19,formula!$A$15:$BQ$124,formula!$AN$9,FALSE)) -> 60795.9 | H19: =IF($B19="","",VLOOKUP($B19,formula!$A$15:$BQ$124,formula!$C$9,FALSE)) -> 100000 | K19: =IF($B19="","",VLOOKUP($B19,formula!$A$15:$BQ$124,formula!$E$9,FALSE)) -> 57684.8 | M19: =IF($B19="","",VLOOKUP($B19,formula!$A$15:$BQ$124,formula!$D$9,FALSE)) -> 57684.8
B20: 11 | C20: 50 | D20: =IF(C19=MaxCoverageYear-1,"***以下空白***",IF($B20="","",IF($B20>plan,"",VLOOKUP($B20,formula!$A$15:$BQ$124,formula!$AM$9,FALSE)))) ->  | E20: =IF($B20="","",VLOOKUP($B20,formula!$A$15:$BQ$124,formula!$AN$9,FALSE)) -> 60795.9 | H20: =IF($B20="","",VLOOKUP($B20,formula!$A$15:$BQ$124,formula!$C$9,FALSE)) -> 100000 | K20: =IF($B20="","",VLOOKUP($B20,formula!$A$15:$BQ$124,formula!$E$9,FALSE)) -> 58547.8 | M20: =IF($B20="","",VLOOKUP($B20,formula!$A$15:$BQ$124,formula!$D$9,FALSE)) -> 58547.8
B21: 12 | C21: 51 | D21: =IF(C20=MaxCoverageYear-1,"***以下空白***",IF($B21="","",IF($B21>plan,"",VLOOKUP($B21,formula!$A$15:$BQ$124,formula!$AM$9,FALSE)))) ->  | E21: =IF($B21="","",VLOOKUP($B21,formula!$A$15:$BQ$124,formula!$AN$9,FALSE)) -> 60795.9 | H21: =IF($B21="","",VLOOKUP($B21,formula!$A$15:$BQ$124,formula!$C$9,FALSE)) -> 100000 | K21: =IF($B21="","",VLOOKUP($B21,formula!$A$15:$BQ$124,formula!$E$9,FALSE)) -> 59418.3 | M21: =IF($B21="","",VLOOKUP($B21,formula!$A$15:$BQ$124,formula!$D$9,FALSE)) -> 59418.3
B22: 13 | C22: 52 | D22: =IF(C21=MaxCoverageYear-1,"***以下空白***",IF($B22="","",IF($B22>plan,"",VLOOKUP($B22,formula!$A$15:$BQ$124,formula!$AM$9,FALSE)))) ->  | E22: =IF($B22="","",VLOOKUP($B22,formula!$A$15:$BQ$124,formula!$AN$9,FALSE)) -> 60795.9 | H22: =IF($B22="","",VLOOKUP($B22,formula!$A$15:$BQ$124,formula!$C$9,FALSE)) -> 100000 | K22: =IF($B22="","",VLOOKUP($B22,formula!$A$15:$BQ$124,formula!$E$9,FALSE)) -> 60296.4 | M22: =IF($B22="","",VLOOKUP($B22,formula!$A$15:$BQ$124,formula!$D$9,FALSE)) -> 60296.4
B23: 14 | C23: 53 | D23: =IF(C22=MaxCoverageYear-1,"***以下空白***",IF($B23="","",IF($B23>plan,"",VLOOKUP($B23,formula!$A$15:$BQ$124,formula!$AM$9,FALSE)))) ->  | E23: =IF($B23="","",VLOOKUP($B23,formula!$A$15:$BQ$124,formula!$AN$9,FALSE)) -> 60795.9 | H23: =IF($B23="","",VLOOKUP($B23,formula!$A$15:$BQ$124,formula!$C$9,FALSE)) -> 100000 | K23: =IF($B23="","",VLOOKUP($B23,formula!$A$15:$BQ$124,formula!$E$9,FALSE)) -> 61181.9 | M23: =IF($B23="","",VLOOKUP($B23,formula!$A$15:$BQ$124,formula!$D$9,FALSE)) -> 61181.9
B24: 15 | C24: 54 | D24: =IF(C23=MaxCoverageYear-1,"***以下空白***",IF($B24="","",IF($B24>plan,"",VLOOKUP($B24,formula!$A$15:$BQ$124,formula!$AM$9,FALSE)))) ->  | E24: =IF($B24="","",VLOOKUP($B24,formula!$A$15:$BQ$124,formula!$AN$9,FALSE)) -> 60795.9 | H24: =IF($B24="","",VLOOKUP($B24,formula!$A$15:$BQ$124,formula!$C$9,FALSE)) -> 100000 | K24: =IF($B24="","",VLOOKUP($B24,formula!$A$15:$BQ$124,formula!$E$9,FALSE)) -> 62074.7 | M24: =IF($B24="","",VLOOKUP($B24,formula!$A$15:$BQ$124,formula!$D$9,FALSE)) -> 62074.7
B25: 16 | C25: 55 | D25: =IF(C24=MaxCoverageYear-1,"***以下空白***",IF($B25="","",IF($B25>plan,"",VLOOKUP($B25,formula!$A$15:$BQ$124,formula!$AM$9,FALSE)))) ->  | E25: =IF($B25="","",VLOOKUP($B25,formula!$A$15:$BQ$124,formula!$AN$9,FALSE)) -> 60795.9 | H25: =IF($B25="","",VLOOKUP($B25,formula!$A$15:$BQ$124,formula!$C$9,FALSE)) -> 100000 | K25: =IF($B25="","",VLOOKUP($B25,formula!$A$15:$BQ$124,formula!$E$9,FALSE)) -> 62969.2 | M25: =IF($B25="","",VLOOKUP($B25,formula!$A$15:$BQ$124,formula!$D$9,FALSE)) -> 62969.2
B26: 17 | C26: 56 | D26: =IF(C25=MaxCoverageYear-1,"***以下空白***",IF($B26="","",IF($B26>plan,"",VLOOKUP($B26,formula!$A$15:$BQ$124,formula!$AM$9,FALSE)))) ->  | E26: =IF($B26="","",VLOOKUP($B26,formula!$A$15:$BQ$124,formula!$AN$9,FALSE)) -> 60795.9 | H26: =IF($B26="","",VLOOKUP($B26,formula!$A$15:$BQ$124,formula!$C$9,FALSE)) -> 100000 | K26: =IF($B26="","",VLOOKUP($B26,formula!$A$15:$BQ$124,formula!$E$9,FALSE)) -> 63870.8 | M26: =IF($B26="","",VLOOKUP($B26,formula!$A$15:$BQ$124,formula!$D$9,FALSE)) -> 63870.8
B27: 18 | C27: 57 | D27: =IF(C26=MaxCoverageYear-1,"***以下空白***",IF($B27="","",IF($B27>plan,"",VLOOKUP($B27,formula!$A$15:$BQ$124,formula!$AM$9,FALSE)))) ->  | E27: =IF($B27="","",VLOOKUP($B27,formula!$A$15:$BQ$124,formula!$AN$9,FALSE)) -> 60795.9 | H27: =IF($B27="","",VLOOKUP($B27,formula!$A$15:$BQ$124,formula!$C$9,FALSE)) -> 100000 | K27: =IF($B27="","",VLOOKUP($B27,formula!$A$15:$BQ$124,formula!$E$9,FALSE)) -> 64779.1 | M27: =IF($B27="","",VLOOKUP($B27,formula!$A$15:$BQ$124,formula!$D$9,FALSE)) -> 64779.1
B28: 19 | C28: 58 | D28: =IF(C27=MaxCoverageYear-1,"***以下空白***",IF($B28="","",IF($B28>plan,"",VLOOKUP($B28,formula!$A$15:$BQ$124,formula!$AM$9,FALSE)))) ->  | E28: =IF($B28="","",VLOOKUP($B28,formula!$A$15:$BQ$124,formula!$AN$9,FALSE)) -> 60795.9 | H28: =IF($B28="","",VLOOKUP($B28,formula!$A$15:$BQ$124,formula!$C$9,FALSE)) -> 100000 | K28: =IF($B28="","",VLOOKUP($B28,formula!$A$15:$BQ$124,formula!$E$9,FALSE)) -> 65693.8 | M28: =IF($B28="","",VLOOKUP($B28,formula!$A$15:$BQ$124,formula!$D$9,FALSE)) -> 65693.8
B29: 20 | C29: 59 | D29: =IF(C28=MaxCoverageYear-1,"***以下空白***",IF($B29="","",IF($B29>plan,"",VLOOKUP($B29,formula!$A$15:$BQ$124,formula!$AM$9,FALSE)))) ->  | E29: =IF($B29="","",VLOOKUP($B29,formula!$A$15:$BQ$124,formula!$AN$9,FALSE)) -> 60795.9 | H29: =IF($B29="","",VLOOKUP($B29,formula!$A$15:$BQ$124,formula!$C$9,FALSE)) -> 100000 | K29: =IF($B29="","",VLOOKUP($B29,formula!$A$15:$BQ$124,formula!$E$9,FALSE)) -> 66614.7 | M29: =IF($B29="","",VLOOKUP($B29,formula!$A$15:$BQ$124,formula!$D$9,FALSE)) -> 66614.7
B30: 21 | C30: 60 | D30: =IF(C29=MaxCoverageYear-1,"***以下空白***",IF($B30="","",IF($B30>plan,"",VLOOKUP($B30,formula!$A$15:$BQ$124,formula!$AM$9,FALSE)))) ->  | E30: =IF($B30="","",VLOOKUP($B30,formula!$A$15:$BQ$124,formula!$AN$9,FALSE)) -> 60795.9 | H30: =IF($B30="","",VLOOKUP($B30,formula!$A$15:$BQ$124,formula!$C$9,FALSE)) -> 100000 | K30: =IF($B30="","",VLOOKUP($B30,formula!$A$15:$BQ$124,formula!$E$9,FALSE)) -> 67531.7 | M30: =IF($B30="","",VLOOKUP($B30,formula!$A$15:$BQ$124,formula!$D$9,FALSE)) -> 67531.7
B31: 22 | C31: 61 | D31: =IF(C30=MaxCoverageYear-1,"***以下空白***",IF($B31="","",IF($B31>plan,"",VLOOKUP($B31,formula!$A$15:$BQ$124,formula!$AM$9,FALSE)))) ->  | E31: =IF($B31="","",VLOOKUP($B31,formula!$A$15:$BQ$124,formula!$AN$9,FALSE)) -> 60795.9 | H31: =IF($B31="","",VLOOKUP($B31,formula!$A$15:$BQ$124,formula!$C$9,FALSE)) -> 100000 | K31: =IF($B31="","",VLOOKUP($B31,formula!$A$15:$BQ$124,formula!$E$9,FALSE)) -> 68454 | M31: =IF($B31="","",VLOOKUP($B31,formula!$A$15:$BQ$124,formula!$D$9,FALSE)) -> 68454
B32: 23 | C32: 62 | D32: =IF(C31=MaxCoverageYear-1,"***以下空白***",IF($B32="","",IF($B32>plan,"",VLOOKUP($B32,formula!$A$15:$BQ$124,formula!$AM$9,FALSE)))) ->  | E32: =IF($B32="","",VLOOKUP($B32,formula!$A$15:$BQ$124,formula!$AN$9,FALSE)) -> 60795.9 | H32: =IF($B32="","",VLOOKUP($B32,formula!$A$15:$BQ$124,formula!$C$9,FALSE)) -> 100000 | K32: =IF($B32="","",VLOOKUP($B32,formula!$A$15:$BQ$124,formula!$E$9,FALSE)) -> 69380.9 | M32: =IF($B32="","",VLOOKUP($B32,formula!$A$15:$BQ$124,formula!$D$9,FALSE)) -> 69380.9
B33: 24 | C33: 63 | D33: =IF(C32=MaxCoverageYear-1,"***以下空白***",IF($B33="","",IF($B33>plan,"",VLOOKUP($B33,formula!$A$15:$BQ$124,formula!$AM$9,FALSE)))) ->  | E33: =IF($B33="","",VLOOKUP($B33,formula!$A$15:$BQ$124,formula!$AN$9,FALSE)) -> 60795.9 | H33: =IF($B33="","",VLOOKUP($B33,formula!$A$15:$BQ$124,formula!$C$9,FALSE)) -> 100000 | K33: =IF($B33="","",VLOOKUP($B33,formula!$A$15:$BQ$124,formula!$E$9,FALSE)) -> 70311.3 | M33: =IF($B33="","",VLOOKUP($B33,formula!$A$15:$BQ$124,formula!$D$9,FALSE)) -> 70311.3
B34: 25 | C34: 64 | D34: =IF(C33=MaxCoverageYear-1,"***以下空白***",IF($B34="","",IF($B34>plan,"",VLOOKUP($B34,formula!$A$15:$BQ$124,formula!$AM$9,FALSE)))) ->  | E34: =IF($B34="","",VLOOKUP($B34,formula!$A$15:$BQ$124,formula!$AN$9,FALSE)) -> 60795.9 | H34: =IF($B34="","",VLOOKUP($B34,formula!$A$15:$BQ$124,formula!$C$9,FALSE)) -> 100000 | K34: =IF($B34="","",VLOOKUP($B34,formula!$A$15:$BQ$124,formula!$E$9,FALSE)) -> 71244.3 | M34: =IF($B34="","",VLOOKUP($B34,formula!$A$15:$BQ$124,formula!$D$9,FALSE)) -> 71244.3
B35: 26 | C35: 65 | D35: =IF(C34=MaxCoverageYear-1,"***以下空白***",IF($B35="","",IF($B35>plan,"",VLOOKUP($B35,formula!$A$15:$BQ$124,formula!$AM$9,FALSE)))) ->  | E35: =IF($B35="","",VLOOKUP($B35,formula!$A$15:$BQ$124,formula!$AN$9,FALSE)) -> 60795.9 | H35: =IF($B35="","",VLOOKUP($B35,formula!$A$15:$BQ$124,formula!$C$9,FALSE)) -> 100000 | K35: =IF($B35="","",VLOOKUP($B35,formula!$A$15:$BQ$124,formula!$E$9,FALSE)) -> 72167.8 | M35: =IF($B35="","",VLOOKUP($B35,formula!$A$15:$BQ$124,formula!$D$9,FALSE)) -> 72167.8
B36: 27 | C36: 66 | D36: =IF(C35=MaxCoverageYear-1,"***以下空白***",IF($B36="","",IF($B36>plan,"",VLOOKUP($B36,formula!$A$15:$BQ$124,formula!$AM$9,FALSE)))) ->  | E36: =IF($B36="","",VLOOKUP($B36,formula!$A$15:$BQ$124,formula!$AN$9,FALSE)) -> 60795.9 | H36: =IF($B36="","",VLOOKUP($B36,formula!$A$15:$BQ$124,formula!$C$9,FALSE)) -> 100000 | K36: =IF($B36="","",VLOOKUP($B36,formula!$A$15:$BQ$124,formula!$E$9,FALSE)) -> 73090.9 | M36: =IF($B36="","",VLOOKUP($B36,formula!$A$15:$BQ$124,formula!$D$9,FALSE)) -> 73090.9
B37: 28 | C37: 67 | D37: =IF(C36=MaxCoverageYear-1,"***以下空白***",IF($B37="","",IF($B37>plan,"",VLOOKUP($B37,formula!$A$15:$BQ$124,formula!$AM$9,FALSE)))) ->  | E37: =IF($B37="","",VLOOKUP($B37,formula!$A$15:$BQ$124,formula!$AN$9,FALSE)) -> 60795.9 | H37: =IF($B37="","",VLOOKUP($B37,formula!$A$15:$BQ$124,formula!$C$9,FALSE)) -> 100000 | K37: =IF($B37="","",VLOOKUP($B37,formula!$A$15:$BQ$124,formula!$E$9,FALSE)) -> 74011.5 | M37: =IF($B37="","",VLOOKUP($B37,formula!$A$15:$BQ$124,formula!$D$9,FALSE)) -> 74011.5
B38: 29 | C38: 68 | D38: =IF(C37=MaxCoverageYear-1,"***以下空白***",IF($B38="","",IF($B38>plan,"",VLOOKUP($B38,formula!$A$15:$BQ$124,formula!$AM$9,FALSE)))) ->  | E38: =IF($B38="","",VLOOKUP($B38,formula!$A$15:$BQ$124,formula!$AN$9,FALSE)) -> 60795.9 | H38: =IF($B38="","",VLOOKUP($B38,formula!$A$15:$BQ$124,formula!$C$9,FALSE)) -> 100000 | K38: =IF($B38="","",VLOOKUP($B38,formula!$A$15:$BQ$124,formula!$E$9,FALSE)) -> 74927.6 | M38: =IF($B38="","",VLOOKUP($B38,formula!$A$15:$BQ$124,formula!$D$9,FALSE)) -> 74927.6
B39: 30 | C39: 69 | D39: =IF(C38=MaxCoverageYear-1,"***以下空白***",IF($B39="","",IF($B39>plan,"",VLOOKUP($B39,formula!$A$15:$BQ$124,formula!$AM$9,FALSE)))) ->  | E39: =IF($B39="","",VLOOKUP($B39,formula!$A$15:$BQ$124,formula!$AN$9,FALSE)) -> 60795.9 | H39: =IF($B39="","",VLOOKUP($B39,formula!$A$15:$BQ$124,formula!$C$9,FALSE)) -> 100000 | K39: =IF($B39="","",VLOOKUP($B39,formula!$A$15:$BQ$124,formula!$E$9,FALSE)) -> 75837.4 | M39: =IF($B39="","",VLOOKUP($B39,formula!$A$15:$BQ$124,formula!$D$9,FALSE)) -> 75837.4
B40: 31 | C40: 70 | D40: =IF(C39=MaxCoverageYear-1,"***以下空白***",IF($B40="","",IF($B40>plan,"",VLOOKUP($B40,formula!$A$15:$BQ$124,formula!$AM$9,FALSE)))) ->  | E40: =IF($B40="","",VLOOKUP($B40,formula!$A$15:$BQ$124,formula!$AN$9,FALSE)) -> 60795.9 | H40: =IF($B40="","",VLOOKUP($B40,formula!$A$15:$BQ$124,formula!$C$9,FALSE)) -> 100000 | K40: =IF($B40="","",VLOOKUP($B40,formula!$A$15:$BQ$124,formula!$E$9,FALSE)) -> 76717.6 | M40: =IF($B40="","",VLOOKUP($B40,formula!$A$15:$BQ$124,formula!$D$9,FALSE)) -> 76717.6
B41: 32 | C41: 71 | D41: =IF(C40=MaxCoverageYear-1,"***以下空白***",IF($B41="","",IF($B41>plan,"",VLOOKUP($B41,formula!$A$15:$BQ$124,formula!$AM$9,FALSE)))) ->  | E41: =IF($B41="","",VLOOKUP($B41,formula!$A$15:$BQ$124,formula!$AN$9,FALSE)) -> 60795.9 | H41: =IF($B41="","",VLOOKUP($B41,formula!$A$15:$BQ$124,formula!$C$9,FALSE)) -> 100000 | K41: =IF($B41="","",VLOOKUP($B41,formula!$A$15:$BQ$124,formula!$E$9,FALSE)) -> 77589.2 | M41: =IF($B41="","",VLOOKUP($B41,formula!$A$15:$BQ$124,formula!$D$9,FALSE)) -> 77589.2
B42: 33 | C42: 72 | D42: =IF(C41=MaxCoverageYear-1,"***以下空白***",IF($B42="","",IF($B42>plan,"",VLOOKUP($B42,formula!$A$15:$BQ$124,formula!$AM$9,FALSE)))) ->  | E42: =IF($B42="","",VLOOKUP($B42,formula!$A$15:$BQ$124,formula!$AN$9,FALSE)) -> 60795.9 | H42: =IF($B42="","",VLOOKUP($B42,formula!$A$15:$BQ$124,formula!$C$9,FALSE)) -> 100000 | K42: =IF($B42="","",VLOOKUP($B42,formula!$A$15:$BQ$124,formula!$E$9,FALSE)) -> 78451.3 | M42: =IF($B42="","",VLOOKUP($B42,formula!$A$15:$BQ$124,formula!$D$9,FALSE)) -> 78451.3 | O42: =IF(B42="", "", IFERROR(IF(SA * VLOOKUP(index, RPU_Tab, 4 + B42, FALSE) / 10000 = 0, "", SA * VLOOKUP(index, RPU_Tab, 4 + B42, FALSE) / 10000), "")) -> 
B43: 34 | C43: 73 | D43: =IF(C42=MaxCoverageYear-1,"***以下空白***",IF($B43="","",IF($B43>plan,"",VLOOKUP($B43,formula!$A$15:$BQ$124,formula!$AM$9,FALSE)))) ->  | E43: =IF($B43="","",VLOOKUP($B43,formula!$A$15:$BQ$124,formula!$AN$9,FALSE)) -> 60795.9 | H43: =IF($B43="","",VLOOKUP($B43,formula!$A$15:$BQ$124,formula!$C$9,FALSE)) -> 100000 | K43: =IF($B43="","",VLOOKUP($B43,formula!$A$15:$BQ$124,formula!$E$9,FALSE)) -> 79303 | M43: =IF($B43="","",VLOOKUP($B43,formula!$A$15:$BQ$124,formula!$D$9,FALSE)) -> 79303
B44: 35 | C44: 74 | D44: =IF(C43=MaxCoverageYear-1,"***以下空白***",IF($B44="","",IF($B44>plan,"",VLOOKUP($B44,formula!$A$15:$BQ$124,formula!$AM$9,FALSE)))) ->  | E44: =IF($B44="","",VLOOKUP($B44,formula!$A$15:$BQ$124,formula!$AN$9,FALSE)) -> 60795.9 | H44: =IF($B44="","",VLOOKUP($B44,formula!$A$15:$BQ$124,formula!$C$9,FALSE)) -> 100000 | K44: =IF($B44="","",VLOOKUP($B44,formula!$A$15:$BQ$124,formula!$E$9,FALSE)) -> 80143.1 | M44: =IF($B44="","",VLOOKUP($B44,formula!$A$15:$BQ$124,formula!$D$9,FALSE)) -> 80143.1
B45: 36 | C45: 75 | D45: =IF(C44=MaxCoverageYear-1,"***以下空白***",IF($B45="","",IF($B45>plan,"",VLOOKUP($B45,formula!$A$15:$BQ$124,formula!$AM$9,FALSE)))) ->  | E45: =IF($B45="","",VLOOKUP($B45,formula!$A$15:$BQ$124,formula!$AN$9,FALSE)) -> 60795.9 | H45: =IF($B45="","",VLOOKUP($B45,formula!$A$15:$BQ$124,formula!$C$9,FALSE)) -> 100000 | K45: =IF($B45="","",VLOOKUP($B45,formula!$A$15:$BQ$124,formula!$E$9,FALSE)) -> 80974.9 | M45: =IF($B45="","",VLOOKUP($B45,formula!$A$15:$BQ$124,formula!$D$9,FALSE)) -> 80974.9
B46: 37 | C46: 76 | D46: =IF(C45=MaxCoverageYear-1,"***以下空白***",IF($B46="","",IF($B46>plan,"",VLOOKUP($B46,formula!$A$15:$BQ$124,formula!$AM$9,FALSE)))) ->  | E46: =IF($B46="","",VLOOKUP($B46,formula!$A$15:$BQ$124,formula!$AN$9,FALSE)) -> 60795.9 | H46: =IF($B46="","",VLOOKUP($B46,formula!$A$15:$BQ$124,formula!$C$9,FALSE)) -> 100000 | K46: =IF($B46="","",VLOOKUP($B46,formula!$A$15:$BQ$124,formula!$E$9,FALSE)) -> 81792.9 | M46: =IF($B46="","",VLOOKUP($B46,formula!$A$15:$BQ$124,formula!$D$9,FALSE)) -> 81792.9
B47: 38 | C47: 77 | D47: =IF(C46=MaxCoverageYear-1,"***以下空白***",IF($B47="","",IF($B47>plan,"",VLOOKUP($B47,formula!$A$15:$BQ$124,formula!$AM$9,FALSE)))) ->  | E47: =IF($B47="","",VLOOKUP($B47,formula!$A$15:$BQ$124,formula!$AN$9,FALSE)) -> 60795.9 | H47: =IF($B47="","",VLOOKUP($B47,formula!$A$15:$BQ$124,formula!$C$9,FALSE)) -> 100000 | K47: =IF($B47="","",VLOOKUP($B47,formula!$A$15:$BQ$124,formula!$E$9,FALSE)) -> 82595.8 | M47: =IF($B47="","",VLOOKUP($B47,formula!$A$15:$BQ$124,formula!$D$9,FALSE)) -> 82595.8
B48: 39 | C48: 78 | D48: =IF(C47=MaxCoverageYear-1,"***以下空白***",IF($B48="","",IF($B48>plan,"",VLOOKUP($B48,formula!$A$15:$BQ$124,formula!$AM$9,FALSE)))) ->  | E48: =IF($B48="","",VLOOKUP($B48,formula!$A$15:$BQ$124,formula!$AN$9,FALSE)) -> 60795.9 | H48: =IF($B48="","",VLOOKUP($B48,formula!$A$15:$BQ$124,formula!$C$9,FALSE)) -> 100000 | K48: =IF($B48="","",VLOOKUP($B48,formula!$A$15:$BQ$124,formula!$E$9,FALSE)) -> 83382.1 | M48: =IF($B48="","",VLOOKUP($B48,formula!$A$15:$BQ$124,formula!$D$9,FALSE)) -> 83382.1
B49: 40 | C49: 79 | D49: =IF(C48=MaxCoverageYear-1,"***以下空白***",IF($B49="","",IF($B49>plan,"",VLOOKUP($B49,formula!$A$15:$BQ$124,formula!$AM$9,FALSE)))) ->  | E49: =IF($B49="","",VLOOKUP($B49,formula!$A$15:$BQ$124,formula!$AN$9,FALSE)) -> 60795.9 | H49: =IF($B49="","",VLOOKUP($B49,formula!$A$15:$BQ$124,formula!$C$9,FALSE)) -> 100000 | K49: =IF($B49="","",VLOOKUP($B49,formula!$A$15:$BQ$124,formula!$E$9,FALSE)) -> 84151 | M49: =IF($B49="","",VLOOKUP($B49,formula!$A$15:$BQ$124,formula!$D$9,FALSE)) -> 84151
B50: 41 | C50: 80 | D50: =IF(C49=MaxCoverageYear-1,"***以下空白***",IF($B50="","",IF($B50>plan,"",VLOOKUP($B50,formula!$A$15:$BQ$124,formula!$AM$9,FALSE)))) ->  | E50: =IF($B50="","",VLOOKUP($B50,formula!$A$15:$BQ$124,formula!$AN$9,FALSE)) -> 60795.9 | H50: =IF($B50="","",VLOOKUP($B50,formula!$A$15:$BQ$124,formula!$C$9,FALSE)) -> 100000 | K50: =IF($B50="","",VLOOKUP($B50,formula!$A$15:$BQ$124,formula!$E$9,FALSE)) -> 84902.2 | M50: =IF($B50="","",VLOOKUP($B50,formula!$A$15:$BQ$124,formula!$D$9,FALSE)) -> 84902.2
B51: 42 | C51: 81 | D51: =IF(C50=MaxCoverageYear-1,"***以下空白***",IF($B51="","",IF($B51>plan,"",VLOOKUP($B51,formula!$A$15:$BQ$124,formula!$AM$9,FALSE)))) ->  | E51: =IF($B51="","",VLOOKUP($B51,formula!$A$15:$BQ$124,formula!$AN$9,FALSE)) -> 60795.9 | H51: =IF($B51="","",VLOOKUP($B51,formula!$A$15:$BQ$124,formula!$C$9,FALSE)) -> 100000 | K51: =IF($B51="","",VLOOKUP($B51,formula!$A$15:$BQ$124,formula!$E$9,FALSE)) -> 85635.7 | M51: =IF($B51="","",VLOOKUP($B51,formula!$A$15:$BQ$124,formula!$D$9,FALSE)) -> 85635.7
B52: 43 | C52: 82 | D52: =IF(C51=MaxCoverageYear-1,"***以下空白***",IF($B52="","",IF($B52>plan,"",VLOOKUP($B52,formula!$A$15:$BQ$124,formula!$AM$9,FALSE)))) ->  | E52: =IF($B52="","",VLOOKUP($B52,formula!$A$15:$BQ$124,formula!$AN$9,FALSE)) -> 60795.9 | H52: =IF($B52="","",VLOOKUP($B52,formula!$A$15:$BQ$124,formula!$C$9,FALSE)) -> 100000 | K52: =IF($B52="","",VLOOKUP($B52,formula!$A$15:$BQ$124,formula!$E$9,FALSE)) -> 86351.4 | M52: =IF($B52="","",VLOOKUP($B52,formula!$A$15:$BQ$124,formula!$D$9,FALSE)) -> 86351.4
B53: 44 | C53: 83 | D53: =IF(C52=MaxCoverageYear-1,"***以下空白***",IF($B53="","",IF($B53>plan,"",VLOOKUP($B53,formula!$A$15:$BQ$124,formula!$AM$9,FALSE)))) ->  | E53: =IF($B53="","",VLOOKUP($B53,formula!$A$15:$BQ$124,formula!$AN$9,FALSE)) -> 60795.9 | H53: =IF($B53="","",VLOOKUP($B53,formula!$A$15:$BQ$124,formula!$C$9,FALSE)) -> 100000 | K53: =IF($B53="","",VLOOKUP($B53,formula!$A$15:$BQ$124,formula!$E$9,FALSE)) -> 87049.2 | M53: =IF($B53="","",VLOOKUP($B53,formula!$A$15:$BQ$124,formula!$D$9,FALSE)) -> 87049.2
B54: 45 | C54: 84 | D54: =IF(C53=MaxCoverageYear-1,"***以下空白***",IF($B54="","",IF($B54>plan,"",VLOOKUP($B54,formula!$A$15:$BQ$124,formula!$AM$9,FALSE)))) ->  | E54: =IF($B54="","",VLOOKUP($B54,formula!$A$15:$BQ$124,formula!$AN$9,FALSE)) -> 60795.9 | H54: =IF($B54="","",VLOOKUP($B54,formula!$A$15:$BQ$124,formula!$C$9,FALSE)) -> 100000 | K54: =IF($B54="","",VLOOKUP($B54,formula!$A$15:$BQ$124,formula!$E$9,FALSE)) -> 87728.3 | M54: =IF($B54="","",VLOOKUP($B54,formula!$A$15:$BQ$124,formula!$D$9,FALSE)) -> 87728.3
B55: 46 | C55: 85 | D55: =IF(C54=MaxCoverageYear-1,"***以下空白***",IF($B55="","",IF($B55>plan,"",VLOOKUP($B55,formula!$A$15:$BQ$124,formula!$AM$9,FALSE)))) ->  | E55: =IF($B55="","",VLOOKUP($B55,formula!$A$15:$BQ$124,formula!$AN$9,FALSE)) -> 60795.9 | H55: =IF($B55="","",VLOOKUP($B55,formula!$A$15:$BQ$124,formula!$C$9,FALSE)) -> 100000 | K55: =IF($B55="","",VLOOKUP($B55,formula!$A$15:$BQ$124,formula!$E$9,FALSE)) -> 88387.8 | M55: =IF($B55="","",VLOOKUP($B55,formula!$A$15:$BQ$124,formula!$D$9,FALSE)) -> 88387.8
B56: 47 | C56: 86 | D56: =IF(C55=MaxCoverageYear-1,"***以下空白***",IF($B56="","",IF($B56>plan,"",VLOOKUP($B56,formula!$A$15:$BQ$124,formula!$AM$9,FALSE)))) ->  | E56: =IF($B56="","",VLOOKUP($B56,formula!$A$15:$BQ$124,formula!$AN$9,FALSE)) -> 60795.9 | H56: =IF($B56="","",VLOOKUP($B56,formula!$A$15:$BQ$124,formula!$C$9,FALSE)) -> 100000 | K56: =IF($B56="","",VLOOKUP($B56,formula!$A$15:$BQ$124,formula!$E$9,FALSE)) -> 89026.3 | M56: =IF($B56="","",VLOOKUP($B56,formula!$A$15:$BQ$124,formula!$D$9,FALSE)) -> 89026.3
B57: 48 | C57: 87 | D57: =IF(C56=MaxCoverageYear-1,"***以下空白***",IF($B57="","",IF($B57>plan,"",VLOOKUP($B57,formula!$A$15:$BQ$124,formula!$AM$9,FALSE)))) ->  | E57: =IF($B57="","",VLOOKUP($B57,formula!$A$15:$BQ$124,formula!$AN$9,FALSE)) -> 60795.9 | H57: =IF($B57="","",VLOOKUP($B57,formula!$A$15:$BQ$124,formula!$C$9,FALSE)) -> 100000 | K57: =IF($B57="","",VLOOKUP($B57,formula!$A$15:$BQ$124,formula!$E$9,FALSE)) -> 89642.6 | M57: =IF($B57="","",VLOOKUP($B57,formula!$A$15:$BQ$124,formula!$D$9,FALSE)) -> 89642.6
B58: 49 | C58: 88 | D58: =IF(C57=MaxCoverageYear-1,"***以下空白***",IF($B58="","",IF($B58>plan,"",VLOOKUP($B58,formula!$A$15:$BQ$124,formula!$AM$9,FALSE)))) ->  | E58: =IF($B58="","",VLOOKUP($B58,formula!$A$15:$BQ$124,formula!$AN$9,FALSE)) -> 60795.9 | H58: =IF($B58="","",VLOOKUP($B58,formula!$A$15:$BQ$124,formula!$C$9,FALSE)) -> 100000 | K58: =IF($B58="","",VLOOKUP($B58,formula!$A$15:$BQ$124,formula!$E$9,FALSE)) -> 90238.5 | M58: =IF($B58="","",VLOOKUP($B58,formula!$A$15:$BQ$124,formula!$D$9,FALSE)) -> 90238.5
B59: 50 | C59: 89 | D59: =IF(C58=MaxCoverageYear-1,"***以下空白***",IF($B59="","",IF($B59>plan,"",VLOOKUP($B59,formula!$A$15:$BQ$124,formula!$AM$9,FALSE)))) ->  | E59: =IF($B59="","",VLOOKUP($B59,formula!$A$15:$BQ$124,formula!$AN$9,FALSE)) -> 60795.9 | H59: =IF($B59="","",VLOOKUP($B59,formula!$A$15:$BQ$124,formula!$C$9,FALSE)) -> 100000 | K59: =IF($B59="","",VLOOKUP($B59,formula!$A$15:$BQ$124,formula!$E$9,FALSE)) -> 90816.7 | M59: =IF($B59="","",VLOOKUP($B59,formula!$A$15:$BQ$124,formula!$D$9,FALSE)) -> 90816.7
B60: 51 | C60: 90 | D60: =IF(C59=MaxCoverageYear-1,"***以下空白***",IF($B60="","",IF($B60>plan,"",VLOOKUP($B60,formula!$A$15:$BQ$124,formula!$AM$9,FALSE)))) ->  | E60: =IF($B60="","",VLOOKUP($B60,formula!$A$15:$BQ$124,formula!$AN$9,FALSE)) -> 60795.9 | H60: =IF($B60="","",VLOOKUP($B60,formula!$A$15:$BQ$124,formula!$C$9,FALSE)) -> 100000 | K60: =IF($B60="","",VLOOKUP($B60,formula!$A$15:$BQ$124,formula!$E$9,FALSE)) -> 91372.4 | M60: =IF($B60="","",VLOOKUP($B60,formula!$A$15:$BQ$124,formula!$D$9,FALSE)) -> 91372.4
B61: 52 | C61: 91 | D61: =IF(C60=MaxCoverageYear-1,"***以下空白***",IF($B61="","",IF($B61>plan,"",VLOOKUP($B61,formula!$A$15:$BQ$124,formula!$AM$9,FALSE)))) ->  | E61: =IF($B61="","",VLOOKUP($B61,formula!$A$15:$BQ$124,formula!$AN$9,FALSE)) -> 60795.9 | H61: =IF($B61="","",VLOOKUP($B61,formula!$A$15:$BQ$124,formula!$C$9,FALSE)) -> 100000 | K61: =IF($B61="","",VLOOKUP($B61,formula!$A$15:$BQ$124,formula!$E$9,FALSE)) -> 91899 | M61: =IF($B61="","",VLOOKUP($B61,formula!$A$15:$BQ$124,formula!$D$9,FALSE)) -> 91899
B62: 53 | C62: 92 | D62: =IF(C61=MaxCoverageYear-1,"***以下空白***",IF($B62="","",IF($B62>plan,"",VLOOKUP($B62,formula!$A$15:$BQ$124,formula!$AM$9,FALSE)))) ->  | E62: =IF($B62="","",VLOOKUP($B62,formula!$A$15:$BQ$124,formula!$AN$9,FALSE)) -> 60795.9 | H62: =IF($B62="","",VLOOKUP($B62,formula!$A$15:$BQ$124,formula!$C$9,FALSE)) -> 100000 | K62: =IF($B62="","",VLOOKUP($B62,formula!$A$15:$BQ$124,formula!$E$9,FALSE)) -> 92405.5 | M62: =IF($B62="","",VLOOKUP($B62,formula!$A$15:$BQ$124,formula!$D$9,FALSE)) -> 92405.5
B63: 54 | C63: 93 | D63: =IF(C62=MaxCoverageYear-1,"***以下空白***",IF($B63="","",IF($B63>plan,"",VLOOKUP($B63,formula!$A$15:$BQ$124,formula!$AM$9,FALSE)))) ->  | E63: =IF($B63="","",VLOOKUP($B63,formula!$A$15:$BQ$124,formula!$AN$9,FALSE)) -> 60795.9 | H63: =IF($B63="","",VLOOKUP($B63,formula!$A$15:$BQ$124,formula!$C$9,FALSE)) -> 100000 | K63: =IF($B63="","",VLOOKUP($B63,formula!$A$15:$BQ$124,formula!$E$9,FALSE)) -> 92891.8 | M63: =IF($B63="","",VLOOKUP($B63,formula!$A$15:$BQ$124,formula!$D$9,FALSE)) -> 92891.8
B64: 55 | C64: 94 | D64: =IF(C63=MaxCoverageYear-1,"***以下空白***",IF($B64="","",IF($B64>plan,"",VLOOKUP($B64,formula!$A$15:$BQ$124,formula!$AM$9,FALSE)))) ->  | E64: =IF($B64="","",VLOOKUP($B64,formula!$A$15:$BQ$124,formula!$AN$9,FALSE)) -> 60795.9 | H64: =IF($B64="","",VLOOKUP($B64,formula!$A$15:$BQ$124,formula!$C$9,FALSE)) -> 100000 | K64: =IF($B64="","",VLOOKUP($B64,formula!$A$15:$BQ$124,formula!$E$9,FALSE)) -> 93357.9 | M64: =IF($B64="","",VLOOKUP($B64,formula!$A$15:$BQ$124,formula!$D$9,FALSE)) -> 93357.9
B65: 56 | C65: 95 | D65: =IF(C64=MaxCoverageYear-1,"***以下空白***",IF($B65="","",IF($B65>plan,"",VLOOKUP($B65,formula!$A$15:$BQ$124,formula!$AM$9,FALSE)))) ->  | E65: =IF($B65="","",VLOOKUP($B65,formula!$A$15:$BQ$124,formula!$AN$9,FALSE)) -> 60795.9 | H65: =IF($B65="","",VLOOKUP($B65,formula!$A$15:$BQ$124,formula!$C$9,FALSE)) -> 100000 | K65: =IF($B65="","",VLOOKUP($B65,formula!$A$15:$BQ$124,formula!$E$9,FALSE)) -> 93803.6 | M65: =IF($B65="","",VLOOKUP($B65,formula!$A$15:$BQ$124,formula!$D$9,FALSE)) -> 93803.6
B66: 57 | C66: 96 | D66: =IF(C65=MaxCoverageYear-1,"***以下空白***",IF($B66="","",IF($B66>plan,"",VLOOKUP($B66,formula!$A$15:$BQ$124,formula!$AM$9,FALSE)))) ->  | E66: =IF($B66="","",VLOOKUP($B66,formula!$A$15:$BQ$124,formula!$AN$9,FALSE)) -> 60795.9 | H66: =IF($B66="","",VLOOKUP($B66,formula!$A$15:$BQ$124,formula!$C$9,FALSE)) -> 100000 | K66: =IF($B66="","",VLOOKUP($B66,formula!$A$15:$BQ$124,formula!$E$9,FALSE)) -> 94229.2 | M66: =IF($B66="","",VLOOKUP($B66,formula!$A$15:$BQ$124,formula!$D$9,FALSE)) -> 94229.2
B67: 58 | C67: 97 | D67: =IF(C66=MaxCoverageYear-1,"***以下空白***",IF($B67="","",IF($B67>plan,"",VLOOKUP($B67,formula!$A$15:$BQ$124,formula!$AM$9,FALSE)))) ->  | E67: =IF($B67="","",VLOOKUP($B67,formula!$A$15:$BQ$124,formula!$AN$9,FALSE)) -> 60795.9 | H67: =IF($B67="","",VLOOKUP($B67,formula!$A$15:$BQ$124,formula!$C$9,FALSE)) -> 100000 | K67: =IF($B67="","",VLOOKUP($B67,formula!$A$15:$BQ$124,formula!$E$9,FALSE)) -> 94634.4 | M67: =IF($B67="","",VLOOKUP($B67,formula!$A$15:$BQ$124,formula!$D$9,FALSE)) -> 94634.4
B68: 59 | C68: 98 | D68: =IF(C67=MaxCoverageYear-1,"***以下空白***",IF($B68="","",IF($B68>plan,"",VLOOKUP($B68,formula!$A$15:$BQ$124,formula!$AM$9,FALSE)))) ->  | E68: =IF($B68="","",VLOOKUP($B68,formula!$A$15:$BQ$124,formula!$AN$9,FALSE)) -> 60795.9 | H68: =IF($B68="","",VLOOKUP($B68,formula!$A$15:$BQ$124,formula!$C$9,FALSE)) -> 100000 | K68: =IF($B68="","",VLOOKUP($B68,formula!$A$15:$BQ$124,formula!$E$9,FALSE)) -> 95019.1 | M68: =IF($B68="","",VLOOKUP($B68,formula!$A$15:$BQ$124,formula!$D$9,FALSE)) -> 95019.1
B69: 60 | C69: 99 | D69: =IF(C68=MaxCoverageYear-1,"***以下空白***",IF($B69="","",IF($B69>plan,"",VLOOKUP($B69,formula!$A$15:$BQ$124,formula!$AM$9,FALSE)))) ->  | E69: =IF($B69="","",VLOOKUP($B69,formula!$A$15:$BQ$124,formula!$AN$9,FALSE)) -> 60795.9 | H69: =IF($B69="","",VLOOKUP($B69,formula!$A$15:$BQ$124,formula!$C$9,FALSE)) -> 100000 | K69: =IF($B69="","",VLOOKUP($B69,formula!$A$15:$BQ$124,formula!$E$9,FALSE)) -> 95383.1 | M69: =IF($B69="","",VLOOKUP($B69,formula!$A$15:$BQ$124,formula!$D$9,FALSE)) -> 95383.1
B70: 61 | C70: 100 | D70: =IF(C69=MaxCoverageYear-1,"***以下空白***",IF($B70="","",IF($B70>plan,"",VLOOKUP($B70,formula!$A$15:$BQ$124,formula!$AM$9,FALSE)))) ->  | E70: =IF($B70="","",VLOOKUP($B70,formula!$A$15:$BQ$124,formula!$AN$9,FALSE)) -> 60795.9 | H70: =IF($B70="","",VLOOKUP($B70,formula!$A$15:$BQ$124,formula!$C$9,FALSE)) -> 100000 | K70: =IF($B70="","",VLOOKUP($B70,formula!$A$15:$BQ$124,formula!$E$9,FALSE)) -> 95725.4 | M70: =IF($B70="","",VLOOKUP($B70,formula!$A$15:$BQ$124,formula!$D$9,FALSE)) -> 95725.4
B71: 62 | C71: 101 | D71: =IF(C70=MaxCoverageYear-1,"***以下空白***",IF($B71="","",IF($B71>plan,"",VLOOKUP($B71,formula!$A$15:$BQ$124,formula!$AM$9,FALSE)))) ->  | E71: =IF($B71="","",VLOOKUP($B71,formula!$A$15:$BQ$124,formula!$AN$9,FALSE)) -> 60795.9 | H71: =IF($B71="","",VLOOKUP($B71,formula!$A$15:$BQ$124,formula!$C$9,FALSE)) -> 100000 | K71: =IF($B71="","",VLOOKUP($B71,formula!$A$15:$BQ$124,formula!$E$9,FALSE)) -> 96049.2 | M71: =IF($B71="","",VLOOKUP($B71,formula!$A$15:$BQ$124,formula!$D$9,FALSE)) -> 96049.2
B72: 63 | C72: 102 | D72: =IF(C71=MaxCoverageYear-1,"***以下空白***",IF($B72="","",IF($B72>plan,"",VLOOKUP($B72,formula!$A$15:$BQ$124,formula!$AM$9,FALSE)))) ->  | E72: =IF($B72="","",VLOOKUP($B72,formula!$A$15:$BQ$124,formula!$AN$9,FALSE)) -> 60795.9 | H72: =IF($B72="","",VLOOKUP($B72,formula!$A$15:$BQ$124,formula!$C$9,FALSE)) -> 100000 | K72: =IF($B72="","",VLOOKUP($B72,formula!$A$15:$BQ$124,formula!$E$9,FALSE)) -> 96362.1 | M72: =IF($B72="","",VLOOKUP($B72,formula!$A$15:$BQ$124,formula!$D$9,FALSE)) -> 96362.1
B73: 64 | C73: 103 | D73: =IF(C72=MaxCoverageYear-1,"***以下空白***",IF($B73="","",IF($B73>plan,"",VLOOKUP($B73,formula!$A$15:$BQ$124,formula!$AM$9,FALSE)))) ->  | E73: =IF($B73="","",VLOOKUP($B73,formula!$A$15:$BQ$124,formula!$AN$9,FALSE)) -> 60795.9 | H73: =IF($B73="","",VLOOKUP($B73,formula!$A$15:$BQ$124,formula!$C$9,FALSE)) -> 100000 | K73: =IF($B73="","",VLOOKUP($B73,formula!$A$15:$BQ$124,formula!$E$9,FALSE)) -> 96671 | M73: =IF($B73="","",VLOOKUP($B73,formula!$A$15:$BQ$124,formula!$D$9,FALSE)) -> 96671
B74: 65 | C74: =IF(B74="","",age+B74-1) -> 104 | D74: =IF(C73=MaxCoverageYear-1,"***以下空白***",IF($B74="","",IF($B74>plan,"",VLOOKUP($B74,formula!$A$15:$BQ$124,formula!$AM$9,FALSE)))) ->  | E74: =IF($B74="","",VLOOKUP($B74,formula!$A$15:$BQ$124,formula!$AN$9,FALSE)) -> 60795.9 | H74: =IF($B74="","",VLOOKUP($B74,formula!$A$15:$BQ$124,formula!$C$9,FALSE)) -> 100000 | K74: =IF($B74="","",VLOOKUP($B74,formula!$A$15:$BQ$124,formula!$E$9,FALSE)) -> 96988.5 | M74: =IF($B74="","",VLOOKUP($B74,formula!$A$15:$BQ$124,formula!$D$9,FALSE)) -> 96988.5 | O74: =IF(B74="", "", IFERROR(IF(SA * VLOOKUP(index, RPU_Tab, 4 + B74, FALSE) / 10000 = 0, "", SA * VLOOKUP(index, RPU_Tab, 4 + B74, FALSE) / 10000), "")) -> 
B75: =IF(B74>=109-age+1,"",B74+1) -> 66 | C75: 105 | D75: =IF(C74=MaxCoverageYear-1,"***以下空白***",IF($B75="","",IF($B75>plan,"",VLOOKUP($B75,formula!$A$15:$BQ$124,formula!$AM$9,FALSE)))) ->  | E75: =IF($B75="","",VLOOKUP($B75,formula!$A$15:$BQ$124,formula!$AN$9,FALSE)) -> 60795.9 | H75: =IF($B75="","",VLOOKUP($B75,formula!$A$15:$BQ$124,formula!$C$9,FALSE)) -> 100000 | K75: =IF($B75="","",VLOOKUP($B75,formula!$A$15:$BQ$124,formula!$E$9,FALSE)) -> 97338.6 | M75: =IF($B75="","",VLOOKUP($B75,formula!$A$15:$BQ$124,formula!$D$9,FALSE)) -> 97338.6
B76: 67 | C76: 106 | D76: =IF(C75=MaxCoverageYear-1,"***以下空白***",IF($B76="","",IF($B76>plan,"",VLOOKUP($B76,formula!$A$15:$BQ$124,formula!$AM$9,FALSE)))) ->  | E76: =IF($B76="","",VLOOKUP($B76,formula!$A$15:$BQ$124,formula!$AN$9,FALSE)) -> 60795.9 | H76: =IF($B76="","",VLOOKUP($B76,formula!$A$15:$BQ$124,formula!$C$9,FALSE)) -> 100000 | K76: =IF($B76="","",VLOOKUP($B76,formula!$A$15:$BQ$124,formula!$E$9,FALSE)) -> 97700.8 | M76: =IF($B76="","",VLOOKUP($B76,formula!$A$15:$BQ$124,formula!$D$9,FALSE)) -> 97700.8
B77: 68 | C77: 107 | D77: =IF(C76=MaxCoverageYear-1,"***以下空白***",IF($B77="","",IF($B77>plan,"",VLOOKUP($B77,formula!$A$15:$BQ$124,formula!$AM$9,FALSE)))) ->  | E77: =IF($B77="","",VLOOKUP($B77,formula!$A$15:$BQ$124,formula!$AN$9,FALSE)) -> 60795.9 | H77: =IF($B77="","",VLOOKUP($B77,formula!$A$15:$BQ$124,formula!$C$9,FALSE)) -> 100000 | K77: =IF($B77="","",VLOOKUP($B77,formula!$A$15:$BQ$124,formula!$E$9,FALSE)) -> 98124.1 | M77: =IF($B77="","",VLOOKUP($B77,formula!$A$15:$BQ$124,formula!$D$9,FALSE)) -> 98124.1
B78: 69 | C78: 108 | D78: =IF(C77=MaxCoverageYear-1,"***以下空白***",IF($B78="","",IF($B78>plan,"",VLOOKUP($B78,formula!$A$15:$BQ$124,formula!$AM$9,FALSE)))) ->  | E78: =IF($B78="","",VLOOKUP($B78,formula!$A$15:$BQ$124,formula!$AN$9,FALSE)) -> 60795.9 | H78: =IF($B78="","",VLOOKUP($B78,formula!$A$15:$BQ$124,formula!$C$9,FALSE)) -> 100000 | K78: =IF($B78="","",VLOOKUP($B78,formula!$A$15:$BQ$124,formula!$E$9,FALSE)) -> 98758.4 | M78: =IF($B78="","",VLOOKUP($B78,formula!$A$15:$BQ$124,formula!$D$9,FALSE)) -> 98758.4
B79: 70 | C79: 109 | D79: =IF(C78=MaxCoverageYear-1,"***以下空白***",IF($B79="","",IF($B79>plan,"",VLOOKUP($B79,formula!$A$15:$BQ$124,formula!$AM$9,FALSE)))) ->  | E79: =IF($B79="","",VLOOKUP($B79,formula!$A$15:$BQ$124,formula!$AN$9,FALSE)) -> 60795.9 | H79: =IF($B79="","",VLOOKUP($B79,formula!$A$15:$BQ$124,formula!$C$9,FALSE)) -> 100000 | K79: =IF($B79="","",VLOOKUP($B79,formula!$A$15:$BQ$124,formula!$E$9,FALSE)) -> 100000 | M79: =IF($B79="","",VLOOKUP($B79,formula!$A$15:$BQ$124,formula!$D$9,FALSE)) -> 100000
D80: =IF(C79=MaxCoverageYear-1,"***以下空白***",IF($B80="","",IF($B80>plan,"",VLOOKUP($B80,formula!$A$15:$BQ$124,formula!$AM$9,FALSE)))) -> ***以下空白*** | E80: =IF($B80="","",VLOOKUP($B80,formula!$A$15:$BQ$124,formula!$AN$9,FALSE)) ->  | H80: =IF($B80="","",VLOOKUP($B80,formula!$A$15:$BQ$124,formula!$C$9,FALSE)) ->  | K80: =IF($B80="","",VLOOKUP($B80,formula!$A$15:$BQ$124,formula!$E$9,FALSE)) ->  | M80: =IF($B80="","",VLOOKUP($B80,formula!$A$15:$BQ$124,formula!$D$9,FALSE)) -> 
D81: =IF(C80=MaxCoverageYear-1,"***以下空白***",IF($B81="","",IF($B81>plan,"",VLOOKUP($B81,formula!$A$15:$BQ$124,formula!$AM$9,FALSE)))) ->  | E81: =IF($B81="","",VLOOKUP($B81,formula!$A$15:$BQ$124,formula!$AN$9,FALSE)) ->  | H81: =IF($B81="","",VLOOKUP($B81,formula!$A$15:$BQ$124,formula!$C$9,FALSE)) ->  | K81: =IF($B81="","",VLOOKUP($B81,formula!$A$15:$BQ$124,formula!$E$9,FALSE)) ->  | M81: =IF($B81="","",VLOOKUP($B81,formula!$A$15:$BQ$124,formula!$D$9,FALSE)) -> 
D82: =IF(C81=MaxCoverageYear-1,"***以下空白***",IF($B82="","",IF($B82>plan,"",VLOOKUP($B82,formula!$A$15:$BQ$124,formula!$AM$9,FALSE)))) ->  | E82: =IF($B82="","",VLOOKUP($B82,formula!$A$15:$BQ$124,formula!$AN$9,FALSE)) ->  | H82: =IF($B82="","",VLOOKUP($B82,formula!$A$15:$BQ$124,formula!$C$9,FALSE)) ->  | K82: =IF($B82="","",VLOOKUP($B82,formula!$A$15:$BQ$124,formula!$E$9,FALSE)) ->  | M82: =IF($B82="","",VLOOKUP($B82,formula!$A$15:$BQ$124,formula!$D$9,FALSE)) -> 
D83: =IF(C82=MaxCoverageYear-1,"***以下空白***",IF($B83="","",IF($B83>plan,"",VLOOKUP($B83,formula!$A$15:$BQ$124,formula!$AM$9,FALSE)))) ->  | E83: =IF($B83="","",VLOOKUP($B83,formula!$A$15:$BQ$124,formula!$AN$9,FALSE)) ->  | H83: =IF($B83="","",VLOOKUP($B83,formula!$A$15:$BQ$124,formula!$C$9,FALSE)) ->  | K83: =IF($B83="","",VLOOKUP($B83,formula!$A$15:$BQ$124,formula!$E$9,FALSE)) ->  | M83: =IF($B83="","",VLOOKUP($B83,formula!$A$15:$BQ$124,formula!$D$9,FALSE)) -> 
D84: =IF(C83=MaxCoverageYear-1,"***以下空白***",IF($B84="","",IF($B84>plan,"",VLOOKUP($B84,formula!$A$15:$BQ$124,formula!$AM$9,FALSE)))) ->  | E84: =IF($B84="","",VLOOKUP($B84,formula!$A$15:$BQ$124,formula!$AN$9,FALSE)) ->  | H84: =IF($B84="","",VLOOKUP($B84,formula!$A$15:$BQ$124,formula!$C$9,FALSE)) ->  | K84: =IF($B84="","",VLOOKUP($B84,formula!$A$15:$BQ$124,formula!$E$9,FALSE)) ->  | M84: =IF($B84="","",VLOOKUP($B84,formula!$A$15:$BQ$124,formula!$D$9,FALSE)) -> 
D85: =IF(C84=MaxCoverageYear-1,"***以下空白***",IF($B85="","",IF($B85>plan,"",VLOOKUP($B85,formula!$A$15:$BQ$124,formula!$AM$9,FALSE)))) ->  | E85: =IF($B85="","",VLOOKUP($B85,formula!$A$15:$BQ$124,formula!$AN$9,FALSE)) ->  | H85: =IF($B85="","",VLOOKUP($B85,formula!$A$15:$BQ$124,formula!$C$9,FALSE)) ->  | K85: =IF($B85="","",VLOOKUP($B85,formula!$A$15:$BQ$124,formula!$E$9,FALSE)) ->  | M85: =IF($B85="","",VLOOKUP($B85,formula!$A$15:$BQ$124,formula!$D$9,FALSE)) -> 
D86: =IF(C85=MaxCoverageYear-1,"***以下空白***",IF($B86="","",IF($B86>plan,"",VLOOKUP($B86,formula!$A$15:$BQ$124,formula!$AM$9,FALSE)))) ->  | E86: =IF($B86="","",VLOOKUP($B86,formula!$A$15:$BQ$124,formula!$AN$9,FALSE)) ->  | H86: =IF($B86="","",VLOOKUP($B86,formula!$A$15:$BQ$124,formula!$C$9,FALSE)) ->  | K86: =IF($B86="","",VLOOKUP($B86,formula!$A$15:$BQ$124,formula!$E$9,FALSE)) ->  | M86: =IF($B86="","",VLOOKUP($B86,formula!$A$15:$BQ$124,formula!$D$9,FALSE)) -> 
D87: =IF(C86=MaxCoverageYear-1,"***以下空白***",IF($B87="","",IF($B87>plan,"",VLOOKUP($B87,formula!$A$15:$BQ$124,formula!$AM$9,FALSE)))) ->  | E87: =IF($B87="","",VLOOKUP($B87,formula!$A$15:$BQ$124,formula!$AN$9,FALSE)) ->  | H87: =IF($B87="","",VLOOKUP($B87,formula!$A$15:$BQ$124,formula!$C$9,FALSE)) ->  | K87: =IF($B87="","",VLOOKUP($B87,formula!$A$15:$BQ$124,formula!$E$9,FALSE)) ->  | M87: =IF($B87="","",VLOOKUP($B87,formula!$A$15:$BQ$124,formula!$D$9,FALSE)) -> 
D88: =IF(C87=MaxCoverageYear-1,"***以下空白***",IF($B88="","",IF($B88>plan,"",VLOOKUP($B88,formula!$A$15:$BQ$124,formula!$AM$9,FALSE)))) ->  | E88: =IF($B88="","",VLOOKUP($B88,formula!$A$15:$BQ$124,formula!$AN$9,FALSE)) ->  | H88: =IF($B88="","",VLOOKUP($B88,formula!$A$15:$BQ$124,formula!$C$9,FALSE)) ->  | K88: =IF($B88="","",VLOOKUP($B88,formula!$A$15:$BQ$124,formula!$E$9,FALSE)) ->  | M88: =IF($B88="","",VLOOKUP($B88,formula!$A$15:$BQ$124,formula!$D$9,FALSE)) -> 
D89: =IF(C88=MaxCoverageYear-1,"***以下空白***",IF($B89="","",IF($B89>plan,"",VLOOKUP($B89,formula!$A$15:$BQ$124,formula!$AM$9,FALSE)))) ->  | E89: =IF($B89="","",VLOOKUP($B89,formula!$A$15:$BQ$124,formula!$AN$9,FALSE)) ->  | H89: =IF($B89="","",VLOOKUP($B89,formula!$A$15:$BQ$124,formula!$C$9,FALSE)) ->  | K89: =IF($B89="","",VLOOKUP($B89,formula!$A$15:$BQ$124,formula!$E$9,FALSE)) ->  | M89: =IF($B89="","",VLOOKUP($B89,formula!$A$15:$BQ$124,formula!$D$9,FALSE)) -> 
D90: =IF(C89=MaxCoverageYear-1,"***以下空白***",IF($B90="","",IF($B90>plan,"",VLOOKUP($B90,formula!$A$15:$BQ$124,formula!$AM$9,FALSE)))) ->  | E90: =IF($B90="","",VLOOKUP($B90,formula!$A$15:$BQ$124,formula!$AN$9,FALSE)) ->  | H90: =IF($B90="","",VLOOKUP($B90,formula!$A$15:$BQ$124,formula!$C$9,FALSE)) ->  | K90: =IF($B90="","",VLOOKUP($B90,formula!$A$15:$BQ$124,formula!$E$9,FALSE)) ->  | M90: =IF($B90="","",VLOOKUP($B90,formula!$A$15:$BQ$124,formula!$D$9,FALSE)) -> 
D91: =IF(C90=MaxCoverageYear-1,"***以下空白***",IF($B91="","",IF($B91>plan,"",VLOOKUP($B91,formula!$A$15:$BQ$124,formula!$AM$9,FALSE)))) ->  | E91: =IF($B91="","",VLOOKUP($B91,formula!$A$15:$BQ$124,formula!$AN$9,FALSE)) ->  | H91: =IF($B91="","",VLOOKUP($B91,formula!$A$15:$BQ$124,formula!$C$9,FALSE)) ->  | K91: =IF($B91="","",VLOOKUP($B91,formula!$A$15:$BQ$124,formula!$E$9,FALSE)) ->  | M91: =IF($B91="","",VLOOKUP($B91,formula!$A$15:$BQ$124,formula!$D$9,FALSE)) -> 
D92: =IF(C91=MaxCoverageYear-1,"***以下空白***",IF($B92="","",IF($B92>plan,"",VLOOKUP($B92,formula!$A$15:$BQ$124,formula!$AM$9,FALSE)))) ->  | E92: =IF($B92="","",VLOOKUP($B92,formula!$A$15:$BQ$124,formula!$AN$9,FALSE)) ->  | H92: =IF($B92="","",VLOOKUP($B92,formula!$A$15:$BQ$124,formula!$C$9,FALSE)) ->  | K92: =IF($B92="","",VLOOKUP($B92,formula!$A$15:$BQ$124,formula!$E$9,FALSE)) ->  | M92: =IF($B92="","",VLOOKUP($B92,formula!$A$15:$BQ$124,formula!$D$9,FALSE)) -> 
D93: =IF(C92=MaxCoverageYear-1,"***以下空白***",IF($B93="","",IF($B93>plan,"",VLOOKUP($B93,formula!$A$15:$BQ$124,formula!$AM$9,FALSE)))) ->  | E93: =IF($B93="","",VLOOKUP($B93,formula!$A$15:$BQ$124,formula!$AN$9,FALSE)) ->  | H93: =IF($B93="","",VLOOKUP($B93,formula!$A$15:$BQ$124,formula!$C$9,FALSE)) ->  | K93: =IF($B93="","",VLOOKUP($B93,formula!$A$15:$BQ$124,formula!$E$9,FALSE)) ->  | M93: =IF($B93="","",VLOOKUP($B93,formula!$A$15:$BQ$124,formula!$D$9,FALSE)) -> 
D94: =IF(C93=MaxCoverageYear-1,"***以下空白***",IF($B94="","",IF($B94>plan,"",VLOOKUP($B94,formula!$A$15:$BQ$124,formula!$AM$9,FALSE)))) ->  | E94: =IF($B94="","",VLOOKUP($B94,formula!$A$15:$BQ$124,formula!$AN$9,FALSE)) ->  | H94: =IF($B94="","",VLOOKUP($B94,formula!$A$15:$BQ$124,formula!$C$9,FALSE)) ->  | K94: =IF($B94="","",VLOOKUP($B94,formula!$A$15:$BQ$124,formula!$E$9,FALSE)) ->  | M94: =IF($B94="","",VLOOKUP($B94,formula!$A$15:$BQ$124,formula!$D$9,FALSE)) -> 
D95: =IF(C94=MaxCoverageYear-1,"***以下空白***",IF($B95="","",IF($B95>plan,"",VLOOKUP($B95,formula!$A$15:$BQ$124,formula!$AM$9,FALSE)))) ->  | E95: =IF($B95="","",VLOOKUP($B95,formula!$A$15:$BQ$124,formula!$AN$9,FALSE)) ->  | H95: =IF($B95="","",VLOOKUP($B95,formula!$A$15:$BQ$124,formula!$C$9,FALSE)) ->  | K95: =IF($B95="","",VLOOKUP($B95,formula!$A$15:$BQ$124,formula!$E$9,FALSE)) ->  | M95: =IF($B95="","",VLOOKUP($B95,formula!$A$15:$BQ$124,formula!$D$9,FALSE)) -> 
D96: =IF(C95=MaxCoverageYear-1,"***以下空白***",IF($B96="","",IF($B96>plan,"",VLOOKUP($B96,formula!$A$15:$BQ$124,formula!$AM$9,FALSE)))) ->  | E96: =IF($B96="","",VLOOKUP($B96,formula!$A$15:$BQ$124,formula!$AN$9,FALSE)) ->  | H96: =IF($B96="","",VLOOKUP($B96,formula!$A$15:$BQ$124,formula!$C$9,FALSE)) ->  | K96: =IF($B96="","",VLOOKUP($B96,formula!$A$15:$BQ$124,formula!$E$9,FALSE)) ->  | M96: =IF($B96="","",VLOOKUP($B96,formula!$A$15:$BQ$124,formula!$D$9,FALSE)) -> 
D97: =IF(C96=MaxCoverageYear-1,"***以下空白***",IF($B97="","",IF($B97>plan,"",VLOOKUP($B97,formula!$A$15:$BQ$124,formula!$AM$9,FALSE)))) ->  | E97: =IF($B97="","",VLOOKUP($B97,formula!$A$15:$BQ$124,formula!$AN$9,FALSE)) ->  | H97: =IF($B97="","",VLOOKUP($B97,formula!$A$15:$BQ$124,formula!$C$9,FALSE)) ->  | K97: =IF($B97="","",VLOOKUP($B97,formula!$A$15:$BQ$124,formula!$E$9,FALSE)) ->  | M97: =IF($B97="","",VLOOKUP($B97,formula!$A$15:$BQ$124,formula!$D$9,FALSE)) -> 
D98: =IF(C97=MaxCoverageYear-1,"***以下空白***",IF($B98="","",IF($B98>plan,"",VLOOKUP($B98,formula!$A$15:$BQ$124,formula!$AM$9,FALSE)))) ->  | E98: =IF($B98="","",VLOOKUP($B98,formula!$A$15:$BQ$124,formula!$AN$9,FALSE)) ->  | H98: =IF($B98="","",VLOOKUP($B98,formula!$A$15:$BQ$124,formula!$C$9,FALSE)) ->  | K98: =IF($B98="","",VLOOKUP($B98,formula!$A$15:$BQ$124,formula!$E$9,FALSE)) ->  | M98: =IF($B98="","",VLOOKUP($B98,formula!$A$15:$BQ$124,formula!$D$9,FALSE)) -> 
D99: =IF(C98=MaxCoverageYear-1,"***以下空白***",IF($B99="","",IF($B99>plan,"",VLOOKUP($B99,formula!$A$15:$BQ$124,formula!$AM$9,FALSE)))) ->  | E99: =IF($B99="","",VLOOKUP($B99,formula!$A$15:$BQ$124,formula!$AN$9,FALSE)) ->  | H99: =IF($B99="","",VLOOKUP($B99,formula!$A$15:$BQ$124,formula!$C$9,FALSE)) ->  | K99: =IF($B99="","",VLOOKUP($B99,formula!$A$15:$BQ$124,formula!$E$9,FALSE)) ->  | M99: =IF($B99="","",VLOOKUP($B99,formula!$A$15:$BQ$124,formula!$D$9,FALSE)) -> 
D100: =IF(C99=MaxCoverageYear-1,"***以下空白***",IF($B100="","",IF($B100>plan,"",VLOOKUP($B100,formula!$A$15:$BQ$124,formula!$AM$9,FALSE)))) ->  | E100: =IF($B100="","",VLOOKUP($B100,formula!$A$15:$BQ$124,formula!$AN$9,FALSE)) ->  | H100: =IF($B100="","",VLOOKUP($B100,formula!$A$15:$BQ$124,formula!$C$9,FALSE)) ->  | K100: =IF($B100="","",VLOOKUP($B100,formula!$A$15:$BQ$124,formula!$E$9,FALSE)) ->  | M100: =IF($B100="","",VLOOKUP($B100,formula!$A$15:$BQ$124,formula!$D$9,FALSE)) -> 
D101: =IF(C100=MaxCoverageYear-1,"***以下空白***",IF($B101="","",IF($B101>plan,"",VLOOKUP($B101,formula!$A$15:$BQ$124,formula!$AM$9,FALSE)))) ->  | E101: =IF($B101="","",VLOOKUP($B101,formula!$A$15:$BQ$124,formula!$AN$9,FALSE)) ->  | H101: =IF($B101="","",VLOOKUP($B101,formula!$A$15:$BQ$124,formula!$C$9,FALSE)) ->  | K101: =IF($B101="","",VLOOKUP($B101,formula!$A$15:$BQ$124,formula!$E$9,FALSE)) ->  | M101: =IF($B101="","",VLOOKUP($B101,formula!$A$15:$BQ$124,formula!$D$9,FALSE)) -> 
D102: =IF(C101=MaxCoverageYear-1,"***以下空白***",IF($B102="","",IF($B102>plan,"",VLOOKUP($B102,formula!$A$15:$BQ$124,formula!$AM$9,FALSE)))) ->  | E102: =IF($B102="","",VLOOKUP($B102,formula!$A$15:$BQ$124,formula!$AN$9,FALSE)) ->  | H102: =IF($B102="","",VLOOKUP($B102,formula!$A$15:$BQ$124,formula!$C$9,FALSE)) ->  | K102: =IF($B102="","",VLOOKUP($B102,formula!$A$15:$BQ$124,formula!$E$9,FALSE)) ->  | M102: =IF($B102="","",VLOOKUP($B102,formula!$A$15:$BQ$124,formula!$D$9,FALSE)) -> 
D103: =IF(C102=MaxCoverageYear-1,"***以下空白***",IF($B103="","",IF($B103>plan,"",VLOOKUP($B103,formula!$A$15:$BQ$124,formula!$AM$9,FALSE)))) ->  | E103: =IF($B103="","",VLOOKUP($B103,formula!$A$15:$BQ$124,formula!$AN$9,FALSE)) ->  | H103: =IF($B103="","",VLOOKUP($B103,formula!$A$15:$BQ$124,formula!$C$9,FALSE)) ->  | K103: =IF($B103="","",VLOOKUP($B103,formula!$A$15:$BQ$124,formula!$E$9,FALSE)) ->  | M103: =IF($B103="","",VLOOKUP($B103,formula!$A$15:$BQ$124,formula!$D$9,FALSE)) -> 
D104: =IF(C103=MaxCoverageYear-1,"***以下空白***",IF($B104="","",IF($B104>plan,"",VLOOKUP($B104,formula!$A$15:$BQ$124,formula!$AM$9,FALSE)))) ->  | E104: =IF($B104="","",VLOOKUP($B104,formula!$A$15:$BQ$124,formula!$AN$9,FALSE)) ->  | H104: =IF($B104="","",VLOOKUP($B104,formula!$A$15:$BQ$124,formula!$C$9,FALSE)) ->  | K104: =IF($B104="","",VLOOKUP($B104,formula!$A$15:$BQ$124,formula!$E$9,FALSE)) ->  | M104: =IF($B104="","",VLOOKUP($B104,formula!$A$15:$BQ$124,formula!$D$9,FALSE)) -> 
D105: =IF(C104=MaxCoverageYear-1,"***以下空白***",IF($B105="","",IF($B105>plan,"",VLOOKUP($B105,formula!$A$15:$BQ$124,formula!$AM$9,FALSE)))) ->  | E105: =IF($B105="","",VLOOKUP($B105,formula!$A$15:$BQ$124,formula!$AN$9,FALSE)) ->  | H105: =IF($B105="","",VLOOKUP($B105,formula!$A$15:$BQ$124,formula!$C$9,FALSE)) ->  | K105: =IF($B105="","",VLOOKUP($B105,formula!$A$15:$BQ$124,formula!$E$9,FALSE)) ->  | M105: =IF($B105="","",VLOOKUP($B105,formula!$A$15:$BQ$124,formula!$D$9,FALSE)) -> 
D106: =IF(C105=MaxCoverageYear-1,"***以下空白***",IF($B106="","",IF($B106>plan,"",VLOOKUP($B106,formula!$A$15:$BQ$124,formula!$AM$9,FALSE)))) ->  | E106: =IF($B106="","",VLOOKUP($B106,formula!$A$15:$BQ$124,formula!$AN$9,FALSE)) ->  | H106: =IF($B106="","",VLOOKUP($B106,formula!$A$15:$BQ$124,formula!$C$9,FALSE)) ->  | K106: =IF($B106="","",VLOOKUP($B106,formula!$A$15:$BQ$124,formula!$E$9,FALSE)) ->  | M106: =IF($B106="","",VLOOKUP($B106,formula!$A$15:$BQ$124,formula!$D$9,FALSE)) ->  | O106: =IF(B106="", "", IFERROR(IF(SA * VLOOKUP(index, RPU_Tab, 4 + B106, FALSE) / 10000 = 0, "", SA * VLOOKUP(index, RPU_Tab, 4 + B106, FALSE) / 10000), "")) -> 
D107: =IF(C106=MaxCoverageYear-1,"***以下空白***",IF($B107="","",IF($B107>plan,"",VLOOKUP($B107,formula!$A$15:$BQ$124,formula!$AM$9,FALSE)))) ->  | E107: =IF($B107="","",VLOOKUP($B107,formula!$A$15:$BQ$124,formula!$AN$9,FALSE)) ->  | H107: =IF($B107="","",VLOOKUP($B107,formula!$A$15:$BQ$124,formula!$C$9,FALSE)) ->  | K107: =IF($B107="","",VLOOKUP($B107,formula!$A$15:$BQ$124,formula!$E$9,FALSE)) ->  | M107: =IF($B107="","",VLOOKUP($B107,formula!$A$15:$BQ$124,formula!$D$9,FALSE)) -> 
D108: =IF(C107=MaxCoverageYear-1,"***以下空白***",IF($B108="","",IF($B108>plan,"",VLOOKUP($B108,formula!$A$15:$BQ$124,formula!$AM$9,FALSE)))) ->  | E108: =IF($B108="","",VLOOKUP($B108,formula!$A$15:$BQ$124,formula!$AN$9,FALSE)) ->  | H108: =IF($B108="","",VLOOKUP($B108,formula!$A$15:$BQ$124,formula!$C$9,FALSE)) ->  | K108: =IF($B108="","",VLOOKUP($B108,formula!$A$15:$BQ$124,formula!$E$9,FALSE)) ->  | M108: =IF($B108="","",VLOOKUP($B108,formula!$A$15:$BQ$124,formula!$D$9,FALSE)) -> 
D109: =IF(C108=MaxCoverageYear-1,"***以下空白***",IF($B109="","",IF($B109>plan,"",VLOOKUP($B109,formula!$A$15:$BQ$124,formula!$AM$9,FALSE)))) ->  | E109: =IF($B109="","",VLOOKUP($B109,formula!$A$15:$BQ$124,formula!$AN$9,FALSE)) ->  | H109: =IF($B109="","",VLOOKUP($B109,formula!$A$15:$BQ$124,formula!$C$9,FALSE)) ->  | K109: =IF($B109="","",VLOOKUP($B109,formula!$A$15:$BQ$124,formula!$E$9,FALSE)) ->  | M109: =IF($B109="","",VLOOKUP($B109,formula!$A$15:$BQ$124,formula!$D$9,FALSE)) -> 
D110: =IF(C109=MaxCoverageYear-1,"***以下空白***",IF($B110="","",IF($B110>plan,"",VLOOKUP($B110,formula!$A$15:$BQ$124,formula!$AM$9,FALSE)))) ->  | E110: =IF($B110="","",VLOOKUP($B110,formula!$A$15:$BQ$124,formula!$AN$9,FALSE)) ->  | H110: =IF($B110="","",VLOOKUP($B110,formula!$A$15:$BQ$124,formula!$C$9,FALSE)) ->  | K110: =IF($B110="","",VLOOKUP($B110,formula!$A$15:$BQ$124,formula!$E$9,FALSE)) ->  | M110: =IF($B110="","",VLOOKUP($B110,formula!$A$15:$BQ$124,formula!$D$9,FALSE)) -> 
D111: =IF(C110=MaxCoverageYear-1,"***以下空白***",IF($B111="","",IF($B111>plan,"",VLOOKUP($B111,formula!$A$15:$BQ$124,formula!$AM$9,FALSE)))) ->  | E111: =IF($B111="","",VLOOKUP($B111,formula!$A$15:$BQ$124,formula!$AN$9,FALSE)) ->  | H111: =IF($B111="","",VLOOKUP($B111,formula!$A$15:$BQ$124,formula!$C$9,FALSE)) ->  | K111: =IF($B111="","",VLOOKUP($B111,formula!$A$15:$BQ$124,formula!$E$9,FALSE)) ->  | M111: =IF($B111="","",VLOOKUP($B111,formula!$A$15:$BQ$124,formula!$D$9,FALSE)) -> 
D112: =IF(C111=MaxCoverageYear-1,"***以下空白***",IF($B112="","",IF($B112>plan,"",VLOOKUP($B112,formula!$A$15:$BQ$124,formula!$AM$9,FALSE)))) ->  | E112: =IF($B112="","",VLOOKUP($B112,formula!$A$15:$BQ$124,formula!$AN$9,FALSE)) ->  | H112: =IF($B112="","",VLOOKUP($B112,formula!$A$15:$BQ$124,formula!$C$9,FALSE)) ->  | K112: =IF($B112="","",VLOOKUP($B112,formula!$A$15:$BQ$124,formula!$E$9,FALSE)) ->  | M112: =IF($B112="","",VLOOKUP($B112,formula!$A$15:$BQ$124,formula!$D$9,FALSE)) -> 
D113: =IF(C112=MaxCoverageYear-1,"***以下空白***",IF($B113="","",IF($B113>plan,"",VLOOKUP($B113,formula!$A$15:$BQ$124,formula!$AM$9,FALSE)))) ->  | E113: =IF($B113="","",VLOOKUP($B113,formula!$A$15:$BQ$124,formula!$AN$9,FALSE)) ->  | H113: =IF($B113="","",VLOOKUP($B113,formula!$A$15:$BQ$124,formula!$C$9,FALSE)) ->  | K113: =IF($B113="","",VLOOKUP($B113,formula!$A$15:$BQ$124,formula!$E$9,FALSE)) ->  | M113: =IF($B113="","",VLOOKUP($B113,formula!$A$15:$BQ$124,formula!$D$9,FALSE)) -> 
D114: =IF(C113=MaxCoverageYear-1,"***以下空白***",IF($B114="","",IF($B114>plan,"",VLOOKUP($B114,formula!$A$15:$BQ$124,formula!$AM$9,FALSE)))) ->  | E114: =IF($B114="","",VLOOKUP($B114,formula!$A$15:$BQ$124,formula!$AN$9,FALSE)) ->  | H114: =IF($B114="","",VLOOKUP($B114,formula!$A$15:$BQ$124,formula!$C$9,FALSE)) ->  | K114: =IF($B114="","",VLOOKUP($B114,formula!$A$15:$BQ$124,formula!$E$9,FALSE)) ->  | M114: =IF($B114="","",VLOOKUP($B114,formula!$A$15:$BQ$124,formula!$D$9,FALSE)) -> 
D115: =IF(C114=MaxCoverageYear-1,"***以下空白***",IF($B115="","",IF($B115>plan,"",VLOOKUP($B115,formula!$A$15:$BQ$124,formula!$AM$9,FALSE)))) ->  | E115: =IF($B115="","",VLOOKUP($B115,formula!$A$15:$BQ$124,formula!$AN$9,FALSE)) ->  | H115: =IF($B115="","",VLOOKUP($B115,formula!$A$15:$BQ$124,formula!$C$9,FALSE)) ->  | K115: =IF($B115="","",VLOOKUP($B115,formula!$A$15:$BQ$124,formula!$E$9,FALSE)) ->  | M115: =IF($B115="","",VLOOKUP($B115,formula!$A$15:$BQ$124,formula!$D$9,FALSE)) -> 
D116: =IF(C115=MaxCoverageYear-1,"***以下空白***",IF($B116="","",IF($B116>plan,"",VLOOKUP($B116,formula!$A$15:$BQ$124,formula!$AM$9,FALSE)))) ->  | E116: =IF($B116="","",VLOOKUP($B116,formula!$A$15:$BQ$124,formula!$AN$9,FALSE)) ->  | H116: =IF($B116="","",VLOOKUP($B116,formula!$A$15:$BQ$124,formula!$C$9,FALSE)) ->  | K116: =IF($B116="","",VLOOKUP($B116,formula!$A$15:$BQ$124,formula!$E$9,FALSE)) ->  | M116: =IF($B116="","",VLOOKUP($B116,formula!$A$15:$BQ$124,formula!$D$9,FALSE)) -> 
D117: =IF(C116=MaxCoverageYear-1,"***以下空白***",IF($B117="","",IF($B117>plan,"",VLOOKUP($B117,formula!$A$15:$BQ$124,formula!$AM$9,FALSE)))) ->  | E117: =IF($B117="","",VLOOKUP($B117,formula!$A$15:$BQ$124,formula!$AN$9,FALSE)) ->  | H117: =IF($B117="","",VLOOKUP($B117,formula!$A$15:$BQ$124,formula!$C$9,FALSE)) ->  | K117: =IF($B117="","",VLOOKUP($B117,formula!$A$15:$BQ$124,formula!$E$9,FALSE)) ->  | M117: =IF($B117="","",VLOOKUP($B117,formula!$A$15:$BQ$124,formula!$D$9,FALSE)) -> 
D118: =IF(C117=MaxCoverageYear-1,"***以下空白***",IF($B118="","",IF($B118>plan,"",VLOOKUP($B118,formula!$A$15:$BQ$124,formula!$AM$9,FALSE)))) ->  | E118: =IF($B118="","",VLOOKUP($B118,formula!$A$15:$BQ$124,formula!$AN$9,FALSE)) ->  | H118: =IF($B118="","",VLOOKUP($B118,formula!$A$15:$BQ$124,formula!$C$9,FALSE)) ->  | K118: =IF($B118="","",VLOOKUP($B118,formula!$A$15:$BQ$124,formula!$E$9,FALSE)) ->  | M118: =IF($B118="","",VLOOKUP($B118,formula!$A$15:$BQ$124,formula!$D$9,FALSE)) -> 
D119: =IF(C118=MaxCoverageYear-1,"***以下空白***",IF($B119="","",IF($B119>plan,"",VLOOKUP($B119,formula!$A$15:$BQ$124,formula!$AM$9,FALSE)))) ->  | E119: =IF($B119="","",VLOOKUP($B119,formula!$A$15:$BQ$124,formula!$AN$9,FALSE)) ->  | H119: =IF($B119="","",VLOOKUP($B119,formula!$A$15:$BQ$124,formula!$C$9,FALSE)) ->  | K119: =IF($B119="","",VLOOKUP($B119,formula!$A$15:$BQ$124,formula!$E$9,FALSE)) ->  | M119: =IF($B119="","",VLOOKUP($B119,formula!$A$15:$BQ$124,formula!$D$9,FALSE)) -> 

Sheet formula (hidden)
A9: 1 | B9: =A9+1 -> 2 | C9: =B9+1 -> 3 | D9: =C9+1 -> 4 | E9: =D9+1 -> 5 | F9: =E9+1 -> 6 | G9: =F9+1 -> 7 | H9: =G9+1 -> 8 | I9: =H9+1 -> 9 | J9: =I9+1 -> 10 | K9: =J9+1 -> 11 | L9: =K9+1 -> 12 | M9: =L9+1 -> 13 | N9: =M9+1 -> 14 | O9: =N9+1 -> 15 | P9: =O9+1 -> 16 | Q9: =P9+1 -> 17 | R9: =Q9+1 -> 18 | S9: =R9+1 -> 19 | T9: =S9+1 -> 20 | U9: =T9+1 -> 21 | V9: =U9+1 -> 22 | W9: =V9+1 -> 23 | X9: =W9+1 -> 24 | Y9: =X9+1 -> 25 | Z9: =Y9+1 -> 26 | AA9: =Z9+1 -> 27 | AB9: =AA9+1 -> 28 | AC9: =AB9+1 -> 29 | AD9: =AC9+1 -> 30 | AE9: =AD9+1 -> 31 | AF9: =AE9+1 -> 32 | AG9: =AF9+1 -> 33 | AH9: =AG9+1 -> 34 | AI9: =AH9+1 -> 35 | AJ9: =AI9+1 -> 36 | AK9: =AJ9+1 -> 37 | AL9: =AK9+1 -> 38 | AM9: =AL9+1 -> 39 | AN9: =AM9+1 -> 40 | AO9: =AN9+1 -> 41 | AP9: =AO9+1 -> 42 | AQ9: =AP9+1 -> 43 | AR9: =AQ9+1 -> 44 | AS9: =AR9+1 -> 45 | AT9: =AS9+1 -> 46 | AU9: =AT9+1 -> 47 | AV9: 48 | AW9: 49 | AX9: 50 | AY9: 51 | AZ9: =AY9+1 -> 52 | BA9: =AZ9+1 -> 53 | BB9: =BA9+1 -> 54 | BC9: =BB9+1 -> 55 | BD9: =BC9+1 -> 56 | BE9: =BD9+1 -> 57 | BF9: =COLUMN() -> 58 | BG9: =COLUMN() -> 59 | BH9: =COLUMN() -> 60 | BI9: =COLUMN() -> 61 | BJ9: =COLUMN() -> 62 | BK9: =COLUMN() -> 63 | BL9: =COLUMN() -> 64 | BM9: =COLUMN() -> 65 | BN9: =COLUMN() -> 66 | BO9: =COLUMN() -> 67 | CI9: 生存金 | CJ9: 0 | DS9: 分期給付 | DT9: =COLUMN() -> 124 | DU9: =COLUMN() -> 125 | DV9: =COLUMN() -> 126 | DW9: =COLUMN() -> 127 | DX9: =COLUMN() -> 128 | DY9: =COLUMN() -> 129 | DZ9: =COLUMN() -> 130 | EA9: =COLUMN() -> 131 | EB9: =COLUMN() -> 132 | ED9: =COLUMN() -> 134 | EE9: =COLUMN() -> 135 | EF9: =COLUMN() -> 136 | EG9: =COLUMN() -> 137 | EH9: =COLUMN() -> 138 | EI9: =COLUMN() -> 139 | EK9: =COLUMN() -> 141 | EL9: =COLUMN() -> 142 | EM9: =COLUMN() -> 143 | EN9: =COLUMN() -> 144 | EO9: =COLUMN() -> 145 | EP9: =COLUMN() -> 146 | EQ9: =COLUMN() -> 147 | ER9: =COLUMN() -> 148 | ES9: =COLUMN() -> 149 | EU9: =COLUMN() -> 151 | EV9: =COLUMN() -> 152 | EW9: =COLUMN() -> 153 | EX9: =COLUMN() -> 154 | EY9: =COLUMN() -> 155 | EZ9: =COLUMN() -> 156
A10: 保單年度末 | B10: 保險年齡 | C10: 保險金額 | F10: 生存 保險金 累計值 (紅利零) | G10: 生存 保險金 累計值 (紅利中) | H10: 生存 保險金 累計值 (紅利低) | I10: 假設 週年紅利 - 增額分紅保額 零 | J10: 假設 週年紅利 - 增額分紅保額 中 | K10: 假設 週年紅利 - 增額分紅保額 低 | L10: 假設 終極紅利 - 身故紅利 零 | M10: 假設 終極紅利 - 身故紅利 中 | N10: 假設 終極紅利 - 身故紅利 低 | O10: 假設 終極紅利 - 解約紅利 零 | P10: 假設 終極紅利 - 解約紅利 中 | Q10: 假設 終極紅利 - 解約紅利 低 | R10: 保單週年紅利 - 增額分紅保額 | AA10: 合計 | AP10: 部分提領(中分紅) | BC10: 部分提領(低分紅) | CI10: 終極紅利 | CJ10: 0 | DT10: 分期給付(中分紅) | DW10: 分期給付(低分紅) | DZ10: 分期給付(無分紅) | ED10: 當年度保單週年紅利 - 增額分紅保額 | EK10: 部分提領(無分紅) | EU10: 部分提領(中分紅) | EW10: 部分提領(低分紅) | EY10: 部分提領(無分紅)
C11: 身故保障 | D11: 保價金 | E11: 解約金/祝壽保險金 | R11: 累計增額 分紅保額 零 | S11: 累計增額 分紅保額 中 | T11: 累計增額 分紅保額 低 | U11: 增額分紅保額對應之 | AA11: 保險金額 + 累計增額繳清保額 | AB11: 保險金額 + 累計增額繳清保額 | AC11: 保險金額 + 累計增額繳清保額 | AD11: 身故保障 | AE11: 身故保障 | AF11: 身故保障 | AG11: 解約金/祝壽保險金 | AH11: 解約金/祝壽保險金 | AI11: 解約金/祝壽保險金 | AP11: 預計提領金額 (年初) | AQ11: 該次減少保額可領取之解約金總額 (年初) | AR11: 基本保險金額下之總解約金 (Unit 元) | AS11: 基本保額下 累積增額分紅 保額 | AT11: 提領保險金額 (基本+RB) | AU11: 提領保險金額 (基本) | AV11: 提領保險金額 (RB) | AW11: 提領後基本保險金額 | AX11: 提領後累積增額分紅保額 | AY11: 減少保險金額後總領解約金 | AZ11: 減少保險金額後總領身故金 | BA11: 歷年減少基本保額領取之解約金總額 | BB11: 累計至當年度末解約可能總領金額 | BC11: 預計提領金額 | BD11: 該次減少保額可領取之解約金總額 | BE11: 基本保險金額下之總解約金 (Unit 元) | BF11: 基本保額下 累積增額分紅 保額 | BG11: 提領保險金額 (基本+RB) | BH11: 提領保險金額 (基本) | BI11: 提領保險金額 (RB) | BJ11: 提領後基本保險金額 | BK11: 提領後增額分紅保額 | BL11: 減少保險金額後總領解約金 | BM11: 減少保險金額後總領身故金 | BN11: 歷年減少基本保額領取之解約金總額 | BO11: 累計至當年度末解約可能總領金額 | DT11: 當年度末 壽險保障及 假設紅利_分紅保額 | DU11: 一次給付 | DV11: 每年分期給付 | DW11: 當年度末 壽險保障及 假設紅利_分紅保額 | DX11: 一次給付 | DY11: 每年分期給付 | DZ11: 當年度末 壽險保障及 假設紅利_分紅保額 | EA11: 一次給付 | EB11: 每年分期給付 | ED11: 當年度增額 分紅保額 零 | EE11: 當年度增額 分紅保額 中 | EF11: 當年度增額 分紅保額 低 | EG11: 當年度增額分紅保額對應之 | EK11: 預計提領金額 (年初) | EL11: 該次減少保額可領取之解約金總額 (年初) | EM11: 基本保險金額下之總解約金 (Unit 元) | EN11: 提領保險金額 (年初) | EO11: 提領後基本保險金額 (年末) | EP11: 減少保險金額後總領解約金 | EQ11: 減少保險金額後總領身故金 | ER11: 歷年減少基本保額領取之解約金總額 | ES11: 累計至當年度末解約可能總領金額 | EU11: 該次減少保額可領取之解約金總額(年末) | EV11: 歷年減少基本保額領取之解約金總額(年末) | EW11: 該次減少保額可領取之解約金總額(年末) | EX11: 歷年減少基本保額領取之解約金總額(年末) | EY11: 該次減少保額可領取之解約金總額(年末) | EZ11: 歷年減少基本保額領取之解約金總額(年末)
U12: 身故保障 | V12: 身故保障 | W12: 身故保障 | X12: 解約金/ 祝壽保險金 | Y12: 解約金/ 祝壽保險金 | Z12: 解約金/ 祝壽保險金 | AJ12: 沒用到 | AK12: 沒用到 | AL12: 沒用到 | AW12: 基本保險金額 | AX12: 基本保險金額 | BJ12: 基本保險金額 | BK12: 基本保險金額 | BQ12: 沒用到 | BS12: Check | CE12: 15歲以下 | CI12: 基本保障倍數 (固定保額/保費) | CJ12: 累積保障倍數 (保額/保費) | CK12: 基本資產增值率 (當年度解約金/保費) | CL12: 累積資產增值率 (當年度解約金(含紅利/增值回饋金)/保費) | CO12: =IRR(CO14:CO121) -> -0.481843348 | CP12: =IRR(CP14:CP121) -> -0.2909832449 | CQ12: =IRR(CQ14:CQ121) -> -0.1798132445 | CR12: -0.08050478137 | CS12: -0.04400008815 | CT12: -0.0223297175 | CU12: -0.01614208665 | CV12: -0.01171666641 | CW12: -0.008398428177 | CX12: -0.005820771623 | CY12: =IRR(CY14:CY121) -> 0.001487920797 | CZ12: 0.004821862075 | DA12: 0.007651533311 | DB12: 0.008369892136 | DE12: =IRR(DE14:DE121) -> -0.481843348 | DF12: =IRR(DF14:DF121) -> -0.2909832449 | DG12: =IRR(DG14:DG121) -> -0.1789908099 | DH12: -0.07880087203 | DI12: -0.04142550622 | DJ12: 0.008384282549 | DK12: 0.01076517091 | DL12: 0.0124379551 | DM12: 0.01366625478 | DN12: 0.01459960712 | DO12: 0.01689766295 | DP12: 0.01787378266 | DQ12: 0.0175220812 | DR12: 0.01759801791 | EG12: 解約金/ 祝壽保險金 | EH12: 解約金/ 祝壽保險金 | EI12: 解約金/ 祝壽保險金 | EO12: 基本保險金額
C13: ( A ) | D13: ( B ) | E13: ( C ) | F13: ( D )-H | G13: ( D )-M | H13: ( D )-L | I13: ( E )-H | J13: ( E )-M | K13: ( E )-L | L13: ( F )-H | M13: ( F )-M | N13: ( F )-L | O13: ( G )-H | P13: ( G )-M | Q13: ( G )-L | R13: ( H )-H | S13: ( H )-M | T13: ( H )-L | U13: ( I )-H | V13: ( I )-M | W13: ( I )-L | X13: ( J )-H | Y13: ( J )-M | Z13: ( J )-L | AA13: ( K )-H | AB13: ( K )-M | AC13: ( K )-L | AD13: ( L )-H | AE13: ( L )-M | AF13: ( L )-L | AG13: ( M )-No Div | AH13: ( M )-M | AI13: ( M )-L | AJ13: PUA-H | AK13: PUA-M | AL13: PUA-L | AM13: Actual GP | AN13: Actual Acc_GP | AO13: Acc_GP w/o disc | AQ13: Step 2 | AT13: Step 1 | AW13: Step 3 | AY13: B | BA13: A | BB13: A+B=C | BD13: Step 2 | BG13: Step 1 | BJ13: Step 3 | BL13: B | BN13: A | BO13: A+B=C | BP13: Acc_SB | BQ13: Acc_Div w interest | BS13: PUA-H | BT13: PUA-M | BU13: PUA-L | BV13: Sum PUA-H | BW13: Sum PUA-M | BX13: Sum PUA-L | BY13: SB-H | BZ13: SB-M | CA13: SB-L | CB13: Sum SB-H | CC13: Sum SB-M | CD13: Sum SB-L | CE13: DB_PUA_H | CF13: DB_PUA_M | CG13: DB_PUA_L | CO13: 1 | CP13: 2 | CQ13: 3 | CR13: 4 | CS13: 5 | CT13: 6 | CU13: 7 | CV13: 8 | CW13: 9 | CX13: 10 | CY13: 15 | CZ13: 20 | DA13: 30 | DB13: 40 | DE13: 1 | DF13: 2 | DG13: 3 | DH13: 4 | DI13: 5 | DJ13: 6 | DK13: 7 | DL13: 8 | DM13: 9 | DN13: 10 | DO13: 15 | DP13: 20 | DQ13: 30 | DR13: 40 | ED13: ( H )-H | EE13: ( H )-M | EF13: ( H )-L | EG13: ( J )-H | EH13: ( J )-M | EI13: ( J )-L | EL13: Step 2 | EN13: Step 1 | EO13: Step 3 | EP13: B | ER13: A | ES13: A+B=C
Y14: =IF($A24="","",ROUNDUP(S24*VLOOKUP(index,'DIV(解約)_M'!$A:$DK,4+$A24,FALSE)/10000,0)) -> 349 | AW14: =SA -> 100000 | AX14: =AS15 -> 0 | BJ14: =SA -> 100000 | CN14: 0 | CO14: =IF(OR($CN14>=CO$13,$CN14>2),0,-$AM15)+IF(CO$13=$CN14,$E14,0) -> -20265.3 | CP14: =IF(OR($CN14>=CP$13,$CN14>2),0,-$AM15)+IF(CP$13=$CN14,$E14,0) -> -20265.3 | CQ14: =IF(OR($CN14>=CQ$13,$CN14>2),0,-$AM15)+IF(CQ$13=$CN14,$E14,0) -> -20265.3 | CR14: =IF(OR($CN14>=CR$13,$CN14>2),0,-$AM15)+IF(CR$13=$CN14,$E14,0) -> -20265.3 | CS14: =IF(OR($CN14>=CS$13,$CN14>2),0,-$AM15)+IF(CS$13=$CN14,$E14,0) -> -20265.3 | CT14: =IF(OR($CN14>=CT$13,$CN14>2),0,-$AM15)+IF(CT$13=$CN14,$E14,0) -> -20265.3 | CU14: =IF(OR($CN14>=CU$13,$CN14>2),0,-$AM15)+IF(CU$13=$CN14,$E14,0) -> -20265.3 | CV14: =IF(OR($CN14>=CV$13,$CN14>2),0,-$AM15)+IF(CV$13=$CN14,$E14,0) -> -20265.3 | CW14: =IF(OR($CN14>=CW$13,$CN14>2),0,-$AM15)+IF(CW$13=$CN14,$E14,0) -> -20265.3 | CX14: =IF(OR($CN14>=CX$13,$CN14>2),0,-$AM15)+IF(CX$13=$CN14,$E14,0) -> -20265.3 | CY14: =IF(OR($CN14>=CY$13,$CN14>2),0,-$AM15)+IF(CY$13=$CN14,$E14,0) -> -20265.3 | CZ14: =IF(OR($CN14>=CZ$13,$CN14>2),0,-$AM15)+IF(CZ$13=$CN14,$E14,0) -> -20265.3 | DA14: =IF(OR($CN14>=DA$13,$CN14>2),0,-$AM15)+IF(DA$13=$CN14,$E14,0) -> -20265.3 | DB14: =IF(OR($CN14>=DB$13,$CN14>2),0,-$AM15)+IF(DB$13=$CN14,$E14,0) -> -20265.3 | DD14: 0 | DE14: =IF(OR($CN14>=DE$13,$CN14>2),0,-$AM15)+IF(DE$13=$CN14,$AH14,0) -> -20265.3 | DF14: =IF(OR($CN14>=DF$13,$CN14>2),0,-$AM15)+IF(DF$13=$CN14,$AH14,0) -> -20265.3 | DG14: =IF(OR($CN14>=DG$13,$CN14>2),0,-$AM15)+IF(DG$13=$CN14,$AH14,0) -> -20265.3 | DH14: =IF(OR($CN14>=DH$13,$CN14>2),0,-$AM15)+IF(DH$13=$CN14,$AH14,0) -> -20265.3 | DI14: =IF(OR($CN14>=DI$13,$CN14>2),0,-$AM15)+IF(DI$13=$CN14,$AH14,0) -> -20265.3 | DJ14: =IF(OR($CN14>=DJ$13,$CN14>2),0,-$AM15)+IF(DJ$13=$CN14,$AH14,0) -> -20265.3 | DK14: =IF(OR($CN14>=DK$13,$CN14>2),0,-$AM15)+IF(DK$13=$CN14,$AH14,0) -> -20265.3 | DL14: =IF(OR($CN14>=DL$13,$CN14>2),0,-$AM15)+IF(DL$13=$CN14,$AH14,0) -> -20265.3 | DM14: =IF(OR($CN14>=DM$13,$CN14>2),0,-$AM15)+IF(DM$13=$CN14,$AH14,0) -> -20265.3 | DN14: =IF(OR($CN14>=DN$13,$CN14>2),0,-$AM15)+IF(DN$13=$CN14,$AH14,0) -> -20265.3 | DO14: =IF(OR($CN14>=DO$13,$CN14>2),0,-$AM15)+IF(DO$13=$CN14,$AH14,0) -> -20265.3 | DP14: =IF(OR($CN14>=DP$13,$CN14>2),0,-$AM15)+IF(DP$13=$CN14,$AH14,0) -> -20265.3 | DQ14: =IF(OR($CN14>=DQ$13,$CN14>2),0,-$AM15)+IF(DQ$13=$CN14,$AH14,0) -> -20265.3 | DR14: =IF(OR($CN14>=DR$13,$CN14>2),0,-$AM15)+IF(DR$13=$CN14,$AH14,0) -> -20265.3 | EO14: =SA -> 100000
A15: 1 | B15: =IF(A15="","",age+A15-1) -> 40 | C15: =IF(A15="","",ROUND(MAX(SA*VLOOKUP($A15,SA!$A:$B,2,FALSE),MAX(0,AO15-BP15),D15*VLOOKUP($B15,參數!$F$44:$G$51,2,TRUE)),2)) -> 25201.26 | D15: =IF(A15="","",ROUND(SA*VLOOKUP(index,PV_Tab,4+A15,FALSE)/10000,2)) -> 14000.7 | E15: =IF(A15="","",ROUND(SA*IF(B15=110,40000,VLOOKUP(index,CV_Tab,4+A15,FALSE))/10000,2)) -> 10500.6 | F15: =IF(A15="","",CB15) -> 0 | G15: =IF(A15="","",CC15) -> 0 | H15: =IF(A15="","",CD15) -> 0 | I15: =IF($A15="","",0) -> 0 | J15: =IF($A15="","",ROUNDUP(SA*VLOOKUP(index,DIVM_Tab,4+$A15,FALSE)/10000+S14*VLOOKUP(index,DIV_RB_M!$A:$DK,4+$A15,FALSE)/10000,0)) -> 0 | K15: =IF($A15="","",ROUNDUP(SA*VLOOKUP(index,DIVL_Tab,4+$A15,FALSE)/10000+T14*VLOOKUP(index,DIV_RB_L!$A:$DK,4+$A15,FALSE)/10000,0)) -> 0 | L15: =IF($A15="","",0) -> 0 | M15: =IF($A15="","",ROUNDUP(SA*VLOOKUP(index,'DIV(身故)_M'!$A:$DK,4+$A15,FALSE)/10000,0)) -> 0 | N15: =IF($A15="","",ROUNDUP(SA*VLOOKUP(index,'DIV(身故)_L'!$A:$DK,4+$A15,FALSE)/10000,0)) -> 0 | O15: =IF($A15="","",0) -> 0 | P15: =IF($A15="","",ROUNDUP(SA*VLOOKUP(index,'DIV(解約)_M'!$A:$DK,4+$A15,FALSE)/10000,0)) -> 0 | Q15: =IF($A15="","",ROUNDUP(SA*VLOOKUP(index,'DIV(解約)_L'!$A:$DK,4+$A15,FALSE)/10000,0)) -> 0 | R15: =IF(A15="","",IF(DIV=4,SUM($I$15:I15),"")) -> 0 | S15: =IF(A15="","",IF(DIV=4,SUM($J$15:J15),"")) -> 0 | T15: =IF(A15="","",IF(DIV=4,SUM($K$15:K15),"")) -> 0 | U15: =IF($A15="","",ROUND(MAX(R15*VLOOKUP($A15,SA!$A:$B,2,FALSE),ROUND(R15*VLOOKUP(index,GP!$A$2:$E$407,5,FALSE)/10000,2)*MIN($A15,plan),X15*VLOOKUP($B15,參數!$F$44:$G$51,2,TRUE)),2)) -> 0 | V15: =IF($A15="","",ROUND(MAX(S15*VLOOKUP($A15,SA!$A:$B,2,FALSE),ROUND(S15*VLOOKUP(index,GP!$A$2:$E$407,5,FALSE)/10000,2)*MIN($A15,plan),Y15*VLOOKUP($B15,參數!$F$44:$G$51,2,TRUE)),2)) -> 0 | W15: =IF($A15="","",ROUND(MAX(T15*VLOOKUP($A15,SA!$A:$B,2,FALSE),ROUND(T15*VLOOKUP(index,GP!$A$2:$E$407,5,FALSE)/10000,2)*MIN($A15,plan),Z15*VLOOKUP($B15,參數!$F$44:$G$51,2,TRUE)),2)) -> 0 | X15: =IF(R15="","",ROUND((R15*VLOOKUP(index,PUA!$A:$DK,4+A15,FALSE)/10000+IF($B15>=109,0,IF($B15>=65,IFERROR(R14,0)*$CJ$10,0))),2)) -> 0 | Y15: =IF(S15="","",ROUND((S15*VLOOKUP(index,PUA!$A:$DK,4+A15,FALSE)/10000+IF($B15>=109,0,IF($B15>=65,S14*$CJ$10,0))),2)) -> 0 | Z15: =IF(T15="","",ROUND((T15*VLOOKUP(index,PUA!$A:$DK,4+A15,FALSE)/10000+IF($B15>=109,0,IF($B15>=65,T14*$CJ$10,0))),2)) -> 0 | AA15: =IF(A15="","",SA+IF(DIV=4,R15,0)) -> 100000 | AB15: =IF(A15="","",SA+IF(DIV=4,S15,0)) -> 100000 | AC15: =IF(A15="","",SA+IF(DIV=4,T15,0)) -> 100000 | AD15: =IF(A15="","",C15+IF(DIV=4,U15,0)+L15) -> 25201.26 | AE15: =IF(A15="","",C15+IF(DIV=4,V15,0)+M15) -> 25201.26 | AF15: =IF(A15="","",C15+IF(DIV=4,W15,0)+N15) -> 25201.26 | AG15: =IF(A15="","",E15+IF(DIV=4,X15,0)+O15) -> 10500.6 | AH15: =IF(A15="","",E15+IF(DIV=4,Y15,0)+P15) -> 10500.6 | AI15: =IF(A15="","",E15+IF(DIV=4,Z15,0)+Q15) -> 10500.6 | AJ15: =IF(A15="","",IF(DIV=4,IF(A15=1,0,ROUND(I15/VLOOKUP(B15+1,PUA_Tab,sex+1)*10000,0)),"")) -> 0 | AK15: =IF(A15="","",IF(DIV=4,IF(A15=1,0,ROUND(J15/VLOOKUP(B15+1,PUA_Tab,sex+1)*10000,0)),"")) -> 0 | AL15: =IF(A15="","",IF(DIV=4,IF(A15=1,0,ROUND(K15/VLOOKUP(B15+1,PUA_Tab,sex+1)*10000,0)),"")) -> 0 | AM15: =IF($A15="","",IF($A15>plan,0,ROUND(ROUND(SA*VLOOKUP(index,GP!$A$2:$E$407,5,FALSE)/10000*PremRate*(1-SA_disc-Prem_disc),2)*(1-PayModeDisc1),2)*IF(LEFT(ChargeMode,1)="月",2,1)*IF($A15=1,1,0)+ ROUND(ROUND(SA*VLOOKUP(index,GP!$A$2:$E$407,5,FALSE)/10000*PremRate*(1-SA_disc-Prem_disc),2)*(1-PayModeDisc2),2)*(VLOOKUP(LEFT(ChargeMode,1),參數!$J$23:$L$27,3,FALSE)-IF(LEFT(ChargeMode,1)="月",2,1)*IF($A15=1,1,0)))) -> 20265.3 | AN15: =IF(A15="","",SUM($AM$15:AM15)) -> 20265.3 | AO15: =IF(A15="","",ROUND(SA*VLOOKUP(index,GP!$A$2:$E$407,5,FALSE)/10000,2)*MIN(A15,plan)) -> 20470 | AP15: =IF(A15="","",IF(B15+1>110,0,IF(B15>=參數!$B$56,IF(AND(B15>=參數!$B$58,參數!$G$59="0"),IF(AND(B15>=參數!$B$60,參數!$G$61="0"),參數!$D$60,參數!$D$58),參數!$D$56),0)+IF(B15=參數!$B$71,參數!$D$71,0)+IF(B15=參數!$B$73,參數!$D$73,0)+IF(B15=參數!$B$75,參數!$D$75,0))) -> 0 | AQ15: =IF(A15="","",ROUND(AR14*AT15,2)) -> 0 | AR15: =IF(A15="","",AH15/SA) -> 0.105006 | AS15: =IF(A15="","",S15) -> 0 | AT15: =IF(A15="","",IF(B15>110,0,IF(A15=1,0,MIN(AW14,ROUNDUP(AP15/AR14,0))))) -> 0 | AW15: =IF(A15="","",AW14-AT15) -> 100000 | AY15: =IF(A15="","",ROUNDUP(AW15*AR15,2)) -> 10500.6 | AZ15: =IF(A15="","",ROUNDUP(AE15*AW15/SA,2)) -> 25201.26 | BA15: =IF(A15="","",SUM($AQ$15:AQ15)) -> 0 | BB15: =IF(A15="","",BA15+AY15) -> 10500.6 | BC15: =AP15 -> 0 | BD15: =IF(A15="","",ROUND(BG15*BE14,2)) -> 0 | BE15: =IF(A15="","",AI15/SA) -> 0.105006 | BF15: =IF(A15="","",T15) -> 0 | BG15: =IF(A15="","",IF(B15>110,0,IF(A15=1,0,MIN(BJ14,ROUNDUP(BC15/BE14,0))))) -> 0 | BJ15: =IF(A15="","",BJ14-BG15) -> 100000 | BL15: =IF(A15="","",ROUNDUP(BJ15*BE15,2)) -> 10500.6 | BM15: =IF(A15="","",ROUNDUP(AF15*BJ15/SA,2)) -> 25201.26 | BN15: =IF(A15="","",SUM($BD$15:BD15)) -> 0 | BO15: =IF(A15="","",BN15+BL15) -> 10500.6 | BP15: =IF(A15="","",IF(B15<65,0,SA*$CJ$9*(MIN(108,B15)-65+1))) -> 0 | BQ15: =IF(A15="","",IF(A15=1,0,(BQ13)*(1+PUA_int)+I15)) -> 0 | BS15: =IF(A15="","",IF(DIV=4,IF(A15=1,0,ROUND(I15/VLOOKUP(B15+1,PUA_Tab,sex+1,0)*10000,0)),0)) -> 0 | BT15: =IF(A15="","",IF(DIV=4,IF(A15=1,0,ROUND(J15/VLOOKUP(B15+1,PUA_Tab,sex+1,0)*10000,0)),0)) -> 0 | BU15: =IF(A15="","",IF(DIV=4,IF(A15=1,0,ROUND(K15/VLOOKUP(B15+1,PUA_Tab,sex+1,0)*10000,0)),0)) -> 0 | BV15: =SUM($BS15:BS$15) -> 0 | BW15: =SUM($BT15:BT$15) -> 0 | BX15: =SUM($BU15:BU$15) -> 0 | BY15: =IF($B15>=109,0,IF($B15>=65,(BV15-BS15+SA)*$CJ$9,0)) -> 0 | BZ15: =IF($B15>=109,0,IF($B15>=65,(BW15-BT15+SA)*$CJ$9,0)) -> 0 | CA15: =IF($B15>=109,0,IF($B15>=65,(BX15-BU15+SA)*$CJ$9,0)) -> 0 | CB15: =SUM($BY15:BY$15) -> 0 | CC15: =SUM($BZ15:BZ$15) -> 0 | CD15: =SUM($CA15:CA$15) -> 0 | CE15: =ROUND(IF($A15=1,I15,CE13*(1+PUA_int)+I15),2) -> 0 | CF15: =ROUND(IF($A15=1,J15,CF13*(1+PUA_int)+J15),2) -> 0 | CG15: =ROUND(IF($A15=1,K15,CG13*(1+PUA_int)+K15),2) -> 0 | CI15: =C15/AN15 -> 1.243567083 | CJ15: =AE15/AN15 -> 1.243567083 | CK15: =E15/AN15 -> 0.518156652 | CL15: =AH15/AN15 -> 0.518156652 | CN15: 1 | CO15: =IF(OR($CN15>=CO$13,$CN15>2),0,-$AM16)+IF(CO$13=$CN15,$E15,0) -> 10500.6 | CP15: -20265.3 | CQ15: -20265.3 | CR15: -20265.3 | CS15: -20265.3 | CT15: -20265.3 | CU15: -20265.3 | CV15: -20265.3 | CW15: -20265.3 | CX15: -20265.3 | CY15: -20265.3 | CZ15: -20265.3 | DA15: -20265.3 | DB15: -20265.3 | DD15: 1 | DE15: =IF(OR($CN15>=DE$13,$CN15>2),0,-$AM16)+IF(DE$13=$CN15,$AH15,0) -> 10500.6 | DF15: -20265.3 | DG15: -20265.3 | DH15: -20265.3 | DI15: -20265.3 | DJ15: -20265.3 | DK15: -20265.3 | DL15: -20265.3 | DM15: -20265.3 | DN15: -20265.3 | DO15: -20265.3 | DP15: -20265.3 | DQ15: -20265.3 | DR15: -20265.3 | DT15: =IF($B15="","",AE15) -> 25201.26 | DU15: =IF($B15="","",IF(OR(-ROUND(PMT(installment_int,installment_period,DT15-ROUND(DT15*(1-installment_rate),2),0,1),2)<參數!$B$19,$B15<16),DT15,ROUND(DT15*(1-installment_rate),2))) -> 25201.26 | DV15: =IF($B15="","",IF(installment_rate=0,"",IF(OR(-ROUND(PMT(installment_int,installment_period,DT15-DU15,0,1),2)<參數!$B$19,$B15<16),"",-ROUND(PMT(installment_int,installment_period,DT15-DU15,0,1),2)))) ->  | DW15: =IF($B15="","",AF15) -> 25201.26 | DX15: =IF($B15="","",IF(OR(-ROUND(PMT(installment_int,installment_period,DW15-ROUND(DW15*(1-installment_rate),2),0,1),2)<參數!$B$19,$B15<16),DW15,ROUND(DW15*(1-installment_rate),2))) -> 25201.26 | DY15: =IF($B15="","",IF(installment_rate=0,"",IF(OR(-ROUND(PMT(installment_int,installment_period,DW15-DX15,0,1),2)<參數!$B$19,$B15<16),"",-ROUND(PMT(installment_int,installment_period,DW15-DX15,0,1),2)))) ->  | DZ15: =IF($B15="","",C15) -> 25201.26 | EA15: =IF($B15="","",IF(OR(-ROUND(PMT(installment_int,installment_period,DZ15-ROUND(DZ15*(1-installment_rate),2),0,1),2)<參數!$B$19,$B15<16),DZ15,ROUND(DZ15*(1-installment_rate),2))) -> 25201.26 | EB15: =IF($B15="","",IF(installment_rate=0,"",IF(OR(-ROUND(PMT(installment_int,installment_period,DZ15-EA15,0,1),2)<參數!$B$19,$B15<16),"",-ROUND(PMT(installment_int,installment_period,DZ15-EA15,0,1),2)))) ->  | ED15: =I15 -> 0 | EE15: =J15 -> 0 | EF15: =K15 -> 0 | EG15: =IF(ED15="","",ROUND((ED15*VLOOKUP(index,PUA!$A:$DK,4+A15,FALSE)/10000+IF($B15>=109,0,IF($B15>=65,IFERROR(ED14,0)*$CJ$10,0))),2)) -> 0 | EH15: =IF(EE15="","",ROUND((EE15*VLOOKUP(index,PUA!$A:$DK,4+A15,FALSE)/10000+IF($B15>=109,0,IF($B15>=65,EE14*$CJ$10,0))),2)) -> 0 | EI15: =IF(EF15="","",ROUND((EF15*VLOOKUP(index,PUA!$A:$DK,4+A15,FALSE)/10000+IF($B15>=109,0,IF($B15>=65,EF14*$CJ$10,0))),2)) -> 0 | EK15: =AP15 -> 0 | EL15: =IF(A15="","",ROUND(EN15*EM14,2)) -> 0 | EM15: =IF(A15="","",AG15/SA) -> 0.105006 | EN15: =IF(A15="","",IF(B15>110,0,IF(A15=1,0,MIN(EO14,ROUNDUP(EK15/EM14,0))))) -> 0 | EO15: =IF(A15="","",EO14-EN15) -> 100000 | EP15: =IF(A15="","",ROUNDUP(EO15*EM15,2)) -> 10500.6 | EQ15: =IF(A15="","",ROUNDUP(AD15*EO15/SA,2)) -> 25201.26 | ER15: =IF(A15="","",SUM($EL$15:EL15)) -> 0 | ES15: =IF(A15="","",ER15+EP15) -> 10500.6 | EU15: =AQ15 -> 0 | EV15: =BA15 -> 0 | EW15: =BD15 -> 0 | EX15: =BN15 -> 0 | EY15: =EL15 -> 0 | EZ15: =ER15 -> 0
A16: =IF(A15>=110-age+1,"",A15+1) -> 2 | B16: 41 | C16: =IF(A16="","",ROUND(MAX(SA*VLOOKUP($A16,SA!$A:$B,2,FALSE),MAX(0,AO16-BP16),D16*VLOOKUP($B16,參數!$F$44:$G$51,2,TRUE)),2)) -> 52385.76 | D16: 32741.1 | E16: 24555.9 | F16: 0 | G16: 0 | H16: 0 | I16: =IF($A16="","",0) -> 0 | J16: =IF($A16="","",ROUNDUP(SA*VLOOKUP(index,DIVM_Tab,4+$A16,FALSE)/10000+S15*VLOOKUP(index,DIV_RB_M!$A:$DK,4+$A16,FALSE)/10000,0)) -> 0 | K16: =IF($A16="","",ROUNDUP(SA*VLOOKUP(index,DIVL_Tab,4+$A16,FALSE)/10000+T15*VLOOKUP(index,DIV_RB_L!$A:$DK,4+$A16,FALSE)/10000,0)) -> 0 | L16: =IF($A16="","",0) -> 0 | M16: =IF($A16="","",ROUNDUP(SA*VLOOKUP(index,'DIV(身故)_M'!$A:$DK,4+$A16,FALSE)/10000,0)) -> 0 | N16: =IF($A16="","",ROUNDUP(SA*VLOOKUP(index,'DIV(身故)_L'!$A:$DK,4+$A16,FALSE)/10000,0)) -> 0 | O16: =IF($A16="","",0) -> 0 | P16: =IF($A16="","",ROUNDUP(SA*VLOOKUP(index,'DIV(解約)_M'!$A:$DK,4+$A16,FALSE)/10000,0)) -> 0 | Q16: =IF($A16="","",ROUNDUP(SA*VLOOKUP(index,'DIV(解約)_L'!$A:$DK,4+$A16,FALSE)/10000,0)) -> 0 | R16: =IF(A16="","",IF(DIV=4,SUM($I$15:I16),"")) -> 0 | S16: =IF(A16="","",IF(DIV=4,SUM($J$15:J16),"")) -> 0 | T16: =IF(A16="","",IF(DIV=4,SUM($K$15:K16),"")) -> 0 | U16: =IF($A16="","",ROUND(MAX(R16*VLOOKUP($A16,SA!$A:$B,2,FALSE),ROUND(R16*VLOOKUP(index,GP!$A$2:$E$407,5,FALSE)/10000,2)*MIN($A16,plan),X16*VLOOKUP($B16,參數!$F$44:$G$51,2,TRUE)),2)) -> 0 | V16: =IF($A16="","",ROUND(MAX(S16*VLOOKUP($A16,SA!$A:$B,2,FALSE),ROUND(S16*VLOOKUP(index,GP!$A$2:$E$407,5,FALSE)/10000,2)*MIN($A16,plan),Y16*VLOOKUP($B16,參數!$F$44:$G$51,2,TRUE)),2)) -> 0 | W16: =IF($A16="","",ROUND(MAX(T16*VLOOKUP($A16,SA!$A:$B,2,FALSE),ROUND(T16*VLOOKUP(index,GP!$A$2:$E$407,5,FALSE)/10000,2)*MIN($A16,plan),Z16*VLOOKUP($B16,參數!$F$44:$G$51,2,TRUE)),2)) -> 0 | X16: =IF(R16="","",ROUND((R16*VLOOKUP(index,PUA!$A:$DK,4+A16,FALSE)/10000+IF($B16>=109,0,IF($B16>=65,IFERROR(R15,0)*$CJ$10,0))),2)) -> 0 | Y16: =IF(S16="","",ROUND((S16*VLOOKUP(index,PUA!$A:$DK,4+A16,FALSE)/10000+IF($B16>=109,0,IF($B16>=65,S15*$CJ$10,0))),2)) -> 0 | Z16: =IF(T16="","",ROUND((T16*VLOOKUP(index,PUA!$A:$DK,4+A16,FALSE)/10000+IF($B16>=109,0,IF($B16>=65,T15*$CJ$10,0))),2)) -> 0 | AA16: 100000 | AB16: 100000 | AC16: 100000 | AD16: 52385.76 | AE16: 52385.76 | AF16: 52385.76 | AG16: =IF(A16="","",E16+IF(DIV=4,X16,0)+O16) -> 24555.9 | AH16: =IF(A16="","",E16+IF(DIV=4,Y16,0)+P16) -> 24555.9 | AI16: 24555.9 | AM16: =IF($A16="","",IF($A16>plan,0,ROUND(ROUND(SA*VLOOKUP(index,GP!$A$2:$E$407,5,FALSE)/10000*PremRate*(1-SA_disc-Prem_disc),2)*(1-PayModeDisc1),2)*IF(LEFT(ChargeMode,1)="月",2,1)*IF($A16=1,1,0)+ ROUND(ROUND(SA*VLOOKUP(index,GP!$A$2:$E$407,5,FALSE)/10000*PremRate*(1-SA_disc-Prem_disc),2)*(1-PayModeDisc2),2)*(VLOOKUP(LEFT(ChargeMode,1),參數!$J$23:$L$27,3,FALSE)-IF(LEFT(ChargeMode,1)="月",2,1)*IF($A16=1,1,0)))) -> 20265.3 | AN16: =IF(A16="","",SUM($AM$15:AM16)) -> 40530.6 | AO16: =IF(A16="","",ROUND(SA*VLOOKUP(index,GP!$A$2:$E$407,5,FALSE)/10000,2)*MIN(A16,plan)) -> 40940 | AP16: =IF(A16="","",IF(B16+1>110,0,IF(B16>=參數!$B$56,IF(AND(B16>=參數!$B$58,參數!$G$59="0"),IF(AND(B16>=參數!$B$60,參數!$G$61="0"),參數!$D$60,參數!$D$58),參數!$D$56),0)+IF(B16=參數!$B$71,參數!$D$71,0)+IF(B16=參數!$B$73,參數!$D$73,0)+IF(B16=參數!$B$75,參數!$D$75,0))) -> 0 | AQ16: =IF(A16="","",ROUND(AR15*AT16,2)) -> 0 | AR16: 0.245559 | AS16: =IF(A16="","",S16) -> 0 | AT16: =IF(A16="","",IF(B16>110,0,IF(A16=1,0,MIN(AW15,ROUNDUP(AP16/AR15,0))))) -> 0 | AW16: =IF(A16="","",AW15-AT16) -> 100000 | AY16: =IF(A16="","",ROUNDUP(AW16*AR16,2)) -> 24555.9 | AZ16: 52385.76 | BA16: =IF(A16="","",SUM($AQ$15:AQ16)) -> 0 | BB16: =IF(A16="","",BA16+AY16) -> 24555.9 | BC16: =AP16 -> 0 | BD16: =IF(A16="","",ROUND(BG16*BE15,2)) -> 0 | BE16: 0.245559 | BF16: =IF(A16="","",T16) -> 0 | BG16: =IF(A16="","",IF(B16>110,0,IF(A16=1,0,MIN(BJ15,ROUNDUP(BC16/BE15,0))))) -> 0 | BJ16: =IF(A16="","",BJ15-BG16) -> 100000 | BL16: =IF(A16="","",ROUNDUP(BJ16*BE16,2)) -> 24555.9 | BM16: 52385.76 | BN16: =IF(A16="","",SUM($BD$15:BD16)) -> 0 | BO16: =IF(A16="","",BN16+BL16) -> 24555.9 | BP16: 0 | BQ16: =IF(A16="","",IF(A16=1,0,(BQ15)*(1+PUA_int)+I16)) -> 0 | BS16: =IF(A16="","",IF(DIV=4,IF(A16=1,0,ROUND(I16/VLOOKUP(B16+1,PUA_Tab,sex+1,0)*10000,0)),0)) ->  | BT16: =IF(A16="","",IF(DIV=4,IF(A16=1,0,ROUND(J16/VLOOKUP(B16+1,PUA_Tab,sex+1,0)*10000,0)),0)) ->  | BU16: =IF(A16="","",IF(DIV=4,IF(A16=1,0,ROUND(K16/VLOOKUP(B16+1,PUA_Tab,sex+1,0)*10000,0)),0)) ->  | BV16: =SUM($BS$15:BS16) ->  | BW16: =SUM($BT$15:BT16) ->  | BX16: =SUM($BU$15:BU16) ->  | BY16: =IF($B16>=109,0,IF($B16>=65,(BV16-BS16+SA)*$CJ$9,0)) -> 0 | BZ16: 0 | CA16: 0 | CB16: =SUM($BY$15:BY16) -> 0 | CC16: =SUM($BZ$15:BZ16) -> 0 | CD16: =SUM($CA$15:CA16) -> 0 | CE16: =ROUND(IF($A16=1,I16,CE15*(1+PUA_int)+I16),2) -> 0 | CF16: =ROUND(IF($A16=1,J16,CF15*(1+PUA_int)+J16),2) -> 0 | CG16: =ROUND(IF($A16=1,K16,CG15*(1+PUA_int)+K16),2) -> 0 | CI16: =C16/AN16 -> 1.292499001 | CJ16: =AE16/AN16 -> 1.292499001 | CK16: =E16/AN16 -> 0.6058607571 | CL16: =AH16/AN16 -> 0.6058607571 | CN16: 2 | CO16: 0 | CP16: 24555.9 | CQ16: -20265.3 | CR16: -20265.3 | CS16: -20265.3 | CT16: -20265.3 | CU16: -20265.3 | CV16: -20265.3 | CW16: -20265.3 | CX16: -20265.3 | CY16: -20265.3 | CZ16: -20265.3 | DA16: -20265.3 | DB16: -20265.3 | DD16: 2 | DE16: 0 | DF16: 24555.9 | DG16: -20265.3 | DH16: -20265.3 | DI16: -20265.3 | DJ16: -20265.3 | DK16: -20265.3 | DL16: -20265.3 | DM16: -20265.3 | DN16: -20265.3 | DO16: -20265.3 | DP16: -20265.3 | DQ16: -20265.3 | DR16: -20265.3 | DT16: 52385.76 | DU16: =IF($B16="","",IF(OR(-ROUND(PMT(installment_int,installment_period,DT16-ROUND(DT16*(1-installment_rate),2),0,1),2)<參數!$B$19,$B16<16),DT16,ROUND(DT16*(1-installment_rate),2))) -> 20954.3 | DV16: =IF($B16="","",IF(installment_rate=0,"",IF(OR(-ROUND(PMT(installment_int,installment_period,DT16-DU16,0,1),2)<參數!$B$19,$B16<16),"",-ROUND(PMT(installment_int,installment_period,DT16-DU16,0,1),2)))) -> 6474.86 | DW16: 52385.76 | DX16: =IF($B16="","",IF(OR(-ROUND(PMT(installment_int,installment_period,DW16-ROUND(DW16*(1-installment_rate),2),0,1),2)<參數!$B$19,$B16<16),DW16,ROUND(DW16*(1-installment_rate),2))) -> 20954.3 | DY16: =IF($B16="","",IF(installment_rate=0,"",IF(OR(-ROUND(PMT(installment_int,installment_period,DW16-DX16,0,1),2)<參數!$B$19,$B16<16),"",-ROUND(PMT(installment_int,installment_period,DW16-DX16,0,1),2)))) -> 6474.86 | DZ16: 52385.76 | EA16: =IF($B16="","",IF(OR(-ROUND(PMT(installment_int,installment_period,DZ16-ROUND(DZ16*(1-installment_rate),2),0,1),2)<參數!$B$19,$B16<16),DZ16,ROUND(DZ16*(1-installment_rate),2))) -> 20954.3 | EB16: =IF($B16="","",IF(installment_rate=0,"",IF(OR(-ROUND(PMT(installment_int,installment_period,DZ16-EA16,0,1),2)<參數!$B$19,$B16<16),"",-ROUND(PMT(installment_int,installment_period,DZ16-EA16,0,1),2)))) -> 6474.86 | ED16: =I16 -> 0 | EE16: =J16 -> 0 | EF16: =K16 -> 0 | EG16: =IF(ED16="","",ROUND((ED16*VLOOKUP(index,PUA!$A:$DK,4+A16,FALSE)/10000+IF($B16>=109,0,IF($B16>=65,IFERROR(ED15,0)*$CJ$10,0))),2)) -> 0 | EH16: =IF(EE16="","",ROUND((EE16*VLOOKUP(index,PUA!$A:$DK,4+A16,FALSE)/10000+IF($B16>=109,0,IF($B16>=65,EE15*$CJ$10,0))),2)) -> 0 | EI16: =IF(EF16="","",ROUND((EF16*VLOOKUP(index,PUA!$A:$DK,4+A16,FALSE)/10000+IF($B16>=109,0,IF($B16>=65,EF15*$CJ$10,0))),2)) -> 0 | EK16: =AP16 -> 0 | EL16: =IF(A16="","",ROUND(EN16*EM15,2)) -> 0 | EM16: 0.245559 | EN16: =IF(A16="","",IF(B16>110,0,IF(A16=1,0,MIN(EO15,ROUNDUP(EK16/EM15,0))))) -> 0 | EO16: =IF(A16="","",EO15-EN16) -> 100000 | EP16: =IF(A16="","",ROUNDUP(EO16*EM16,2)) -> 24555.9 | EQ16: 52385.76 | ER16: =IF(A16="","",SUM($EL$15:EL16)) -> 0 | ES16: =IF(A16="","",ER16+EP16) -> 24555.9 | EU16: =AQ16 -> 0 | EV16: =BA16 -> 0 | EW16: =BD16 -> 0 | EX16: =BN16 -> 0 | EY16: =EL16 -> 0 | EZ16: =ER16 -> 0
A17: 3 | B17: 42 | C17: =IF(A17="","",ROUND(MAX(SA*VLOOKUP($A17,SA!$A:$B,2,FALSE),MAX(0,AO17-BP17),D17*VLOOKUP($B17,參數!$F$44:$G$51,2,TRUE)),2)) -> 82870.24 | D17: 51793.9 | E17: 41435.2 | F17: 0 | G17: 0 | H17: 0 | I17: 0 | J17: =IF($A17="","",ROUNDUP(SA*VLOOKUP(index,DIVM_Tab,4+$A17,FALSE)/10000+S16*VLOOKUP(index,DIV_RB_M!$A:$DK,4+$A17,FALSE)/10000,0)) -> 150 | K17: =IF($A17="","",ROUNDUP(SA*VLOOKUP(index,DIVL_Tab,4+$A17,FALSE)/10000+T16*VLOOKUP(index,DIV_RB_L!$A:$DK,4+$A17,FALSE)/10000,0)) -> 45 | L17: 0 | M17: =IF($A17="","",ROUNDUP(SA*VLOOKUP(index,'DIV(身故)_M'!$A:$DK,4+$A17,FALSE)/10000,0)) -> 0 | N17: =IF($A17="","",ROUNDUP(SA*VLOOKUP(index,'DIV(身故)_L'!$A:$DK,4+$A17,FALSE)/10000,0)) -> 0 | O17: 0 | P17: =IF($A17="","",ROUNDUP(SA*VLOOKUP(index,'DIV(解約)_M'!$A:$DK,4+$A17,FALSE)/10000,0)) -> 0 | Q17: =IF($A17="","",ROUNDUP(SA*VLOOKUP(index,'DIV(解約)_L'!$A:$DK,4+$A17,FALSE)/10000,0)) -> 0 | R17: =IF(A17="","",IF(DIV=4,SUM($I$15:I17),"")) -> 0 | S17: =IF(A17="","",IF(DIV=4,SUM($J$15:J17),"")) -> 150 | T17: =IF(A17="","",IF(DIV=4,SUM($K$15:K17),"")) -> 45 | U17: =IF($A17="","",ROUND(MAX(R17*VLOOKUP($A17,SA!$A:$B,2,FALSE),ROUND(R17*VLOOKUP(index,GP!$A$2:$E$407,5,FALSE)/10000,2)*MIN($A17,plan),X17*VLOOKUP($B17,參數!$F$44:$G$51,2,TRUE)),2)) -> 0 | V17: =IF($A17="","",ROUND(MAX(S17*VLOOKUP($A17,SA!$A:$B,2,FALSE),ROUND(S17*VLOOKUP(index,GP!$A$2:$E$407,5,FALSE)/10000,2)*MIN($A17,plan),Y17*VLOOKUP($B17,參數!$F$44:$G$51,2,TRUE)),2)) -> 124.3 | W17: =IF($A17="","",ROUND(MAX(T17*VLOOKUP($A17,SA!$A:$B,2,FALSE),ROUND(T17*VLOOKUP(index,GP!$A$2:$E$407,5,FALSE)/10000,2)*MIN($A17,plan),Z17*VLOOKUP($B17,參數!$F$44:$G$51,2,TRUE)),2)) -> 37.3 | X17: =IF(R17="","",ROUND((R17*VLOOKUP(index,PUA!$A:$DK,4+A17,FALSE)/10000+IF($B17>=109,0,IF($B17>=65,IFERROR(R16,0)*$CJ$10,0))),2)) -> 0 | Y17: =IF(S17="","",ROUND((S17*VLOOKUP(index,PUA!$A:$DK,4+A17,FALSE)/10000+IF($B17>=109,0,IF($B17>=65,S16*$CJ$10,0))),2)) -> 77.69 | Z17: =IF(T17="","",ROUND((T17*VLOOKUP(index,PUA!$A:$DK,4+A17,FALSE)/10000+IF($B17>=109,0,IF($B17>=65,T16*$CJ$10,0))),2)) -> 23.31 | AA17: 100000 | AB17: 100150 | AC17: 100045 | AD17: 82870.24 | AE17: 82994.54 | AF17: 82907.54 | AG17: 41435.2 | AH17: 41512.89 | AI17: 41458.51 | AM17: =IF($A17="","",IF($A17>plan,0,ROUND(ROUND(SA*VLOOKUP(index,GP!$A$2:$E$407,5,FALSE)/10000*PremRate*(1-SA_disc-Prem_disc),2)*(1-PayModeDisc1),2)*IF(LEFT(ChargeMode,1)="月",2,1)*IF($A17=1,1,0)+ ROUND(ROUND(SA*VLOOKUP(index,GP!$A$2:$E$407,5,FALSE)/10000*PremRate*(1-SA_disc-Prem_disc),2)*(1-PayModeDisc2),2)*(VLOOKUP(LEFT(ChargeMode,1),參數!$J$23:$L$27,3,FALSE)-IF(LEFT(ChargeMode,1)="月",2,1)*IF($A17=1,1,0)))) -> 20265.3 | AN17: =IF(A17="","",SUM($AM$15:AM17)) -> 60795.9 | AO17: =IF(A17="","",ROUND(SA*VLOOKUP(index,GP!$A$2:$E$407,5,FALSE)/10000,2)*MIN(A17,plan)) -> 61410 | AP17: =IF(A17="","",IF(B17+1>110,0,IF(B17>=參數!$B$56,IF(AND(B17>=參數!$B$58,參數!$G$59="0"),IF(AND(B17>=參數!$B$60,參數!$G$61="0"),參數!$D$60,參數!$D$58),參數!$D$56),0)+IF(B17=參數!$B$71,參數!$D$71,0)+IF(B17=參數!$B$73,參數!$D$73,0)+IF(B17=參數!$B$75,參數!$D$75,0))) -> 0 | AQ17: 0 | AR17: 0.4151289 | AS17: 150 | AT17: 0 | AW17: 100000 | AY17: 41512.89 | AZ17: 82994.54 | BA17: =IF(A17="","",SUM($AQ$15:AQ17)) -> 0 | BB17: 41512.89 | BC17: 0 | BD17: 0 | BE17: 0.4145851 | BF17: 45 | BG17: 0 | BJ17: 100000 | BL17: 41458.51 | BM17: 82907.54 | BN17: =IF(A17="","",SUM($BD$15:BD17)) -> 0 | BO17: 41458.51 | BP17: 0 | BQ17: 0 | BV17: =SUM($BS$15:BS17) ->  | BW17: =SUM($BT$15:BT17) ->  | BX17: =SUM($BU$15:BU17) ->  | BY17: 0 | BZ17: 0 | CA17: 0 | CB17: =SUM($BY$15:BY17) -> 0 | CC17: =SUM($BZ$15:BZ17) -> 0 | CD17: =SUM($CA$15:CA17) -> 0 | CE17: 0 | CF17: 150 | CG17: 45 | CI17: 1.363089287 | CJ17: 1.365133833 | CK17: 0.6815459595 | CL17: 0.6828238417 | CN17: 3 | CO17: 0 | CP17: 0 | CQ17: 41435.2 | CR17: 0 | CS17: 0 | CT17: 0 | CU17: 0 | CV17: 0 | CW17: 0 | CX17: 0 | CY17: 0 | CZ17: 0 | DA17: 0 | DB17: 0 | DD17: 3 | DE17: 0 | DF17: 0 | DG17: 41512.89 | DH17: 0 | DI17: 0 | DJ17: 0 | DK17: 0 | DL17: 0 | DM17: 0 | DN17: 0 | DO17: 0 | DP17: 0 | DQ17: 0 | DR17: 0 | DT17: 82994.54 | DU17: =IF($B17="","",IF(OR(-ROUND(PMT(installment_int,installment_period,DT17-ROUND(DT17*(1-installment_rate),2),0,1),2)<參數!$B$19,$B17<16),DT17,ROUND(DT17*(1-installment_rate),2))) -> 33197.82 | DV17: =IF($B17="","",IF(installment_rate=0,"",IF(OR(-ROUND(PMT(installment_int,installment_period,DT17-DU17,0,1),2)<參數!$B$19,$B17<16),"",-ROUND(PMT(installment_int,installment_period,DT17-DU17,0,1),2)))) -> 10258.09 | DW17: 82907.54 | DX17: =IF($B17="","",IF(OR(-ROUND(PMT(installment_int,installment_period,DW17-ROUND(DW17*(1-installment_rate),2),0,1),2)<參數!$B$19,$B17<16),DW17,ROUND(DW17*(1-installment_rate),2))) -> 33163.02 | DY17: =IF($B17="","",IF(installment_rate=0,"",IF(OR(-ROUND(PMT(installment_int,installment_period,DW17-DX17,0,1),2)<參數!$B$19,$B17<16),"",-ROUND(PMT(installment_int,installment_period,DW17-DX17,0,1),2)))) -> 10247.34 | DZ17: 82870.24 | EA17: =IF($B17="","",IF(OR(-ROUND(PMT(installment_int,installment_period,DZ17-ROUND(DZ17*(1-installment_rate),2),0,1),2)<參數!$B$19,$B17<16),DZ17,ROUND(DZ17*(1-installment_rate),2))) -> 33148.1 | EB17: =IF($B17="","",IF(installment_rate=0,"",IF(OR(-ROUND(PMT(installment_int,installment_period,DZ17-EA17,0,1),2)<參數!$B$19,$B17<16),"",-ROUND(PMT(installment_int,installment_period,DZ17-EA17,0,1),2)))) -> 10242.73 | ED17: 0 | EE17: 150 | EF17: 45 | EG17: =IF(ED17="","",ROUND((ED17*VLOOKUP(index,PUA!$A:$DK,4+A17,FALSE)/10000+IF($B17>=109,0,IF($B17>=65,IFERROR(ED16,0)*$CJ$10,0))),2)) -> 0 | EH17: =IF(EE17="","",ROUND((EE17*VLOOKUP(index,PUA!$A:$DK,4+A17,FALSE)/10000+IF($B17>=109,0,IF($B17>=65,EE16*$CJ$10,0))),2)) -> 77.69 | EI17: =IF(EF17="","",ROUND((EF17*VLOOKUP(index,PUA!$A:$DK,4+A17,FALSE)/10000+IF($B17>=109,0,IF($B17>=65,EF16*$CJ$10,0))),2)) -> 23.31 | EK17: 0 | EL17: 0 | EM17: 0.414352 | EN17: 0 | EO17: 100000 | EP17: 41435.2 | EQ17: 82870.24 | ER17: =IF(A17="","",SUM($EL$15:EL17)) -> 0 | ES17: 41435.2 | EU17: 0 | EV17: 0 | EW17: 0 | EX17: 0 | EY17: 0 | EZ17: 0
A18: 4 | B18: 43 | C18: =IF(A18="","",ROUND(MAX(SA*VLOOKUP($A18,SA!$A:$B,2,FALSE),MAX(0,AO18-BP18),D18*VLOOKUP($B18,參數!$F$44:$G$51,2,TRUE)),2)) -> 84220.64 | D18: 52637.9 | E18: 47374.2 | F18: 0 | G18: 0 | H18: 0 | I18: 0 | J18: =IF($A18="","",ROUNDUP(SA*VLOOKUP(index,DIVM_Tab,4+$A18,FALSE)/10000+S17*VLOOKUP(index,DIV_RB_M!$A:$DK,4+$A18,FALSE)/10000,0)) -> 342 | K18: =IF($A18="","",ROUNDUP(SA*VLOOKUP(index,DIVL_Tab,4+$A18,FALSE)/10000+T17*VLOOKUP(index,DIV_RB_L!$A:$DK,4+$A18,FALSE)/10000,0)) -> 98 | L18: 0 | M18: =IF($A18="","",ROUNDUP(SA*VLOOKUP(index,'DIV(身故)_M'!$A:$DK,4+$A18,FALSE)/10000,0)) -> 0 | N18: =IF($A18="","",ROUNDUP(SA*VLOOKUP(index,'DIV(身故)_L'!$A:$DK,4+$A18,FALSE)/10000,0)) -> 0 | O18: 0 | P18: =IF($A18="","",ROUNDUP(SA*VLOOKUP(index,'DIV(解約)_M'!$A:$DK,4+$A18,FALSE)/10000,0)) -> 0 | Q18: =IF($A18="","",ROUNDUP(SA*VLOOKUP(index,'DIV(解約)_L'!$A:$DK,4+$A18,FALSE)/10000,0)) -> 0 | R18: =IF(A18="","",IF(DIV=4,SUM($I$15:I18),"")) -> 0 | S18: =IF(A18="","",IF(DIV=4,SUM($J$15:J18),"")) -> 492 | T18: =IF(A18="","",IF(DIV=4,SUM($K$15:K18),"")) -> 143 | U18: =IF($A18="","",ROUND(MAX(R18*VLOOKUP($A18,SA!$A:$B,2,FALSE),ROUND(R18*VLOOKUP(index,GP!$A$2:$E$407,5,FALSE)/10000,2)*MIN($A18,plan),X18*VLOOKUP($B18,參數!$F$44:$G$51,2,TRUE)),2)) -> 0 | V18: =IF($A18="","",ROUND(MAX(S18*VLOOKUP($A18,SA!$A:$B,2,FALSE),ROUND(S18*VLOOKUP(index,GP!$A$2:$E$407,5,FALSE)/10000,2)*MIN($A18,plan),Y18*VLOOKUP($B18,參數!$F$44:$G$51,2,TRUE)),2)) -> 414.37 | W18: =IF($A18="","",ROUND(MAX(T18*VLOOKUP($A18,SA!$A:$B,2,FALSE),ROUND(T18*VLOOKUP(index,GP!$A$2:$E$407,5,FALSE)/10000,2)*MIN($A18,plan),Z18*VLOOKUP($B18,參數!$F$44:$G$51,2,TRUE)),2)) -> 120.43 | X18: =IF(R18="","",ROUND((R18*VLOOKUP(index,PUA!$A:$DK,4+A18,FALSE)/10000+IF($B18>=109,0,IF($B18>=65,IFERROR(R17,0)*$CJ$10,0))),2)) -> 0 | Y18: =IF(S18="","",ROUND((S18*VLOOKUP(index,PUA!$A:$DK,4+A18,FALSE)/10000+IF($B18>=109,0,IF($B18>=65,S17*$CJ$10,0))),2)) -> 258.98 | Z18: =IF(T18="","",ROUND((T18*VLOOKUP(index,PUA!$A:$DK,4+A18,FALSE)/10000+IF($B18>=109,0,IF($B18>=65,T17*$CJ$10,0))),2)) -> 75.27 | AA18: 100000 | AB18: 100492 | AC18: 100143 | AD18: 84220.64 | AE18: 84635.01 | AF18: 84341.07 | AG18: 47374.2 | AH18: 47633.18 | AI18: 47449.47 | AM18: =IF($A18="","",IF($A18>plan,0,ROUND(ROUND(SA*VLOOKUP(index,GP!$A$2:$E$407,5,FALSE)/10000*PremRate*(1-SA_disc-Prem_disc),2)*(1-PayModeDisc1),2)*IF(LEFT(ChargeMode,1)="月",2,1)*IF($A18=1,1,0)+ ROUND(ROUND(SA*VLOOKUP(index,GP!$A$2:$E$407,5,FALSE)/10000*PremRate*(1-SA_disc-Prem_disc),2)*(1-PayModeDisc2),2)*(VLOOKUP(LEFT(ChargeMode,1),參數!$J$23:$L$27,3,FALSE)-IF(LEFT(ChargeMode,1)="月",2,1)*IF($A18=1,1,0)))) -> 0 | AN18: =IF(A18="","",SUM($AM$15:AM18)) -> 60795.9 | AO18: =IF(A18="","",ROUND(SA*VLOOKUP(index,GP!$A$2:$E$407,5,FALSE)/10000,2)*MIN(A18,plan)) -> 61410 | AP18: =IF(A18="","",IF(B18+1>110,0,IF(B18>=參數!$B$56,IF(AND(B18>=參數!$B$58,參數!$G$59="0"),IF(AND(B18>=參數!$B$60,參數!$G$61="0"),參數!$D$60,參數!$D$58),參數!$D$56),0)+IF(B18=參數!$B$71,參數!$D$71,0)+IF(B18=參數!$B$73,參數!$D$73,0)+IF(B18=參數!$B$75,參數!$D$75,0))) -> 0 | AQ18: 0 | AR18: 0.4763318 | AS18: 492 | AT18: 0 | AW18: 100000 | AY18: 47633.18 | AZ18: 84635.01 | BA18: =IF(A18="","",SUM($AQ$15:AQ18)) -> 0 | BB18: 47633.18 | BC18: 0 | BD18: 0 | BE18: 0.4744947 | BF18: 143 | BG18: 0 | BJ18: 100000 | BL18: 47449.47 | BM18: 84341.07 | BN18: =IF(A18="","",SUM($BD$15:BD18)) -> 0 | BO18: 47449.47 | BP18: 0 | BQ18: 0 | BV18: =SUM($BS$15:BS18) ->  | BW18: =SUM($BT$15:BT18) ->  | BX18: =SUM($BU$15:BU18) ->  | BY18: 0 | BZ18: 0 | CA18: 0 | CB18: =SUM($BY$15:BY18) -> 0 | CC18: =SUM($BZ$15:BZ18) -> 0 | CD18: =SUM($CA$15:CA18) -> 0 | CE18: 0 | CF18: 496.58 | CG18: 144.37 | CI18: 1.385301311 | CJ18: 1.392117067 | CK18: 0.779233468 | CL18: 0.7834932948 | CN18: 4 | CO18: 0 | CP18: 0 | CQ18: 0 | CR18: 47374.2 | CS18: 0 | CT18: 0 | CU18: 0 | CV18: 0 | CW18: 0 | CX18: 0 | CY18: 0 | CZ18: 0 | DA18: 0 | DB18: 0 | DD18: 4 | DE18: 0 | DF18: 0 | DG18: 0 | DH18: 47633.18 | DI18: 0 | DJ18: 0 | DK18: 0 | DL18: 0 | DM18: 0 | DN18: 0 | DO18: 0 | DP18: 0 | DQ18: 0 | DR18: 0 | DT18: 84635.01 | DU18: =IF($B18="","",IF(OR(-ROUND(PMT(installment_int,installment_period,DT18-ROUND(DT18*(1-installment_rate),2),0,1),2)<參數!$B$19,$B18<16),DT18,ROUND(DT18*(1-installment_rate),2))) -> 33854 | DV18: =IF($B18="","",IF(installment_rate=0,"",IF(OR(-ROUND(PMT(installment_int,installment_period,DT18-DU18,0,1),2)<參數!$B$19,$B18<16),"",-ROUND(PMT(installment_int,installment_period,DT18-DU18,0,1),2)))) -> 10460.85 | DW18: 84341.07 | DX18: =IF($B18="","",IF(OR(-ROUND(PMT(installment_int,installment_period,DW18-ROUND(DW18*(1-installment_rate),2),0,1),2)<參數!$B$19,$B18<16),DW18,ROUND(DW18*(1-installment_rate),2))) -> 33736.43 | DY18: =IF($B18="","",IF(installment_rate=0,"",IF(OR(-ROUND(PMT(installment_int,installment_period,DW18-DX18,0,1),2)<參數!$B$19,$B18<16),"",-ROUND(PMT(installment_int,installment_period,DW18-DX18,0,1),2)))) -> 10424.52 | DZ18: 84220.64 | EA18: =IF($B18="","",IF(OR(-ROUND(PMT(installment_int,installment_period,DZ18-ROUND(DZ18*(1-installment_rate),2),0,1),2)<參數!$B$19,$B18<16),DZ18,ROUND(DZ18*(1-installment_rate),2))) -> 33688.26 | EB18: =IF($B18="","",IF(installment_rate=0,"",IF(OR(-ROUND(PMT(installment_int,installment_period,DZ18-EA18,0,1),2)<參數!$B$19,$B18<16),"",-ROUND(PMT(installment_int,installment_period,DZ18-EA18,0,1),2)))) -> 10409.64 | ED18: 0 | EE18: 342 | EF18: 98 | EG18: =IF(ED18="","",ROUND((ED18*VLOOKUP(index,PUA!$A:$DK,4+A18,FALSE)/10000+IF($B18>=109,0,IF($B18>=65,IFERROR(ED17,0)*$CJ$10,0))),2)) -> 0 | EH18: =IF(EE18="","",ROUND((EE18*VLOOKUP(index,PUA!$A:$DK,4+A18,FALSE)/10000+IF($B18>=109,0,IF($B18>=65,EE17*$CJ$10,0))),2)) -> 180.02 | EI18: =IF(EF18="","",ROUND((EF18*VLOOKUP(index,PUA!$A:$DK,4+A18,FALSE)/10000+IF($B18>=109,0,IF($B18>=65,EF17*$CJ$10,0))),2)) -> 51.59 | EK18: 0 | EL18: 0 | EM18: 0.473742 | EN18: 0 | EO18: 100000 | EP18: 47374.2 | EQ18: 84220.64 | ER18: =IF(A18="","",SUM($EL$15:EL18)) -> 0 | ES18: 47374.2 | EU18: 0 | EV18: 0 | EW18: 0 | EX18: 0 | EY18: 0 | EZ18: 0
A19: 5 | B19: 44 | C19: =IF(A19="","",ROUND(MAX(SA*VLOOKUP($A19,SA!$A:$B,2,FALSE),MAX(0,AO19-BP19),D19*VLOOKUP($B19,參數!$F$44:$G$51,2,TRUE)),2)) -> 85584.48 | D19: 53490.3 | E19: 50815.8 | F19: 0 | G19: 0 | H19: 0 | I19: 0 | J19: =IF($A19="","",ROUNDUP(SA*VLOOKUP(index,DIVM_Tab,4+$A19,FALSE)/10000+S18*VLOOKUP(index,DIV_RB_M!$A:$DK,4+$A19,FALSE)/10000,0)) -> 528 | K19: =IF($A19="","",ROUNDUP(SA*VLOOKUP(index,DIVL_Tab,4+$A19,FALSE)/10000+T18*VLOOKUP(index,DIV_RB_L!$A:$DK,4+$A19,FALSE)/10000,0)) -> 147 | L19: 0 | M19: =IF($A19="","",ROUNDUP(SA*VLOOKUP(index,'DIV(身故)_M'!$A:$DK,4+$A19,FALSE)/10000,0)) -> 0 | N19: =IF($A19="","",ROUNDUP(SA*VLOOKUP(index,'DIV(身故)_L'!$A:$DK,4+$A19,FALSE)/10000,0)) -> 0 | O19: 0 | P19: =IF($A19="","",ROUNDUP(SA*VLOOKUP(index,'DIV(解約)_M'!$A:$DK,4+$A19,FALSE)/10000,0)) -> 0 | Q19: =IF($A19="","",ROUNDUP(SA*VLOOKUP(index,'DIV(解約)_L'!$A:$DK,4+$A19,FALSE)/10000,0)) -> 0 | R19: =IF(A19="","",IF(DIV=4,SUM($I$15:I19),"")) -> 0 | S19: =IF(A19="","",IF(DIV=4,SUM($J$15:J19),"")) -> 1020 | T19: =IF(A19="","",IF(DIV=4,SUM($K$15:K19),"")) -> 290 | U19: =IF($A19="","",ROUND(MAX(R19*VLOOKUP($A19,SA!$A:$B,2,FALSE),ROUND(R19*VLOOKUP(index,GP!$A$2:$E$407,5,FALSE)/10000,2)*MIN($A19,plan),X19*VLOOKUP($B19,參數!$F$44:$G$51,2,TRUE)),2)) -> 0 | V19: =IF($A19="","",ROUND(MAX(S19*VLOOKUP($A19,SA!$A:$B,2,FALSE),ROUND(S19*VLOOKUP(index,GP!$A$2:$E$407,5,FALSE)/10000,2)*MIN($A19,plan),Y19*VLOOKUP($B19,參數!$F$44:$G$51,2,TRUE)),2)) -> 872.96 | W19: =IF($A19="","",ROUND(MAX(T19*VLOOKUP($A19,SA!$A:$B,2,FALSE),ROUND(T19*VLOOKUP(index,GP!$A$2:$E$407,5,FALSE)/10000,2)*MIN($A19,plan),Z19*VLOOKUP($B19,參數!$F$44:$G$51,2,TRUE)),2)) -> 248.19 | X19: =IF(R19="","",ROUND((R19*VLOOKUP(index,PUA!$A:$DK,4+A19,FALSE)/10000+IF($B19>=109,0,IF($B19>=65,IFERROR(R18,0)*$CJ$10,0))),2)) -> 0 | Y19: =IF(S19="","",ROUND((S19*VLOOKUP(index,PUA!$A:$DK,4+A19,FALSE)/10000+IF($B19>=109,0,IF($B19>=65,S18*$CJ$10,0))),2)) -> 545.6 | Z19: =IF(T19="","",ROUND((T19*VLOOKUP(index,PUA!$A:$DK,4+A19,FALSE)/10000+IF($B19>=109,0,IF($B19>=65,T18*$CJ$10,0))),2)) -> 155.12 | AA19: 100000 | AB19: 101020 | AC19: 100290 | AD19: 85584.48 | AE19: 86457.44 | AF19: 85832.67 | AG19: 50815.8 | AH19: 51361.4 | AI19: 50970.92 | AM19: =IF($A19="","",IF($A19>plan,0,ROUND(ROUND(SA*VLOOKUP(index,GP!$A$2:$E$407,5,FALSE)/10000*PremRate*(1-SA_disc-Prem_disc),2)*(1-PayModeDisc1),2)*IF(LEFT(ChargeMode,1)="月",2,1)*IF($A19=1,1,0)+ ROUND(ROUND(SA*VLOOKUP(index,GP!$A$2:$E$407,5,FALSE)/10000*PremRate*(1-SA_disc-Prem_disc),2)*(1-PayModeDisc2),2)*(VLOOKUP(LEFT(ChargeMode,1),參數!$J$23:$L$27,3,FALSE)-IF(LEFT(ChargeMode,1)="月",2,1)*IF($A19=1,1,0)))) -> 0 | AN19: =IF(A19="","",SUM($AM$15:AM19)) -> 60795.9 | AO19: =IF(A19="","",ROUND(SA*VLOOKUP(index,GP!$A$2:$E$407,5,FALSE)/10000,2)*MIN(A19,plan)) -> 61410 | AP19: =IF(A19="","",IF(B19+1>110,0,IF(B19>=參數!$B$56,IF(AND(B19>=參數!$B$58,參數!$G$59="0"),IF(AND(B19>=參數!$B$60,參數!$G$61="0"),參數!$D$60,參數!$D$58),參數!$D$56),0)+IF(B19=參數!$B$71,參數!$D$71,0)+IF(B19=參數!$B$73,參數!$D$73,0)+IF(B19=參數!$B$75,參數!$D$75,0))) -> 0 | AQ19: 0 | AR19: 0.513614 | AS19: 1020 | AT19: 0 | AW19: 100000 | AY19: 51361.4 | AZ19: 86457.44 | BA19: =IF(A19="","",SUM($AQ$15:AQ19)) -> 0 | BB19: 51361.4 | BC19: 0 | BD19: 0 | BE19: 0.5097092 | BF19: 290 | BG19: 0 | BJ19: 100000 | BL19: 50970.92 | BM19: 85832.67 | BN19: =IF(A19="","",SUM($BD$15:BD19)) -> 0 | BO19: 50970.92 | BP19: 0 | BQ19: 0 | BV19: =SUM($BS$15:BS19) ->  | BW19: =SUM($BT$15:BT19) ->  | BX19: =SUM($BU$15:BU19) ->  | BY19: 0 | BZ19: 0 | CA19: 0 | CB19: =SUM($BY$15:BY19) -> 0 | CC19: =SUM($BZ$15:BZ19) -> 0 | CD19: =SUM($CA$15:CA19) -> 0 | CE19: 0 | CF19: 1039.73 | CG19: 295.77 | CI19: 1.407734403 | CJ19: 1.422093266 | CK19: 0.8358425486 | CL19: 0.844816838 | CN19: 5 | CO19: 0 | CP19: 0 | CQ19: 0 | CR19: 0 | CS19: 50815.8 | CT19: 0 | CU19: 0 | CV19: 0 | CW19: 0 | CX19: 0 | CY19: 0 | CZ19: 0 | DA19: 0 | DB19: 0 | DD19: 5 | DE19: 0 | DF19: 0 | DG19: 0 | DH19: 0 | DI19: 51361.4 | DJ19: 0 | DK19: 0 | DL19: 0 | DM19: 0 | DN19: 0 | DO19: 0 | DP19: 0 | DQ19: 0 | DR19: 0 | DT19: 86457.44 | DU19: =IF($B19="","",IF(OR(-ROUND(PMT(installment_int,installment_period,DT19-ROUND(DT19*(1-installment_rate),2),0,1),2)<參數!$B$19,$B19<16),DT19,ROUND(DT19*(1-installment_rate),2))) -> 34582.98 | DV19: =IF($B19="","",IF(installment_rate=0,"",IF(OR(-ROUND(PMT(installment_int,installment_period,DT19-DU19,0,1),2)<參數!$B$19,$B19<16),"",-ROUND(PMT(installment_int,installment_period,DT19-DU19,0,1),2)))) -> 10686.1 | DW19: 85832.67 | DX19: =IF($B19="","",IF(OR(-ROUND(PMT(installment_int,installment_period,DW19-ROUND(DW19*(1-installment_rate),2),0,1),2)<參數!$B$19,$B19<16),DW19,ROUND(DW19*(1-installment_rate),2))) -> 34333.07 | DY19: =IF($B19="","",IF(installment_rate=0,"",IF(OR(-ROUND(PMT(installment_int,installment_period,DW19-DX19,0,1),2)<參數!$B$19,$B19<16),"",-ROUND(PMT(installment_int,installment_period,DW19-DX19,0,1),2)))) -> 10608.88 | DZ19: 85584.48 | EA19: =IF($B19="","",IF(OR(-ROUND(PMT(installment_int,installment_period,DZ19-ROUND(DZ19*(1-installment_rate),2),0,1),2)<參數!$B$19,$B19<16),DZ19,ROUND(DZ19*(1-installment_rate),2))) -> 34233.79 | EB19: =IF($B19="","",IF(installment_rate=0,"",IF(OR(-ROUND(PMT(installment_int,installment_period,DZ19-EA19,0,1),2)<參數!$B$19,$B19<16),"",-ROUND(PMT(installment_int,installment_period,DZ19-EA19,0,1),2)))) -> 10578.21 | ED19: 0 | EE19: 528 | EF19: 147 | EG19: =IF(ED19="","",ROUND((ED19*VLOOKUP(index,PUA!$A:$DK,4+A19,FALSE)/10000+IF($B19>=109,0,IF($B19>=65,IFERROR(ED18,0)*$CJ$10,0))),2)) -> 0 | EH19: =IF(EE19="","",ROUND((EE19*VLOOKUP(index,PUA!$A:$DK,4+A19,FALSE)/10000+IF($B19>=109,0,IF($B19>=65,EE18*$CJ$10,0))),2)) -> 282.43 | EI19: =IF(EF19="","",ROUND((EF19*VLOOKUP(index,PUA!$A:$DK,4+A19,FALSE)/10000+IF($B19>=109,0,IF($B19>=65,EF18*$CJ$10,0))),2)) -> 78.63 | EK19: 0 | EL19: 0 | EM19: 0.508158 | EN19: 0 | EO19: 100000 | EP19: 50815.8 | EQ19: 85584.48 | ER19: =IF(A19="","",SUM($EL$15:EL19)) -> 0 | ES19: 50815.8 | EU19: 0 | EV19: 0 | EW19: 0 | EX19: 0 | EY19: 0 | EZ19: 0
A20: 6 | B20: 45 | C20: =IF(A20="","",ROUND(MAX(SA*VLOOKUP($A20,SA!$A:$B,2,FALSE),MAX(0,AO20-BP20),D20*VLOOKUP($B20,參數!$F$44:$G$51,2,TRUE)),2)) -> 100000 | D20: 54313.8 | E20: 54313.8 | F20: 0 | G20: 0 | H20: 0 | I20: 0 | J20: =IF($A20="","",ROUNDUP(SA*VLOOKUP(index,DIVM_Tab,4+$A20,FALSE)/10000+S19*VLOOKUP(index,DIV_RB_M!$A:$DK,4+$A20,FALSE)/10000,0)) -> 529 | K20: =IF($A20="","",ROUNDUP(SA*VLOOKUP(index,DIVL_Tab,4+$A20,FALSE)/10000+T19*VLOOKUP(index,DIV_RB_L!$A:$DK,4+$A20,FALSE)/10000,0)) -> 145 | L20: 0 | M20: =IF($A20="","",ROUNDUP(SA*VLOOKUP(index,'DIV(身故)_M'!$A:$DK,4+$A20,FALSE)/10000,0)) -> 197785 | N20: =IF($A20="","",ROUNDUP(SA*VLOOKUP(index,'DIV(身故)_L'!$A:$DK,4+$A20,FALSE)/10000,0)) -> 48263 | O20: 0 | P20: =IF($A20="","",ROUNDUP(SA*VLOOKUP(index,'DIV(解約)_M'!$A:$DK,4+$A20,FALSE)/10000,0)) -> 8234 | Q20: =IF($A20="","",ROUNDUP(SA*VLOOKUP(index,'DIV(解約)_L'!$A:$DK,4+$A20,FALSE)/10000,0)) -> 1758 | R20: =IF(A20="","",IF(DIV=4,SUM($I$15:I20),"")) -> 0 | S20: =IF(A20="","",IF(DIV=4,SUM($J$15:J20),"")) -> 1549 | T20: =IF(A20="","",IF(DIV=4,SUM($K$15:K20),"")) -> 435 | U20: =IF($A20="","",ROUND(MAX(R20*VLOOKUP($A20,SA!$A:$B,2,FALSE),ROUND(R20*VLOOKUP(index,GP!$A$2:$E$407,5,FALSE)/10000,2)*MIN($A20,plan),X20*VLOOKUP($B20,參數!$F$44:$G$51,2,TRUE)),2)) -> 0 | V20: =IF($A20="","",ROUND(MAX(S20*VLOOKUP($A20,SA!$A:$B,2,FALSE),ROUND(S20*VLOOKUP(index,GP!$A$2:$E$407,5,FALSE)/10000,2)*MIN($A20,plan),Y20*VLOOKUP($B20,參數!$F$44:$G$51,2,TRUE)),2)) -> 1549 | W20: =IF($A20="","",ROUND(MAX(T20*VLOOKUP($A20,SA!$A:$B,2,FALSE),ROUND(T20*VLOOKUP(index,GP!$A$2:$E$407,5,FALSE)/10000,2)*MIN($A20,plan),Z20*VLOOKUP($B20,參數!$F$44:$G$51,2,TRUE)),2)) -> 435 | X20: =IF(R20="","",ROUND((R20*VLOOKUP(index,PUA!$A:$DK,4+A20,FALSE)/10000+IF($B20>=109,0,IF($B20>=65,IFERROR(R19,0)*$CJ$10,0))),2)) -> 0 | Y20: =IF(S20="","",ROUND((S20*VLOOKUP(index,PUA!$A:$DK,4+A20,FALSE)/10000+IF($B20>=109,0,IF($B20>=65,S19*$CJ$10,0))),2)) -> 841.32 | Z20: =IF(T20="","",ROUND((T20*VLOOKUP(index,PUA!$A:$DK,4+A20,FALSE)/10000+IF($B20>=109,0,IF($B20>=65,T19*$CJ$10,0))),2)) -> 236.27 | AA20: 100000 | AB20: 101549 | AC20: 100435 | AD20: 100000 | AE20: =IF(A20="","",C20+IF(DIV=4,V20,0)+M20) -> 299334 | AF20: 148698 | AG20: 54313.8 | AH20: 63389.12 | AI20: 56308.07 | AM20: =IF($A20="","",IF($A20>plan,0,ROUND(ROUND(SA*VLOOKUP(index,GP!$A$2:$E$407,5,FALSE)/10000*PremRate*(1-SA_disc-Prem_disc),2)*(1-PayModeDisc1),2)*IF(LEFT(ChargeMode,1)="月",2,1)*IF($A20=1,1,0)+ ROUND(ROUND(SA*VLOOKUP(index,GP!$A$2:$E$407,5,FALSE)/10000*PremRate*(1-SA_disc-Prem_disc),2)*(1-PayModeDisc2),2)*(VLOOKUP(LEFT(ChargeMode,1),參數!$J$23:$L$27,3,FALSE)-IF(LEFT(ChargeMode,1)="月",2,1)*IF($A20=1,1,0)))) -> 0 | AN20: =IF(A20="","",SUM($AM$15:AM20)) -> 60795.9 | AO20: =IF(A20="","",ROUND(SA*VLOOKUP(index,GP!$A$2:$E$407,5,FALSE)/10000,2)*MIN(A20,plan)) -> 61410 | AP20: =IF(A20="","",IF(B20+1>110,0,IF(B20>=參數!$B$56,IF(AND(B20>=參數!$B$58,參數!$G$59="0"),IF(AND(B20>=參數!$B$60,參數!$G$61="0"),參數!$D$60,參數!$D$58),參數!$D$56),0)+IF(B20=參數!$B$71,參數!$D$71,0)+IF(B20=參數!$B$73,參數!$D$73,0)+IF(B20=參數!$B$75,參數!$D$75,0))) -> 0 | AQ20: 0 | AR20: 0.6338912 | AS20: 1549 | AT20: 0 | AW20: 100000 | AY20: 63389.12 | AZ20: 299334 | BA20: =IF(A20="","",SUM($AQ$15:AQ20)) -> 0 | BB20: 63389.12 | BC20: 0 | BD20: 0 | BE20: 0.5630807 | BF20: 435 | BG20: 0 | BJ20: 100000 | BL20: 56308.07 | BM20: 148698 | BN20: =IF(A20="","",SUM($BD$15:BD20)) -> 0 | BO20: 56308.07 | BP20: 0 | BQ20: 0 | BV20: =SUM($BS$15:BS20) ->  | BW20: =SUM($BT$15:BT20) ->  | BX20: =SUM($BU$15:BU20) ->  | BY20: 0 | BZ20: 0 | CA20: 0 | CB20: =SUM($BY$15:BY20) -> 0 | CC20: =SUM($BZ$15:BZ20) -> 0 | CD20: =SUM($CA$15:CA20) -> 0 | CE20: 0 | CF20: 1600.44 | CG20: 449.79 | CI20: 1.644847761 | CJ20: 4.923588597 | CK20: 0.8933793233 | CL20: 1.042654521 | CN20: 6 | CO20: 0 | CP20: 0 | CQ20: 0 | CR20: 0 | CS20: 0 | CT20: 54313.8 | CU20: 0 | CV20: 0 | CW20: 0 | CX20: 0 | CY20: 0 | CZ20: 0 | DA20: 0 | DB20: 0 | DD20: 6 | DE20: 0 | DF20: 0 | DG20: 0 | DH20: 0 | DI20: 0 | DJ20: 63389.12 | DK20: 0 | DL20: 0 | DM20: 0 | DN20: 0 | DO20: 0 | DP20: 0 | DQ20: 0 | DR20: 0 | DT20: 299334 | DU20: =IF($B20="","",IF(OR(-ROUND(PMT(installment_int,installment_period,DT20-ROUND(DT20*(1-installment_rate),2),0,1),2)<參數!$B$19,$B20<16),DT20,ROUND(DT20*(1-installment_rate),2))) -> 119733.6 | DV20: =IF($B20="","",IF(installment_rate=0,"",IF(OR(-ROUND(PMT(installment_int,installment_period,DT20-DU20,0,1),2)<參數!$B$19,$B20<16),"",-ROUND(PMT(installment_int,installment_period,DT20-DU20,0,1),2)))) -> 36997.56 | DW20: 148698 | DX20: =IF($B20="","",IF(OR(-ROUND(PMT(installment_int,installment_period,DW20-ROUND(DW20*(1-installment_rate),2),0,1),2)<參數!$B$19,$B20<16),DW20,ROUND(DW20*(1-installment_rate),2))) -> 59479.2 | DY20: =IF($B20="","",IF(installment_rate=0,"",IF(OR(-ROUND(PMT(installment_int,installment_period,DW20-DX20,0,1),2)<參數!$B$19,$B20<16),"",-ROUND(PMT(installment_int,installment_period,DW20-DX20,0,1),2)))) -> 18379.01 | DZ20: 100000 | EA20: =IF($B20="","",IF(OR(-ROUND(PMT(installment_int,installment_period,DZ20-ROUND(DZ20*(1-installment_rate),2),0,1),2)<參數!$B$19,$B20<16),DZ20,ROUND(DZ20*(1-installment_rate),2))) -> 40000 | EB20: =IF($B20="","",IF(installment_rate=0,"",IF(OR(-ROUND(PMT(installment_int,installment_period,DZ20-EA20,0,1),2)<參數!$B$19,$B20<16),"",-ROUND(PMT(installment_int,installment_period,DZ20-EA20,0,1),2)))) -> 12359.96 | ED20: 0 | EE20: 529 | EF20: 145 | EG20: =IF(ED20="","",ROUND((ED20*VLOOKUP(index,PUA!$A:$DK,4+A20,FALSE)/10000+IF($B20>=109,0,IF($B20>=65,IFERROR(ED19,0)*$CJ$10,0))),2)) -> 0 | EH20: =IF(EE20="","",ROUND((EE20*VLOOKUP(index,PUA!$A:$DK,4+A20,FALSE)/10000+IF($B20>=109,0,IF($B20>=65,EE19*$CJ$10,0))),2)) -> 287.32 | EI20: =IF(EF20="","",ROUND((EF20*VLOOKUP(index,PUA!$A:$DK,4+A20,FALSE)/10000+IF($B20>=109,0,IF($B20>=65,EF19*$CJ$10,0))),2)) -> 78.76 | EK20: 0 | EL20: 0 | EM20: 0.543138 | EN20: 0 | EO20: 100000 | EP20: 54313.8 | EQ20: 100000 | ER20: =IF(A20="","",SUM($EL$15:EL20)) -> 0 | ES20: 54313.8 | EU20: 0 | EV20: 0 | EW20: 0 | EX20: 0 | EY20: 0 | EZ20: 0
A21: 7 | B21: 46 | C21: =IF(A21="","",ROUND(MAX(SA*VLOOKUP($A21,SA!$A:$B,2,FALSE),MAX(0,AO21-BP21),D21*VLOOKUP($B21,參數!$F$44:$G$51,2,TRUE)),2)) -> 100000 | D21: 55145.1 | E21: 55145.1 | F21: 0 | G21: 0 | H21: 0 | I21: 0 | J21: =IF($A21="","",ROUNDUP(SA*VLOOKUP(index,DIVM_Tab,4+$A21,FALSE)/10000+S20*VLOOKUP(index,DIV_RB_M!$A:$DK,4+$A21,FALSE)/10000,0)) -> 528 | K21: =IF($A21="","",ROUNDUP(SA*VLOOKUP(index,DIVL_Tab,4+$A21,FALSE)/10000+T20*VLOOKUP(index,DIV_RB_L!$A:$DK,4+$A21,FALSE)/10000,0)) -> 141 | L21: 0 | M21: =IF($A21="","",ROUNDUP(SA*VLOOKUP(index,'DIV(身故)_M'!$A:$DK,4+$A21,FALSE)/10000,0)) -> 202397 | N21: =IF($A21="","",ROUNDUP(SA*VLOOKUP(index,'DIV(身故)_L'!$A:$DK,4+$A21,FALSE)/10000,0)) -> 48389 | O21: 0 | P21: =IF($A21="","",ROUNDUP(SA*VLOOKUP(index,'DIV(解約)_M'!$A:$DK,4+$A21,FALSE)/10000,0)) -> 8542 | Q21: =IF($A21="","",ROUNDUP(SA*VLOOKUP(index,'DIV(解約)_L'!$A:$DK,4+$A21,FALSE)/10000,0)) -> 1904 | R21: =IF(A21="","",IF(DIV=4,SUM($I$15:I21),"")) -> 0 | S21: =IF(A21="","",IF(DIV=4,SUM($J$15:J21),"")) -> 2077 | T21: =IF(A21="","",IF(DIV=4,SUM($K$15:K21),"")) -> 576 | U21: =IF($A21="","",ROUND(MAX(R21*VLOOKUP($A21,SA!$A:$B,2,FALSE),ROUND(R21*VLOOKUP(index,GP!$A$2:$E$407,5,FALSE)/10000,2)*MIN($A21,plan),X21*VLOOKUP($B21,參數!$F$44:$G$51,2,TRUE)),2)) -> 0 | V21: =IF($A21="","",ROUND(MAX(S21*VLOOKUP($A21,SA!$A:$B,2,FALSE),ROUND(S21*VLOOKUP(index,GP!$A$2:$E$407,5,FALSE)/10000,2)*MIN($A21,plan),Y21*VLOOKUP($B21,參數!$F$44:$G$51,2,TRUE)),2)) -> 2077 | W21: =IF($A21="","",ROUND(MAX(T21*VLOOKUP($A21,SA!$A:$B,2,FALSE),ROUND(T21*VLOOKUP(index,GP!$A$2:$E$407,5,FALSE)/10000,2)*MIN($A21,plan),Z21*VLOOKUP($B21,參數!$F$44:$G$51,2,TRUE)),2)) -> 576 | X21: =IF(R21="","",ROUND((R21*VLOOKUP(index,PUA!$A:$DK,4+A21,FALSE)/10000+IF($B21>=109,0,IF($B21>=65,IFERROR(R20,0)*$CJ$10,0))),2)) -> 0 | Y21: =IF(S21="","",ROUND((S21*VLOOKUP(index,PUA!$A:$DK,4+A21,FALSE)/10000+IF($B21>=109,0,IF($B21>=65,S20*$CJ$10,0))),2)) -> 1145.36 | Z21: =IF(T21="","",ROUND((T21*VLOOKUP(index,PUA!$A:$DK,4+A21,FALSE)/10000+IF($B21>=109,0,IF($B21>=65,T20*$CJ$10,0))),2)) -> 317.64 | AA21: 100000 | AB21: 102077 | AC21: 100576 | AD21: 100000 | AE21: 304474 | AF21: 148965 | AG21: 55145.1 | AH21: 64832.46 | AI21: 57366.74 | AM21: =IF($A21="","",IF($A21>plan,0,ROUND(ROUND(SA*VLOOKUP(index,GP!$A$2:$E$407,5,FALSE)/10000*PremRate*(1-SA_disc-Prem_disc),2)*(1-PayModeDisc1),2)*IF(LEFT(ChargeMode,1)="月",2,1)*IF($A21=1,1,0)+ ROUND(ROUND(SA*VLOOKUP(index,GP!$A$2:$E$407,5,FALSE)/10000*PremRate*(1-SA_disc-Prem_disc),2)*(1-PayModeDisc2),2)*(VLOOKUP(LEFT(ChargeMode,1),參數!$J$23:$L$27,3,FALSE)-IF(LEFT(ChargeMode,1)="月",2,1)*IF($A21=1,1,0)))) -> 0 | AN21: =IF(A21="","",SUM($AM$15:AM21)) -> 60795.9 | AO21: =IF(A21="","",ROUND(SA*VLOOKUP(index,GP!$A$2:$E$407,5,FALSE)/10000,2)*MIN(A21,plan)) -> 61410 | AP21: =IF(A21="","",IF(B21+1>110,0,IF(B21>=參數!$B$56,IF(AND(B21>=參數!$B$58,參數!$G$59="0"),IF(AND(B21>=參數!$B$60,參數!$G$61="0"),參數!$D$60,參數!$D$58),參數!$D$56),0)+IF(B21=參數!$B$71,參數!$D$71,0)+IF(B21=參數!$B$73,參數!$D$73,0)+IF(B21=參數!$B$75,參數!$D$75,0))) -> 0 | AQ21: 0 | AR21: 0.6483246 | AS21: 2077 | AT21: 0 | AW21: 100000 | AY21: 64832.46 | AZ21: 304474 | BA21: =IF(A21="","",SUM($AQ$15:AQ21)) -> 0 | BB21: 64832.46 | BC21: 0 | BD21: 0 | BE21: 0.5736674 | BF21: 576 | BG21: 0 | BJ21: 100000 | BL21: 57366.74 | BM21: 148965 | BN21: =IF(A21="","",SUM($BD$15:BD21)) -> 0 | BO21: 57366.74 | BP21: 0 | BQ21: 0 | BV21: =SUM($BS$15:BS21) ->  | BW21: =SUM($BT$15:BT21) ->  | BX21: =SUM($BU$15:BU21) ->  | BY21: 0 | BZ21: 0 | CA21: 0 | CB21: =SUM($BY$15:BY21) -> 0 | CC21: =SUM($BZ$15:BZ21) -> 0 | CD21: =SUM($CA$15:CA21) -> 0 | CE21: 0 | CF21: 2177.25 | CG21: 604.51 | CI21: 1.644847761 | CJ21: 5.008133772 | CK21: 0.9070529427 | CL21: 1.066395267 | CN21: 7 | CO21: 0 | CP21: 0 | CQ21: 0 | CR21: 0 | CS21: 0 | CT21: 0 | CU21: 55145.1 | CV21: 0 | CW21: 0 | CX21: 0 | CY21: 0 | CZ21: 0 | DA21: 0 | DB21: 0 | DD21: 7 | DE21: 0 | DF21: 0 | DG21: 0 | DH21: 0 | DI21: 0 | DJ21: 0 | DK21: 64832.46 | DL21: 0 | DM21: 0 | DN21: 0 | DO21: 0 | DP21: 0 | DQ21: 0 | DR21: 0 | DT21: 304474 | DU21: =IF($B21="","",IF(OR(-ROUND(PMT(installment_int,installment_period,DT21-ROUND(DT21*(1-installment_rate),2),0,1),2)<參數!$B$19,$B21<16),DT21,ROUND(DT21*(1-installment_rate),2))) -> 121789.6 | DV21: =IF($B21="","",IF(installment_rate=0,"",IF(OR(-ROUND(PMT(installment_int,installment_period,DT21-DU21,0,1),2)<參數!$B$19,$B21<16),"",-ROUND(PMT(installment_int,installment_period,DT21-DU21,0,1),2)))) -> 37632.86 | DW21: 148965 | DX21: =IF($B21="","",IF(OR(-ROUND(PMT(installment_int,installment_period,DW21-ROUND(DW21*(1-installment_rate),2),0,1),2)<參數!$B$19,$B21<16),DW21,ROUND(DW21*(1-installment_rate),2))) -> 59586 | DY21: =IF($B21="","",IF(installment_rate=0,"",IF(OR(-ROUND(PMT(installment_int,installment_period,DW21-DX21,0,1),2)<參數!$B$19,$B21<16),"",-ROUND(PMT(installment_int,installment_period,DW21-DX21,0,1),2)))) -> 18412.01 | DZ21: 100000 | EA21: =IF($B21="","",IF(OR(-ROUND(PMT(installment_int,installment_period,DZ21-ROUND(DZ21*(1-installment_rate),2),0,1),2)<參數!$B$19,$B21<16),DZ21,ROUND(DZ21*(1-installment_rate),2))) -> 40000 | EB21: =IF($B21="","",IF(installment_rate=0,"",IF(OR(-ROUND(PMT(installment_int,installment_period,DZ21-EA21,0,1),2)<參數!$B$19,$B21<16),"",-ROUND(PMT(installment_int,installment_period,DZ21-EA21,0,1),2)))) -> 12359.96 | ED21: 0 | EE21: 528 | EF21: 141 | EG21: =IF(ED21="","",ROUND((ED21*VLOOKUP(index,PUA!$A:$DK,4+A21,FALSE)/10000+IF($B21>=109,0,IF($B21>=65,IFERROR(ED20,0)*$CJ$10,0))),2)) -> 0 | EH21: =IF(EE21="","",ROUND((EE21*VLOOKUP(index,PUA!$A:$DK,4+A21,FALSE)/10000+IF($B21>=109,0,IF($B21>=65,EE20*$CJ$10,0))),2)) -> 291.17 | EI21: =IF(EF21="","",ROUND((EF21*VLOOKUP(index,PUA!$A:$DK,4+A21,FALSE)/10000+IF($B21>=109,0,IF($B21>=65,EF20*$CJ$10,0))),2)) -> 77.75 | EK21: 0 | EL21: 0 | EM21: 0.551451 | EN21: 0 | EO21: 100000 | EP21: 55145.1 | EQ21: 100000 | ER21: =IF(A21="","",SUM($EL$15:EL21)) -> 0 | ES21: 55145.1 | EU21: 0 | EV21: 0 | EW21: 0 | EX21: 0 | EY21: 0 | EZ21: 0
A22: 8 | B22: 47 | C22: =IF(A22="","",ROUND(MAX(SA*VLOOKUP($A22,SA!$A:$B,2,FALSE),MAX(0,AO22-BP22),D22*VLOOKUP($B22,參數!$F$44:$G$51,2,TRUE)),2)) -> 100000 | D22: 55984.1 | E22: 55984.1 | F22: 0 | G22: 0 | H22: 0 | I22: 0 | J22: =IF($A22="","",ROUNDUP(SA*VLOOKUP(index,DIVM_Tab,4+$A22,FALSE)/10000+S21*VLOOKUP(index,DIV_RB_M!$A:$DK,4+$A22,FALSE)/10000,0)) -> 531 | K22: =IF($A22="","",ROUNDUP(SA*VLOOKUP(index,DIVL_Tab,4+$A22,FALSE)/10000+T21*VLOOKUP(index,DIV_RB_L!$A:$DK,4+$A22,FALSE)/10000,0)) -> 141 | L22: 0 | M22: =IF($A22="","",ROUNDUP(SA*VLOOKUP(index,'DIV(身故)_M'!$A:$DK,4+$A22,FALSE)/10000,0)) -> 207045 | N22: =IF($A22="","",ROUNDUP(SA*VLOOKUP(index,'DIV(身故)_L'!$A:$DK,4+$A22,FALSE)/10000,0)) -> 48516 | O22: 0 | P22: =IF($A22="","",ROUNDUP(SA*VLOOKUP(index,'DIV(解約)_M'!$A:$DK,4+$A22,FALSE)/10000,0)) -> 8850 | Q22: =IF($A22="","",ROUNDUP(SA*VLOOKUP(index,'DIV(解約)_L'!$A:$DK,4+$A22,FALSE)/10000,0)) -> 2051 | R22: =IF(A22="","",IF(DIV=4,SUM($I$15:I22),"")) -> 0 | S22: =IF(A22="","",IF(DIV=4,SUM($J$15:J22),"")) -> 2608 | T22: =IF(A22="","",IF(DIV=4,SUM($K$15:K22),"")) -> 717 | U22: =IF($A22="","",ROUND(MAX(R22*VLOOKUP($A22,SA!$A:$B,2,FALSE),ROUND(R22*VLOOKUP(index,GP!$A$2:$E$407,5,FALSE)/10000,2)*MIN($A22,plan),X22*VLOOKUP($B22,參數!$F$44:$G$51,2,TRUE)),2)) -> 0 | V22: =IF($A22="","",ROUND(MAX(S22*VLOOKUP($A22,SA!$A:$B,2,FALSE),ROUND(S22*VLOOKUP(index,GP!$A$2:$E$407,5,FALSE)/10000,2)*MIN($A22,plan),Y22*VLOOKUP($B22,參數!$F$44:$G$51,2,TRUE)),2)) -> 2608 | W22: =IF($A22="","",ROUND(MAX(T22*VLOOKUP($A22,SA!$A:$B,2,FALSE),ROUND(T22*VLOOKUP(index,GP!$A$2:$E$407,5,FALSE)/10000,2)*MIN($A22,plan),Z22*VLOOKUP($B22,參數!$F$44:$G$51,2,TRUE)),2)) -> 717 | X22: =IF(R22="","",ROUND((R22*VLOOKUP(index,PUA!$A:$DK,4+A22,FALSE)/10000+IF($B22>=109,0,IF($B22>=65,IFERROR(R21,0)*$CJ$10,0))),2)) -> 0 | Y22: =IF(S22="","",ROUND((S22*VLOOKUP(index,PUA!$A:$DK,4+A22,FALSE)/10000+IF($B22>=109,0,IF($B22>=65,S21*$CJ$10,0))),2)) -> 1460.07 | Z22: =IF(T22="","",ROUND((T22*VLOOKUP(index,PUA!$A:$DK,4+A22,FALSE)/10000+IF($B22>=109,0,IF($B22>=65,T21*$CJ$10,0))),2)) -> 401.41 | AA22: 100000 | AB22: 102608 | AC22: 100717 | AD22: 100000 | AE22: 309653 | AF22: 149233 | AG22: 55984.1 | AH22: 66294.17 | AI22: 58436.51 | AM22: =IF($A22="","",IF($A22>plan,0,ROUND(ROUND(SA*VLOOKUP(index,GP!$A$2:$E$407,5,FALSE)/10000*PremRate*(1-SA_disc-Prem_disc),2)*(1-PayModeDisc1),2)*IF(LEFT(ChargeMode,1)="月",2,1)*IF($A22=1,1,0)+ ROUND(ROUND(SA*VLOOKUP(index,GP!$A$2:$E$407,5,FALSE)/10000*PremRate*(1-SA_disc-Prem_disc),2)*(1-PayModeDisc2),2)*(VLOOKUP(LEFT(ChargeMode,1),參數!$J$23:$L$27,3,FALSE)-IF(LEFT(ChargeMode,1)="月",2,1)*IF($A22=1,1,0)))) -> 0 | AN22: =IF(A22="","",SUM($AM$15:AM22)) -> 60795.9 | AO22: =IF(A22="","",ROUND(SA*VLOOKUP(index,GP!$A$2:$E$407,5,FALSE)/10000,2)*MIN(A22,plan)) -> 61410 | AP22: =IF(A22="","",IF(B22+1>110,0,IF(B22>=參數!$B$56,IF(AND(B22>=參數!$B$58,參數!$G$59="0"),IF(AND(B22>=參數!$B$60,參數!$G$61="0"),參數!$D$60,參數!$D$58),參數!$D$56),0)+IF(B22=參數!$B$71,參數!$D$71,0)+IF(B22=參數!$B$73,參數!$D$73,0)+IF(B22=參數!$B$75,參數!$D$75,0))) -> 0 | AQ22: 0 | AR22: 0.6629417 | AS22: 2608 | AT22: 0 | AW22: 100000 | AY22: 66294.17 | AZ22: 309653 | BA22: =IF(A22="","",SUM($AQ$15:AQ22)) -> 0 | BB22: 66294.17 | BC22: 0 | BD22: 0 | BE22: 0.5843651 | BF22: 717 | BG22: 0 | BJ22: 100000 | BL22: 58436.51 | BM22: 149233 | BN22: =IF(A22="","",SUM($BD$15:BD22)) -> 0 | BO22: 58436.51 | BP22: 0 | BQ22: 0 | BV22: =SUM($BS$15:BS22) ->  | BW22: =SUM($BT$15:BT22) ->  | BX22: =SUM($BU$15:BU22) ->  | BY22: 0 | BZ22: 0 | CA22: 0 | CB22: =SUM($BY$15:BY22) -> 0 | CC22: =SUM($BZ$15:BZ22) -> 0 | CD22: =SUM($CA$15:CA22) -> 0 | CE22: 0 | CF22: 2774.66 | CG22: 763.95 | CI22: 1.644847761 | CJ22: 5.093320438 | CK22: 0.9208532154 | CL22: 1.090438171 | CN22: 8 | CO22: 0 | CP22: 0 | CQ22: 0 | CR22: 0 | CS22: 0 | CT22: 0 | CU22: 0 | CV22: 55984.1 | CW22: 0 | CX22: 0 | CY22: 0 | CZ22: 0 | DA22: 0 | DB22: 0 | DD22: 8 | DE22: 0 | DF22: 0 | DG22: 0 | DH22: 0 | DI22: 0 | DJ22: 0 | DK22: 0 | DL22: 66294.17 | DM22: 0 | DN22: 0 | DO22: 0 | DP22: 0 | DQ22: 0 | DR22: 0 | DT22: 309653 | DU22: =IF($B22="","",IF(OR(-ROUND(PMT(installment_int,installment_period,DT22-ROUND(DT22*(1-installment_rate),2),0,1),2)<參數!$B$19,$B22<16),DT22,ROUND(DT22*(1-installment_rate),2))) -> 123861.2 | DV22: =IF($B22="","",IF(installment_rate=0,"",IF(OR(-ROUND(PMT(installment_int,installment_period,DT22-DU22,0,1),2)<參數!$B$19,$B22<16),"",-ROUND(PMT(installment_int,installment_period,DT22-DU22,0,1),2)))) -> 38272.99 | DW22: 149233 | DX22: =IF($B22="","",IF(OR(-ROUND(PMT(installment_int,installment_period,DW22-ROUND(DW22*(1-installment_rate),2),0,1),2)<參數!$B$19,$B22<16),DW22,ROUND(DW22*(1-installment_rate),2))) -> 59693.2 | DY22: =IF($B22="","",IF(installment_rate=0,"",IF(OR(-ROUND(PMT(installment_int,installment_period,DW22-DX22,0,1),2)<參數!$B$19,$B22<16),"",-ROUND(PMT(installment_int,installment_period,DW22-DX22,0,1),2)))) -> 18445.14 | DZ22: 100000 | EA22: =IF($B22="","",IF(OR(-ROUND(PMT(installment_int,installment_period,DZ22-ROUND(DZ22*(1-installment_rate),2),0,1),2)<參數!$B$19,$B22<16),DZ22,ROUND(DZ22*(1-installment_rate),2))) -> 40000 | EB22: =IF($B22="","",IF(installment_rate=0,"",IF(OR(-ROUND(PMT(installment_int,installment_period,DZ22-EA22,0,1),2)<參數!$B$19,$B22<16),"",-ROUND(PMT(installment_int,installment_period,DZ22-EA22,0,1),2)))) -> 12359.96 | ED22: 0 | EE22: 531 | EF22: 141 | EG22: =IF(ED22="","",ROUND((ED22*VLOOKUP(index,PUA!$A:$DK,4+A22,FALSE)/10000+IF($B22>=109,0,IF($B22>=65,IFERROR(ED21,0)*$CJ$10,0))),2)) -> 0 | EH22: =IF(EE22="","",ROUND((EE22*VLOOKUP(index,PUA!$A:$DK,4+A22,FALSE)/10000+IF($B22>=109,0,IF($B22>=65,EE21*$CJ$10,0))),2)) -> 297.28 | EI22: =IF(EF22="","",ROUND((EF22*VLOOKUP(index,PUA!$A:$DK,4+A22,FALSE)/10000+IF($B22>=109,0,IF($B22>=65,EF21*$CJ$10,0))),2)) -> 78.94 | EK22: 0 | EL22: 0 | EM22: 0.559841 | EN22: 0 | EO22: 100000 | EP22: 55984.1 | EQ22: 100000 | ER22: =IF(A22="","",SUM($EL$15:EL22)) -> 0 | ES22: 55984.1 | EU22: 0 | EV22: 0 | EW22: 0 | EX22: 0 | EY22: 0 | EZ22: 0
A23: 9 | B23: 48 | C23: =IF(A23="","",ROUND(MAX(SA*VLOOKUP($A23,SA!$A:$B,2,FALSE),MAX(0,AO23-BP23),D23*VLOOKUP($B23,參數!$F$44:$G$51,2,TRUE)),2)) -> 100000 | D23: 56830.6 | E23: 56830.6 | F23: 0 | G23: 0 | H23: 0 | I23: 0 | J23: =IF($A23="","",ROUNDUP(SA*VLOOKUP(index,DIVM_Tab,4+$A23,FALSE)/10000+S22*VLOOKUP(index,DIV_RB_M!$A:$DK,4+$A23,FALSE)/10000,0)) -> 533 | K23: =IF($A23="","",ROUNDUP(SA*VLOOKUP(index,DIVL_Tab,4+$A23,FALSE)/10000+T22*VLOOKUP(index,DIV_RB_L!$A:$DK,4+$A23,FALSE)/10000,0)) -> 142 | L23: 0 | M23: =IF($A23="","",ROUNDUP(SA*VLOOKUP(index,'DIV(身故)_M'!$A:$DK,4+$A23,FALSE)/10000,0)) -> 211740 | N23: =IF($A23="","",ROUNDUP(SA*VLOOKUP(index,'DIV(身故)_L'!$A:$DK,4+$A23,FALSE)/10000,0)) -> 48629 | O23: 0 | P23: =IF($A23="","",ROUNDUP(SA*VLOOKUP(index,'DIV(解約)_M'!$A:$DK,4+$A23,FALSE)/10000,0)) -> 9158 | Q23: =IF($A23="","",ROUNDUP(SA*VLOOKUP(index,'DIV(解約)_L'!$A:$DK,4+$A23,FALSE)/10000,0)) -> 2197 | R23: =IF(A23="","",IF(DIV=4,SUM($I$15:I23),"")) -> 0 | S23: =IF(A23="","",IF(DIV=4,SUM($J$15:J23),"")) -> 3141 | T23: =IF(A23="","",IF(DIV=4,SUM($K$15:K23),"")) -> 859 | U23: =IF($A23="","",ROUND(MAX(R23*VLOOKUP($A23,SA!$A:$B,2,FALSE),ROUND(R23*VLOOKUP(index,GP!$A$2:$E$407,5,FALSE)/10000,2)*MIN($A23,plan),X23*VLOOKUP($B23,參數!$F$44:$G$51,2,TRUE)),2)) -> 0 | V23: =IF($A23="","",ROUND(MAX(S23*VLOOKUP($A23,SA!$A:$B,2,FALSE),ROUND(S23*VLOOKUP(index,GP!$A$2:$E$407,5,FALSE)/10000,2)*MIN($A23,plan),Y23*VLOOKUP($B23,參數!$F$44:$G$51,2,TRUE)),2)) -> 3141 | W23: =IF($A23="","",ROUND(MAX(T23*VLOOKUP($A23,SA!$A:$B,2,FALSE),ROUND(T23*VLOOKUP(index,GP!$A$2:$E$407,5,FALSE)/10000,2)*MIN($A23,plan),Z23*VLOOKUP($B23,參數!$F$44:$G$51,2,TRUE)),2)) -> 859 | X23: =IF(R23="","",ROUND((R23*VLOOKUP(index,PUA!$A:$DK,4+A23,FALSE)/10000+IF($B23>=109,0,IF($B23>=65,IFERROR(R22,0)*$CJ$10,0))),2)) -> 0 | Y23: =IF(S23="","",ROUND((S23*VLOOKUP(index,PUA!$A:$DK,4+A23,FALSE)/10000+IF($B23>=109,0,IF($B23>=65,S22*$CJ$10,0))),2)) -> 1785.05 | Z23: =IF(T23="","",ROUND((T23*VLOOKUP(index,PUA!$A:$DK,4+A23,FALSE)/10000+IF($B23>=109,0,IF($B23>=65,T22*$CJ$10,0))),2)) -> 488.17 | AA23: 100000 | AB23: 103141 | AC23: 100859 | AD23: 100000 | AE23: 314881 | AF23: 149488 | AG23: 56830.6 | AH23: 67773.65 | AI23: 59515.77 | AM23: =IF($A23="","",IF($A23>plan,0,ROUND(ROUND(SA*VLOOKUP(index,GP!$A$2:$E$407,5,FALSE)/10000*PremRate*(1-SA_disc-Prem_disc),2)*(1-PayModeDisc1),2)*IF(LEFT(ChargeMode,1)="月",2,1)*IF($A23=1,1,0)+ ROUND(ROUND(SA*VLOOKUP(index,GP!$A$2:$E$407,5,FALSE)/10000*PremRate*(1-SA_disc-Prem_disc),2)*(1-PayModeDisc2),2)*(VLOOKUP(LEFT(ChargeMode,1),參數!$J$23:$L$27,3,FALSE)-IF(LEFT(ChargeMode,1)="月",2,1)*IF($A23=1,1,0)))) -> 0 | AN23: =IF(A23="","",SUM($AM$15:AM23)) -> 60795.9 | AO23: =IF(A23="","",ROUND(SA*VLOOKUP(index,GP!$A$2:$E$407,5,FALSE)/10000,2)*MIN(A23,plan)) -> 61410 | AP23: =IF(A23="","",IF(B23+1>110,0,IF(B23>=參數!$B$56,IF(AND(B23>=參數!$B$58,參數!$G$59="0"),IF(AND(B23>=參數!$B$60,參數!$G$61="0"),參數!$D$60,參數!$D$58),參數!$D$56),0)+IF(B23=參數!$B$71,參數!$D$71,0)+IF(B23=參數!$B$73,參數!$D$73,0)+IF(B23=參數!$B$75,參數!$D$75,0))) -> 0 | AQ23: 0 | AR23: 0.6777365 | AS23: 3141 | AT23: 0 | AW23: 100000 | AY23: 67773.65 | AZ23: 314881 | BA23: =IF(A23="","",SUM($AQ$15:AQ23)) -> 0 | BB23: 67773.65 | BC23: 0 | BD23: 0 | BE23: 0.5951577 | BF23: 859 | BG23: 0 | BJ23: 100000 | BL23: 59515.77 | BM23: 149488 | BN23: =IF(A23="","",SUM($BD$15:BD23)) -> 0 | BO23: 59515.77 | BP23: 0 | BQ23: 0 | BV23: =SUM($BS$15:BS23) ->  | BW23: =SUM($BT$15:BT23) ->  | BX23: =SUM($BU$15:BU23) ->  | BY23: 0 | BZ23: 0 | CA23: 0 | CB23: =SUM($BY$15:BY23) -> 0 | CC23: =SUM($BZ$15:BZ23) -> 0 | CD23: =SUM($CA$15:CA23) -> 0 | CE23: 0 | CF23: 3392.29 | CG23: 929.25 | CI23: 1.644847761 | CJ23: 5.179313079 | CK23: 0.9347768517 | CL23: 1.114773365 | CN23: 9 | CO23: 0 | CP23: 0 | CQ23: 0 | CR23: 0 | CS23: 0 | CT23: 0 | CU23: 0 | CV23: 0 | CW23: 56830.6 | CX23: 0 | CY23: 0 | CZ23: 0 | DA23: 0 | DB23: 0 | DD23: 9 | DE23: 0 | DF23: 0 | DG23: 0 | DH23: 0 | DI23: 0 | DJ23: 0 | DK23: 0 | DL23: 0 | DM23: 67773.65 | DN23: 0 | DO23: 0 | DP23: 0 | DQ23: 0 | DR23: 0 | DT23: 314881 | DU23: =IF($B23="","",IF(OR(-ROUND(PMT(installment_int,installment_period,DT23-ROUND(DT23*(1-installment_rate),2),0,1),2)<參數!$B$19,$B23<16),DT23,ROUND(DT23*(1-installment_rate),2))) -> 125952.4 | DV23: =IF($B23="","",IF(installment_rate=0,"",IF(OR(-ROUND(PMT(installment_int,installment_period,DT23-DU23,0,1),2)<參數!$B$19,$B23<16),"",-ROUND(PMT(installment_int,installment_period,DT23-DU23,0,1),2)))) -> 38919.17 | DW23: 149488 | DX23: =IF($B23="","",IF(OR(-ROUND(PMT(installment_int,installment_period,DW23-ROUND(DW23*(1-installment_rate),2),0,1),2)<參數!$B$19,$B23<16),DW23,ROUND(DW23*(1-installment_rate),2))) -> 59795.2 | DY23: =IF($B23="","",IF(installment_rate=0,"",IF(OR(-ROUND(PMT(installment_int,installment_period,DW23-DX23,0,1),2)<參數!$B$19,$B23<16),"",-ROUND(PMT(installment_int,installment_period,DW23-DX23,0,1),2)))) -> 18476.66 | DZ23: 100000 | EA23: =IF($B23="","",IF(OR(-ROUND(PMT(installment_int,installment_period,DZ23-ROUND(DZ23*(1-installment_rate),2),0,1),2)<參數!$B$19,$B23<16),DZ23,ROUND(DZ23*(1-installment_rate),2))) -> 40000 | EB23: =IF($B23="","",IF(installment_rate=0,"",IF(OR(-ROUND(PMT(installment_int,installment_period,DZ23-EA23,0,1),2)<參數!$B$19,$B23<16),"",-ROUND(PMT(installment_int,installment_period,DZ23-EA23,0,1),2)))) -> 12359.96 | ED23: 0 | EE23: 533 | EF23: 142 | EG23: =IF(ED23="","",ROUND((ED23*VLOOKUP(index,PUA!$A:$DK,4+A23,FALSE)/10000+IF($B23>=109,0,IF($B23>=65,IFERROR(ED22,0)*$CJ$10,0))),2)) -> 0 | EH23: =IF(EE23="","",ROUND((EE23*VLOOKUP(index,PUA!$A:$DK,4+A23,FALSE)/10000+IF($B23>=109,0,IF($B23>=65,EE22*$CJ$10,0))),2)) -> 302.91 | EI23: =IF(EF23="","",ROUND((EF23*VLOOKUP(index,PUA!$A:$DK,4+A23,FALSE)/10000+IF($B23>=109,0,IF($B23>=65,EF22*$CJ$10,0))),2)) -> 80.7 | EK23: 0 | EL23: 0 | EM23: 0.568306 | EN23: 0 | EO23: 100000 | EP23: 56830.6 | EQ23: 100000 | ER23: =IF(A23="","",SUM($EL$15:EL23)) -> 0 | ES23: 56830.6 | EU23: 0 | EV23: 0 | EW23: 0 | EX23: 0 | EY23: 0 | EZ23: 0
A24: 10 | B24: 49 | C24: =IF(A24="","",ROUND(MAX(SA*VLOOKUP($A24,SA!$A:$B,2,FALSE),MAX(0,AO24-BP24),D24*VLOOKUP($B24,參數!$F$44:$G$51,2,TRUE)),2)) -> 100000 | D24: 57684.8 | E24: 57684.8 | F24: 0 | G24: 0 | H24: 0 | I24: 0 | J24: =IF($A24="","",ROUNDUP(SA*VLOOKUP(index,DIVM_Tab,4+$A24,FALSE)/10000+S23*VLOOKUP(index,DIV_RB_M!$A:$DK,4+$A24,FALSE)/10000,0)) -> 536 | K24: =IF($A24="","",ROUNDUP(SA*VLOOKUP(index,DIVL_Tab,4+$A24,FALSE)/10000+T23*VLOOKUP(index,DIV_RB_L!$A:$DK,4+$A24,FALSE)/10000,0)) -> 142 | L24: 0 | M24: =IF($A24="","",ROUNDUP(SA*VLOOKUP(index,'DIV(身故)_M'!$A:$DK,4+$A24,FALSE)/10000,0)) -> 216461 | N24: =IF($A24="","",ROUNDUP(SA*VLOOKUP(index,'DIV(身故)_L'!$A:$DK,4+$A24,FALSE)/10000,0)) -> 48756 | O24: 0 | P24: =IF($A24="","",ROUNDUP(SA*VLOOKUP(index,'DIV(解約)_M'!$A:$DK,4+$A24,FALSE)/10000,0)) -> 9466 | Q24: =IF($A24="","",ROUNDUP(SA*VLOOKUP(index,'DIV(解約)_L'!$A:$DK,4+$A24,FALSE)/10000,0)) -> 2344 | R24: =IF(A24="","",IF(DIV=4,SUM($I$15:I24),"")) -> 0 | S24: =IF(A24="","",IF(DIV=4,SUM($J$15:J24),"")) -> 3677 | T24: =IF(A24="","",IF(DIV=4,SUM($K$15:K24),"")) -> 1001 | U24: =IF($A24="","",ROUND(MAX(R24*VLOOKUP($A24,SA!$A:$B,2,FALSE),ROUND(R24*VLOOKUP(index,GP!$A$2:$E$407,5,FALSE)/10000,2)*MIN($A24,plan),X24*VLOOKUP($B24,參數!$F$44:$G$51,2,TRUE)),2)) -> 0 | V24: =IF($A24="","",ROUND(MAX(S24*VLOOKUP($A24,SA!$A:$B,2,FALSE),ROUND(S24*VLOOKUP(index,GP!$A$2:$E$407,5,FALSE)/10000,2)*MIN($A24,plan),Y24*VLOOKUP($B24,參數!$F$44:$G$51,2,TRUE)),2)) -> 3677 | W24: =IF($A24="","",ROUND(MAX(T24*VLOOKUP($A24,SA!$A:$B,2,FALSE),ROUND(T24*VLOOKUP(index,GP!$A$2:$E$407,5,FALSE)/10000,2)*MIN($A24,plan),Z24*VLOOKUP($B24,參數!$F$44:$G$51,2,TRUE)),2)) -> 1001 | X24: =IF(R24="","",ROUND((R24*VLOOKUP(index,PUA!$A:$DK,4+A24,FALSE)/10000+IF($B24>=109,0,IF($B24>=65,IFERROR(R23,0)*$CJ$10,0))),2)) -> 0 | Y24: =IF(S24="","",ROUND((S24*VLOOKUP(index,PUA!$A:$DK,4+A24,FALSE)/10000+IF($B24>=109,0,IF($B24>=65,S23*$CJ$10,0))),2)) -> 2121.07 | Z24: =IF(T24="","",ROUND((T24*VLOOKUP(index,PUA!$A:$DK,4+A24,FALSE)/10000+IF($B24>=109,0,IF($B24>=65,T23*$CJ$10,0))),2)) -> 577.42 | AA24: 100000 | AB24: 103677 | AC24: 101001 | AD24: 100000 | AE24: 320138 | AF24: 149757 | AG24: 57684.8 | AH24: 69271.87 | AI24: 60606.22 | AM24: =IF($A24="","",IF($A24>plan,0,ROUND(ROUND(SA*VLOOKUP(index,GP!$A$2:$E$407,5,FALSE)/10000*PremRate*(1-SA_disc-Prem_disc),2)*(1-PayModeDisc1),2)*IF(LEFT(ChargeMode,1)="月",2,1)*IF($A24=1,1,0)+ ROUND(ROUND(SA*VLOOKUP(index,GP!$A$2:$E$407,5,FALSE)/10000*PremRate*(1-SA_disc-Prem_disc),2)*(1-PayModeDisc2),2)*(VLOOKUP(LEFT(ChargeMode,1),參數!$J$23:$L$27,3,FALSE)-IF(LEFT(ChargeMode,1)="月",2,1)*IF($A24=1,1,0)))) -> 0 | AN24: =IF(A24="","",SUM($AM$15:AM24)) -> 60795.9 | AO24: =IF(A24="","",ROUND(SA*VLOOKUP(index,GP!$A$2:$E$407,5,FALSE)/10000,2)*MIN(A24,plan)) -> 61410 | AP24: =IF(A24="","",IF(B24+1>110,0,IF(B24>=參數!$B$56,IF(AND(B24>=參數!$B$58,參數!$G$59="0"),IF(AND(B24>=參數!$B$60,參數!$G$61="0"),參數!$D$60,參數!$D$58),參數!$D$56),0)+IF(B24=參數!$B$71,參數!$D$71,0)+IF(B24=參數!$B$73,參數!$D$73,0)+IF(B24=參數!$B$75,參數!$D$75,0))) -> 0 | AQ24: 0 | AR24: 0.6927187 | AS24: 3677 | AT24: 0 | AW24: 100000 | AY24: 69271.87 | AZ24: 320138 | BA24: =IF(A24="","",SUM($AQ$15:AQ24)) -> 0 | BB24: 69271.87 | BC24: 0 | BD24: 0 | BE24: 0.6060622 | BF24: 1001 | BG24: 0 | BJ24: 100000 | BL24: 60606.22 | BM24: 149757 | BN24: =IF(A24="","",SUM($BD$15:BD24)) -> 0 | BO24: 60606.22 | BP24: 0 | BQ24: 0 | BV24: =SUM($BS$15:BS24) ->  | BW24: =SUM($BT$15:BT24) ->  | BX24: =SUM($BU$15:BU24) ->  | BY24: 0 | BZ24: 0 | CA24: 0 | CB24: =SUM($BY$15:BY24) -> 0 | CC24: =SUM($BZ$15:BZ24) -> 0 | CD24: =SUM($CA$15:CA24) -> 0 | CE24: 0 | CF24: 4031.75 | CG24: 1099.59 | CI24: 1.644847761 | CJ24: 5.265782725 | CK24: 0.9488271413 | CL24: 1.139416803 | CN24: 10 | CO24: 0 | CP24: 0 | CQ24: 0 | CR24: 0 | CS24: 0 | CT24: 0 | CU24: 0 | CV24: 0 | CW24: 0 | CX24: 57684.8 | CY24: 0 | CZ24: 0 | DA24: 0 | DB24: 0 | DD24: 10 | DE24: 0 | DF24: 0 | DG24: 0 | DH24: 0 | DI24: 0 | DJ24: 0 | DK24: 0 | DL24: 0 | DM24: 0 | DN24: 69271.87 | DO24: 0 | DP24: 0 | DQ24: 0 | DR24: 0 | DT24: 320138 | DU24: =IF($B24="","",IF(OR(-ROUND(PMT(installment_int,installment_period,DT24-ROUND(DT24*(1-installment_rate),2),0,1),2)<參數!$B$19,$B24<16),DT24,ROUND(DT24*(1-installment_rate),2))) -> 128055.2 | DV24: =IF($B24="","",IF(installment_rate=0,"",IF(OR(-ROUND(PMT(installment_int,installment_period,DT24-DU24,0,1),2)<參數!$B$19,$B24<16),"",-ROUND(PMT(installment_int,installment_period,DT24-DU24,0,1),2)))) -> 39568.93 | DW24: 149757 | DX24: =IF($B24="","",IF(OR(-ROUND(PMT(installment_int,installment_period,DW24-ROUND(DW24*(1-installment_rate),2),0,1),2)<參數!$B$19,$B24<16),DW24,ROUND(DW24*(1-installment_rate),2))) -> 59902.8 | DY24: =IF($B24="","",IF(installment_rate=0,"",IF(OR(-ROUND(PMT(installment_int,installment_period,DW24-DX24,0,1),2)<參數!$B$19,$B24<16),"",-ROUND(PMT(installment_int,installment_period,DW24-DX24,0,1),2)))) -> 18509.91 | DZ24: 100000 | EA24: =IF($B24="","",IF(OR(-ROUND(PMT(installment_int,installment_period,DZ24-ROUND(DZ24*(1-installment_rate),2),0,1),2)<參數!$B$19,$B24<16),DZ24,ROUND(DZ24*(1-installment_rate),2))) -> 40000 | EB24: =IF($B24="","",IF(installment_rate=0,"",IF(OR(-ROUND(PMT(installment_int,installment_period,DZ24-EA24,0,1),2)<參數!$B$19,$B24<16),"",-ROUND(PMT(installment_int,installment_period,DZ24-EA24,0,1),2)))) -> 12359.96 | ED24: 0 | EE24: 536 | EF24: 142 | EG24: =IF(ED24="","",ROUND((ED24*VLOOKUP(index,PUA!$A:$DK,4+A24,FALSE)/10000+IF($B24>=109,0,IF($B24>=65,IFERROR(ED23,0)*$CJ$10,0))),2)) -> 0 | EH24: =IF(EE24="","",ROUND((EE24*VLOOKUP(index,PUA!$A:$DK,4+A24,FALSE)/10000+IF($B24>=109,0,IF($B24>=65,EE23*$CJ$10,0))),2)) -> 309.19 | EI24: =IF(EF24="","",ROUND((EF24*VLOOKUP(index,PUA!$A:$DK,4+A24,FALSE)/10000+IF($B24>=109,0,IF($B24>=65,EF23*$CJ$10,0))),2)) -> 81.91 | EK24: 0 | EL24: 0 | EM24: 0.576848 | EN24: 0 | EO24: 100000 | EP24: 57684.8 | EQ24: 100000 | ER24: =IF(A24="","",SUM($EL$15:EL24)) -> 0 | ES24: 57684.8 | EU24: 0 | EV24: 0 | EW24: 0 | EX24: 0 | EY24: 0 | EZ24: 0
A25: 11 | B25: 50 | C25: =IF(A25="","",ROUND(MAX(SA*VLOOKUP($A25,SA!$A:$B,2,FALSE),MAX(0,AO25-BP25),D25*VLOOKUP($B25,參數!$F$44:$G$51,2,TRUE)),2)) -> 100000 | D25: 58547.8 | E25: 58547.8 | F25: 0 | G25: 0 | H25: 0 | I25: 0 | J25: =IF($A25="","",ROUNDUP(SA*VLOOKUP(index,DIVM_Tab,4+$A25,FALSE)/10000+S24*VLOOKUP(index,DIV_RB_M!$A:$DK,4+$A25,FALSE)/10000,0)) -> 538 | K25: =IF($A25="","",ROUNDUP(SA*VLOOKUP(index,DIVL_Tab,4+$A25,FALSE)/10000+T24*VLOOKUP(index,DIV_RB_L!$A:$DK,4+$A25,FALSE)/10000,0)) -> 141 | L25: 0 | M25: =IF($A25="","",ROUNDUP(SA*VLOOKUP(index,'DIV(身故)_M'!$A:$DK,4+$A25,FALSE)/10000,0)) -> 217912 | N25: =IF($A25="","",ROUNDUP(SA*VLOOKUP(index,'DIV(身故)_L'!$A:$DK,4+$A25,FALSE)/10000,0)) -> 48783 | O25: 0 | P25: =IF($A25="","",ROUNDUP(SA*VLOOKUP(index,'DIV(解約)_M'!$A:$DK,4+$A25,FALSE)/10000,0)) -> 9725 | Q25: =IF($A25="","",ROUNDUP(SA*VLOOKUP(index,'DIV(解約)_L'!$A:$DK,4+$A25,FALSE)/10000,0)) -> 2488 | R25: =IF(A25="","",IF(DIV=4,SUM($I$15:I25),"")) -> 0 | S25: =IF(A25="","",IF(DIV=4,SUM($J$15:J25),"")) -> 4215 | T25: =IF(A25="","",IF(DIV=4,SUM($K$15:K25),"")) -> 1142 | U25: =IF($A25="","",ROUND(MAX(R25*VLOOKUP($A25,SA!$A:$B,2,FALSE),ROUND(R25*VLOOKUP(index,GP!$A$2:$E$407,5,FALSE)/10000,2)*MIN($A25,plan),X25*VLOOKUP($B25,參數!$F$44:$G$51,2,TRUE)),2)) -> 0 | V25: =IF($A25="","",ROUND(MAX(S25*VLOOKUP($A25,SA!$A:$B,2,FALSE),ROUND(S25*VLOOKUP(index,GP!$A$2:$E$407,5,FALSE)/10000,2)*MIN($A25,plan),Y25*VLOOKUP($B25,參數!$F$44:$G$51,2,TRUE)),2)) -> 4215 | W25: =IF($A25="","",ROUND(MAX(T25*VLOOKUP($A25,SA!$A:$B,2,FALSE),ROUND(T25*VLOOKUP(index,GP!$A$2:$E$407,5,FALSE)/10000,2)*MIN($A25,plan),Z25*VLOOKUP($B25,參數!$F$44:$G$51,2,TRUE)),2)) -> 1142 | X25: =IF(R25="","",ROUND((R25*VLOOKUP(index,PUA!$A:$DK,4+A25,FALSE)/10000+IF($B25>=109,0,IF($B25>=65,IFERROR(R24,0)*$CJ$10,0))),2)) -> 0 | Y25: =IF(S25="","",ROUND((S25*VLOOKUP(index,PUA!$A:$DK,4+A25,FALSE)/10000+IF($B25>=109,0,IF($B25>=65,S24*$CJ$10,0))),2)) -> 2467.79 | Z25: =IF(T25="","",ROUND((T25*VLOOKUP(index,PUA!$A:$DK,4+A25,FALSE)/10000+IF($B25>=109,0,IF($B25>=65,T24*$CJ$10,0))),2)) -> 668.62 | AA25: 100000 | AB25: 104215 | AC25: 101142 | AD25: 100000 | AE25: 322127 | AF25: 149925 | AG25: 58547.8 | AH25: 70740.59 | AI25: 61704.42 | AM25: =IF($A25="","",IF($A25>plan,0,ROUND(ROUND(SA*VLOOKUP(index,GP!$A$2:$E$407,5,FALSE)/10000*PremRate*(1-SA_disc-Prem_disc),2)*(1-PayModeDisc1),2)*IF(LEFT(ChargeMode,1)="月",2,1)*IF($A25=1,1,0)+ ROUND(ROUND(SA*VLOOKUP(index,GP!$A$2:$E$407,5,FALSE)/10000*PremRate*(1-SA_disc-Prem_disc),2)*(1-PayModeDisc2),2)*(VLOOKUP(LEFT(ChargeMode,1),參數!$J$23:$L$27,3,FALSE)-IF(LEFT(ChargeMode,1)="月",2,1)*IF($A25=1,1,0)))) -> 0 | AN25: =IF(A25="","",SUM($AM$15:AM25)) -> 60795.9 | AO25: =IF(A25="","",ROUND(SA*VLOOKUP(index,GP!$A$2:$E$407,5,FALSE)/10000,2)*MIN(A25,plan)) -> 61410 | AP25: =IF(A25="","",IF(B25+1>110,0,IF(B25>=參數!$B$56,IF(AND(B25>=參數!$B$58,參數!$G$59="0"),IF(AND(B25>=參數!$B$60,參數!$G$61="0"),參數!$D$60,參數!$D$58),參數!$D$56),0)+IF(B25=參數!$B$71,參數!$D$71,0)+IF(B25=參數!$B$73,參數!$D$73,0)+IF(B25=參數!$B$75,參數!$D$75,0))) -> 350000 | AQ25: 69271.87 | AR25: 0.7074059 | AS25: 4215 | AT25: 100000 | AW25: 0 | AY25: 0 | AZ25: 0 | BA25: =IF(A25="","",SUM($AQ$15:AQ25)) -> 69271.87 | BB25: 69271.87 | BC25: 350000 | BD25: 60606.22 | BE25: 0.6170442 | BF25: 1142 | BG25: 100000 | BJ25: 0 | BL25: 0 | BM25: 0 | BN25: =IF(A25="","",SUM($BD$15:BD25)) -> 60606.22 | BO25: 60606.22 | BP25: 0 | BQ25: 0 | BV25: =SUM($BS$15:BS25) ->  | BW25: =SUM($BT$15:BT25) ->  | BX25: =SUM($BU$15:BU25) ->  | BY25: 0 | BZ25: 0 | CA25: 0 | CB25: =SUM($BY$15:BY25) -> 0 | CC25: =SUM($BZ$15:BZ25) -> 0 | CD25: =SUM($CA$15:CA25) -> 0 | CE25: 0 | CF25: 4692.72 | CG25: 1274.13 | CI25: 1.644847761 | CJ25: 5.298498747 | CK25: 0.9630221775 | CL25: 1.163575011 | CN25: 11 | CO25: 0 | CP25: 0 | CQ25: 0 | CR25: 0 | CS25: 0 | CT25: 0 | CU25: 0 | CV25: 0 | CW25: 0 | CX25: 0 | CY25: 0 | CZ25: 0 | DA25: 0 | DB25: 0 | DD25: 11 | DE25: 0 | DF25: 0 | DG25: 0 | DH25: 0 | DI25: 0 | DJ25: 0 | DK25: 0 | DL25: 0 | DM25: 0 | DN25: 0 | DO25: 0 | DP25: 0 | DQ25: 0 | DR25: 0 | DT25: 322127 | DU25: =IF($B25="","",IF(OR(-ROUND(PMT(installment_int,installment_period,DT25-ROUND(DT25*(1-installment_rate),2),0,1),2)<參數!$B$19,$B25<16),DT25,ROUND(DT25*(1-installment_rate),2))) -> 128850.8 | DV25: =IF($B25="","",IF(installment_rate=0,"",IF(OR(-ROUND(PMT(installment_int,installment_period,DT25-DU25,0,1),2)<參數!$B$19,$B25<16),"",-ROUND(PMT(installment_int,installment_period,DT25-DU25,0,1),2)))) -> 39814.77 | DW25: 149925 | DX25: =IF($B25="","",IF(OR(-ROUND(PMT(installment_int,installment_period,DW25-ROUND(DW25*(1-installment_rate),2),0,1),2)<參數!$B$19,$B25<16),DW25,ROUND(DW25*(1-installment_rate),2))) -> 59970 | DY25: =IF($B25="","",IF(installment_rate=0,"",IF(OR(-ROUND(PMT(installment_int,installment_period,DW25-DX25,0,1),2)<參數!$B$19,$B25<16),"",-ROUND(PMT(installment_int,installment_period,DW25-DX25,0,1),2)))) -> 18530.67 | DZ25: 100000 | EA25: =IF($B25="","",IF(OR(-ROUND(PMT(installment_int,installment_period,DZ25-ROUND(DZ25*(1-installment_rate),2),0,1),2)<參數!$B$19,$B25<16),DZ25,ROUND(DZ25*(1-installment_rate),2))) -> 40000 | EB25: =IF($B25="","",IF(installment_rate=0,"",IF(OR(-ROUND(PMT(installment_int,installment_period,DZ25-EA25,0,1),2)<參數!$B$19,$B25<16),"",-ROUND(PMT(installment_int,installment_period,DZ25-EA25,0,1),2)))) -> 12359.96 | ED25: 0 | EE25: 538 | EF25: 141 | EG25: =IF(ED25="","",ROUND((ED25*VLOOKUP(index,PUA!$A:$DK,4+A25,FALSE)/10000+IF($B25>=109,0,IF($B25>=65,IFERROR(ED24,0)*$CJ$10,0))),2)) -> 0 | EH25: =IF(EE25="","",ROUND((EE25*VLOOKUP(index,PUA!$A:$DK,4+A25,FALSE)/10000+IF($B25>=109,0,IF($B25>=65,EE24*$CJ$10,0))),2)) -> 314.99 | EI25: =IF(EF25="","",ROUND((EF25*VLOOKUP(index,PUA!$A:$DK,4+A25,FALSE)/10000+IF($B25>=109,0,IF($B25>=65,EF24*$CJ$10,0))),2)) -> 82.55 | EK25: 350000 | EL25: 57684.8 | EM25: 0.585478 | EN25: 100000 | EO25: 0 | EP25: 0 | EQ25: 0 | ER25: =IF(A25="","",SUM($EL$15:EL25)) -> 57684.8 | ES25: 57684.8 | EU25: 69271.87 | EV25: 69271.87 | EW25: 60606.22 | EX25: 60606.22 | EY25: 57684.8 | EZ25: 57684.8
